Workbook

Sheet ローン計画
B1: ローン計画書
C2: 金額の入力 | G2: ローン概要
C3: 借入金額 | E3: ¥5,000.00 | G3: 返済予定 | I3: =IF(LoanIsGood,-PMT(InterestRate/PaymentsPerYear,支払予定回数,借入金額),"") -> ¥425.75
C4: 年間利子率 | E4: 4.00% | G4: 支払予定回数 | I4: =IF(LoanIsGood,LoanPeriod*PaymentsPerYear,"") -> 12
C5: 返済年数 | E5: 1 | G5: 実際の支払回数 | I5: =実際の支払回数 -> 10
C6: 1 年あたりの支払回数 | E6: 12 | G6: 早期支払額の合計 | I6: =早期支払額の合計 -> ¥900.00
C7: 借入日 | E7: =TODAY() -> 2020-04-16 | G7: 総利息 | I7: =総利息 -> ¥89.62
C9: オプションの繰上げ返済 | E9: ¥100.00 | G9: 融資元名 | H9: Woodgrove Bank
B11: 支払番号 | C11: 返済日 | D11: 期首残高 | E11: 返済予定 | F11: 繰上げ返済額 | G11: 返済総額 | H11: 元金 | I11: 利息 | J11: 期末残高 | K11: 利息の累計
B12: =IF(LoanIsGood,IF(ROW()-ROW(PaymentSchedule[[#Headers],[支払番号]])>支払予定回数,"",ROW()-ROW(PaymentSchedule[[#Headers],[支払番号]])),"") -> 1 | C12: =IF(PaymentSchedule[[#This Row],[支払番号]]<>"",EOMONTH(LoanStartDate,ROW(PaymentSchedule[[#This Row],[支払番号]])-ROW(PaymentSchedule[[#Headers],[支払番号]])-2)+DAY(LoanStartDate),"") -> 2020-04-16 | D12: =IF(PaymentSchedule[[#This Row],[支払番号]]<>"",IF(ROW()-ROW(PaymentSchedule[[#Headers],[期首残高]])=1,借入金額,INDEX(PaymentSchedule[期末残高],ROW()-ROW(PaymentSchedule[[#Headers],[期首残高]])-1)),"") -> ¥5,000.00 | E12: =IF(PaymentSchedule[[#This Row],[支払番号]]<>"",ScheduledPayment,"") -> ¥425.75 | F12: =IF(PaymentSchedule[[#This Row],[支払番号]]<>"",IF(PaymentSchedule[[#This Row],[返済予定]]+ExtraPayments<PaymentSchedule[[#This Row],[期首残高]],ExtraPayments,IF(PaymentSchedule[[#This Row],[期首残高]]-PaymentSchedule[[#This Row],[返済予定]]>0,PaymentSchedule[[#This Row],[期首残高]]-PaymentSchedule[[#This Row],[返済予定]],0)),"") -> ¥100.00 | G12: =IF(PaymentSchedule[[#This Row],[支払番号]]<>"",IF(PaymentSchedule[[#This Row],[返済予定]]+PaymentSchedule[[#This Row],[繰上げ返済額]]<=PaymentSchedule[[#This Row],[期首残高]],PaymentSchedule[[#This Row],[返済予定]]+PaymentSchedule[[#This Row],[繰上げ返済額]],PaymentSchedule[[#This Row],[期首残高]]),"") -> ¥525.75 | H12: =IF(PaymentSchedule[[#This Row],[支払番号]]<>"",PaymentSchedule[[#This Row],[返済総額]]-PaymentSchedule[[#This Row],[利息]],"") -> ¥509.08 | I12: =IF(PaymentSchedule[[#This Row],[支払番号]]<>"",PaymentSchedule[[#This Row],[期首残高]]*(InterestRate/PaymentsPerYear),"") -> ¥16.67 | J12: =IF(PaymentSchedule[[#This Row],[支払番号]]<>"",IF(PaymentSchedule[[#This Row],[返済予定]]+PaymentSchedule[[#This Row],[繰上げ返済額]]<=PaymentSchedule[[#This Row],[期首残高]],PaymentSchedule[[#This Row],[期首残高]]-PaymentSchedule[[#This Row],[元金]],0),"") -> ¥4,490.92 | K12: =IF(PaymentSchedule[[#This Row],[支払番号]]<>"",SUM(INDEX(PaymentSchedule[利息],1,1):PaymentSchedule[[#This Row],[利息]]),"") -> ¥16.67
B13: =IF(LoanIsGood,IF(ROW()-ROW(PaymentSchedule[[#Headers],[支払番号]])>支払予定回数,"",ROW()-ROW(PaymentSchedule[[#Headers],[支払番号]])),"") -> 2 | C13: =IF(PaymentSchedule[[#This Row],[支払番号]]<>"",EOMONTH(LoanStartDate,ROW(PaymentSchedule[[#This Row],[支払番号]])-ROW(PaymentSchedule[[#Headers],[支払番号]])-2)+DAY(LoanStartDate),"") -> 2020-05-16 | D13: =IF(PaymentSchedule[[#This Row],[支払番号]]<>"",IF(ROW()-ROW(PaymentSchedule[[#Headers],[期首残高]])=1,借入金額,INDEX(PaymentSchedule[期末残高],ROW()-ROW(PaymentSchedule[[#Headers],[期首残高]])-1)),"") -> ¥4,490.92 | E13: =IF(PaymentSchedule[[#This Row],[支払番号]]<>"",ScheduledPayment,"") -> ¥425.75 | F13: =IF(PaymentSchedule[[#This Row],[支払番号]]<>"",IF(PaymentSchedule[[#This Row],[返済予定]]+ExtraPayments<PaymentSchedule[[#This Row],[期首残高]],ExtraPayments,IF(PaymentSchedule[[#This Row],[期首残高]]-PaymentSchedule[[#This Row],[返済予定]]>0,PaymentSchedule[[#This Row],[期首残高]]-PaymentSchedule[[#This Row],[返済予定]],0)),"") -> ¥100.00 | G13: =IF(PaymentSchedule[[#This Row],[支払番号]]<>"",IF(PaymentSchedule[[#This Row],[返済予定]]+PaymentSchedule[[#This Row],[繰上げ返済額]]<=PaymentSchedule[[#This Row],[期首残高]],PaymentSchedule[[#This Row],[返済予定]]+PaymentSchedule[[#This Row],[繰上げ返済額]],PaymentSchedule[[#This Row],[期首残高]]),"") -> ¥525.75 | H13: =IF(PaymentSchedule[[#This Row],[支払番号]]<>"",PaymentSchedule[[#This Row],[返済総額]]-PaymentSchedule[[#This Row],[利息]],"") -> ¥510.78 | I13: =IF(PaymentSchedule[[#This Row],[支払番号]]<>"",PaymentSchedule[[#This Row],[期首残高]]*(InterestRate/PaymentsPerYear),"") -> ¥14.97 | J13: =IF(PaymentSchedule[[#This Row],[支払番号]]<>"",IF(PaymentSchedule[[#This Row],[返済予定]]+PaymentSchedule[[#This Row],[繰上げ返済額]]<=PaymentSchedule[[#This Row],[期首残高]],PaymentSchedule[[#This Row],[期首残高]]-PaymentSchedule[[#This Row],[元金]],0),"") -> ¥3,980.14 | K13: =IF(PaymentSchedule[[#This Row],[支払番号]]<>"",SUM(INDEX(PaymentSchedule[利息],1,1):PaymentSchedule[[#This Row],[利息]]),"") -> ¥31.64
B14: =IF(LoanIsGood,IF(ROW()-ROW(PaymentSchedule[[#Headers],[支払番号]])>支払予定回数,"",ROW()-ROW(PaymentSchedule[[#Headers],[支払番号]])),"") -> 3 | C14: =IF(PaymentSchedule[[#This Row],[支払番号]]<>"",EOMONTH(LoanStartDate,ROW(PaymentSchedule[[#This Row],[支払番号]])-ROW(PaymentSchedule[[#Headers],[支払番号]])-2)+DAY(LoanStartDate),"") -> 2020-06-16 | D14: =IF(PaymentSchedule[[#This Row],[支払番号]]<>"",IF(ROW()-ROW(PaymentSchedule[[#Headers],[期首残高]])=1,借入金額,INDEX(PaymentSchedule[期末残高],ROW()-ROW(PaymentSchedule[[#Headers],[期首残高]])-1)),"") -> ¥3,980.14 | E14: =IF(PaymentSchedule[[#This Row],[支払番号]]<>"",ScheduledPayment,"") -> ¥425.75 | F14: =IF(PaymentSchedule[[#This Row],[支払番号]]<>"",IF(PaymentSchedule[[#This Row],[返済予定]]+ExtraPayments<PaymentSchedule[[#This Row],[期首残高]],ExtraPayments,IF(PaymentSchedule[[#This Row],[期首残高]]-PaymentSchedule[[#This Row],[返済予定]]>0,PaymentSchedule[[#This Row],[期首残高]]-PaymentSchedule[[#This Row],[返済予定]],0)),"") -> ¥100.00 | G14: =IF(PaymentSchedule[[#This Row],[支払番号]]<>"",IF(PaymentSchedule[[#This Row],[返済予定]]+PaymentSchedule[[#This Row],[繰上げ返済額]]<=PaymentSchedule[[#This Row],[期首残高]],PaymentSchedule[[#This Row],[返済予定]]+PaymentSchedule[[#This Row],[繰上げ返済額]],PaymentSchedule[[#This Row],[期首残高]]),"") -> ¥525.75 | H14: =IF(PaymentSchedule[[#This Row],[支払番号]]<>"",PaymentSchedule[[#This Row],[返済総額]]-PaymentSchedule[[#This Row],[利息]],"") -> ¥512.48 | I14: =IF(PaymentSchedule[[#This Row],[支払番号]]<>"",PaymentSchedule[[#This Row],[期首残高]]*(InterestRate/PaymentsPerYear),"") -> ¥13.27 | J14: =IF(PaymentSchedule[[#This Row],[支払番号]]<>"",IF(PaymentSchedule[[#This Row],[返済予定]]+PaymentSchedule[[#This Row],[繰上げ返済額]]<=PaymentSchedule[[#This Row],[期首残高]],PaymentSchedule[[#This Row],[期首残高]]-PaymentSchedule[[#This Row],[元金]],0),"") -> ¥3,467.65 | K14: =IF(PaymentSchedule[[#This Row],[支払番号]]<>"",SUM(INDEX(PaymentSchedule[利息],1,1):PaymentSchedule[[#This Row],[利息]]),"") -> ¥44.90
B15: =IF(LoanIsGood,IF(ROW()-ROW(PaymentSchedule[[#Headers],[支払番号]])>支払予定回数,"",ROW()-ROW(PaymentSchedule[[#Headers],[支払番号]])),"") -> 4 | C15: =IF(PaymentSchedule[[#This Row],[支払番号]]<>"",EOMONTH(LoanStartDate,ROW(PaymentSchedule[[#This Row],[支払番号]])-ROW(PaymentSchedule[[#Headers],[支払番号]])-2)+DAY(LoanStartDate),"") -> 2020-07-16 | D15: =IF(PaymentSchedule[[#This Row],[支払番号]]<>"",IF(ROW()-ROW(PaymentSchedule[[#Headers],[期首残高]])=1,借入金額,INDEX(PaymentSchedule[期末残高],ROW()-ROW(PaymentSchedule[[#Headers],[期首残高]])-1)),"") -> ¥3,467.65 | E15: =IF(PaymentSchedule[[#This Row],[支払番号]]<>"",ScheduledPayment,"") -> ¥425.75 | F15: =IF(PaymentSchedule[[#This Row],[支払番号]]<>"",IF(PaymentSchedule[[#This Row],[返済予定]]+ExtraPayments<PaymentSchedule[[#This Row],[期首残高]],ExtraPayments,IF(PaymentSchedule[[#This Row],[期首残高]]-PaymentSchedule[[#This Row],[返済予定]]>0,PaymentSchedule[[#This Row],[期首残高]]-PaymentSchedule[[#This Row],[返済予定]],0)),"") -> ¥100.00 | G15: =IF(PaymentSchedule[[#This Row],[支払番号]]<>"",IF(PaymentSchedule[[#This Row],[返済予定]]+PaymentSchedule[[#This Row],[繰上げ返済額]]<=PaymentSchedule[[#This Row],[期首残高]],PaymentSchedule[[#This Row],[返済予定]]+PaymentSchedule[[#This Row],[繰上げ返済額]],PaymentSchedule[[#This Row],[期首残高]]),"") -> ¥525.75 | H15: =IF(PaymentSchedule[[#This Row],[支払番号]]<>"",PaymentSchedule[[#This Row],[返済総額]]-PaymentSchedule[[#This Row],[利息]],"") -> ¥514.19 | I15: =IF(PaymentSchedule[[#This Row],[支払番号]]<>"",PaymentSchedule[[#This Row],[期首残高]]*(InterestRate/PaymentsPerYear),"") -> ¥11.56 | J15: =IF(PaymentSchedule[[#This Row],[支払番号]]<>"",IF(PaymentSchedule[[#This Row],[返済予定]]+PaymentSchedule[[#This Row],[繰上げ返済額]]<=PaymentSchedule[[#This Row],[期首残高]],PaymentSchedule[[#This Row],[期首残高]]-PaymentSchedule[[#This Row],[元金]],0),"") -> ¥2,953.46 | K15: =IF(PaymentSchedule[[#This Row],[支払番号]]<>"",SUM(INDEX(PaymentSchedule[利息],1,1):PaymentSchedule[[#This Row],[利息]]),"") -> ¥56.46
B16: =IF(LoanIsGood,IF(ROW()-ROW(PaymentSchedule[[#Headers],[支払番号]])>支払予定回数,"",ROW()-ROW(PaymentSchedule[[#Headers],[支払番号]])),"") -> 5 | C16: =IF(PaymentSchedule[[#This Row],[支払番号]]<>"",EOMONTH(LoanStartDate,ROW(PaymentSchedule[[#This Row],[支払番号]])-ROW(PaymentSchedule[[#Headers],[支払番号]])-2)+DAY(LoanStartDate),"") -> 2020-08-16 | D16: =IF(PaymentSchedule[[#This Row],[支払番号]]<>"",IF(ROW()-ROW(PaymentSchedule[[#Headers],[期首残高]])=1,借入金額,INDEX(PaymentSchedule[期末残高],ROW()-ROW(PaymentSchedule[[#Headers],[期首残高]])-1)),"") -> ¥2,953.46 | E16: =IF(PaymentSchedule[[#This Row],[支払番号]]<>"",ScheduledPayment,"") -> ¥425.75 | F16: =IF(PaymentSchedule[[#This Row],[支払番号]]<>"",IF(PaymentSchedule[[#This Row],[返済予定]]+ExtraPayments<PaymentSchedule[[#This Row],[期首残高]],ExtraPayments,IF(PaymentSchedule[[#This Row],[期首残高]]-PaymentSchedule[[#This Row],[返済予定]]>0,PaymentSchedule[[#This Row],[期首残高]]-PaymentSchedule[[#This Row],[返済予定]],0)),"") -> ¥100.00 | G16: =IF(PaymentSchedule[[#This Row],[支払番号]]<>"",IF(PaymentSchedule[[#This Row],[返済予定]]+PaymentSchedule[[#This Row],[繰上げ返済額]]<=PaymentSchedule[[#This Row],[期首残高]],PaymentSchedule[[#This Row],[返済予定]]+PaymentSchedule[[#This Row],[繰上げ返済額]],PaymentSchedule[[#This Row],[期首残高]]),"") -> ¥525.75 | H16: =IF(PaymentSchedule[[#This Row],[支払番号]]<>"",PaymentSchedule[[#This Row],[返済総額]]-PaymentSchedule[[#This Row],[利息]],"") -> ¥515.90 | I16: =IF(PaymentSchedule[[#This Row],[支払番号]]<>"",PaymentSchedule[[#This Row],[期首残高]]*(InterestRate/PaymentsPerYear),"") -> ¥9.84 | J16: =IF(PaymentSchedule[[#This Row],[支払番号]]<>"",IF(PaymentSchedule[[#This Row],[返済予定]]+PaymentSchedule[[#This Row],[繰上げ返済額]]<=PaymentSchedule[[#This Row],[期首残高]],PaymentSchedule[[#This Row],[期首残高]]-PaymentSchedule[[#This Row],[元金]],0),"") -> ¥2,437.56 | K16: =IF(PaymentSchedule[[#This Row],[支払番号]]<>"",SUM(INDEX(PaymentSchedule[利息],1,1):PaymentSchedule[[#This Row],[利息]]),"") -> ¥66.31
B17: =IF(LoanIsGood,IF(ROW()-ROW(PaymentSchedule[[#Headers],[支払番号]])>支払予定回数,"",ROW()-ROW(PaymentSchedule[[#Headers],[支払番号]])),"") -> 6 | C17: =IF(PaymentSchedule[[#This Row],[支払番号]]<>"",EOMONTH(LoanStartDate,ROW(PaymentSchedule[[#This Row],[支払番号]])-ROW(PaymentSchedule[[#Headers],[支払番号]])-2)+DAY(LoanStartDate),"") -> 2020-09-16 | D17: =IF(PaymentSchedule[[#This Row],[支払番号]]<>"",IF(ROW()-ROW(PaymentSchedule[[#Headers],[期首残高]])=1,借入金額,INDEX(PaymentSchedule[期末残高],ROW()-ROW(PaymentSchedule[[#Headers],[期首残高]])-1)),"") -> ¥2,437.56 | E17: =IF(PaymentSchedule[[#This Row],[支払番号]]<>"",ScheduledPayment,"") -> ¥425.75 | F17: =IF(PaymentSchedule[[#This Row],[支払番号]]<>"",IF(PaymentSchedule[[#This Row],[返済予定]]+ExtraPayments<PaymentSchedule[[#This Row],[期首残高]],ExtraPayments,IF(PaymentSchedule[[#This Row],[期首残高]]-PaymentSchedule[[#This Row],[返済予定]]>0,PaymentSchedule[[#This Row],[期首残高]]-PaymentSchedule[[#This Row],[返済予定]],0)),"") -> ¥100.00 | G17: =IF(PaymentSchedule[[#This Row],[支払番号]]<>"",IF(PaymentSchedule[[#This Row],[返済予定]]+PaymentSchedule[[#This Row],[繰上げ返済額]]<=PaymentSchedule[[#This Row],[期首残高]],PaymentSchedule[[#This Row],[返済予定]]+PaymentSchedule[[#This Row],[繰上げ返済額]],PaymentSchedule[[#This Row],[期首残高]]),"") -> ¥525.75 | H17: =IF(PaymentSchedule[[#This Row],[支払番号]]<>"",PaymentSchedule[[#This Row],[返済総額]]-PaymentSchedule[[#This Row],[利息]],"") -> ¥517.62 | I17: =IF(PaymentSchedule[[#This Row],[支払番号]]<>"",PaymentSchedule[[#This Row],[期首残高]]*(InterestRate/PaymentsPerYear),"") -> ¥8.13 | J17: =IF(PaymentSchedule[[#This Row],[支払番号]]<>"",IF(PaymentSchedule[[#This Row],[返済予定]]+PaymentSchedule[[#This Row],[繰上げ返済額]]<=PaymentSchedule[[#This Row],[期首残高]],PaymentSchedule[[#This Row],[期首残高]]-PaymentSchedule[[#This Row],[元金]],0),"") -> ¥1,919.94 | K17: =IF(PaymentSchedule[[#This Row],[支払番号]]<>"",SUM(INDEX(PaymentSchedule[利息],1,1):PaymentSchedule[[#This Row],[利息]]),"") -> ¥74.43
B18: =IF(LoanIsGood,IF(ROW()-ROW(PaymentSchedule[[#Headers],[支払番号]])>支払予定回数,"",ROW()-ROW(PaymentSchedule[[#Headers],[支払番号]])),"") -> 7 | C18: =IF(PaymentSchedule[[#This Row],[支払番号]]<>"",EOMONTH(LoanStartDate,ROW(PaymentSchedule[[#This Row],[支払番号]])-ROW(PaymentSchedule[[#Headers],[支払番号]])-2)+DAY(LoanStartDate),"") -> 2020-10-16 | D18: =IF(PaymentSchedule[[#This Row],[支払番号]]<>"",IF(ROW()-ROW(PaymentSchedule[[#Headers],[期首残高]])=1,借入金額,INDEX(PaymentSchedule[期末残高],ROW()-ROW(PaymentSchedule[[#Headers],[期首残高]])-1)),"") -> ¥1,919.94 | E18: =IF(PaymentSchedule[[#This Row],[支払番号]]<>"",ScheduledPayment,"") -> ¥425.75 | F18: =IF(PaymentSchedule[[#This Row],[支払番号]]<>"",IF(PaymentSchedule[[#This Row],[返済予定]]+ExtraPayments<PaymentSchedule[[#This Row],[期首残高]],ExtraPayments,IF(PaymentSchedule[[#This Row],[期首残高]]-PaymentSchedule[[#This Row],[返済予定]]>0,PaymentSchedule[[#This Row],[期首残高]]-PaymentSchedule[[#This Row],[返済予定]],0)),"") -> ¥100.00 | G18: =IF(PaymentSchedule[[#This Row],[支払番号]]<>"",IF(PaymentSchedule[[#This Row],[返済予定]]+PaymentSchedule[[#This Row],[繰上げ返済額]]<=PaymentSchedule[[#This Row],[期首残高]],PaymentSchedule[[#This Row],[返済予定]]+PaymentSchedule[[#This Row],[繰上げ返済額]],PaymentSchedule[[#This Row],[期首残高]]),"") -> ¥525.75 | H18: =IF(PaymentSchedule[[#This Row],[支払番号]]<>"",PaymentSchedule[[#This Row],[返済総額]]-PaymentSchedule[[#This Row],[利息]],"") -> ¥519.35 | I18: =IF(PaymentSchedule[[#This Row],[支払番号]]<>"",PaymentSchedule[[#This Row],[期首残高]]*(InterestRate/PaymentsPerYear),"") -> ¥6.40 | J18: =IF(PaymentSchedule[[#This Row],[支払番号]]<>"",IF(PaymentSchedule[[#This Row],[返済予定]]+PaymentSchedule[[#This Row],[繰上げ返済額]]<=PaymentSchedule[[#This Row],[期首残高]],PaymentSchedule[[#This Row],[期首残高]]-PaymentSchedule[[#This Row],[元金]],0),"") -> ¥1,400.59 | K18: =IF(PaymentSchedule[[#This Row],[支払番号]]<>"",SUM(INDEX(PaymentSchedule[利息],1,1):PaymentSchedule[[#This Row],[利息]]),"") -> ¥80.83
B19: =IF(LoanIsGood,IF(ROW()-ROW(PaymentSchedule[[#Headers],[支払番号]])>支払予定回数,"",ROW()-ROW(PaymentSchedule[[#Headers],[支払番号]])),"") -> 8 | C19: =IF(PaymentSchedule[[#This Row],[支払番号]]<>"",EOMONTH(LoanStartDate,ROW(PaymentSchedule[[#This Row],[支払番号]])-ROW(PaymentSchedule[[#Headers],[支払番号]])-2)+DAY(LoanStartDate),"") -> 2020-11-16 | D19: =IF(PaymentSchedule[[#This Row],[支払番号]]<>"",IF(ROW()-ROW(PaymentSchedule[[#Headers],[期首残高]])=1,借入金額,INDEX(PaymentSchedule[期末残高],ROW()-ROW(PaymentSchedule[[#Headers],[期首残高]])-1)),"") -> ¥1,400.59 | E19: =IF(PaymentSchedule[[#This Row],[支払番号]]<>"",ScheduledPayment,"") -> ¥425.75 | F19: =IF(PaymentSchedule[[#This Row],[支払番号]]<>"",IF(PaymentSchedule[[#This Row],[返済予定]]+ExtraPayments<PaymentSchedule[[#This Row],[期首残高]],ExtraPayments,IF(PaymentSchedule[[#This Row],[期首残高]]-PaymentSchedule[[#This Row],[返済予定]]>0,PaymentSchedule[[#This Row],[期首残高]]-PaymentSchedule[[#This Row],[返済予定]],0)),"") -> ¥100.00 | G19: =IF(PaymentSchedule[[#This Row],[支払番号]]<>"",IF(PaymentSchedule[[#This Row],[返済予定]]+PaymentSchedule[[#This Row],[繰上げ返済額]]<=PaymentSchedule[[#This Row],[期首残高]],PaymentSchedule[[#This Row],[返済予定]]+PaymentSchedule[[#This Row],[繰上げ返済額]],PaymentSchedule[[#This Row],[期首残高]]),"") -> ¥525.75 | H19: =IF(PaymentSchedule[[#This Row],[支払番号]]<>"",PaymentSchedule[[#This Row],[返済総額]]-PaymentSchedule[[#This Row],[利息]],"") -> ¥521.08 | I19: =IF(PaymentSchedule[[#This Row],[支払番号]]<>"",PaymentSchedule[[#This Row],[期首残高]]*(InterestRate/PaymentsPerYear),"") -> ¥4.67 | J19: =IF(PaymentSchedule[[#This Row],[支払番号]]<>"",IF(PaymentSchedule[[#This Row],[返済予定]]+PaymentSchedule[[#This Row],[繰上げ返済額]]<=PaymentSchedule[[#This Row],[期首残高]],PaymentSchedule[[#This Row],[期首残高]]-PaymentSchedule[[#This Row],[元金]],0),"") -> ¥879.50 | K19: =IF(PaymentSchedule[[#This Row],[支払番号]]<>"",SUM(INDEX(PaymentSchedule[利息],1,1):PaymentSchedule[[#This Row],[利息]]),"") -> ¥85.50
B20: =IF(LoanIsGood,IF(ROW()-ROW(PaymentSchedule[[#Headers],[支払番号]])>支払予定回数,"",ROW()-ROW(PaymentSchedule[[#Headers],[支払番号]])),"") -> 9 | C20: =IF(PaymentSchedule[[#This Row],[支払番号]]<>"",EOMONTH(LoanStartDate,ROW(PaymentSchedule[[#This Row],[支払番号]])-ROW(PaymentSchedule[[#Headers],[支払番号]])-2)+DAY(LoanStartDate),"") -> 2020-12-16 | D20: =IF(PaymentSchedule[[#This Row],[支払番号]]<>"",IF(ROW()-ROW(PaymentSchedule[[#Headers],[期首残高]])=1,借入金額,INDEX(PaymentSchedule[期末残高],ROW()-ROW(PaymentSchedule[[#Headers],[期首残高]])-1)),"") -> ¥879.50 | E20: =IF(PaymentSchedule[[#This Row],[支払番号]]<>"",ScheduledPayment,"") -> ¥425.75 | F20: =IF(PaymentSchedule[[#This Row],[支払番号]]<>"",IF(PaymentSchedule[[#This Row],[返済予定]]+ExtraPayments<PaymentSchedule[[#This Row],[期首残高]],ExtraPayments,IF(PaymentSchedule[[#This Row],[期首残高]]-PaymentSchedule[[#This Row],[返済予定]]>0,PaymentSchedule[[#This Row],[期首残高]]-PaymentSchedule[[#This Row],[返済予定]],0)),"") -> ¥100.00 | G20: =IF(PaymentSchedule[[#This Row],[支払番号]]<>"",IF(PaymentSchedule[[#This Row],[返済予定]]+PaymentSchedule[[#This Row],[繰上げ返済額]]<=PaymentSchedule[[#This Row],[期首残高]],PaymentSchedule[[#This Row],[返済予定]]+PaymentSchedule[[#This Row],[繰上げ返済額]],PaymentSchedule[[#This Row],[期首残高]]),"") -> ¥525.75 | H20: =IF(PaymentSchedule[[#This Row],[支払番号]]<>"",PaymentSchedule[[#This Row],[返済総額]]-PaymentSchedule[[#This Row],[利息]],"") -> ¥522.82 | I20: =IF(PaymentSchedule[[#This Row],[支払番号]]<>"",PaymentSchedule[[#This Row],[期首残高]]*(InterestRate/PaymentsPerYear),"") -> ¥2.93 | J20: =IF(PaymentSchedule[[#This Row],[支払番号]]<>"",IF(PaymentSchedule[[#This Row],[返済予定]]+PaymentSchedule[[#This Row],[繰上げ返済額]]<=PaymentSchedule[[#This Row],[期首残高]],PaymentSchedule[[#This Row],[期首残高]]-PaymentSchedule[[#This Row],[元金]],0),"") -> ¥356.69 | K20: =IF(PaymentSchedule[[#This Row],[支払番号]]<>"",SUM(INDEX(PaymentSchedule[利息],1,1):PaymentSchedule[[#This Row],[利息]]),"") -> ¥88.43
B21: =IF(LoanIsGood,IF(ROW()-ROW(PaymentSchedule[[#Headers],[支払番号]])>支払予定回数,"",ROW()-ROW(PaymentSchedule[[#Headers],[支払番号]])),"") -> 10 | C21: =IF(PaymentSchedule[[#This Row],[支払番号]]<>"",EOMONTH(LoanStartDate,ROW(PaymentSchedule[[#This Row],[支払番号]])-ROW(PaymentSchedule[[#Headers],[支払番号]])-2)+DAY(LoanStartDate),"") -> 2021-01-16 | D21: =IF(PaymentSchedule[[#This Row],[支払番号]]<>"",IF(ROW()-ROW(PaymentSchedule[[#Headers],[期首残高]])=1,借入金額,INDEX(PaymentSchedule[期末残高],ROW()-ROW(PaymentSchedule[[#Headers],[期首残高]])-1)),"") -> ¥356.69 | E21: =IF(PaymentSchedule[[#This Row],[支払番号]]<>"",ScheduledPayment,"") -> ¥425.75 | F21: =IF(PaymentSchedule[[#This Row],[支払番号]]<>"",IF(PaymentSchedule[[#This Row],[返済予定]]+ExtraPayments<PaymentSchedule[[#This Row],[期首残高]],ExtraPayments,IF(PaymentSchedule[[#This Row],[期首残高]]-PaymentSchedule[[#This Row],[返済予定]]>0,PaymentSchedule[[#This Row],[期首残高]]-PaymentSchedule[[#This Row],[返済予定]],0)),"") -> ¥0.00 | G21: =IF(PaymentSchedule[[#This Row],[支払番号]]<>"",IF(PaymentSchedule[[#This Row],[返済予定]]+PaymentSchedule[[#This Row],[繰上げ返済額]]<=PaymentSchedule[[#This Row],[期首残高]],PaymentSchedule[[#This Row],[返済予定]]+PaymentSchedule[[#This Row],[繰上げ返済額]],PaymentSchedule[[#This Row],[期首残高]]),"") -> ¥356.69 | H21: =IF(PaymentSchedule[[#This Row],[支払番号]]<>"",PaymentSchedule[[#This Row],[返済総額]]-PaymentSchedule[[#This Row],[利息]],"") -> ¥355.50 | I21: =IF(PaymentSchedule[[#This Row],[支払番号]]<>"",PaymentSchedule[[#This Row],[期首残高]]*(InterestRate/PaymentsPerYear),"") -> ¥1.19 | J21: =IF(PaymentSchedule[[#This Row],[支払番号]]<>"",IF(PaymentSchedule[[#This Row],[返済予定]]+PaymentSchedule[[#This Row],[繰上げ返済額]]<=PaymentSchedule[[#This Row],[期首残高]],PaymentSchedule[[#This Row],[期首残高]]-PaymentSchedule[[#This Row],[元金]],0),"") -> ¥0.00 | K21: =IF(PaymentSchedule[[#This Row],[支払番号]]<>"",SUM(INDEX(PaymentSchedule[利息],1,1):PaymentSchedule[[#This Row],[利息]]),"") -> ¥89.62
B22: =IF(LoanIsGood,IF(ROW()-ROW(PaymentSchedule[[#Headers],[支払番号]])>支払予定回数,"",ROW()-ROW(PaymentSchedule[[#Headers],[支払番号]])),"") -> 11 | C22: =IF(PaymentSchedule[[#This Row],[支払番号]]<>"",EOMONTH(LoanStartDate,ROW(PaymentSchedule[[#This Row],[支払番号]])-ROW(PaymentSchedule[[#Headers],[支払番号]])-2)+DAY(LoanStartDate),"") -> 2021-02-16 | D22: =IF(PaymentSchedule[[#This Row],[支払番号]]<>"",IF(ROW()-ROW(PaymentSchedule[[#Headers],[期首残高]])=1,借入金額,INDEX(PaymentSchedule[期末残高],ROW()-ROW(PaymentSchedule[[#Headers],[期首残高]])-1)),"") -> ¥0.00 | E22: =IF(PaymentSchedule[[#This Row],[支払番号]]<>"",ScheduledPayment,"") -> ¥425.75 | F22: =IF(PaymentSchedule[[#This Row],[支払番号]]<>"",IF(PaymentSchedule[[#This Row],[返済予定]]+ExtraPayments<PaymentSchedule[[#This Row],[期首残高]],ExtraPayments,IF(PaymentSchedule[[#This Row],[期首残高]]-PaymentSchedule[[#This Row],[返済予定]]>0,PaymentSchedule[[#This Row],[期首残高]]-PaymentSchedule[[#This Row],[返済予定]],0)),"") -> ¥0.00 | G22: =IF(PaymentSchedule[[#This Row],[支払番号]]<>"",IF(PaymentSchedule[[#This Row],[返済予定]]+PaymentSchedule[[#This Row],[繰上げ返済額]]<=PaymentSchedule[[#This Row],[期首残高]],PaymentSchedule[[#This Row],[返済予定]]+PaymentSchedule[[#This Row],[繰上げ返済額]],PaymentSchedule[[#This Row],[期首残高]]),"") -> ¥0.00 | H22: =IF(PaymentSchedule[[#This Row],[支払番号]]<>"",PaymentSchedule[[#This Row],[返済総額]]-PaymentSchedule[[#This Row],[利息]],"") -> ¥0.00 | I22: =IF(PaymentSchedule[[#This Row],[支払番号]]<>"",PaymentSchedule[[#This Row],[期首残高]]*(InterestRate/PaymentsPerYear),"") -> ¥0.00 | J22: =IF(PaymentSchedule[[#This Row],[支払番号]]<>"",IF(PaymentSchedule[[#This Row],[返済予定]]+PaymentSchedule[[#This Row],[繰上げ返済額]]<=PaymentSchedule[[#This Row],[期首残高]],PaymentSchedule[[#This Row],[期首残高]]-PaymentSchedule[[#This Row],[元金]],0),"") -> ¥0.00 | K22: =IF(PaymentSchedule[[#This Row],[支払番号]]<>"",SUM(INDEX(PaymentSchedule[利息],1,1):PaymentSchedule[[#This Row],[利息]]),"") -> ¥89.62
B23: =IF(LoanIsGood,IF(ROW()-ROW(PaymentSchedule[[#Headers],[支払番号]])>支払予定回数,"",ROW()-ROW(PaymentSchedule[[#Headers],[支払番号]])),"") -> 12 | C23: =IF(PaymentSchedule[[#This Row],[支払番号]]<>"",EOMONTH(LoanStartDate,ROW(PaymentSchedule[[#This Row],[支払番号]])-ROW(PaymentSchedule[[#Headers],[支払番号]])-2)+DAY(LoanStartDate),"") -> 2021-03-16 | D23: =IF(PaymentSchedule[[#This Row],[支払番号]]<>"",IF(ROW()-ROW(PaymentSchedule[[#Headers],[期首残高]])=1,借入金額,INDEX(PaymentSchedule[期末残高],ROW()-ROW(PaymentSchedule[[#Headers],[期首残高]])-1)),"") -> ¥0.00 | E23: =IF(PaymentSchedule[[#This Row],[支払番号]]<>"",ScheduledPayment,"") -> ¥425.75 | F23: =IF(PaymentSchedule[[#This Row],[支払番号]]<>"",IF(PaymentSchedule[[#This Row],[返済予定]]+ExtraPayments<PaymentSchedule[[#This Row],[期首残高]],ExtraPayments,IF(PaymentSchedule[[#This Row],[期首残高]]-PaymentSchedule[[#This Row],[返済予定]]>0,PaymentSchedule[[#This Row],[期首残高]]-PaymentSchedule[[#This Row],[返済予定]],0)),"") -> ¥0.00 | G23: =IF(PaymentSchedule[[#This Row],[支払番号]]<>"",IF(PaymentSchedule[[#This Row],[返済予定]]+PaymentSchedule[[#This Row],[繰上げ返済額]]<=PaymentSchedule[[#This Row],[期首残高]],PaymentSchedule[[#This Row],[返済予定]]+PaymentSchedule[[#This Row],[繰上げ返済額]],PaymentSchedule[[#This Row],[期首残高]]),"") -> ¥0.00 | H23: =IF(PaymentSchedule[[#This Row],[支払番号]]<>"",PaymentSchedule[[#This Row],[返済総額]]-PaymentSchedule[[#This Row],[利息]],"") -> ¥0.00 | I23: =IF(PaymentSchedule[[#This Row],[支払番号]]<>"",PaymentSchedule[[#This Row],[期首残高]]*(InterestRate/PaymentsPerYear),"") -> ¥0.00 | J23: =IF(PaymentSchedule[[#This Row],[支払番号]]<>"",IF(PaymentSchedule[[#This Row],[返済予定]]+PaymentSchedule[[#This Row],[繰上げ返済額]]<=PaymentSchedule[[#This Row],[期首残高]],PaymentSchedule[[#This Row],[期首残高]]-PaymentSchedule[[#This Row],[元金]],0),"") -> ¥0.00 | K23: =IF(PaymentSchedule[[#This Row],[支払番号]]<>"",SUM(INDEX(PaymentSchedule[利息],1,1):PaymentSchedule[[#This Row],[利息]]),"") -> ¥89.62
B24: =IF(LoanIsGood,IF(ROW()-ROW(PaymentSchedule[[#Headers],[支払番号]])>支払予定回数,"",ROW()-ROW(PaymentSchedule[[#Headers],[支払番号]])),"") ->  | C24: =IF(PaymentSchedule[[#This Row],[支払番号]]<>"",EOMONTH(LoanStartDate,ROW(PaymentSchedule[[#This Row],[支払番号]])-ROW(PaymentSchedule[[#Headers],[支払番号]])-2)+DAY(LoanStartDate),"") ->  | D24: =IF(PaymentSchedule[[#This Row],[支払番号]]<>"",IF(ROW()-ROW(PaymentSchedule[[#Headers],[期首残高]])=1,借入金額,INDEX(PaymentSchedule[期末残高],ROW()-ROW(PaymentSchedule[[#Headers],[期首残高]])-1)),"") ->  | E24: =IF(PaymentSchedule[[#This Row],[支払番号]]<>"",ScheduledPayment,"") ->  | F24: =IF(PaymentSchedule[[#This Row],[支払番号]]<>"",IF(PaymentSchedule[[#This Row],[返済予定]]+ExtraPayments<PaymentSchedule[[#This Row],[期首残高]],ExtraPayments,IF(PaymentSchedule[[#This Row],[期首残高]]-PaymentSchedule[[#This Row],[返済予定]]>0,PaymentSchedule[[#This Row],[期首残高]]-PaymentSchedule[[#This Row],[返済予定]],0)),"") ->  | G24: =IF(PaymentSchedule[[#This Row],[支払番号]]<>"",IF(PaymentSchedule[[#This Row],[返済予定]]+PaymentSchedule[[#This Row],[繰上げ返済額]]<=PaymentSchedule[[#This Row],[期首残高]],PaymentSchedule[[#This Row],[返済予定]]+PaymentSchedule[[#This Row],[繰上げ返済額]],PaymentSchedule[[#This Row],[期首残高]]),"") ->  | H24: =IF(PaymentSchedule[[#This Row],[支払番号]]<>"",PaymentSchedule[[#This Row],[返済総額]]-PaymentSchedule[[#This Row],[利息]],"") ->  | I24: =IF(PaymentSchedule[[#This Row],[支払番号]]<>"",PaymentSchedule[[#This Row],[期首残高]]*(InterestRate/PaymentsPerYear),"") ->  | J24: =IF(PaymentSchedule[[#This Row],[支払番号]]<>"",IF(PaymentSchedule[[#This Row],[返済予定]]+PaymentSchedule[[#This Row],[繰上げ返済額]]<=PaymentSchedule[[#This Row],[期首残高]],PaymentSchedule[[#This Row],[期首残高]]-PaymentSchedule[[#This Row],[元金]],0),"") ->  | K24: =IF(PaymentSchedule[[#This Row],[支払番号]]<>"",SUM(INDEX(PaymentSchedule[利息],1,1):PaymentSchedule[[#This Row],[利息]]),"") -> 
B25: =IF(LoanIsGood,IF(ROW()-ROW(PaymentSchedule[[#Headers],[支払番号]])>支払予定回数,"",ROW()-ROW(PaymentSchedule[[#Headers],[支払番号]])),"") ->  | C25: =IF(PaymentSchedule[[#This Row],[支払番号]]<>"",EOMONTH(LoanStartDate,ROW(PaymentSchedule[[#This Row],[支払番号]])-ROW(PaymentSchedule[[#Headers],[支払番号]])-2)+DAY(LoanStartDate),"") ->  | D25: =IF(PaymentSchedule[[#This Row],[支払番号]]<>"",IF(ROW()-ROW(PaymentSchedule[[#Headers],[期首残高]])=1,借入金額,INDEX(PaymentSchedule[期末残高],ROW()-ROW(PaymentSchedule[[#Headers],[期首残高]])-1)),"") ->  | E25: =IF(PaymentSchedule[[#This Row],[支払番号]]<>"",ScheduledPayment,"") ->  | F25: =IF(PaymentSchedule[[#This Row],[支払番号]]<>"",IF(PaymentSchedule[[#This Row],[返済予定]]+ExtraPayments<PaymentSchedule[[#This Row],[期首残高]],ExtraPayments,IF(PaymentSchedule[[#This Row],[期首残高]]-PaymentSchedule[[#This Row],[返済予定]]>0,PaymentSchedule[[#This Row],[期首残高]]-PaymentSchedule[[#This Row],[返済予定]],0)),"") ->  | G25: =IF(PaymentSchedule[[#This Row],[支払番号]]<>"",IF(PaymentSchedule[[#This Row],[返済予定]]+PaymentSchedule[[#This Row],[繰上げ返済額]]<=PaymentSchedule[[#This Row],[期首残高]],PaymentSchedule[[#This Row],[返済予定]]+PaymentSchedule[[#This Row],[繰上げ返済額]],PaymentSchedule[[#This Row],[期首残高]]),"") ->  | H25: =IF(PaymentSchedule[[#This Row],[支払番号]]<>"",PaymentSchedule[[#This Row],[返済総額]]-PaymentSchedule[[#This Row],[利息]],"") ->  | I25: =IF(PaymentSchedule[[#This Row],[支払番号]]<>"",PaymentSchedule[[#This Row],[期首残高]]*(InterestRate/PaymentsPerYear),"") ->  | J25: =IF(PaymentSchedule[[#This Row],[支払番号]]<>"",IF(PaymentSchedule[[#This Row],[返済予定]]+PaymentSchedule[[#This Row],[繰上げ返済額]]<=PaymentSchedule[[#This Row],[期首残高]],PaymentSchedule[[#This Row],[期首残高]]-PaymentSchedule[[#This Row],[元金]],0),"") ->  | K25: =IF(PaymentSchedule[[#This Row],[支払番号]]<>"",SUM(INDEX(PaymentSchedule[利息],1,1):PaymentSchedule[[#This Row],[利息]]),"") -> 
B26: =IF(LoanIsGood,IF(ROW()-ROW(PaymentSchedule[[#Headers],[支払番号]])>支払予定回数,"",ROW()-ROW(PaymentSchedule[[#Headers],[支払番号]])),"") ->  | C26: =IF(PaymentSchedule[[#This Row],[支払番号]]<>"",EOMONTH(LoanStartDate,ROW(PaymentSchedule[[#This Row],[支払番号]])-ROW(PaymentSchedule[[#Headers],[支払番号]])-2)+DAY(LoanStartDate),"") ->  | D26: =IF(PaymentSchedule[[#This Row],[支払番号]]<>"",IF(ROW()-ROW(PaymentSchedule[[#Headers],[期首残高]])=1,借入金額,INDEX(PaymentSchedule[期末残高],ROW()-ROW(PaymentSchedule[[#Headers],[期首残高]])-1)),"") ->  | E26: =IF(PaymentSchedule[[#This Row],[支払番号]]<>"",ScheduledPayment,"") ->  | F26: =IF(PaymentSchedule[[#This Row],[支払番号]]<>"",IF(PaymentSchedule[[#This Row],[返済予定]]+ExtraPayments<PaymentSchedule[[#This Row],[期首残高]],ExtraPayments,IF(PaymentSchedule[[#This Row],[期首残高]]-PaymentSchedule[[#This Row],[返済予定]]>0,PaymentSchedule[[#This Row],[期首残高]]-PaymentSchedule[[#This Row],[返済予定]],0)),"") ->  | G26: =IF(PaymentSchedule[[#This Row],[支払番号]]<>"",IF(PaymentSchedule[[#This Row],[返済予定]]+PaymentSchedule[[#This Row],[繰上げ返済額]]<=PaymentSchedule[[#This Row],[期首残高]],PaymentSchedule[[#This Row],[返済予定]]+PaymentSchedule[[#This Row],[繰上げ返済額]],PaymentSchedule[[#This Row],[期首残高]]),"") ->  | H26: =IF(PaymentSchedule[[#This Row],[支払番号]]<>"",PaymentSchedule[[#This Row],[返済総額]]-PaymentSchedule[[#This Row],[利息]],"") ->  | I26: =IF(PaymentSchedule[[#This Row],[支払番号]]<>"",PaymentSchedule[[#This Row],[期首残高]]*(InterestRate/PaymentsPerYear),"") ->  | J26: =IF(PaymentSchedule[[#This Row],[支払番号]]<>"",IF(PaymentSchedule[[#This Row],[返済予定]]+PaymentSchedule[[#This Row],[繰上げ返済額]]<=PaymentSchedule[[#This Row],[期首残高]],PaymentSchedule[[#This Row],[期首残高]]-PaymentSchedule[[#This Row],[元金]],0),"") ->  | K26: =IF(PaymentSchedule[[#This Row],[支払番号]]<>"",SUM(INDEX(PaymentSchedule[利息],1,1):PaymentSchedule[[#This Row],[利息]]),"") -> 
B27: =IF(LoanIsGood,IF(ROW()-ROW(PaymentSchedule[[#Headers],[支払番号]])>支払予定回数,"",ROW()-ROW(PaymentSchedule[[#Headers],[支払番号]])),"") ->  | C27: =IF(PaymentSchedule[[#This Row],[支払番号]]<>"",EOMONTH(LoanStartDate,ROW(PaymentSchedule[[#This Row],[支払番号]])-ROW(PaymentSchedule[[#Headers],[支払番号]])-2)+DAY(LoanStartDate),"") ->  | D27: =IF(PaymentSchedule[[#This Row],[支払番号]]<>"",IF(ROW()-ROW(PaymentSchedule[[#Headers],[期首残高]])=1,借入金額,INDEX(PaymentSchedule[期末残高],ROW()-ROW(PaymentSchedule[[#Headers],[期首残高]])-1)),"") ->  | E27: =IF(PaymentSchedule[[#This Row],[支払番号]]<>"",ScheduledPayment,"") ->  | F27: =IF(PaymentSchedule[[#This Row],[支払番号]]<>"",IF(PaymentSchedule[[#This Row],[返済予定]]+ExtraPayments<PaymentSchedule[[#This Row],[期首残高]],ExtraPayments,IF(PaymentSchedule[[#This Row],[期首残高]]-PaymentSchedule[[#This Row],[返済予定]]>0,PaymentSchedule[[#This Row],[期首残高]]-PaymentSchedule[[#This Row],[返済予定]],0)),"") ->  | G27: =IF(PaymentSchedule[[#This Row],[支払番号]]<>"",IF(PaymentSchedule[[#This Row],[返済予定]]+PaymentSchedule[[#This Row],[繰上げ返済額]]<=PaymentSchedule[[#This Row],[期首残高]],PaymentSchedule[[#This Row],[返済予定]]+PaymentSchedule[[#This Row],[繰上げ返済額]],PaymentSchedule[[#This Row],[期首残高]]),"") ->  | H27: =IF(PaymentSchedule[[#This Row],[支払番号]]<>"",PaymentSchedule[[#This Row],[返済総額]]-PaymentSchedule[[#This Row],[利息]],"") ->  | I27: =IF(PaymentSchedule[[#This Row],[支払番号]]<>"",PaymentSchedule[[#This Row],[期首残高]]*(InterestRate/PaymentsPerYear),"") ->  | J27: =IF(PaymentSchedule[[#This Row],[支払番号]]<>"",IF(PaymentSchedule[[#This Row],[返済予定]]+PaymentSchedule[[#This Row],[繰上げ返済額]]<=PaymentSchedule[[#This Row],[期首残高]],PaymentSchedule[[#This Row],[期首残高]]-PaymentSchedule[[#This Row],[元金]],0),"") ->  | K27: =IF(PaymentSchedule[[#This Row],[支払番号]]<>"",SUM(INDEX(PaymentSchedule[利息],1,1):PaymentSchedule[[#This Row],[利息]]),"") -> 
B28: =IF(LoanIsGood,IF(ROW()-ROW(PaymentSchedule[[#Headers],[支払番号]])>支払予定回数,"",ROW()-ROW(PaymentSchedule[[#Headers],[支払番号]])),"") ->  | C28: =IF(PaymentSchedule[[#This Row],[支払番号]]<>"",EOMONTH(LoanStartDate,ROW(PaymentSchedule[[#This Row],[支払番号]])-ROW(PaymentSchedule[[#Headers],[支払番号]])-2)+DAY(LoanStartDate),"") ->  | D28: =IF(PaymentSchedule[[#This Row],[支払番号]]<>"",IF(ROW()-ROW(PaymentSchedule[[#Headers],[期首残高]])=1,借入金額,INDEX(PaymentSchedule[期末残高],ROW()-ROW(PaymentSchedule[[#Headers],[期首残高]])-1)),"") ->  | E28: =IF(PaymentSchedule[[#This Row],[支払番号]]<>"",ScheduledPayment,"") ->  | F28: =IF(PaymentSchedule[[#This Row],[支払番号]]<>"",IF(PaymentSchedule[[#This Row],[返済予定]]+ExtraPayments<PaymentSchedule[[#This Row],[期首残高]],ExtraPayments,IF(PaymentSchedule[[#This Row],[期首残高]]-PaymentSchedule[[#This Row],[返済予定]]>0,PaymentSchedule[[#This Row],[期首残高]]-PaymentSchedule[[#This Row],[返済予定]],0)),"") ->  | G28: =IF(PaymentSchedule[[#This Row],[支払番号]]<>"",IF(PaymentSchedule[[#This Row],[返済予定]]+PaymentSchedule[[#This Row],[繰上げ返済額]]<=PaymentSchedule[[#This Row],[期首残高]],PaymentSchedule[[#This Row],[返済予定]]+PaymentSchedule[[#This Row],[繰上げ返済額]],PaymentSchedule[[#This Row],[期首残高]]),"") ->  | H28: =IF(PaymentSchedule[[#This Row],[支払番号]]<>"",PaymentSchedule[[#This Row],[返済総額]]-PaymentSchedule[[#This Row],[利息]],"") ->  | I28: =IF(PaymentSchedule[[#This Row],[支払番号]]<>"",PaymentSchedule[[#This Row],[期首残高]]*(InterestRate/PaymentsPerYear),"") ->  | J28: =IF(PaymentSchedule[[#This Row],[支払番号]]<>"",IF(PaymentSchedule[[#This Row],[返済予定]]+PaymentSchedule[[#This Row],[繰上げ返済額]]<=PaymentSchedule[[#This Row],[期首残高]],PaymentSchedule[[#This Row],[期首残高]]-PaymentSchedule[[#This Row],[元金]],0),"") ->  | K28: =IF(PaymentSchedule[[#This Row],[支払番号]]<>"",SUM(INDEX(PaymentSchedule[利息],1,1):PaymentSchedule[[#This Row],[利息]]),"") -> 
B29: =IF(LoanIsGood,IF(ROW()-ROW(PaymentSchedule[[#Headers],[支払番号]])>支払予定回数,"",ROW()-ROW(PaymentSchedule[[#Headers],[支払番号]])),"") ->  | C29: =IF(PaymentSchedule[[#This Row],[支払番号]]<>"",EOMONTH(LoanStartDate,ROW(PaymentSchedule[[#This Row],[支払番号]])-ROW(PaymentSchedule[[#Headers],[支払番号]])-2)+DAY(LoanStartDate),"") ->  | D29: =IF(PaymentSchedule[[#This Row],[支払番号]]<>"",IF(ROW()-ROW(PaymentSchedule[[#Headers],[期首残高]])=1,借入金額,INDEX(PaymentSchedule[期末残高],ROW()-ROW(PaymentSchedule[[#Headers],[期首残高]])-1)),"") ->  | E29: =IF(PaymentSchedule[[#This Row],[支払番号]]<>"",ScheduledPayment,"") ->  | F29: =IF(PaymentSchedule[[#This Row],[支払番号]]<>"",IF(PaymentSchedule[[#This Row],[返済予定]]+ExtraPayments<PaymentSchedule[[#This Row],[期首残高]],ExtraPayments,IF(PaymentSchedule[[#This Row],[期首残高]]-PaymentSchedule[[#This Row],[返済予定]]>0,PaymentSchedule[[#This Row],[期首残高]]-PaymentSchedule[[#This Row],[返済予定]],0)),"") ->  | G29: =IF(PaymentSchedule[[#This Row],[支払番号]]<>"",IF(PaymentSchedule[[#This Row],[返済予定]]+PaymentSchedule[[#This Row],[繰上げ返済額]]<=PaymentSchedule[[#This Row],[期首残高]],PaymentSchedule[[#This Row],[返済予定]]+PaymentSchedule[[#This Row],[繰上げ返済額]],PaymentSchedule[[#This Row],[期首残高]]),"") ->  | H29: =IF(PaymentSchedule[[#This Row],[支払番号]]<>"",PaymentSchedule[[#This Row],[返済総額]]-PaymentSchedule[[#This Row],[利息]],"") ->  | I29: =IF(PaymentSchedule[[#This Row],[支払番号]]<>"",PaymentSchedule[[#This Row],[期首残高]]*(InterestRate/PaymentsPerYear),"") ->  | J29: =IF(PaymentSchedule[[#This Row],[支払番号]]<>"",IF(PaymentSchedule[[#This Row],[返済予定]]+PaymentSchedule[[#This Row],[繰上げ返済額]]<=PaymentSchedule[[#This Row],[期首残高]],PaymentSchedule[[#This Row],[期首残高]]-PaymentSchedule[[#This Row],[元金]],0),"") ->  | K29: =IF(PaymentSchedule[[#This Row],[支払番号]]<>"",SUM(INDEX(PaymentSchedule[利息],1,1):PaymentSchedule[[#This Row],[利息]]),"") -> 
B30: =IF(LoanIsGood,IF(ROW()-ROW(PaymentSchedule[[#Headers],[支払番号]])>支払予定回数,"",ROW()-ROW(PaymentSchedule[[#Headers],[支払番号]])),"") ->  | C30: =IF(PaymentSchedule[[#This Row],[支払番号]]<>"",EOMONTH(LoanStartDate,ROW(PaymentSchedule[[#This Row],[支払番号]])-ROW(PaymentSchedule[[#Headers],[支払番号]])-2)+DAY(LoanStartDate),"") ->  | D30: =IF(PaymentSchedule[[#This Row],[支払番号]]<>"",IF(ROW()-ROW(PaymentSchedule[[#Headers],[期首残高]])=1,借入金額,INDEX(PaymentSchedule[期末残高],ROW()-ROW(PaymentSchedule[[#Headers],[期首残高]])-1)),"") ->  | E30: =IF(PaymentSchedule[[#This Row],[支払番号]]<>"",ScheduledPayment,"") ->  | F30: =IF(PaymentSchedule[[#This Row],[支払番号]]<>"",IF(PaymentSchedule[[#This Row],[返済予定]]+ExtraPayments<PaymentSchedule[[#This Row],[期首残高]],ExtraPayments,IF(PaymentSchedule[[#This Row],[期首残高]]-PaymentSchedule[[#This Row],[返済予定]]>0,PaymentSchedule[[#This Row],[期首残高]]-PaymentSchedule[[#This Row],[返済予定]],0)),"") ->  | G30: =IF(PaymentSchedule[[#This Row],[支払番号]]<>"",IF(PaymentSchedule[[#This Row],[返済予定]]+PaymentSchedule[[#This Row],[繰上げ返済額]]<=PaymentSchedule[[#This Row],[期首残高]],PaymentSchedule[[#This Row],[返済予定]]+PaymentSchedule[[#This Row],[繰上げ返済額]],PaymentSchedule[[#This Row],[期首残高]]),"") ->  | H30: =IF(PaymentSchedule[[#This Row],[支払番号]]<>"",PaymentSchedule[[#This Row],[返済総額]]-PaymentSchedule[[#This Row],[利息]],"") ->  | I30: =IF(PaymentSchedule[[#This Row],[支払番号]]<>"",PaymentSchedule[[#This Row],[期首残高]]*(InterestRate/PaymentsPerYear),"") ->  | J30: =IF(PaymentSchedule[[#This Row],[支払番号]]<>"",IF(PaymentSchedule[[#This Row],[返済予定]]+PaymentSchedule[[#This Row],[繰上げ返済額]]<=PaymentSchedule[[#This Row],[期首残高]],PaymentSchedule[[#This Row],[期首残高]]-PaymentSchedule[[#This Row],[元金]],0),"") ->  | K30: =IF(PaymentSchedule[[#This Row],[支払番号]]<>"",SUM(INDEX(PaymentSchedule[利息],1,1):PaymentSchedule[[#This Row],[利息]]),"") -> 
B31: =IF(LoanIsGood,IF(ROW()-ROW(PaymentSchedule[[#Headers],[支払番号]])>支払予定回数,"",ROW()-ROW(PaymentSchedule[[#Headers],[支払番号]])),"") ->  | C31: =IF(PaymentSchedule[[#This Row],[支払番号]]<>"",EOMONTH(LoanStartDate,ROW(PaymentSchedule[[#This Row],[支払番号]])-ROW(PaymentSchedule[[#Headers],[支払番号]])-2)+DAY(LoanStartDate),"") ->  | D31: =IF(PaymentSchedule[[#This Row],[支払番号]]<>"",IF(ROW()-ROW(PaymentSchedule[[#Headers],[期首残高]])=1,借入金額,INDEX(PaymentSchedule[期末残高],ROW()-ROW(PaymentSchedule[[#Headers],[期首残高]])-1)),"") ->  | E31: =IF(PaymentSchedule[[#This Row],[支払番号]]<>"",ScheduledPayment,"") ->  | F31: =IF(PaymentSchedule[[#This Row],[支払番号]]<>"",IF(PaymentSchedule[[#This Row],[返済予定]]+ExtraPayments<PaymentSchedule[[#This Row],[期首残高]],ExtraPayments,IF(PaymentSchedule[[#This Row],[期首残高]]-PaymentSchedule[[#This Row],[返済予定]]>0,PaymentSchedule[[#This Row],[期首残高]]-PaymentSchedule[[#This Row],[返済予定]],0)),"") ->  | G31: =IF(PaymentSchedule[[#This Row],[支払番号]]<>"",IF(PaymentSchedule[[#This Row],[返済予定]]+PaymentSchedule[[#This Row],[繰上げ返済額]]<=PaymentSchedule[[#This Row],[期首残高]],PaymentSchedule[[#This Row],[返済予定]]+PaymentSchedule[[#This Row],[繰上げ返済額]],PaymentSchedule[[#This Row],[期首残高]]),"") ->  | H31: =IF(PaymentSchedule[[#This Row],[支払番号]]<>"",PaymentSchedule[[#This Row],[返済総額]]-PaymentSchedule[[#This Row],[利息]],"") ->  | I31: =IF(PaymentSchedule[[#This Row],[支払番号]]<>"",PaymentSchedule[[#This Row],[期首残高]]*(InterestRate/PaymentsPerYear),"") ->  | J31: =IF(PaymentSchedule[[#This Row],[支払番号]]<>"",IF(PaymentSchedule[[#This Row],[返済予定]]+PaymentSchedule[[#This Row],[繰上げ返済額]]<=PaymentSchedule[[#This Row],[期首残高]],PaymentSchedule[[#This Row],[期首残高]]-PaymentSchedule[[#This Row],[元金]],0),"") ->  | K31: =IF(PaymentSchedule[[#This Row],[支払番号]]<>"",SUM(INDEX(PaymentSchedule[利息],1,1):PaymentSchedule[[#This Row],[利息]]),"") -> 
B32: =IF(LoanIsGood,IF(ROW()-ROW(PaymentSchedule[[#Headers],[支払番号]])>支払予定回数,"",ROW()-ROW(PaymentSchedule[[#Headers],[支払番号]])),"") ->  | C32: =IF(PaymentSchedule[[#This Row],[支払番号]]<>"",EOMONTH(LoanStartDate,ROW(PaymentSchedule[[#This Row],[支払番号]])-ROW(PaymentSchedule[[#Headers],[支払番号]])-2)+DAY(LoanStartDate),"") ->  | D32: =IF(PaymentSchedule[[#This Row],[支払番号]]<>"",IF(ROW()-ROW(PaymentSchedule[[#Headers],[期首残高]])=1,借入金額,INDEX(PaymentSchedule[期末残高],ROW()-ROW(PaymentSchedule[[#Headers],[期首残高]])-1)),"") ->  | E32: =IF(PaymentSchedule[[#This Row],[支払番号]]<>"",ScheduledPayment,"") ->  | F32: =IF(PaymentSchedule[[#This Row],[支払番号]]<>"",IF(PaymentSchedule[[#This Row],[返済予定]]+ExtraPayments<PaymentSchedule[[#This Row],[期首残高]],ExtraPayments,IF(PaymentSchedule[[#This Row],[期首残高]]-PaymentSchedule[[#This Row],[返済予定]]>0,PaymentSchedule[[#This Row],[期首残高]]-PaymentSchedule[[#This Row],[返済予定]],0)),"") ->  | G32: =IF(PaymentSchedule[[#This Row],[支払番号]]<>"",IF(PaymentSchedule[[#This Row],[返済予定]]+PaymentSchedule[[#This Row],[繰上げ返済額]]<=PaymentSchedule[[#This Row],[期首残高]],PaymentSchedule[[#This Row],[返済予定]]+PaymentSchedule[[#This Row],[繰上げ返済額]],PaymentSchedule[[#This Row],[期首残高]]),"") ->  | H32: =IF(PaymentSchedule[[#This Row],[支払番号]]<>"",PaymentSchedule[[#This Row],[返済総額]]-PaymentSchedule[[#This Row],[利息]],"") ->  | I32: =IF(PaymentSchedule[[#This Row],[支払番号]]<>"",PaymentSchedule[[#This Row],[期首残高]]*(InterestRate/PaymentsPerYear),"") ->  | J32: =IF(PaymentSchedule[[#This Row],[支払番号]]<>"",IF(PaymentSchedule[[#This Row],[返済予定]]+PaymentSchedule[[#This Row],[繰上げ返済額]]<=PaymentSchedule[[#This Row],[期首残高]],PaymentSchedule[[#This Row],[期首残高]]-PaymentSchedule[[#This Row],[元金]],0),"") ->  | K32: =IF(PaymentSchedule[[#This Row],[支払番号]]<>"",SUM(INDEX(PaymentSchedule[利息],1,1):PaymentSchedule[[#This Row],[利息]]),"") -> 
B33: =IF(LoanIsGood,IF(ROW()-ROW(PaymentSchedule[[#Headers],[支払番号]])>支払予定回数,"",ROW()-ROW(PaymentSchedule[[#Headers],[支払番号]])),"") ->  | C33: =IF(PaymentSchedule[[#This Row],[支払番号]]<>"",EOMONTH(LoanStartDate,ROW(PaymentSchedule[[#This Row],[支払番号]])-ROW(PaymentSchedule[[#Headers],[支払番号]])-2)+DAY(LoanStartDate),"") ->  | D33: =IF(PaymentSchedule[[#This Row],[支払番号]]<>"",IF(ROW()-ROW(PaymentSchedule[[#Headers],[期首残高]])=1,借入金額,INDEX(PaymentSchedule[期末残高],ROW()-ROW(PaymentSchedule[[#Headers],[期首残高]])-1)),"") ->  | E33: =IF(PaymentSchedule[[#This Row],[支払番号]]<>"",ScheduledPayment,"") ->  | F33: =IF(PaymentSchedule[[#This Row],[支払番号]]<>"",IF(PaymentSchedule[[#This Row],[返済予定]]+ExtraPayments<PaymentSchedule[[#This Row],[期首残高]],ExtraPayments,IF(PaymentSchedule[[#This Row],[期首残高]]-PaymentSchedule[[#This Row],[返済予定]]>0,PaymentSchedule[[#This Row],[期首残高]]-PaymentSchedule[[#This Row],[返済予定]],0)),"") ->  | G33: =IF(PaymentSchedule[[#This Row],[支払番号]]<>"",IF(PaymentSchedule[[#This Row],[返済予定]]+PaymentSchedule[[#This Row],[繰上げ返済額]]<=PaymentSchedule[[#This Row],[期首残高]],PaymentSchedule[[#This Row],[返済予定]]+PaymentSchedule[[#This Row],[繰上げ返済額]],PaymentSchedule[[#This Row],[期首残高]]),"") ->  | H33: =IF(PaymentSchedule[[#This Row],[支払番号]]<>"",PaymentSchedule[[#This Row],[返済総額]]-PaymentSchedule[[#This Row],[利息]],"") ->  | I33: =IF(PaymentSchedule[[#This Row],[支払番号]]<>"",PaymentSchedule[[#This Row],[期首残高]]*(InterestRate/PaymentsPerYear),"") ->  | J33: =IF(PaymentSchedule[[#This Row],[支払番号]]<>"",IF(PaymentSchedule[[#This Row],[返済予定]]+PaymentSchedule[[#This Row],[繰上げ返済額]]<=PaymentSchedule[[#This Row],[期首残高]],PaymentSchedule[[#This Row],[期首残高]]-PaymentSchedule[[#This Row],[元金]],0),"") ->  | K33: =IF(PaymentSchedule[[#This Row],[支払番号]]<>"",SUM(INDEX(PaymentSchedule[利息],1,1):PaymentSchedule[[#This Row],[利息]]),"") -> 
B34: =IF(LoanIsGood,IF(ROW()-ROW(PaymentSchedule[[#Headers],[支払番号]])>支払予定回数,"",ROW()-ROW(PaymentSchedule[[#Headers],[支払番号]])),"") ->  | C34: =IF(PaymentSchedule[[#This Row],[支払番号]]<>"",EOMONTH(LoanStartDate,ROW(PaymentSchedule[[#This Row],[支払番号]])-ROW(PaymentSchedule[[#Headers],[支払番号]])-2)+DAY(LoanStartDate),"") ->  | D34: =IF(PaymentSchedule[[#This Row],[支払番号]]<>"",IF(ROW()-ROW(PaymentSchedule[[#Headers],[期首残高]])=1,借入金額,INDEX(PaymentSchedule[期末残高],ROW()-ROW(PaymentSchedule[[#Headers],[期首残高]])-1)),"") ->  | E34: =IF(PaymentSchedule[[#This Row],[支払番号]]<>"",ScheduledPayment,"") ->  | F34: =IF(PaymentSchedule[[#This Row],[支払番号]]<>"",IF(PaymentSchedule[[#This Row],[返済予定]]+ExtraPayments<PaymentSchedule[[#This Row],[期首残高]],ExtraPayments,IF(PaymentSchedule[[#This Row],[期首残高]]-PaymentSchedule[[#This Row],[返済予定]]>0,PaymentSchedule[[#This Row],[期首残高]]-PaymentSchedule[[#This Row],[返済予定]],0)),"") ->  | G34: =IF(PaymentSchedule[[#This Row],[支払番号]]<>"",IF(PaymentSchedule[[#This Row],[返済予定]]+PaymentSchedule[[#This Row],[繰上げ返済額]]<=PaymentSchedule[[#This Row],[期首残高]],PaymentSchedule[[#This Row],[返済予定]]+PaymentSchedule[[#This Row],[繰上げ返済額]],PaymentSchedule[[#This Row],[期首残高]]),"") ->  | H34: =IF(PaymentSchedule[[#This Row],[支払番号]]<>"",PaymentSchedule[[#This Row],[返済総額]]-PaymentSchedule[[#This Row],[利息]],"") ->  | I34: =IF(PaymentSchedule[[#This Row],[支払番号]]<>"",PaymentSchedule[[#This Row],[期首残高]]*(InterestRate/PaymentsPerYear),"") ->  | J34: =IF(PaymentSchedule[[#This Row],[支払番号]]<>"",IF(PaymentSchedule[[#This Row],[返済予定]]+PaymentSchedule[[#This Row],[繰上げ返済額]]<=PaymentSchedule[[#This Row],[期首残高]],PaymentSchedule[[#This Row],[期首残高]]-PaymentSchedule[[#This Row],[元金]],0),"") ->  | K34: =IF(PaymentSchedule[[#This Row],[支払番号]]<>"",SUM(INDEX(PaymentSchedule[利息],1,1):PaymentSchedule[[#This Row],[利息]]),"") -> 
B35: =IF(LoanIsGood,IF(ROW()-ROW(PaymentSchedule[[#Headers],[支払番号]])>支払予定回数,"",ROW()-ROW(PaymentSchedule[[#Headers],[支払番号]])),"") ->  | C35: =IF(PaymentSchedule[[#This Row],[支払番号]]<>"",EOMONTH(LoanStartDate,ROW(PaymentSchedule[[#This Row],[支払番号]])-ROW(PaymentSchedule[[#Headers],[支払番号]])-2)+DAY(LoanStartDate),"") ->  | D35: =IF(PaymentSchedule[[#This Row],[支払番号]]<>"",IF(ROW()-ROW(PaymentSchedule[[#Headers],[期首残高]])=1,借入金額,INDEX(PaymentSchedule[期末残高],ROW()-ROW(PaymentSchedule[[#Headers],[期首残高]])-1)),"") ->  | E35: =IF(PaymentSchedule[[#This Row],[支払番号]]<>"",ScheduledPayment,"") ->  | F35: =IF(PaymentSchedule[[#This Row],[支払番号]]<>"",IF(PaymentSchedule[[#This Row],[返済予定]]+ExtraPayments<PaymentSchedule[[#This Row],[期首残高]],ExtraPayments,IF(PaymentSchedule[[#This Row],[期首残高]]-PaymentSchedule[[#This Row],[返済予定]]>0,PaymentSchedule[[#This Row],[期首残高]]-PaymentSchedule[[#This Row],[返済予定]],0)),"") ->  | G35: =IF(PaymentSchedule[[#This Row],[支払番号]]<>"",IF(PaymentSchedule[[#This Row],[返済予定]]+PaymentSchedule[[#This Row],[繰上げ返済額]]<=PaymentSchedule[[#This Row],[期首残高]],PaymentSchedule[[#This Row],[返済予定]]+PaymentSchedule[[#This Row],[繰上げ返済額]],PaymentSchedule[[#This Row],[期首残高]]),"") ->  | H35: =IF(PaymentSchedule[[#This Row],[支払番号]]<>"",PaymentSchedule[[#This Row],[返済総額]]-PaymentSchedule[[#This Row],[利息]],"") ->  | I35: =IF(PaymentSchedule[[#This Row],[支払番号]]<>"",PaymentSchedule[[#This Row],[期首残高]]*(InterestRate/PaymentsPerYear),"") ->  | J35: =IF(PaymentSchedule[[#This Row],[支払番号]]<>"",IF(PaymentSchedule[[#This Row],[返済予定]]+PaymentSchedule[[#This Row],[繰上げ返済額]]<=PaymentSchedule[[#This Row],[期首残高]],PaymentSchedule[[#This Row],[期首残高]]-PaymentSchedule[[#This Row],[元金]],0),"") ->  | K35: =IF(PaymentSchedule[[#This Row],[支払番号]]<>"",SUM(INDEX(PaymentSchedule[利息],1,1):PaymentSchedule[[#This Row],[利息]]),"") -> 
B36: =IF(LoanIsGood,IF(ROW()-ROW(PaymentSchedule[[#Headers],[支払番号]])>支払予定回数,"",ROW()-ROW(PaymentSchedule[[#Headers],[支払番号]])),"") ->  | C36: =IF(PaymentSchedule[[#This Row],[支払番号]]<>"",EOMONTH(LoanStartDate,ROW(PaymentSchedule[[#This Row],[支払番号]])-ROW(PaymentSchedule[[#Headers],[支払番号]])-2)+DAY(LoanStartDate),"") ->  | D36: =IF(PaymentSchedule[[#This Row],[支払番号]]<>"",IF(ROW()-ROW(PaymentSchedule[[#Headers],[期首残高]])=1,借入金額,INDEX(PaymentSchedule[期末残高],ROW()-ROW(PaymentSchedule[[#Headers],[期首残高]])-1)),"") ->  | E36: =IF(PaymentSchedule[[#This Row],[支払番号]]<>"",ScheduledPayment,"") ->  | F36: =IF(PaymentSchedule[[#This Row],[支払番号]]<>"",IF(PaymentSchedule[[#This Row],[返済予定]]+ExtraPayments<PaymentSchedule[[#This Row],[期首残高]],ExtraPayments,IF(PaymentSchedule[[#This Row],[期首残高]]-PaymentSchedule[[#This Row],[返済予定]]>0,PaymentSchedule[[#This Row],[期首残高]]-PaymentSchedule[[#This Row],[返済予定]],0)),"") ->  | G36: =IF(PaymentSchedule[[#This Row],[支払番号]]<>"",IF(PaymentSchedule[[#This Row],[返済予定]]+PaymentSchedule[[#This Row],[繰上げ返済額]]<=PaymentSchedule[[#This Row],[期首残高]],PaymentSchedule[[#This Row],[返済予定]]+PaymentSchedule[[#This Row],[繰上げ返済額]],PaymentSchedule[[#This Row],[期首残高]]),"") ->  | H36: =IF(PaymentSchedule[[#This Row],[支払番号]]<>"",PaymentSchedule[[#This Row],[返済総額]]-PaymentSchedule[[#This Row],[利息]],"") ->  | I36: =IF(PaymentSchedule[[#This Row],[支払番号]]<>"",PaymentSchedule[[#This Row],[期首残高]]*(InterestRate/PaymentsPerYear),"") ->  | J36: =IF(PaymentSchedule[[#This Row],[支払番号]]<>"",IF(PaymentSchedule[[#This Row],[返済予定]]+PaymentSchedule[[#This Row],[繰上げ返済額]]<=PaymentSchedule[[#This Row],[期首残高]],PaymentSchedule[[#This Row],[期首残高]]-PaymentSchedule[[#This Row],[元金]],0),"") ->  | K36: =IF(PaymentSchedule[[#This Row],[支払番号]]<>"",SUM(INDEX(PaymentSchedule[利息],1,1):PaymentSchedule[[#This Row],[利息]]),"") -> 
B37: =IF(LoanIsGood,IF(ROW()-ROW(PaymentSchedule[[#Headers],[支払番号]])>支払予定回数,"",ROW()-ROW(PaymentSchedule[[#Headers],[支払番号]])),"") ->  | C37: =IF(PaymentSchedule[[#This Row],[支払番号]]<>"",EOMONTH(LoanStartDate,ROW(PaymentSchedule[[#This Row],[支払番号]])-ROW(PaymentSchedule[[#Headers],[支払番号]])-2)+DAY(LoanStartDate),"") ->  | D37: =IF(PaymentSchedule[[#This Row],[支払番号]]<>"",IF(ROW()-ROW(PaymentSchedule[[#Headers],[期首残高]])=1,借入金額,INDEX(PaymentSchedule[期末残高],ROW()-ROW(PaymentSchedule[[#Headers],[期首残高]])-1)),"") ->  | E37: =IF(PaymentSchedule[[#This Row],[支払番号]]<>"",ScheduledPayment,"") ->  | F37: =IF(PaymentSchedule[[#This Row],[支払番号]]<>"",IF(PaymentSchedule[[#This Row],[返済予定]]+ExtraPayments<PaymentSchedule[[#This Row],[期首残高]],ExtraPayments,IF(PaymentSchedule[[#This Row],[期首残高]]-PaymentSchedule[[#This Row],[返済予定]]>0,PaymentSchedule[[#This Row],[期首残高]]-PaymentSchedule[[#This Row],[返済予定]],0)),"") ->  | G37: =IF(PaymentSchedule[[#This Row],[支払番号]]<>"",IF(PaymentSchedule[[#This Row],[返済予定]]+PaymentSchedule[[#This Row],[繰上げ返済額]]<=PaymentSchedule[[#This Row],[期首残高]],PaymentSchedule[[#This Row],[返済予定]]+PaymentSchedule[[#This Row],[繰上げ返済額]],PaymentSchedule[[#This Row],[期首残高]]),"") ->  | H37: =IF(PaymentSchedule[[#This Row],[支払番号]]<>"",PaymentSchedule[[#This Row],[返済総額]]-PaymentSchedule[[#This Row],[利息]],"") ->  | I37: =IF(PaymentSchedule[[#This Row],[支払番号]]<>"",PaymentSchedule[[#This Row],[期首残高]]*(InterestRate/PaymentsPerYear),"") ->  | J37: =IF(PaymentSchedule[[#This Row],[支払番号]]<>"",IF(PaymentSchedule[[#This Row],[返済予定]]+PaymentSchedule[[#This Row],[繰上げ返済額]]<=PaymentSchedule[[#This Row],[期首残高]],PaymentSchedule[[#This Row],[期首残高]]-PaymentSchedule[[#This Row],[元金]],0),"") ->  | K37: =IF(PaymentSchedule[[#This Row],[支払番号]]<>"",SUM(INDEX(PaymentSchedule[利息],1,1):PaymentSchedule[[#This Row],[利息]]),"") -> 
B38: =IF(LoanIsGood,IF(ROW()-ROW(PaymentSchedule[[#Headers],[支払番号]])>支払予定回数,"",ROW()-ROW(PaymentSchedule[[#Headers],[支払番号]])),"") ->  | C38: =IF(PaymentSchedule[[#This Row],[支払番号]]<>"",EOMONTH(LoanStartDate,ROW(PaymentSchedule[[#This Row],[支払番号]])-ROW(PaymentSchedule[[#Headers],[支払番号]])-2)+DAY(LoanStartDate),"") ->  | D38: =IF(PaymentSchedule[[#This Row],[支払番号]]<>"",IF(ROW()-ROW(PaymentSchedule[[#Headers],[期首残高]])=1,借入金額,INDEX(PaymentSchedule[期末残高],ROW()-ROW(PaymentSchedule[[#Headers],[期首残高]])-1)),"") ->  | E38: =IF(PaymentSchedule[[#This Row],[支払番号]]<>"",ScheduledPayment,"") ->  | F38: =IF(PaymentSchedule[[#This Row],[支払番号]]<>"",IF(PaymentSchedule[[#This Row],[返済予定]]+ExtraPayments<PaymentSchedule[[#This Row],[期首残高]],ExtraPayments,IF(PaymentSchedule[[#This Row],[期首残高]]-PaymentSchedule[[#This Row],[返済予定]]>0,PaymentSchedule[[#This Row],[期首残高]]-PaymentSchedule[[#This Row],[返済予定]],0)),"") ->  | G38: =IF(PaymentSchedule[[#This Row],[支払番号]]<>"",IF(PaymentSchedule[[#This Row],[返済予定]]+PaymentSchedule[[#This Row],[繰上げ返済額]]<=PaymentSchedule[[#This Row],[期首残高]],PaymentSchedule[[#This Row],[返済予定]]+PaymentSchedule[[#This Row],[繰上げ返済額]],PaymentSchedule[[#This Row],[期首残高]]),"") ->  | H38: =IF(PaymentSchedule[[#This Row],[支払番号]]<>"",PaymentSchedule[[#This Row],[返済総額]]-PaymentSchedule[[#This Row],[利息]],"") ->  | I38: =IF(PaymentSchedule[[#This Row],[支払番号]]<>"",PaymentSchedule[[#This Row],[期首残高]]*(InterestRate/PaymentsPerYear),"") ->  | J38: =IF(PaymentSchedule[[#This Row],[支払番号]]<>"",IF(PaymentSchedule[[#This Row],[返済予定]]+PaymentSchedule[[#This Row],[繰上げ返済額]]<=PaymentSchedule[[#This Row],[期首残高]],PaymentSchedule[[#This Row],[期首残高]]-PaymentSchedule[[#This Row],[元金]],0),"") ->  | K38: =IF(PaymentSchedule[[#This Row],[支払番号]]<>"",SUM(INDEX(PaymentSchedule[利息],1,1):PaymentSchedule[[#This Row],[利息]]),"") -> 
B39: =IF(LoanIsGood,IF(ROW()-ROW(PaymentSchedule[[#Headers],[支払番号]])>支払予定回数,"",ROW()-ROW(PaymentSchedule[[#Headers],[支払番号]])),"") ->  | C39: =IF(PaymentSchedule[[#This Row],[支払番号]]<>"",EOMONTH(LoanStartDate,ROW(PaymentSchedule[[#This Row],[支払番号]])-ROW(PaymentSchedule[[#Headers],[支払番号]])-2)+DAY(LoanStartDate),"") ->  | D39: =IF(PaymentSchedule[[#This Row],[支払番号]]<>"",IF(ROW()-ROW(PaymentSchedule[[#Headers],[期首残高]])=1,借入金額,INDEX(PaymentSchedule[期末残高],ROW()-ROW(PaymentSchedule[[#Headers],[期首残高]])-1)),"") ->  | E39: =IF(PaymentSchedule[[#This Row],[支払番号]]<>"",ScheduledPayment,"") ->  | F39: =IF(PaymentSchedule[[#This Row],[支払番号]]<>"",IF(PaymentSchedule[[#This Row],[返済予定]]+ExtraPayments<PaymentSchedule[[#This Row],[期首残高]],ExtraPayments,IF(PaymentSchedule[[#This Row],[期首残高]]-PaymentSchedule[[#This Row],[返済予定]]>0,PaymentSchedule[[#This Row],[期首残高]]-PaymentSchedule[[#This Row],[返済予定]],0)),"") ->  | G39: =IF(PaymentSchedule[[#This Row],[支払番号]]<>"",IF(PaymentSchedule[[#This Row],[返済予定]]+PaymentSchedule[[#This Row],[繰上げ返済額]]<=PaymentSchedule[[#This Row],[期首残高]],PaymentSchedule[[#This Row],[返済予定]]+PaymentSchedule[[#This Row],[繰上げ返済額]],PaymentSchedule[[#This Row],[期首残高]]),"") ->  | H39: =IF(PaymentSchedule[[#This Row],[支払番号]]<>"",PaymentSchedule[[#This Row],[返済総額]]-PaymentSchedule[[#This Row],[利息]],"") ->  | I39: =IF(PaymentSchedule[[#This Row],[支払番号]]<>"",PaymentSchedule[[#This Row],[期首残高]]*(InterestRate/PaymentsPerYear),"") ->  | J39: =IF(PaymentSchedule[[#This Row],[支払番号]]<>"",IF(PaymentSchedule[[#This Row],[返済予定]]+PaymentSchedule[[#This Row],[繰上げ返済額]]<=PaymentSchedule[[#This Row],[期首残高]],PaymentSchedule[[#This Row],[期首残高]]-PaymentSchedule[[#This Row],[元金]],0),"") ->  | K39: =IF(PaymentSchedule[[#This Row],[支払番号]]<>"",SUM(INDEX(PaymentSchedule[利息],1,1):PaymentSchedule[[#This Row],[利息]]),"") -> 
B40: =IF(LoanIsGood,IF(ROW()-ROW(PaymentSchedule[[#Headers],[支払番号]])>支払予定回数,"",ROW()-ROW(PaymentSchedule[[#Headers],[支払番号]])),"") ->  | C40: =IF(PaymentSchedule[[#This Row],[支払番号]]<>"",EOMONTH(LoanStartDate,ROW(PaymentSchedule[[#This Row],[支払番号]])-ROW(PaymentSchedule[[#Headers],[支払番号]])-2)+DAY(LoanStartDate),"") ->  | D40: =IF(PaymentSchedule[[#This Row],[支払番号]]<>"",IF(ROW()-ROW(PaymentSchedule[[#Headers],[期首残高]])=1,借入金額,INDEX(PaymentSchedule[期末残高],ROW()-ROW(PaymentSchedule[[#Headers],[期首残高]])-1)),"") ->  | E40: =IF(PaymentSchedule[[#This Row],[支払番号]]<>"",ScheduledPayment,"") ->  | F40: =IF(PaymentSchedule[[#This Row],[支払番号]]<>"",IF(PaymentSchedule[[#This Row],[返済予定]]+ExtraPayments<PaymentSchedule[[#This Row],[期首残高]],ExtraPayments,IF(PaymentSchedule[[#This Row],[期首残高]]-PaymentSchedule[[#This Row],[返済予定]]>0,PaymentSchedule[[#This Row],[期首残高]]-PaymentSchedule[[#This Row],[返済予定]],0)),"") ->  | G40: =IF(PaymentSchedule[[#This Row],[支払番号]]<>"",IF(PaymentSchedule[[#This Row],[返済予定]]+PaymentSchedule[[#This Row],[繰上げ返済額]]<=PaymentSchedule[[#This Row],[期首残高]],PaymentSchedule[[#This Row],[返済予定]]+PaymentSchedule[[#This Row],[繰上げ返済額]],PaymentSchedule[[#This Row],[期首残高]]),"") ->  | H40: =IF(PaymentSchedule[[#This Row],[支払番号]]<>"",PaymentSchedule[[#This Row],[返済総額]]-PaymentSchedule[[#This Row],[利息]],"") ->  | I40: =IF(PaymentSchedule[[#This Row],[支払番号]]<>"",PaymentSchedule[[#This Row],[期首残高]]*(InterestRate/PaymentsPerYear),"") ->  | J40: =IF(PaymentSchedule[[#This Row],[支払番号]]<>"",IF(PaymentSchedule[[#This Row],[返済予定]]+PaymentSchedule[[#This Row],[繰上げ返済額]]<=PaymentSchedule[[#This Row],[期首残高]],PaymentSchedule[[#This Row],[期首残高]]-PaymentSchedule[[#This Row],[元金]],0),"") ->  | K40: =IF(PaymentSchedule[[#This Row],[支払番号]]<>"",SUM(INDEX(PaymentSchedule[利息],1,1):PaymentSchedule[[#This Row],[利息]]),"") -> 
B41: =IF(LoanIsGood,IF(ROW()-ROW(PaymentSchedule[[#Headers],[支払番号]])>支払予定回数,"",ROW()-ROW(PaymentSchedule[[#Headers],[支払番号]])),"") ->  | C41: =IF(PaymentSchedule[[#This Row],[支払番号]]<>"",EOMONTH(LoanStartDate,ROW(PaymentSchedule[[#This Row],[支払番号]])-ROW(PaymentSchedule[[#Headers],[支払番号]])-2)+DAY(LoanStartDate),"") ->  | D41: =IF(PaymentSchedule[[#This Row],[支払番号]]<>"",IF(ROW()-ROW(PaymentSchedule[[#Headers],[期首残高]])=1,借入金額,INDEX(PaymentSchedule[期末残高],ROW()-ROW(PaymentSchedule[[#Headers],[期首残高]])-1)),"") ->  | E41: =IF(PaymentSchedule[[#This Row],[支払番号]]<>"",ScheduledPayment,"") ->  | F41: =IF(PaymentSchedule[[#This Row],[支払番号]]<>"",IF(PaymentSchedule[[#This Row],[返済予定]]+ExtraPayments<PaymentSchedule[[#This Row],[期首残高]],ExtraPayments,IF(PaymentSchedule[[#This Row],[期首残高]]-PaymentSchedule[[#This Row],[返済予定]]>0,PaymentSchedule[[#This Row],[期首残高]]-PaymentSchedule[[#This Row],[返済予定]],0)),"") ->  | G41: =IF(PaymentSchedule[[#This Row],[支払番号]]<>"",IF(PaymentSchedule[[#This Row],[返済予定]]+PaymentSchedule[[#This Row],[繰上げ返済額]]<=PaymentSchedule[[#This Row],[期首残高]],PaymentSchedule[[#This Row],[返済予定]]+PaymentSchedule[[#This Row],[繰上げ返済額]],PaymentSchedule[[#This Row],[期首残高]]),"") ->  | H41: =IF(PaymentSchedule[[#This Row],[支払番号]]<>"",PaymentSchedule[[#This Row],[返済総額]]-PaymentSchedule[[#This Row],[利息]],"") ->  | I41: =IF(PaymentSchedule[[#This Row],[支払番号]]<>"",PaymentSchedule[[#This Row],[期首残高]]*(InterestRate/PaymentsPerYear),"") ->  | J41: =IF(PaymentSchedule[[#This Row],[支払番号]]<>"",IF(PaymentSchedule[[#This Row],[返済予定]]+PaymentSchedule[[#This Row],[繰上げ返済額]]<=PaymentSchedule[[#This Row],[期首残高]],PaymentSchedule[[#This Row],[期首残高]]-PaymentSchedule[[#This Row],[元金]],0),"") ->  | K41: =IF(PaymentSchedule[[#This Row],[支払番号]]<>"",SUM(INDEX(PaymentSchedule[利息],1,1):PaymentSchedule[[#This Row],[利息]]),"") -> 
B42: =IF(LoanIsGood,IF(ROW()-ROW(PaymentSchedule[[#Headers],[支払番号]])>支払予定回数,"",ROW()-ROW(PaymentSchedule[[#Headers],[支払番号]])),"") ->  | C42: =IF(PaymentSchedule[[#This Row],[支払番号]]<>"",EOMONTH(LoanStartDate,ROW(PaymentSchedule[[#This Row],[支払番号]])-ROW(PaymentSchedule[[#Headers],[支払番号]])-2)+DAY(LoanStartDate),"") ->  | D42: =IF(PaymentSchedule[[#This Row],[支払番号]]<>"",IF(ROW()-ROW(PaymentSchedule[[#Headers],[期首残高]])=1,借入金額,INDEX(PaymentSchedule[期末残高],ROW()-ROW(PaymentSchedule[[#Headers],[期首残高]])-1)),"") ->  | E42: =IF(PaymentSchedule[[#This Row],[支払番号]]<>"",ScheduledPayment,"") ->  | F42: =IF(PaymentSchedule[[#This Row],[支払番号]]<>"",IF(PaymentSchedule[[#This Row],[返済予定]]+ExtraPayments<PaymentSchedule[[#This Row],[期首残高]],ExtraPayments,IF(PaymentSchedule[[#This Row],[期首残高]]-PaymentSchedule[[#This Row],[返済予定]]>0,PaymentSchedule[[#This Row],[期首残高]]-PaymentSchedule[[#This Row],[返済予定]],0)),"") ->  | G42: =IF(PaymentSchedule[[#This Row],[支払番号]]<>"",IF(PaymentSchedule[[#This Row],[返済予定]]+PaymentSchedule[[#This Row],[繰上げ返済額]]<=PaymentSchedule[[#This Row],[期首残高]],PaymentSchedule[[#This Row],[返済予定]]+PaymentSchedule[[#This Row],[繰上げ返済額]],PaymentSchedule[[#This Row],[期首残高]]),"") ->  | H42: =IF(PaymentSchedule[[#This Row],[支払番号]]<>"",PaymentSchedule[[#This Row],[返済総額]]-PaymentSchedule[[#This Row],[利息]],"") ->  | I42: =IF(PaymentSchedule[[#This Row],[支払番号]]<>"",PaymentSchedule[[#This Row],[期首残高]]*(InterestRate/PaymentsPerYear),"") ->  | J42: =IF(PaymentSchedule[[#This Row],[支払番号]]<>"",IF(PaymentSchedule[[#This Row],[返済予定]]+PaymentSchedule[[#This Row],[繰上げ返済額]]<=PaymentSchedule[[#This Row],[期首残高]],PaymentSchedule[[#This Row],[期首残高]]-PaymentSchedule[[#This Row],[元金]],0),"") ->  | K42: =IF(PaymentSchedule[[#This Row],[支払番号]]<>"",SUM(INDEX(PaymentSchedule[利息],1,1):PaymentSchedule[[#This Row],[利息]]),"") -> 
B43: =IF(LoanIsGood,IF(ROW()-ROW(PaymentSchedule[[#Headers],[支払番号]])>支払予定回数,"",ROW()-ROW(PaymentSchedule[[#Headers],[支払番号]])),"") ->  | C43: =IF(PaymentSchedule[[#This Row],[支払番号]]<>"",EOMONTH(LoanStartDate,ROW(PaymentSchedule[[#This Row],[支払番号]])-ROW(PaymentSchedule[[#Headers],[支払番号]])-2)+DAY(LoanStartDate),"") ->  | D43: =IF(PaymentSchedule[[#This Row],[支払番号]]<>"",IF(ROW()-ROW(PaymentSchedule[[#Headers],[期首残高]])=1,借入金額,INDEX(PaymentSchedule[期末残高],ROW()-ROW(PaymentSchedule[[#Headers],[期首残高]])-1)),"") ->  | E43: =IF(PaymentSchedule[[#This Row],[支払番号]]<>"",ScheduledPayment,"") ->  | F43: =IF(PaymentSchedule[[#This Row],[支払番号]]<>"",IF(PaymentSchedule[[#This Row],[返済予定]]+ExtraPayments<PaymentSchedule[[#This Row],[期首残高]],ExtraPayments,IF(PaymentSchedule[[#This Row],[期首残高]]-PaymentSchedule[[#This Row],[返済予定]]>0,PaymentSchedule[[#This Row],[期首残高]]-PaymentSchedule[[#This Row],[返済予定]],0)),"") ->  | G43: =IF(PaymentSchedule[[#This Row],[支払番号]]<>"",IF(PaymentSchedule[[#This Row],[返済予定]]+PaymentSchedule[[#This Row],[繰上げ返済額]]<=PaymentSchedule[[#This Row],[期首残高]],PaymentSchedule[[#This Row],[返済予定]]+PaymentSchedule[[#This Row],[繰上げ返済額]],PaymentSchedule[[#This Row],[期首残高]]),"") ->  | H43: =IF(PaymentSchedule[[#This Row],[支払番号]]<>"",PaymentSchedule[[#This Row],[返済総額]]-PaymentSchedule[[#This Row],[利息]],"") ->  | I43: =IF(PaymentSchedule[[#This Row],[支払番号]]<>"",PaymentSchedule[[#This Row],[期首残高]]*(InterestRate/PaymentsPerYear),"") ->  | J43: =IF(PaymentSchedule[[#This Row],[支払番号]]<>"",IF(PaymentSchedule[[#This Row],[返済予定]]+PaymentSchedule[[#This Row],[繰上げ返済額]]<=PaymentSchedule[[#This Row],[期首残高]],PaymentSchedule[[#This Row],[期首残高]]-PaymentSchedule[[#This Row],[元金]],0),"") ->  | K43: =IF(PaymentSchedule[[#This Row],[支払番号]]<>"",SUM(INDEX(PaymentSchedule[利息],1,1):PaymentSchedule[[#This Row],[利息]]),"") -> 
B44: =IF(LoanIsGood,IF(ROW()-ROW(PaymentSchedule[[#Headers],[支払番号]])>支払予定回数,"",ROW()-ROW(PaymentSchedule[[#Headers],[支払番号]])),"") ->  | C44: =IF(PaymentSchedule[[#This Row],[支払番号]]<>"",EOMONTH(LoanStartDate,ROW(PaymentSchedule[[#This Row],[支払番号]])-ROW(PaymentSchedule[[#Headers],[支払番号]])-2)+DAY(LoanStartDate),"") ->  | D44: =IF(PaymentSchedule[[#This Row],[支払番号]]<>"",IF(ROW()-ROW(PaymentSchedule[[#Headers],[期首残高]])=1,借入金額,INDEX(PaymentSchedule[期末残高],ROW()-ROW(PaymentSchedule[[#Headers],[期首残高]])-1)),"") ->  | E44: =IF(PaymentSchedule[[#This Row],[支払番号]]<>"",ScheduledPayment,"") ->  | F44: =IF(PaymentSchedule[[#This Row],[支払番号]]<>"",IF(PaymentSchedule[[#This Row],[返済予定]]+ExtraPayments<PaymentSchedule[[#This Row],[期首残高]],ExtraPayments,IF(PaymentSchedule[[#This Row],[期首残高]]-PaymentSchedule[[#This Row],[返済予定]]>0,PaymentSchedule[[#This Row],[期首残高]]-PaymentSchedule[[#This Row],[返済予定]],0)),"") ->  | G44: =IF(PaymentSchedule[[#This Row],[支払番号]]<>"",IF(PaymentSchedule[[#This Row],[返済予定]]+PaymentSchedule[[#This Row],[繰上げ返済額]]<=PaymentSchedule[[#This Row],[期首残高]],PaymentSchedule[[#This Row],[返済予定]]+PaymentSchedule[[#This Row],[繰上げ返済額]],PaymentSchedule[[#This Row],[期首残高]]),"") ->  | H44: =IF(PaymentSchedule[[#This Row],[支払番号]]<>"",PaymentSchedule[[#This Row],[返済総額]]-PaymentSchedule[[#This Row],[利息]],"") ->  | I44: =IF(PaymentSchedule[[#This Row],[支払番号]]<>"",PaymentSchedule[[#This Row],[期首残高]]*(InterestRate/PaymentsPerYear),"") ->  | J44: =IF(PaymentSchedule[[#This Row],[支払番号]]<>"",IF(PaymentSchedule[[#This Row],[返済予定]]+PaymentSchedule[[#This Row],[繰上げ返済額]]<=PaymentSchedule[[#This Row],[期首残高]],PaymentSchedule[[#This Row],[期首残高]]-PaymentSchedule[[#This Row],[元金]],0),"") ->  | K44: =IF(PaymentSchedule[[#This Row],[支払番号]]<>"",SUM(INDEX(PaymentSchedule[利息],1,1):PaymentSchedule[[#This Row],[利息]]),"") -> 
B45: =IF(LoanIsGood,IF(ROW()-ROW(PaymentSchedule[[#Headers],[支払番号]])>支払予定回数,"",ROW()-ROW(PaymentSchedule[[#Headers],[支払番号]])),"") ->  | C45: =IF(PaymentSchedule[[#This Row],[支払番号]]<>"",EOMONTH(LoanStartDate,ROW(PaymentSchedule[[#This Row],[支払番号]])-ROW(PaymentSchedule[[#Headers],[支払番号]])-2)+DAY(LoanStartDate),"") ->  | D45: =IF(PaymentSchedule[[#This Row],[支払番号]]<>"",IF(ROW()-ROW(PaymentSchedule[[#Headers],[期首残高]])=1,借入金額,INDEX(PaymentSchedule[期末残高],ROW()-ROW(PaymentSchedule[[#Headers],[期首残高]])-1)),"") ->  | E45: =IF(PaymentSchedule[[#This Row],[支払番号]]<>"",ScheduledPayment,"") ->  | F45: =IF(PaymentSchedule[[#This Row],[支払番号]]<>"",IF(PaymentSchedule[[#This Row],[返済予定]]+ExtraPayments<PaymentSchedule[[#This Row],[期首残高]],ExtraPayments,IF(PaymentSchedule[[#This Row],[期首残高]]-PaymentSchedule[[#This Row],[返済予定]]>0,PaymentSchedule[[#This Row],[期首残高]]-PaymentSchedule[[#This Row],[返済予定]],0)),"") ->  | G45: =IF(PaymentSchedule[[#This Row],[支払番号]]<>"",IF(PaymentSchedule[[#This Row],[返済予定]]+PaymentSchedule[[#This Row],[繰上げ返済額]]<=PaymentSchedule[[#This Row],[期首残高]],PaymentSchedule[[#This Row],[返済予定]]+PaymentSchedule[[#This Row],[繰上げ返済額]],PaymentSchedule[[#This Row],[期首残高]]),"") ->  | H45: =IF(PaymentSchedule[[#This Row],[支払番号]]<>"",PaymentSchedule[[#This Row],[返済総額]]-PaymentSchedule[[#This Row],[利息]],"") ->  | I45: =IF(PaymentSchedule[[#This Row],[支払番号]]<>"",PaymentSchedule[[#This Row],[期首残高]]*(InterestRate/PaymentsPerYear),"") ->  | J45: =IF(PaymentSchedule[[#This Row],[支払番号]]<>"",IF(PaymentSchedule[[#This Row],[返済予定]]+PaymentSchedule[[#This Row],[繰上げ返済額]]<=PaymentSchedule[[#This Row],[期首残高]],PaymentSchedule[[#This Row],[期首残高]]-PaymentSchedule[[#This Row],[元金]],0),"") ->  | K45: =IF(PaymentSchedule[[#This Row],[支払番号]]<>"",SUM(INDEX(PaymentSchedule[利息],1,1):PaymentSchedule[[#This Row],[利息]]),"") -> 
B46: =IF(LoanIsGood,IF(ROW()-ROW(PaymentSchedule[[#Headers],[支払番号]])>支払予定回数,"",ROW()-ROW(PaymentSchedule[[#Headers],[支払番号]])),"") ->  | C46: =IF(PaymentSchedule[[#This Row],[支払番号]]<>"",EOMONTH(LoanStartDate,ROW(PaymentSchedule[[#This Row],[支払番号]])-ROW(PaymentSchedule[[#Headers],[支払番号]])-2)+DAY(LoanStartDate),"") ->  | D46: =IF(PaymentSchedule[[#This Row],[支払番号]]<>"",IF(ROW()-ROW(PaymentSchedule[[#Headers],[期首残高]])=1,借入金額,INDEX(PaymentSchedule[期末残高],ROW()-ROW(PaymentSchedule[[#Headers],[期首残高]])-1)),"") ->  | E46: =IF(PaymentSchedule[[#This Row],[支払番号]]<>"",ScheduledPayment,"") ->  | F46: =IF(PaymentSchedule[[#This Row],[支払番号]]<>"",IF(PaymentSchedule[[#This Row],[返済予定]]+ExtraPayments<PaymentSchedule[[#This Row],[期首残高]],ExtraPayments,IF(PaymentSchedule[[#This Row],[期首残高]]-PaymentSchedule[[#This Row],[返済予定]]>0,PaymentSchedule[[#This Row],[期首残高]]-PaymentSchedule[[#This Row],[返済予定]],0)),"") ->  | G46: =IF(PaymentSchedule[[#This Row],[支払番号]]<>"",IF(PaymentSchedule[[#This Row],[返済予定]]+PaymentSchedule[[#This Row],[繰上げ返済額]]<=PaymentSchedule[[#This Row],[期首残高]],PaymentSchedule[[#This Row],[返済予定]]+PaymentSchedule[[#This Row],[繰上げ返済額]],PaymentSchedule[[#This Row],[期首残高]]),"") ->  | H46: =IF(PaymentSchedule[[#This Row],[支払番号]]<>"",PaymentSchedule[[#This Row],[返済総額]]-PaymentSchedule[[#This Row],[利息]],"") ->  | I46: =IF(PaymentSchedule[[#This Row],[支払番号]]<>"",PaymentSchedule[[#This Row],[期首残高]]*(InterestRate/PaymentsPerYear),"") ->  | J46: =IF(PaymentSchedule[[#This Row],[支払番号]]<>"",IF(PaymentSchedule[[#This Row],[返済予定]]+PaymentSchedule[[#This Row],[繰上げ返済額]]<=PaymentSchedule[[#This Row],[期首残高]],PaymentSchedule[[#This Row],[期首残高]]-PaymentSchedule[[#This Row],[元金]],0),"") ->  | K46: =IF(PaymentSchedule[[#This Row],[支払番号]]<>"",SUM(INDEX(PaymentSchedule[利息],1,1):PaymentSchedule[[#This Row],[利息]]),"") -> 
B47: =IF(LoanIsGood,IF(ROW()-ROW(PaymentSchedule[[#Headers],[支払番号]])>支払予定回数,"",ROW()-ROW(PaymentSchedule[[#Headers],[支払番号]])),"") ->  | C47: =IF(PaymentSchedule[[#This Row],[支払番号]]<>"",EOMONTH(LoanStartDate,ROW(PaymentSchedule[[#This Row],[支払番号]])-ROW(PaymentSchedule[[#Headers],[支払番号]])-2)+DAY(LoanStartDate),"") ->  | D47: =IF(PaymentSchedule[[#This Row],[支払番号]]<>"",IF(ROW()-ROW(PaymentSchedule[[#Headers],[期首残高]])=1,借入金額,INDEX(PaymentSchedule[期末残高],ROW()-ROW(PaymentSchedule[[#Headers],[期首残高]])-1)),"") ->  | E47: =IF(PaymentSchedule[[#This Row],[支払番号]]<>"",ScheduledPayment,"") ->  | F47: =IF(PaymentSchedule[[#This Row],[支払番号]]<>"",IF(PaymentSchedule[[#This Row],[返済予定]]+ExtraPayments<PaymentSchedule[[#This Row],[期首残高]],ExtraPayments,IF(PaymentSchedule[[#This Row],[期首残高]]-PaymentSchedule[[#This Row],[返済予定]]>0,PaymentSchedule[[#This Row],[期首残高]]-PaymentSchedule[[#This Row],[返済予定]],0)),"") ->  | G47: =IF(PaymentSchedule[[#This Row],[支払番号]]<>"",IF(PaymentSchedule[[#This Row],[返済予定]]+PaymentSchedule[[#This Row],[繰上げ返済額]]<=PaymentSchedule[[#This Row],[期首残高]],PaymentSchedule[[#This Row],[返済予定]]+PaymentSchedule[[#This Row],[繰上げ返済額]],PaymentSchedule[[#This Row],[期首残高]]),"") ->  | H47: =IF(PaymentSchedule[[#This Row],[支払番号]]<>"",PaymentSchedule[[#This Row],[返済総額]]-PaymentSchedule[[#This Row],[利息]],"") ->  | I47: =IF(PaymentSchedule[[#This Row],[支払番号]]<>"",PaymentSchedule[[#This Row],[期首残高]]*(InterestRate/PaymentsPerYear),"") ->  | J47: =IF(PaymentSchedule[[#This Row],[支払番号]]<>"",IF(PaymentSchedule[[#This Row],[返済予定]]+PaymentSchedule[[#This Row],[繰上げ返済額]]<=PaymentSchedule[[#This Row],[期首残高]],PaymentSchedule[[#This Row],[期首残高]]-PaymentSchedule[[#This Row],[元金]],0),"") ->  | K47: =IF(PaymentSchedule[[#This Row],[支払番号]]<>"",SUM(INDEX(PaymentSchedule[利息],1,1):PaymentSchedule[[#This Row],[利息]]),"") -> 
B48: =IF(LoanIsGood,IF(ROW()-ROW(PaymentSchedule[[#Headers],[支払番号]])>支払予定回数,"",ROW()-ROW(PaymentSchedule[[#Headers],[支払番号]])),"") ->  | C48: =IF(PaymentSchedule[[#This Row],[支払番号]]<>"",EOMONTH(LoanStartDate,ROW(PaymentSchedule[[#This Row],[支払番号]])-ROW(PaymentSchedule[[#Headers],[支払番号]])-2)+DAY(LoanStartDate),"") ->  | D48: =IF(PaymentSchedule[[#This Row],[支払番号]]<>"",IF(ROW()-ROW(PaymentSchedule[[#Headers],[期首残高]])=1,借入金額,INDEX(PaymentSchedule[期末残高],ROW()-ROW(PaymentSchedule[[#Headers],[期首残高]])-1)),"") ->  | E48: =IF(PaymentSchedule[[#This Row],[支払番号]]<>"",ScheduledPayment,"") ->  | F48: =IF(PaymentSchedule[[#This Row],[支払番号]]<>"",IF(PaymentSchedule[[#This Row],[返済予定]]+ExtraPayments<PaymentSchedule[[#This Row],[期首残高]],ExtraPayments,IF(PaymentSchedule[[#This Row],[期首残高]]-PaymentSchedule[[#This Row],[返済予定]]>0,PaymentSchedule[[#This Row],[期首残高]]-PaymentSchedule[[#This Row],[返済予定]],0)),"") ->  | G48: =IF(PaymentSchedule[[#This Row],[支払番号]]<>"",IF(PaymentSchedule[[#This Row],[返済予定]]+PaymentSchedule[[#This Row],[繰上げ返済額]]<=PaymentSchedule[[#This Row],[期首残高]],PaymentSchedule[[#This Row],[返済予定]]+PaymentSchedule[[#This Row],[繰上げ返済額]],PaymentSchedule[[#This Row],[期首残高]]),"") ->  | H48: =IF(PaymentSchedule[[#This Row],[支払番号]]<>"",PaymentSchedule[[#This Row],[返済総額]]-PaymentSchedule[[#This Row],[利息]],"") ->  | I48: =IF(PaymentSchedule[[#This Row],[支払番号]]<>"",PaymentSchedule[[#This Row],[期首残高]]*(InterestRate/PaymentsPerYear),"") ->  | J48: =IF(PaymentSchedule[[#This Row],[支払番号]]<>"",IF(PaymentSchedule[[#This Row],[返済予定]]+PaymentSchedule[[#This Row],[繰上げ返済額]]<=PaymentSchedule[[#This Row],[期首残高]],PaymentSchedule[[#This Row],[期首残高]]-PaymentSchedule[[#This Row],[元金]],0),"") ->  | K48: =IF(PaymentSchedule[[#This Row],[支払番号]]<>"",SUM(INDEX(PaymentSchedule[利息],1,1):PaymentSchedule[[#This Row],[利息]]),"") -> 
B49: =IF(LoanIsGood,IF(ROW()-ROW(PaymentSchedule[[#Headers],[支払番号]])>支払予定回数,"",ROW()-ROW(PaymentSchedule[[#Headers],[支払番号]])),"") ->  | C49: =IF(PaymentSchedule[[#This Row],[支払番号]]<>"",EOMONTH(LoanStartDate,ROW(PaymentSchedule[[#This Row],[支払番号]])-ROW(PaymentSchedule[[#Headers],[支払番号]])-2)+DAY(LoanStartDate),"") ->  | D49: =IF(PaymentSchedule[[#This Row],[支払番号]]<>"",IF(ROW()-ROW(PaymentSchedule[[#Headers],[期首残高]])=1,借入金額,INDEX(PaymentSchedule[期末残高],ROW()-ROW(PaymentSchedule[[#Headers],[期首残高]])-1)),"") ->  | E49: =IF(PaymentSchedule[[#This Row],[支払番号]]<>"",ScheduledPayment,"") ->  | F49: =IF(PaymentSchedule[[#This Row],[支払番号]]<>"",IF(PaymentSchedule[[#This Row],[返済予定]]+ExtraPayments<PaymentSchedule[[#This Row],[期首残高]],ExtraPayments,IF(PaymentSchedule[[#This Row],[期首残高]]-PaymentSchedule[[#This Row],[返済予定]]>0,PaymentSchedule[[#This Row],[期首残高]]-PaymentSchedule[[#This Row],[返済予定]],0)),"") ->  | G49: =IF(PaymentSchedule[[#This Row],[支払番号]]<>"",IF(PaymentSchedule[[#This Row],[返済予定]]+PaymentSchedule[[#This Row],[繰上げ返済額]]<=PaymentSchedule[[#This Row],[期首残高]],PaymentSchedule[[#This Row],[返済予定]]+PaymentSchedule[[#This Row],[繰上げ返済額]],PaymentSchedule[[#This Row],[期首残高]]),"") ->  | H49: =IF(PaymentSchedule[[#This Row],[支払番号]]<>"",PaymentSchedule[[#This Row],[返済総額]]-PaymentSchedule[[#This Row],[利息]],"") ->  | I49: =IF(PaymentSchedule[[#This Row],[支払番号]]<>"",PaymentSchedule[[#This Row],[期首残高]]*(InterestRate/PaymentsPerYear),"") ->  | J49: =IF(PaymentSchedule[[#This Row],[支払番号]]<>"",IF(PaymentSchedule[[#This Row],[返済予定]]+PaymentSchedule[[#This Row],[繰上げ返済額]]<=PaymentSchedule[[#This Row],[期首残高]],PaymentSchedule[[#This Row],[期首残高]]-PaymentSchedule[[#This Row],[元金]],0),"") ->  | K49: =IF(PaymentSchedule[[#This Row],[支払番号]]<>"",SUM(INDEX(PaymentSchedule[利息],1,1):PaymentSchedule[[#This Row],[利息]]),"") -> 
B50: =IF(LoanIsGood,IF(ROW()-ROW(PaymentSchedule[[#Headers],[支払番号]])>支払予定回数,"",ROW()-ROW(PaymentSchedule[[#Headers],[支払番号]])),"") ->  | C50: =IF(PaymentSchedule[[#This Row],[支払番号]]<>"",EOMONTH(LoanStartDate,ROW(PaymentSchedule[[#This Row],[支払番号]])-ROW(PaymentSchedule[[#Headers],[支払番号]])-2)+DAY(LoanStartDate),"") ->  | D50: =IF(PaymentSchedule[[#This Row],[支払番号]]<>"",IF(ROW()-ROW(PaymentSchedule[[#Headers],[期首残高]])=1,借入金額,INDEX(PaymentSchedule[期末残高],ROW()-ROW(PaymentSchedule[[#Headers],[期首残高]])-1)),"") ->  | E50: =IF(PaymentSchedule[[#This Row],[支払番号]]<>"",ScheduledPayment,"") ->  | F50: =IF(PaymentSchedule[[#This Row],[支払番号]]<>"",IF(PaymentSchedule[[#This Row],[返済予定]]+ExtraPayments<PaymentSchedule[[#This Row],[期首残高]],ExtraPayments,IF(PaymentSchedule[[#This Row],[期首残高]]-PaymentSchedule[[#This Row],[返済予定]]>0,PaymentSchedule[[#This Row],[期首残高]]-PaymentSchedule[[#This Row],[返済予定]],0)),"") ->  | G50: =IF(PaymentSchedule[[#This Row],[支払番号]]<>"",IF(PaymentSchedule[[#This Row],[返済予定]]+PaymentSchedule[[#This Row],[繰上げ返済額]]<=PaymentSchedule[[#This Row],[期首残高]],PaymentSchedule[[#This Row],[返済予定]]+PaymentSchedule[[#This Row],[繰上げ返済額]],PaymentSchedule[[#This Row],[期首残高]]),"") ->  | H50: =IF(PaymentSchedule[[#This Row],[支払番号]]<>"",PaymentSchedule[[#This Row],[返済総額]]-PaymentSchedule[[#This Row],[利息]],"") ->  | I50: =IF(PaymentSchedule[[#This Row],[支払番号]]<>"",PaymentSchedule[[#This Row],[期首残高]]*(InterestRate/PaymentsPerYear),"") ->  | J50: =IF(PaymentSchedule[[#This Row],[支払番号]]<>"",IF(PaymentSchedule[[#This Row],[返済予定]]+PaymentSchedule[[#This Row],[繰上げ返済額]]<=PaymentSchedule[[#This Row],[期首残高]],PaymentSchedule[[#This Row],[期首残高]]-PaymentSchedule[[#This Row],[元金]],0),"") ->  | K50: =IF(PaymentSchedule[[#This Row],[支払番号]]<>"",SUM(INDEX(PaymentSchedule[利息],1,1):PaymentSchedule[[#This Row],[利息]]),"") -> 
B51: =IF(LoanIsGood,IF(ROW()-ROW(PaymentSchedule[[#Headers],[支払番号]])>支払予定回数,"",ROW()-ROW(PaymentSchedule[[#Headers],[支払番号]])),"") ->  | C51: =IF(PaymentSchedule[[#This Row],[支払番号]]<>"",EOMONTH(LoanStartDate,ROW(PaymentSchedule[[#This Row],[支払番号]])-ROW(PaymentSchedule[[#Headers],[支払番号]])-2)+DAY(LoanStartDate),"") ->  | D51: =IF(PaymentSchedule[[#This Row],[支払番号]]<>"",IF(ROW()-ROW(PaymentSchedule[[#Headers],[期首残高]])=1,借入金額,INDEX(PaymentSchedule[期末残高],ROW()-ROW(PaymentSchedule[[#Headers],[期首残高]])-1)),"") ->  | E51: =IF(PaymentSchedule[[#This Row],[支払番号]]<>"",ScheduledPayment,"") ->  | F51: =IF(PaymentSchedule[[#This Row],[支払番号]]<>"",IF(PaymentSchedule[[#This Row],[返済予定]]+ExtraPayments<PaymentSchedule[[#This Row],[期首残高]],ExtraPayments,IF(PaymentSchedule[[#This Row],[期首残高]]-PaymentSchedule[[#This Row],[返済予定]]>0,PaymentSchedule[[#This Row],[期首残高]]-PaymentSchedule[[#This Row],[返済予定]],0)),"") ->  | G51: =IF(PaymentSchedule[[#This Row],[支払番号]]<>"",IF(PaymentSchedule[[#This Row],[返済予定]]+PaymentSchedule[[#This Row],[繰上げ返済額]]<=PaymentSchedule[[#This Row],[期首残高]],PaymentSchedule[[#This Row],[返済予定]]+PaymentSchedule[[#This Row],[繰上げ返済額]],PaymentSchedule[[#This Row],[期首残高]]),"") ->  | H51: =IF(PaymentSchedule[[#This Row],[支払番号]]<>"",PaymentSchedule[[#This Row],[返済総額]]-PaymentSchedule[[#This Row],[利息]],"") ->  | I51: =IF(PaymentSchedule[[#This Row],[支払番号]]<>"",PaymentSchedule[[#This Row],[期首残高]]*(InterestRate/PaymentsPerYear),"") ->  | J51: =IF(PaymentSchedule[[#This Row],[支払番号]]<>"",IF(PaymentSchedule[[#This Row],[返済予定]]+PaymentSchedule[[#This Row],[繰上げ返済額]]<=PaymentSchedule[[#This Row],[期首残高]],PaymentSchedule[[#This Row],[期首残高]]-PaymentSchedule[[#This Row],[元金]],0),"") ->  | K51: =IF(PaymentSchedule[[#This Row],[支払番号]]<>"",SUM(INDEX(PaymentSchedule[利息],1,1):PaymentSchedule[[#This Row],[利息]]),"") -> 
B52: =IF(LoanIsGood,IF(ROW()-ROW(PaymentSchedule[[#Headers],[支払番号]])>支払予定回数,"",ROW()-ROW(PaymentSchedule[[#Headers],[支払番号]])),"") ->  | C52: =IF(PaymentSchedule[[#This Row],[支払番号]]<>"",EOMONTH(LoanStartDate,ROW(PaymentSchedule[[#This Row],[支払番号]])-ROW(PaymentSchedule[[#Headers],[支払番号]])-2)+DAY(LoanStartDate),"") ->  | D52: =IF(PaymentSchedule[[#This Row],[支払番号]]<>"",IF(ROW()-ROW(PaymentSchedule[[#Headers],[期首残高]])=1,借入金額,INDEX(PaymentSchedule[期末残高],ROW()-ROW(PaymentSchedule[[#Headers],[期首残高]])-1)),"") ->  | E52: =IF(PaymentSchedule[[#This Row],[支払番号]]<>"",ScheduledPayment,"") ->  | F52: =IF(PaymentSchedule[[#This Row],[支払番号]]<>"",IF(PaymentSchedule[[#This Row],[返済予定]]+ExtraPayments<PaymentSchedule[[#This Row],[期首残高]],ExtraPayments,IF(PaymentSchedule[[#This Row],[期首残高]]-PaymentSchedule[[#This Row],[返済予定]]>0,PaymentSchedule[[#This Row],[期首残高]]-PaymentSchedule[[#This Row],[返済予定]],0)),"") ->  | G52: =IF(PaymentSchedule[[#This Row],[支払番号]]<>"",IF(PaymentSchedule[[#This Row],[返済予定]]+PaymentSchedule[[#This Row],[繰上げ返済額]]<=PaymentSchedule[[#This Row],[期首残高]],PaymentSchedule[[#This Row],[返済予定]]+PaymentSchedule[[#This Row],[繰上げ返済額]],PaymentSchedule[[#This Row],[期首残高]]),"") ->  | H52: =IF(PaymentSchedule[[#This Row],[支払番号]]<>"",PaymentSchedule[[#This Row],[返済総額]]-PaymentSchedule[[#This Row],[利息]],"") ->  | I52: =IF(PaymentSchedule[[#This Row],[支払番号]]<>"",PaymentSchedule[[#This Row],[期首残高]]*(InterestRate/PaymentsPerYear),"") ->  | J52: =IF(PaymentSchedule[[#This Row],[支払番号]]<>"",IF(PaymentSchedule[[#This Row],[返済予定]]+PaymentSchedule[[#This Row],[繰上げ返済額]]<=PaymentSchedule[[#This Row],[期首残高]],PaymentSchedule[[#This Row],[期首残高]]-PaymentSchedule[[#This Row],[元金]],0),"") ->  | K52: =IF(PaymentSchedule[[#This Row],[支払番号]]<>"",SUM(INDEX(PaymentSchedule[利息],1,1):PaymentSchedule[[#This Row],[利息]]),"") -> 
B53: =IF(LoanIsGood,IF(ROW()-ROW(PaymentSchedule[[#Headers],[支払番号]])>支払予定回数,"",ROW()-ROW(PaymentSchedule[[#Headers],[支払番号]])),"") ->  | C53: =IF(PaymentSchedule[[#This Row],[支払番号]]<>"",EOMONTH(LoanStartDate,ROW(PaymentSchedule[[#This Row],[支払番号]])-ROW(PaymentSchedule[[#Headers],[支払番号]])-2)+DAY(LoanStartDate),"") ->  | D53: =IF(PaymentSchedule[[#This Row],[支払番号]]<>"",IF(ROW()-ROW(PaymentSchedule[[#Headers],[期首残高]])=1,借入金額,INDEX(PaymentSchedule[期末残高],ROW()-ROW(PaymentSchedule[[#Headers],[期首残高]])-1)),"") ->  | E53: =IF(PaymentSchedule[[#This Row],[支払番号]]<>"",ScheduledPayment,"") ->  | F53: =IF(PaymentSchedule[[#This Row],[支払番号]]<>"",IF(PaymentSchedule[[#This Row],[返済予定]]+ExtraPayments<PaymentSchedule[[#This Row],[期首残高]],ExtraPayments,IF(PaymentSchedule[[#This Row],[期首残高]]-PaymentSchedule[[#This Row],[返済予定]]>0,PaymentSchedule[[#This Row],[期首残高]]-PaymentSchedule[[#This Row],[返済予定]],0)),"") ->  | G53: =IF(PaymentSchedule[[#This Row],[支払番号]]<>"",IF(PaymentSchedule[[#This Row],[返済予定]]+PaymentSchedule[[#This Row],[繰上げ返済額]]<=PaymentSchedule[[#This Row],[期首残高]],PaymentSchedule[[#This Row],[返済予定]]+PaymentSchedule[[#This Row],[繰上げ返済額]],PaymentSchedule[[#This Row],[期首残高]]),"") ->  | H53: =IF(PaymentSchedule[[#This Row],[支払番号]]<>"",PaymentSchedule[[#This Row],[返済総額]]-PaymentSchedule[[#This Row],[利息]],"") ->  | I53: =IF(PaymentSchedule[[#This Row],[支払番号]]<>"",PaymentSchedule[[#This Row],[期首残高]]*(InterestRate/PaymentsPerYear),"") ->  | J53: =IF(PaymentSchedule[[#This Row],[支払番号]]<>"",IF(PaymentSchedule[[#This Row],[返済予定]]+PaymentSchedule[[#This Row],[繰上げ返済額]]<=PaymentSchedule[[#This Row],[期首残高]],PaymentSchedule[[#This Row],[期首残高]]-PaymentSchedule[[#This Row],[元金]],0),"") ->  | K53: =IF(PaymentSchedule[[#This Row],[支払番号]]<>"",SUM(INDEX(PaymentSchedule[利息],1,1):PaymentSchedule[[#This Row],[利息]]),"") -> 
B54: =IF(LoanIsGood,IF(ROW()-ROW(PaymentSchedule[[#Headers],[支払番号]])>支払予定回数,"",ROW()-ROW(PaymentSchedule[[#Headers],[支払番号]])),"") ->  | C54: =IF(PaymentSchedule[[#This Row],[支払番号]]<>"",EOMONTH(LoanStartDate,ROW(PaymentSchedule[[#This Row],[支払番号]])-ROW(PaymentSchedule[[#Headers],[支払番号]])-2)+DAY(LoanStartDate),"") ->  | D54: =IF(PaymentSchedule[[#This Row],[支払番号]]<>"",IF(ROW()-ROW(PaymentSchedule[[#Headers],[期首残高]])=1,借入金額,INDEX(PaymentSchedule[期末残高],ROW()-ROW(PaymentSchedule[[#Headers],[期首残高]])-1)),"") ->  | E54: =IF(PaymentSchedule[[#This Row],[支払番号]]<>"",ScheduledPayment,"") ->  | F54: =IF(PaymentSchedule[[#This Row],[支払番号]]<>"",IF(PaymentSchedule[[#This Row],[返済予定]]+ExtraPayments<PaymentSchedule[[#This Row],[期首残高]],ExtraPayments,IF(PaymentSchedule[[#This Row],[期首残高]]-PaymentSchedule[[#This Row],[返済予定]]>0,PaymentSchedule[[#This Row],[期首残高]]-PaymentSchedule[[#This Row],[返済予定]],0)),"") ->  | G54: =IF(PaymentSchedule[[#This Row],[支払番号]]<>"",IF(PaymentSchedule[[#This Row],[返済予定]]+PaymentSchedule[[#This Row],[繰上げ返済額]]<=PaymentSchedule[[#This Row],[期首残高]],PaymentSchedule[[#This Row],[返済予定]]+PaymentSchedule[[#This Row],[繰上げ返済額]],PaymentSchedule[[#This Row],[期首残高]]),"") ->  | H54: =IF(PaymentSchedule[[#This Row],[支払番号]]<>"",PaymentSchedule[[#This Row],[返済総額]]-PaymentSchedule[[#This Row],[利息]],"") ->  | I54: =IF(PaymentSchedule[[#This Row],[支払番号]]<>"",PaymentSchedule[[#This Row],[期首残高]]*(InterestRate/PaymentsPerYear),"") ->  | J54: =IF(PaymentSchedule[[#This Row],[支払番号]]<>"",IF(PaymentSchedule[[#This Row],[返済予定]]+PaymentSchedule[[#This Row],[繰上げ返済額]]<=PaymentSchedule[[#This Row],[期首残高]],PaymentSchedule[[#This Row],[期首残高]]-PaymentSchedule[[#This Row],[元金]],0),"") ->  | K54: =IF(PaymentSchedule[[#This Row],[支払番号]]<>"",SUM(INDEX(PaymentSchedule[利息],1,1):PaymentSchedule[[#This Row],[利息]]),"") -> 
B55: =IF(LoanIsGood,IF(ROW()-ROW(PaymentSchedule[[#Headers],[支払番号]])>支払予定回数,"",ROW()-ROW(PaymentSchedule[[#Headers],[支払番号]])),"") ->  | C55: =IF(PaymentSchedule[[#This Row],[支払番号]]<>"",EOMONTH(LoanStartDate,ROW(PaymentSchedule[[#This Row],[支払番号]])-ROW(PaymentSchedule[[#Headers],[支払番号]])-2)+DAY(LoanStartDate),"") ->  | D55: =IF(PaymentSchedule[[#This Row],[支払番号]]<>"",IF(ROW()-ROW(PaymentSchedule[[#Headers],[期首残高]])=1,借入金額,INDEX(PaymentSchedule[期末残高],ROW()-ROW(PaymentSchedule[[#Headers],[期首残高]])-1)),"") ->  | E55: =IF(PaymentSchedule[[#This Row],[支払番号]]<>"",ScheduledPayment,"") ->  | F55: =IF(PaymentSchedule[[#This Row],[支払番号]]<>"",IF(PaymentSchedule[[#This Row],[返済予定]]+ExtraPayments<PaymentSchedule[[#This Row],[期首残高]],ExtraPayments,IF(PaymentSchedule[[#This Row],[期首残高]]-PaymentSchedule[[#This Row],[返済予定]]>0,PaymentSchedule[[#This Row],[期首残高]]-PaymentSchedule[[#This Row],[返済予定]],0)),"") ->  | G55: =IF(PaymentSchedule[[#This Row],[支払番号]]<>"",IF(PaymentSchedule[[#This Row],[返済予定]]+PaymentSchedule[[#This Row],[繰上げ返済額]]<=PaymentSchedule[[#This Row],[期首残高]],PaymentSchedule[[#This Row],[返済予定]]+PaymentSchedule[[#This Row],[繰上げ返済額]],PaymentSchedule[[#This Row],[期首残高]]),"") ->  | H55: =IF(PaymentSchedule[[#This Row],[支払番号]]<>"",PaymentSchedule[[#This Row],[返済総額]]-PaymentSchedule[[#This Row],[利息]],"") ->  | I55: =IF(PaymentSchedule[[#This Row],[支払番号]]<>"",PaymentSchedule[[#This Row],[期首残高]]*(InterestRate/PaymentsPerYear),"") ->  | J55: =IF(PaymentSchedule[[#This Row],[支払番号]]<>"",IF(PaymentSchedule[[#This Row],[返済予定]]+PaymentSchedule[[#This Row],[繰上げ返済額]]<=PaymentSchedule[[#This Row],[期首残高]],PaymentSchedule[[#This Row],[期首残高]]-PaymentSchedule[[#This Row],[元金]],0),"") ->  | K55: =IF(PaymentSchedule[[#This Row],[支払番号]]<>"",SUM(INDEX(PaymentSchedule[利息],1,1):PaymentSchedule[[#This Row],[利息]]),"") -> 
B56: =IF(LoanIsGood,IF(ROW()-ROW(PaymentSchedule[[#Headers],[支払番号]])>支払予定回数,"",ROW()-ROW(PaymentSchedule[[#Headers],[支払番号]])),"") ->  | C56: =IF(PaymentSchedule[[#This Row],[支払番号]]<>"",EOMONTH(LoanStartDate,ROW(PaymentSchedule[[#This Row],[支払番号]])-ROW(PaymentSchedule[[#Headers],[支払番号]])-2)+DAY(LoanStartDate),"") ->  | D56: =IF(PaymentSchedule[[#This Row],[支払番号]]<>"",IF(ROW()-ROW(PaymentSchedule[[#Headers],[期首残高]])=1,借入金額,INDEX(PaymentSchedule[期末残高],ROW()-ROW(PaymentSchedule[[#Headers],[期首残高]])-1)),"") ->  | E56: =IF(PaymentSchedule[[#This Row],[支払番号]]<>"",ScheduledPayment,"") ->  | F56: =IF(PaymentSchedule[[#This Row],[支払番号]]<>"",IF(PaymentSchedule[[#This Row],[返済予定]]+ExtraPayments<PaymentSchedule[[#This Row],[期首残高]],ExtraPayments,IF(PaymentSchedule[[#This Row],[期首残高]]-PaymentSchedule[[#This Row],[返済予定]]>0,PaymentSchedule[[#This Row],[期首残高]]-PaymentSchedule[[#This Row],[返済予定]],0)),"") ->  | G56: =IF(PaymentSchedule[[#This Row],[支払番号]]<>"",IF(PaymentSchedule[[#This Row],[返済予定]]+PaymentSchedule[[#This Row],[繰上げ返済額]]<=PaymentSchedule[[#This Row],[期首残高]],PaymentSchedule[[#This Row],[返済予定]]+PaymentSchedule[[#This Row],[繰上げ返済額]],PaymentSchedule[[#This Row],[期首残高]]),"") ->  | H56: =IF(PaymentSchedule[[#This Row],[支払番号]]<>"",PaymentSchedule[[#This Row],[返済総額]]-PaymentSchedule[[#This Row],[利息]],"") ->  | I56: =IF(PaymentSchedule[[#This Row],[支払番号]]<>"",PaymentSchedule[[#This Row],[期首残高]]*(InterestRate/PaymentsPerYear),"") ->  | J56: =IF(PaymentSchedule[[#This Row],[支払番号]]<>"",IF(PaymentSchedule[[#This Row],[返済予定]]+PaymentSchedule[[#This Row],[繰上げ返済額]]<=PaymentSchedule[[#This Row],[期首残高]],PaymentSchedule[[#This Row],[期首残高]]-PaymentSchedule[[#This Row],[元金]],0),"") ->  | K56: =IF(PaymentSchedule[[#This Row],[支払番号]]<>"",SUM(INDEX(PaymentSchedule[利息],1,1):PaymentSchedule[[#This Row],[利息]]),"") -> 
B57: =IF(LoanIsGood,IF(ROW()-ROW(PaymentSchedule[[#Headers],[支払番号]])>支払予定回数,"",ROW()-ROW(PaymentSchedule[[#Headers],[支払番号]])),"") ->  | C57: =IF(PaymentSchedule[[#This Row],[支払番号]]<>"",EOMONTH(LoanStartDate,ROW(PaymentSchedule[[#This Row],[支払番号]])-ROW(PaymentSchedule[[#Headers],[支払番号]])-2)+DAY(LoanStartDate),"") ->  | D57: =IF(PaymentSchedule[[#This Row],[支払番号]]<>"",IF(ROW()-ROW(PaymentSchedule[[#Headers],[期首残高]])=1,借入金額,INDEX(PaymentSchedule[期末残高],ROW()-ROW(PaymentSchedule[[#Headers],[期首残高]])-1)),"") ->  | E57: =IF(PaymentSchedule[[#This Row],[支払番号]]<>"",ScheduledPayment,"") ->  | F57: =IF(PaymentSchedule[[#This Row],[支払番号]]<>"",IF(PaymentSchedule[[#This Row],[返済予定]]+ExtraPayments<PaymentSchedule[[#This Row],[期首残高]],ExtraPayments,IF(PaymentSchedule[[#This Row],[期首残高]]-PaymentSchedule[[#This Row],[返済予定]]>0,PaymentSchedule[[#This Row],[期首残高]]-PaymentSchedule[[#This Row],[返済予定]],0)),"") ->  | G57: =IF(PaymentSchedule[[#This Row],[支払番号]]<>"",IF(PaymentSchedule[[#This Row],[返済予定]]+PaymentSchedule[[#This Row],[繰上げ返済額]]<=PaymentSchedule[[#This Row],[期首残高]],PaymentSchedule[[#This Row],[返済予定]]+PaymentSchedule[[#This Row],[繰上げ返済額]],PaymentSchedule[[#This Row],[期首残高]]),"") ->  | H57: =IF(PaymentSchedule[[#This Row],[支払番号]]<>"",PaymentSchedule[[#This Row],[返済総額]]-PaymentSchedule[[#This Row],[利息]],"") ->  | I57: =IF(PaymentSchedule[[#This Row],[支払番号]]<>"",PaymentSchedule[[#This Row],[期首残高]]*(InterestRate/PaymentsPerYear),"") ->  | J57: =IF(PaymentSchedule[[#This Row],[支払番号]]<>"",IF(PaymentSchedule[[#This Row],[返済予定]]+PaymentSchedule[[#This Row],[繰上げ返済額]]<=PaymentSchedule[[#This Row],[期首残高]],PaymentSchedule[[#This Row],[期首残高]]-PaymentSchedule[[#This Row],[元金]],0),"") ->  | K57: =IF(PaymentSchedule[[#This Row],[支払番号]]<>"",SUM(INDEX(PaymentSchedule[利息],1,1):PaymentSchedule[[#This Row],[利息]]),"") -> 
B58: =IF(LoanIsGood,IF(ROW()-ROW(PaymentSchedule[[#Headers],[支払番号]])>支払予定回数,"",ROW()-ROW(PaymentSchedule[[#Headers],[支払番号]])),"") ->  | C58: =IF(PaymentSchedule[[#This Row],[支払番号]]<>"",EOMONTH(LoanStartDate,ROW(PaymentSchedule[[#This Row],[支払番号]])-ROW(PaymentSchedule[[#Headers],[支払番号]])-2)+DAY(LoanStartDate),"") ->  | D58: =IF(PaymentSchedule[[#This Row],[支払番号]]<>"",IF(ROW()-ROW(PaymentSchedule[[#Headers],[期首残高]])=1,借入金額,INDEX(PaymentSchedule[期末残高],ROW()-ROW(PaymentSchedule[[#Headers],[期首残高]])-1)),"") ->  | E58: =IF(PaymentSchedule[[#This Row],[支払番号]]<>"",ScheduledPayment,"") ->  | F58: =IF(PaymentSchedule[[#This Row],[支払番号]]<>"",IF(PaymentSchedule[[#This Row],[返済予定]]+ExtraPayments<PaymentSchedule[[#This Row],[期首残高]],ExtraPayments,IF(PaymentSchedule[[#This Row],[期首残高]]-PaymentSchedule[[#This Row],[返済予定]]>0,PaymentSchedule[[#This Row],[期首残高]]-PaymentSchedule[[#This Row],[返済予定]],0)),"") ->  | G58: =IF(PaymentSchedule[[#This Row],[支払番号]]<>"",IF(PaymentSchedule[[#This Row],[返済予定]]+PaymentSchedule[[#This Row],[繰上げ返済額]]<=PaymentSchedule[[#This Row],[期首残高]],PaymentSchedule[[#This Row],[返済予定]]+PaymentSchedule[[#This Row],[繰上げ返済額]],PaymentSchedule[[#This Row],[期首残高]]),"") ->  | H58: =IF(PaymentSchedule[[#This Row],[支払番号]]<>"",PaymentSchedule[[#This Row],[返済総額]]-PaymentSchedule[[#This Row],[利息]],"") ->  | I58: =IF(PaymentSchedule[[#This Row],[支払番号]]<>"",PaymentSchedule[[#This Row],[期首残高]]*(InterestRate/PaymentsPerYear),"") ->  | J58: =IF(PaymentSchedule[[#This Row],[支払番号]]<>"",IF(PaymentSchedule[[#This Row],[返済予定]]+PaymentSchedule[[#This Row],[繰上げ返済額]]<=PaymentSchedule[[#This Row],[期首残高]],PaymentSchedule[[#This Row],[期首残高]]-PaymentSchedule[[#This Row],[元金]],0),"") ->  | K58: =IF(PaymentSchedule[[#This Row],[支払番号]]<>"",SUM(INDEX(PaymentSchedule[利息],1,1):PaymentSchedule[[#This Row],[利息]]),"") -> 
B59: =IF(LoanIsGood,IF(ROW()-ROW(PaymentSchedule[[#Headers],[支払番号]])>支払予定回数,"",ROW()-ROW(PaymentSchedule[[#Headers],[支払番号]])),"") ->  | C59: =IF(PaymentSchedule[[#This Row],[支払番号]]<>"",EOMONTH(LoanStartDate,ROW(PaymentSchedule[[#This Row],[支払番号]])-ROW(PaymentSchedule[[#Headers],[支払番号]])-2)+DAY(LoanStartDate),"") ->  | D59: =IF(PaymentSchedule[[#This Row],[支払番号]]<>"",IF(ROW()-ROW(PaymentSchedule[[#Headers],[期首残高]])=1,借入金額,INDEX(PaymentSchedule[期末残高],ROW()-ROW(PaymentSchedule[[#Headers],[期首残高]])-1)),"") ->  | E59: =IF(PaymentSchedule[[#This Row],[支払番号]]<>"",ScheduledPayment,"") ->  | F59: =IF(PaymentSchedule[[#This Row],[支払番号]]<>"",IF(PaymentSchedule[[#This Row],[返済予定]]+ExtraPayments<PaymentSchedule[[#This Row],[期首残高]],ExtraPayments,IF(PaymentSchedule[[#This Row],[期首残高]]-PaymentSchedule[[#This Row],[返済予定]]>0,PaymentSchedule[[#This Row],[期首残高]]-PaymentSchedule[[#This Row],[返済予定]],0)),"") ->  | G59: =IF(PaymentSchedule[[#This Row],[支払番号]]<>"",IF(PaymentSchedule[[#This Row],[返済予定]]+PaymentSchedule[[#This Row],[繰上げ返済額]]<=PaymentSchedule[[#This Row],[期首残高]],PaymentSchedule[[#This Row],[返済予定]]+PaymentSchedule[[#This Row],[繰上げ返済額]],PaymentSchedule[[#This Row],[期首残高]]),"") ->  | H59: =IF(PaymentSchedule[[#This Row],[支払番号]]<>"",PaymentSchedule[[#This Row],[返済総額]]-PaymentSchedule[[#This Row],[利息]],"") ->  | I59: =IF(PaymentSchedule[[#This Row],[支払番号]]<>"",PaymentSchedule[[#This Row],[期首残高]]*(InterestRate/PaymentsPerYear),"") ->  | J59: =IF(PaymentSchedule[[#This Row],[支払番号]]<>"",IF(PaymentSchedule[[#This Row],[返済予定]]+PaymentSchedule[[#This Row],[繰上げ返済額]]<=PaymentSchedule[[#This Row],[期首残高]],PaymentSchedule[[#This Row],[期首残高]]-PaymentSchedule[[#This Row],[元金]],0),"") ->  | K59: =IF(PaymentSchedule[[#This Row],[支払番号]]<>"",SUM(INDEX(PaymentSchedule[利息],1,1):PaymentSchedule[[#This Row],[利息]]),"") -> 
B60: =IF(LoanIsGood,IF(ROW()-ROW(PaymentSchedule[[#Headers],[支払番号]])>支払予定回数,"",ROW()-ROW(PaymentSchedule[[#Headers],[支払番号]])),"") ->  | C60: =IF(PaymentSchedule[[#This Row],[支払番号]]<>"",EOMONTH(LoanStartDate,ROW(PaymentSchedule[[#This Row],[支払番号]])-ROW(PaymentSchedule[[#Headers],[支払番号]])-2)+DAY(LoanStartDate),"") ->  | D60: =IF(PaymentSchedule[[#This Row],[支払番号]]<>"",IF(ROW()-ROW(PaymentSchedule[[#Headers],[期首残高]])=1,借入金額,INDEX(PaymentSchedule[期末残高],ROW()-ROW(PaymentSchedule[[#Headers],[期首残高]])-1)),"") ->  | E60: =IF(PaymentSchedule[[#This Row],[支払番号]]<>"",ScheduledPayment,"") ->  | F60: =IF(PaymentSchedule[[#This Row],[支払番号]]<>"",IF(PaymentSchedule[[#This Row],[返済予定]]+ExtraPayments<PaymentSchedule[[#This Row],[期首残高]],ExtraPayments,IF(PaymentSchedule[[#This Row],[期首残高]]-PaymentSchedule[[#This Row],[返済予定]]>0,PaymentSchedule[[#This Row],[期首残高]]-PaymentSchedule[[#This Row],[返済予定]],0)),"") ->  | G60: =IF(PaymentSchedule[[#This Row],[支払番号]]<>"",IF(PaymentSchedule[[#This Row],[返済予定]]+PaymentSchedule[[#This Row],[繰上げ返済額]]<=PaymentSchedule[[#This Row],[期首残高]],PaymentSchedule[[#This Row],[返済予定]]+PaymentSchedule[[#This Row],[繰上げ返済額]],PaymentSchedule[[#This Row],[期首残高]]),"") ->  | H60: =IF(PaymentSchedule[[#This Row],[支払番号]]<>"",PaymentSchedule[[#This Row],[返済総額]]-PaymentSchedule[[#This Row],[利息]],"") ->  | I60: =IF(PaymentSchedule[[#This Row],[支払番号]]<>"",PaymentSchedule[[#This Row],[期首残高]]*(InterestRate/PaymentsPerYear),"") ->  | J60: =IF(PaymentSchedule[[#This Row],[支払番号]]<>"",IF(PaymentSchedule[[#This Row],[返済予定]]+PaymentSchedule[[#This Row],[繰上げ返済額]]<=PaymentSchedule[[#This Row],[期首残高]],PaymentSchedule[[#This Row],[期首残高]]-PaymentSchedule[[#This Row],[元金]],0),"") ->  | K60: =IF(PaymentSchedule[[#This Row],[支払番号]]<>"",SUM(INDEX(PaymentSchedule[利息],1,1):PaymentSchedule[[#This Row],[利息]]),"") -> 
B61: =IF(LoanIsGood,IF(ROW()-ROW(PaymentSchedule[[#Headers],[支払番号]])>支払予定回数,"",ROW()-ROW(PaymentSchedule[[#Headers],[支払番号]])),"") ->  | C61: =IF(PaymentSchedule[[#This Row],[支払番号]]<>"",EOMONTH(LoanStartDate,ROW(PaymentSchedule[[#This Row],[支払番号]])-ROW(PaymentSchedule[[#Headers],[支払番号]])-2)+DAY(LoanStartDate),"") ->  | D61: =IF(PaymentSchedule[[#This Row],[支払番号]]<>"",IF(ROW()-ROW(PaymentSchedule[[#Headers],[期首残高]])=1,借入金額,INDEX(PaymentSchedule[期末残高],ROW()-ROW(PaymentSchedule[[#Headers],[期首残高]])-1)),"") ->  | E61: =IF(PaymentSchedule[[#This Row],[支払番号]]<>"",ScheduledPayment,"") ->  | F61: =IF(PaymentSchedule[[#This Row],[支払番号]]<>"",IF(PaymentSchedule[[#This Row],[返済予定]]+ExtraPayments<PaymentSchedule[[#This Row],[期首残高]],ExtraPayments,IF(PaymentSchedule[[#This Row],[期首残高]]-PaymentSchedule[[#This Row],[返済予定]]>0,PaymentSchedule[[#This Row],[期首残高]]-PaymentSchedule[[#This Row],[返済予定]],0)),"") ->  | G61: =IF(PaymentSchedule[[#This Row],[支払番号]]<>"",IF(PaymentSchedule[[#This Row],[返済予定]]+PaymentSchedule[[#This Row],[繰上げ返済額]]<=PaymentSchedule[[#This Row],[期首残高]],PaymentSchedule[[#This Row],[返済予定]]+PaymentSchedule[[#This Row],[繰上げ返済額]],PaymentSchedule[[#This Row],[期首残高]]),"") ->  | H61: =IF(PaymentSchedule[[#This Row],[支払番号]]<>"",PaymentSchedule[[#This Row],[返済総額]]-PaymentSchedule[[#This Row],[利息]],"") ->  | I61: =IF(PaymentSchedule[[#This Row],[支払番号]]<>"",PaymentSchedule[[#This Row],[期首残高]]*(InterestRate/PaymentsPerYear),"") ->  | J61: =IF(PaymentSchedule[[#This Row],[支払番号]]<>"",IF(PaymentSchedule[[#This Row],[返済予定]]+PaymentSchedule[[#This Row],[繰上げ返済額]]<=PaymentSchedule[[#This Row],[期首残高]],PaymentSchedule[[#This Row],[期首残高]]-PaymentSchedule[[#This Row],[元金]],0),"") ->  | K61: =IF(PaymentSchedule[[#This Row],[支払番号]]<>"",SUM(INDEX(PaymentSchedule[利息],1,1):PaymentSchedule[[#This Row],[利息]]),"") -> 
B62: =IF(LoanIsGood,IF(ROW()-ROW(PaymentSchedule[[#Headers],[支払番号]])>支払予定回数,"",ROW()-ROW(PaymentSchedule[[#Headers],[支払番号]])),"") ->  | C62: =IF(PaymentSchedule[[#This Row],[支払番号]]<>"",EOMONTH(LoanStartDate,ROW(PaymentSchedule[[#This Row],[支払番号]])-ROW(PaymentSchedule[[#Headers],[支払番号]])-2)+DAY(LoanStartDate),"") ->  | D62: =IF(PaymentSchedule[[#This Row],[支払番号]]<>"",IF(ROW()-ROW(PaymentSchedule[[#Headers],[期首残高]])=1,借入金額,INDEX(PaymentSchedule[期末残高],ROW()-ROW(PaymentSchedule[[#Headers],[期首残高]])-1)),"") ->  | E62: =IF(PaymentSchedule[[#This Row],[支払番号]]<>"",ScheduledPayment,"") ->  | F62: =IF(PaymentSchedule[[#This Row],[支払番号]]<>"",IF(PaymentSchedule[[#This Row],[返済予定]]+ExtraPayments<PaymentSchedule[[#This Row],[期首残高]],ExtraPayments,IF(PaymentSchedule[[#This Row],[期首残高]]-PaymentSchedule[[#This Row],[返済予定]]>0,PaymentSchedule[[#This Row],[期首残高]]-PaymentSchedule[[#This Row],[返済予定]],0)),"") ->  | G62: =IF(PaymentSchedule[[#This Row],[支払番号]]<>"",IF(PaymentSchedule[[#This Row],[返済予定]]+PaymentSchedule[[#This Row],[繰上げ返済額]]<=PaymentSchedule[[#This Row],[期首残高]],PaymentSchedule[[#This Row],[返済予定]]+PaymentSchedule[[#This Row],[繰上げ返済額]],PaymentSchedule[[#This Row],[期首残高]]),"") ->  | H62: =IF(PaymentSchedule[[#This Row],[支払番号]]<>"",PaymentSchedule[[#This Row],[返済総額]]-PaymentSchedule[[#This Row],[利息]],"") ->  | I62: =IF(PaymentSchedule[[#This Row],[支払番号]]<>"",PaymentSchedule[[#This Row],[期首残高]]*(InterestRate/PaymentsPerYear),"") ->  | J62: =IF(PaymentSchedule[[#This Row],[支払番号]]<>"",IF(PaymentSchedule[[#This Row],[返済予定]]+PaymentSchedule[[#This Row],[繰上げ返済額]]<=PaymentSchedule[[#This Row],[期首残高]],PaymentSchedule[[#This Row],[期首残高]]-PaymentSchedule[[#This Row],[元金]],0),"") ->  | K62: =IF(PaymentSchedule[[#This Row],[支払番号]]<>"",SUM(INDEX(PaymentSchedule[利息],1,1):PaymentSchedule[[#This Row],[利息]]),"") -> 
B63: =IF(LoanIsGood,IF(ROW()-ROW(PaymentSchedule[[#Headers],[支払番号]])>支払予定回数,"",ROW()-ROW(PaymentSchedule[[#Headers],[支払番号]])),"") ->  | C63: =IF(PaymentSchedule[[#This Row],[支払番号]]<>"",EOMONTH(LoanStartDate,ROW(PaymentSchedule[[#This Row],[支払番号]])-ROW(PaymentSchedule[[#Headers],[支払番号]])-2)+DAY(LoanStartDate),"") ->  | D63: =IF(PaymentSchedule[[#This Row],[支払番号]]<>"",IF(ROW()-ROW(PaymentSchedule[[#Headers],[期首残高]])=1,借入金額,INDEX(PaymentSchedule[期末残高],ROW()-ROW(PaymentSchedule[[#Headers],[期首残高]])-1)),"") ->  | E63: =IF(PaymentSchedule[[#This Row],[支払番号]]<>"",ScheduledPayment,"") ->  | F63: =IF(PaymentSchedule[[#This Row],[支払番号]]<>"",IF(PaymentSchedule[[#This Row],[返済予定]]+ExtraPayments<PaymentSchedule[[#This Row],[期首残高]],ExtraPayments,IF(PaymentSchedule[[#This Row],[期首残高]]-PaymentSchedule[[#This Row],[返済予定]]>0,PaymentSchedule[[#This Row],[期首残高]]-PaymentSchedule[[#This Row],[返済予定]],0)),"") ->  | G63: =IF(PaymentSchedule[[#This Row],[支払番号]]<>"",IF(PaymentSchedule[[#This Row],[返済予定]]+PaymentSchedule[[#This Row],[繰上げ返済額]]<=PaymentSchedule[[#This Row],[期首残高]],PaymentSchedule[[#This Row],[返済予定]]+PaymentSchedule[[#This Row],[繰上げ返済額]],PaymentSchedule[[#This Row],[期首残高]]),"") ->  | H63: =IF(PaymentSchedule[[#This Row],[支払番号]]<>"",PaymentSchedule[[#This Row],[返済総額]]-PaymentSchedule[[#This Row],[利息]],"") ->  | I63: =IF(PaymentSchedule[[#This Row],[支払番号]]<>"",PaymentSchedule[[#This Row],[期首残高]]*(InterestRate/PaymentsPerYear),"") ->  | J63: =IF(PaymentSchedule[[#This Row],[支払番号]]<>"",IF(PaymentSchedule[[#This Row],[返済予定]]+PaymentSchedule[[#This Row],[繰上げ返済額]]<=PaymentSchedule[[#This Row],[期首残高]],PaymentSchedule[[#This Row],[期首残高]]-PaymentSchedule[[#This Row],[元金]],0),"") ->  | K63: =IF(PaymentSchedule[[#This Row],[支払番号]]<>"",SUM(INDEX(PaymentSchedule[利息],1,1):PaymentSchedule[[#This Row],[利息]]),"") -> 
B64: =IF(LoanIsGood,IF(ROW()-ROW(PaymentSchedule[[#Headers],[支払番号]])>支払予定回数,"",ROW()-ROW(PaymentSchedule[[#Headers],[支払番号]])),"") ->  | C64: =IF(PaymentSchedule[[#This Row],[支払番号]]<>"",EOMONTH(LoanStartDate,ROW(PaymentSchedule[[#This Row],[支払番号]])-ROW(PaymentSchedule[[#Headers],[支払番号]])-2)+DAY(LoanStartDate),"") ->  | D64: =IF(PaymentSchedule[[#This Row],[支払番号]]<>"",IF(ROW()-ROW(PaymentSchedule[[#Headers],[期首残高]])=1,借入金額,INDEX(PaymentSchedule[期末残高],ROW()-ROW(PaymentSchedule[[#Headers],[期首残高]])-1)),"") ->  | E64: =IF(PaymentSchedule[[#This Row],[支払番号]]<>"",ScheduledPayment,"") ->  | F64: =IF(PaymentSchedule[[#This Row],[支払番号]]<>"",IF(PaymentSchedule[[#This Row],[返済予定]]+ExtraPayments<PaymentSchedule[[#This Row],[期首残高]],ExtraPayments,IF(PaymentSchedule[[#This Row],[期首残高]]-PaymentSchedule[[#This Row],[返済予定]]>0,PaymentSchedule[[#This Row],[期首残高]]-PaymentSchedule[[#This Row],[返済予定]],0)),"") ->  | G64: =IF(PaymentSchedule[[#This Row],[支払番号]]<>"",IF(PaymentSchedule[[#This Row],[返済予定]]+PaymentSchedule[[#This Row],[繰上げ返済額]]<=PaymentSchedule[[#This Row],[期首残高]],PaymentSchedule[[#This Row],[返済予定]]+PaymentSchedule[[#This Row],[繰上げ返済額]],PaymentSchedule[[#This Row],[期首残高]]),"") ->  | H64: =IF(PaymentSchedule[[#This Row],[支払番号]]<>"",PaymentSchedule[[#This Row],[返済総額]]-PaymentSchedule[[#This Row],[利息]],"") ->  | I64: =IF(PaymentSchedule[[#This Row],[支払番号]]<>"",PaymentSchedule[[#This Row],[期首残高]]*(InterestRate/PaymentsPerYear),"") ->  | J64: =IF(PaymentSchedule[[#This Row],[支払番号]]<>"",IF(PaymentSchedule[[#This Row],[返済予定]]+PaymentSchedule[[#This Row],[繰上げ返済額]]<=PaymentSchedule[[#This Row],[期首残高]],PaymentSchedule[[#This Row],[期首残高]]-PaymentSchedule[[#This Row],[元金]],0),"") ->  | K64: =IF(PaymentSchedule[[#This Row],[支払番号]]<>"",SUM(INDEX(PaymentSchedule[利息],1,1):PaymentSchedule[[#This Row],[利息]]),"") -> 
B65: =IF(LoanIsGood,IF(ROW()-ROW(PaymentSchedule[[#Headers],[支払番号]])>支払予定回数,"",ROW()-ROW(PaymentSchedule[[#Headers],[支払番号]])),"") ->  | C65: =IF(PaymentSchedule[[#This Row],[支払番号]]<>"",EOMONTH(LoanStartDate,ROW(PaymentSchedule[[#This Row],[支払番号]])-ROW(PaymentSchedule[[#Headers],[支払番号]])-2)+DAY(LoanStartDate),"") ->  | D65: =IF(PaymentSchedule[[#This Row],[支払番号]]<>"",IF(ROW()-ROW(PaymentSchedule[[#Headers],[期首残高]])=1,借入金額,INDEX(PaymentSchedule[期末残高],ROW()-ROW(PaymentSchedule[[#Headers],[期首残高]])-1)),"") ->  | E65: =IF(PaymentSchedule[[#This Row],[支払番号]]<>"",ScheduledPayment,"") ->  | F65: =IF(PaymentSchedule[[#This Row],[支払番号]]<>"",IF(PaymentSchedule[[#This Row],[返済予定]]+ExtraPayments<PaymentSchedule[[#This Row],[期首残高]],ExtraPayments,IF(PaymentSchedule[[#This Row],[期首残高]]-PaymentSchedule[[#This Row],[返済予定]]>0,PaymentSchedule[[#This Row],[期首残高]]-PaymentSchedule[[#This Row],[返済予定]],0)),"") ->  | G65: =IF(PaymentSchedule[[#This Row],[支払番号]]<>"",IF(PaymentSchedule[[#This Row],[返済予定]]+PaymentSchedule[[#This Row],[繰上げ返済額]]<=PaymentSchedule[[#This Row],[期首残高]],PaymentSchedule[[#This Row],[返済予定]]+PaymentSchedule[[#This Row],[繰上げ返済額]],PaymentSchedule[[#This Row],[期首残高]]),"") ->  | H65: =IF(PaymentSchedule[[#This Row],[支払番号]]<>"",PaymentSchedule[[#This Row],[返済総額]]-PaymentSchedule[[#This Row],[利息]],"") ->  | I65: =IF(PaymentSchedule[[#This Row],[支払番号]]<>"",PaymentSchedule[[#This Row],[期首残高]]*(InterestRate/PaymentsPerYear),"") ->  | J65: =IF(PaymentSchedule[[#This Row],[支払番号]]<>"",IF(PaymentSchedule[[#This Row],[返済予定]]+PaymentSchedule[[#This Row],[繰上げ返済額]]<=PaymentSchedule[[#This Row],[期首残高]],PaymentSchedule[[#This Row],[期首残高]]-PaymentSchedule[[#This Row],[元金]],0),"") ->  | K65: =IF(PaymentSchedule[[#This Row],[支払番号]]<>"",SUM(INDEX(PaymentSchedule[利息],1,1):PaymentSchedule[[#This Row],[利息]]),"") -> 
B66: =IF(LoanIsGood,IF(ROW()-ROW(PaymentSchedule[[#Headers],[支払番号]])>支払予定回数,"",ROW()-ROW(PaymentSchedule[[#Headers],[支払番号]])),"") ->  | C66: =IF(PaymentSchedule[[#This Row],[支払番号]]<>"",EOMONTH(LoanStartDate,ROW(PaymentSchedule[[#This Row],[支払番号]])-ROW(PaymentSchedule[[#Headers],[支払番号]])-2)+DAY(LoanStartDate),"") ->  | D66: =IF(PaymentSchedule[[#This Row],[支払番号]]<>"",IF(ROW()-ROW(PaymentSchedule[[#Headers],[期首残高]])=1,借入金額,INDEX(PaymentSchedule[期末残高],ROW()-ROW(PaymentSchedule[[#Headers],[期首残高]])-1)),"") ->  | E66: =IF(PaymentSchedule[[#This Row],[支払番号]]<>"",ScheduledPayment,"") ->  | F66: =IF(PaymentSchedule[[#This Row],[支払番号]]<>"",IF(PaymentSchedule[[#This Row],[返済予定]]+ExtraPayments<PaymentSchedule[[#This Row],[期首残高]],ExtraPayments,IF(PaymentSchedule[[#This Row],[期首残高]]-PaymentSchedule[[#This Row],[返済予定]]>0,PaymentSchedule[[#This Row],[期首残高]]-PaymentSchedule[[#This Row],[返済予定]],0)),"") ->  | G66: =IF(PaymentSchedule[[#This Row],[支払番号]]<>"",IF(PaymentSchedule[[#This Row],[返済予定]]+PaymentSchedule[[#This Row],[繰上げ返済額]]<=PaymentSchedule[[#This Row],[期首残高]],PaymentSchedule[[#This Row],[返済予定]]+PaymentSchedule[[#This Row],[繰上げ返済額]],PaymentSchedule[[#This Row],[期首残高]]),"") ->  | H66: =IF(PaymentSchedule[[#This Row],[支払番号]]<>"",PaymentSchedule[[#This Row],[返済総額]]-PaymentSchedule[[#This Row],[利息]],"") ->  | I66: =IF(PaymentSchedule[[#This Row],[支払番号]]<>"",PaymentSchedule[[#This Row],[期首残高]]*(InterestRate/PaymentsPerYear),"") ->  | J66: =IF(PaymentSchedule[[#This Row],[支払番号]]<>"",IF(PaymentSchedule[[#This Row],[返済予定]]+PaymentSchedule[[#This Row],[繰上げ返済額]]<=PaymentSchedule[[#This Row],[期首残高]],PaymentSchedule[[#This Row],[期首残高]]-PaymentSchedule[[#This Row],[元金]],0),"") ->  | K66: =IF(PaymentSchedule[[#This Row],[支払番号]]<>"",SUM(INDEX(PaymentSchedule[利息],1,1):PaymentSchedule[[#This Row],[利息]]),"") -> 
B67: =IF(LoanIsGood,IF(ROW()-ROW(PaymentSchedule[[#Headers],[支払番号]])>支払予定回数,"",ROW()-ROW(PaymentSchedule[[#Headers],[支払番号]])),"") ->  | C67: =IF(PaymentSchedule[[#This Row],[支払番号]]<>"",EOMONTH(LoanStartDate,ROW(PaymentSchedule[[#This Row],[支払番号]])-ROW(PaymentSchedule[[#Headers],[支払番号]])-2)+DAY(LoanStartDate),"") ->  | D67: =IF(PaymentSchedule[[#This Row],[支払番号]]<>"",IF(ROW()-ROW(PaymentSchedule[[#Headers],[期首残高]])=1,借入金額,INDEX(PaymentSchedule[期末残高],ROW()-ROW(PaymentSchedule[[#Headers],[期首残高]])-1)),"") ->  | E67: =IF(PaymentSchedule[[#This Row],[支払番号]]<>"",ScheduledPayment,"") ->  | F67: =IF(PaymentSchedule[[#This Row],[支払番号]]<>"",IF(PaymentSchedule[[#This Row],[返済予定]]+ExtraPayments<PaymentSchedule[[#This Row],[期首残高]],ExtraPayments,IF(PaymentSchedule[[#This Row],[期首残高]]-PaymentSchedule[[#This Row],[返済予定]]>0,PaymentSchedule[[#This Row],[期首残高]]-PaymentSchedule[[#This Row],[返済予定]],0)),"") ->  | G67: =IF(PaymentSchedule[[#This Row],[支払番号]]<>"",IF(PaymentSchedule[[#This Row],[返済予定]]+PaymentSchedule[[#This Row],[繰上げ返済額]]<=PaymentSchedule[[#This Row],[期首残高]],PaymentSchedule[[#This Row],[返済予定]]+PaymentSchedule[[#This Row],[繰上げ返済額]],PaymentSchedule[[#This Row],[期首残高]]),"") ->  | H67: =IF(PaymentSchedule[[#This Row],[支払番号]]<>"",PaymentSchedule[[#This Row],[返済総額]]-PaymentSchedule[[#This Row],[利息]],"") ->  | I67: =IF(PaymentSchedule[[#This Row],[支払番号]]<>"",PaymentSchedule[[#This Row],[期首残高]]*(InterestRate/PaymentsPerYear),"") ->  | J67: =IF(PaymentSchedule[[#This Row],[支払番号]]<>"",IF(PaymentSchedule[[#This Row],[返済予定]]+PaymentSchedule[[#This Row],[繰上げ返済額]]<=PaymentSchedule[[#This Row],[期首残高]],PaymentSchedule[[#This Row],[期首残高]]-PaymentSchedule[[#This Row],[元金]],0),"") ->  | K67: =IF(PaymentSchedule[[#This Row],[支払番号]]<>"",SUM(INDEX(PaymentSchedule[利息],1,1):PaymentSchedule[[#This Row],[利息]]),"") -> 
B68: =IF(LoanIsGood,IF(ROW()-ROW(PaymentSchedule[[#Headers],[支払番号]])>支払予定回数,"",ROW()-ROW(PaymentSchedule[[#Headers],[支払番号]])),"") ->  | C68: =IF(PaymentSchedule[[#This Row],[支払番号]]<>"",EOMONTH(LoanStartDate,ROW(PaymentSchedule[[#This Row],[支払番号]])-ROW(PaymentSchedule[[#Headers],[支払番号]])-2)+DAY(LoanStartDate),"") ->  | D68: =IF(PaymentSchedule[[#This Row],[支払番号]]<>"",IF(ROW()-ROW(PaymentSchedule[[#Headers],[期首残高]])=1,借入金額,INDEX(PaymentSchedule[期末残高],ROW()-ROW(PaymentSchedule[[#Headers],[期首残高]])-1)),"") ->  | E68: =IF(PaymentSchedule[[#This Row],[支払番号]]<>"",ScheduledPayment,"") ->  | F68: =IF(PaymentSchedule[[#This Row],[支払番号]]<>"",IF(PaymentSchedule[[#This Row],[返済予定]]+ExtraPayments<PaymentSchedule[[#This Row],[期首残高]],ExtraPayments,IF(PaymentSchedule[[#This Row],[期首残高]]-PaymentSchedule[[#This Row],[返済予定]]>0,PaymentSchedule[[#This Row],[期首残高]]-PaymentSchedule[[#This Row],[返済予定]],0)),"") ->  | G68: =IF(PaymentSchedule[[#This Row],[支払番号]]<>"",IF(PaymentSchedule[[#This Row],[返済予定]]+PaymentSchedule[[#This Row],[繰上げ返済額]]<=PaymentSchedule[[#This Row],[期首残高]],PaymentSchedule[[#This Row],[返済予定]]+PaymentSchedule[[#This Row],[繰上げ返済額]],PaymentSchedule[[#This Row],[期首残高]]),"") ->  | H68: =IF(PaymentSchedule[[#This Row],[支払番号]]<>"",PaymentSchedule[[#This Row],[返済総額]]-PaymentSchedule[[#This Row],[利息]],"") ->  | I68: =IF(PaymentSchedule[[#This Row],[支払番号]]<>"",PaymentSchedule[[#This Row],[期首残高]]*(InterestRate/PaymentsPerYear),"") ->  | J68: =IF(PaymentSchedule[[#This Row],[支払番号]]<>"",IF(PaymentSchedule[[#This Row],[返済予定]]+PaymentSchedule[[#This Row],[繰上げ返済額]]<=PaymentSchedule[[#This Row],[期首残高]],PaymentSchedule[[#This Row],[期首残高]]-PaymentSchedule[[#This Row],[元金]],0),"") ->  | K68: =IF(PaymentSchedule[[#This Row],[支払番号]]<>"",SUM(INDEX(PaymentSchedule[利息],1,1):PaymentSchedule[[#This Row],[利息]]),"") -> 
B69: =IF(LoanIsGood,IF(ROW()-ROW(PaymentSchedule[[#Headers],[支払番号]])>支払予定回数,"",ROW()-ROW(PaymentSchedule[[#Headers],[支払番号]])),"") ->  | C69: =IF(PaymentSchedule[[#This Row],[支払番号]]<>"",EOMONTH(LoanStartDate,ROW(PaymentSchedule[[#This Row],[支払番号]])-ROW(PaymentSchedule[[#Headers],[支払番号]])-2)+DAY(LoanStartDate),"") ->  | D69: =IF(PaymentSchedule[[#This Row],[支払番号]]<>"",IF(ROW()-ROW(PaymentSchedule[[#Headers],[期首残高]])=1,借入金額,INDEX(PaymentSchedule[期末残高],ROW()-ROW(PaymentSchedule[[#Headers],[期首残高]])-1)),"") ->  | E69: =IF(PaymentSchedule[[#This Row],[支払番号]]<>"",ScheduledPayment,"") ->  | F69: =IF(PaymentSchedule[[#This Row],[支払番号]]<>"",IF(PaymentSchedule[[#This Row],[返済予定]]+ExtraPayments<PaymentSchedule[[#This Row],[期首残高]],ExtraPayments,IF(PaymentSchedule[[#This Row],[期首残高]]-PaymentSchedule[[#This Row],[返済予定]]>0,PaymentSchedule[[#This Row],[期首残高]]-PaymentSchedule[[#This Row],[返済予定]],0)),"") ->  | G69: =IF(PaymentSchedule[[#This Row],[支払番号]]<>"",IF(PaymentSchedule[[#This Row],[返済予定]]+PaymentSchedule[[#This Row],[繰上げ返済額]]<=PaymentSchedule[[#This Row],[期首残高]],PaymentSchedule[[#This Row],[返済予定]]+PaymentSchedule[[#This Row],[繰上げ返済額]],PaymentSchedule[[#This Row],[期首残高]]),"") ->  | H69: =IF(PaymentSchedule[[#This Row],[支払番号]]<>"",PaymentSchedule[[#This Row],[返済総額]]-PaymentSchedule[[#This Row],[利息]],"") ->  | I69: =IF(PaymentSchedule[[#This Row],[支払番号]]<>"",PaymentSchedule[[#This Row],[期首残高]]*(InterestRate/PaymentsPerYear),"") ->  | J69: =IF(PaymentSchedule[[#This Row],[支払番号]]<>"",IF(PaymentSchedule[[#This Row],[返済予定]]+PaymentSchedule[[#This Row],[繰上げ返済額]]<=PaymentSchedule[[#This Row],[期首残高]],PaymentSchedule[[#This Row],[期首残高]]-PaymentSchedule[[#This Row],[元金]],0),"") ->  | K69: =IF(PaymentSchedule[[#This Row],[支払番号]]<>"",SUM(INDEX(PaymentSchedule[利息],1,1):PaymentSchedule[[#This Row],[利息]]),"") -> 
B70: =IF(LoanIsGood,IF(ROW()-ROW(PaymentSchedule[[#Headers],[支払番号]])>支払予定回数,"",ROW()-ROW(PaymentSchedule[[#Headers],[支払番号]])),"") ->  | C70: =IF(PaymentSchedule[[#This Row],[支払番号]]<>"",EOMONTH(LoanStartDate,ROW(PaymentSchedule[[#This Row],[支払番号]])-ROW(PaymentSchedule[[#Headers],[支払番号]])-2)+DAY(LoanStartDate),"") ->  | D70: =IF(PaymentSchedule[[#This Row],[支払番号]]<>"",IF(ROW()-ROW(PaymentSchedule[[#Headers],[期首残高]])=1,借入金額,INDEX(PaymentSchedule[期末残高],ROW()-ROW(PaymentSchedule[[#Headers],[期首残高]])-1)),"") ->  | E70: =IF(PaymentSchedule[[#This Row],[支払番号]]<>"",ScheduledPayment,"") ->  | F70: =IF(PaymentSchedule[[#This Row],[支払番号]]<>"",IF(PaymentSchedule[[#This Row],[返済予定]]+ExtraPayments<PaymentSchedule[[#This Row],[期首残高]],ExtraPayments,IF(PaymentSchedule[[#This Row],[期首残高]]-PaymentSchedule[[#This Row],[返済予定]]>0,PaymentSchedule[[#This Row],[期首残高]]-PaymentSchedule[[#This Row],[返済予定]],0)),"") ->  | G70: =IF(PaymentSchedule[[#This Row],[支払番号]]<>"",IF(PaymentSchedule[[#This Row],[返済予定]]+PaymentSchedule[[#This Row],[繰上げ返済額]]<=PaymentSchedule[[#This Row],[期首残高]],PaymentSchedule[[#This Row],[返済予定]]+PaymentSchedule[[#This Row],[繰上げ返済額]],PaymentSchedule[[#This Row],[期首残高]]),"") ->  | H70: =IF(PaymentSchedule[[#This Row],[支払番号]]<>"",PaymentSchedule[[#This Row],[返済総額]]-PaymentSchedule[[#This Row],[利息]],"") ->  | I70: =IF(PaymentSchedule[[#This Row],[支払番号]]<>"",PaymentSchedule[[#This Row],[期首残高]]*(InterestRate/PaymentsPerYear),"") ->  | J70: =IF(PaymentSchedule[[#This Row],[支払番号]]<>"",IF(PaymentSchedule[[#This Row],[返済予定]]+PaymentSchedule[[#This Row],[繰上げ返済額]]<=PaymentSchedule[[#This Row],[期首残高]],PaymentSchedule[[#This Row],[期首残高]]-PaymentSchedule[[#This Row],[元金]],0),"") ->  | K70: =IF(PaymentSchedule[[#This Row],[支払番号]]<>"",SUM(INDEX(PaymentSchedule[利息],1,1):PaymentSchedule[[#This Row],[利息]]),"") -> 
B71: =IF(LoanIsGood,IF(ROW()-ROW(PaymentSchedule[[#Headers],[支払番号]])>支払予定回数,"",ROW()-ROW(PaymentSchedule[[#Headers],[支払番号]])),"") ->  | C71: =IF(PaymentSchedule[[#This Row],[支払番号]]<>"",EOMONTH(LoanStartDate,ROW(PaymentSchedule[[#This Row],[支払番号]])-ROW(PaymentSchedule[[#Headers],[支払番号]])-2)+DAY(LoanStartDate),"") ->  | D71: =IF(PaymentSchedule[[#This Row],[支払番号]]<>"",IF(ROW()-ROW(PaymentSchedule[[#Headers],[期首残高]])=1,借入金額,INDEX(PaymentSchedule[期末残高],ROW()-ROW(PaymentSchedule[[#Headers],[期首残高]])-1)),"") ->  | E71: =IF(PaymentSchedule[[#This Row],[支払番号]]<>"",ScheduledPayment,"") ->  | F71: =IF(PaymentSchedule[[#This Row],[支払番号]]<>"",IF(PaymentSchedule[[#This Row],[返済予定]]+ExtraPayments<PaymentSchedule[[#This Row],[期首残高]],ExtraPayments,IF(PaymentSchedule[[#This Row],[期首残高]]-PaymentSchedule[[#This Row],[返済予定]]>0,PaymentSchedule[[#This Row],[期首残高]]-PaymentSchedule[[#This Row],[返済予定]],0)),"") ->  | G71: =IF(PaymentSchedule[[#This Row],[支払番号]]<>"",IF(PaymentSchedule[[#This Row],[返済予定]]+PaymentSchedule[[#This Row],[繰上げ返済額]]<=PaymentSchedule[[#This Row],[期首残高]],PaymentSchedule[[#This Row],[返済予定]]+PaymentSchedule[[#This Row],[繰上げ返済額]],PaymentSchedule[[#This Row],[期首残高]]),"") ->  | H71: =IF(PaymentSchedule[[#This Row],[支払番号]]<>"",PaymentSchedule[[#This Row],[返済総額]]-PaymentSchedule[[#This Row],[利息]],"") ->  | I71: =IF(PaymentSchedule[[#This Row],[支払番号]]<>"",PaymentSchedule[[#This Row],[期首残高]]*(InterestRate/PaymentsPerYear),"") ->  | J71: =IF(PaymentSchedule[[#This Row],[支払番号]]<>"",IF(PaymentSchedule[[#This Row],[返済予定]]+PaymentSchedule[[#This Row],[繰上げ返済額]]<=PaymentSchedule[[#This Row],[期首残高]],PaymentSchedule[[#This Row],[期首残高]]-PaymentSchedule[[#This Row],[元金]],0),"") ->  | K71: =IF(PaymentSchedule[[#This Row],[支払番号]]<>"",SUM(INDEX(PaymentSchedule[利息],1,1):PaymentSchedule[[#This Row],[利息]]),"") -> 
B72: =IF(LoanIsGood,IF(ROW()-ROW(PaymentSchedule[[#Headers],[支払番号]])>支払予定回数,"",ROW()-ROW(PaymentSchedule[[#Headers],[支払番号]])),"") ->  | C72: =IF(PaymentSchedule[[#This Row],[支払番号]]<>"",EOMONTH(LoanStartDate,ROW(PaymentSchedule[[#This Row],[支払番号]])-ROW(PaymentSchedule[[#Headers],[支払番号]])-2)+DAY(LoanStartDate),"") ->  | D72: =IF(PaymentSchedule[[#This Row],[支払番号]]<>"",IF(ROW()-ROW(PaymentSchedule[[#Headers],[期首残高]])=1,借入金額,INDEX(PaymentSchedule[期末残高],ROW()-ROW(PaymentSchedule[[#Headers],[期首残高]])-1)),"") ->  | E72: =IF(PaymentSchedule[[#This Row],[支払番号]]<>"",ScheduledPayment,"") ->  | F72: =IF(PaymentSchedule[[#This Row],[支払番号]]<>"",IF(PaymentSchedule[[#This Row],[返済予定]]+ExtraPayments<PaymentSchedule[[#This Row],[期首残高]],ExtraPayments,IF(PaymentSchedule[[#This Row],[期首残高]]-PaymentSchedule[[#This Row],[返済予定]]>0,PaymentSchedule[[#This Row],[期首残高]]-PaymentSchedule[[#This Row],[返済予定]],0)),"") ->  | G72: =IF(PaymentSchedule[[#This Row],[支払番号]]<>"",IF(PaymentSchedule[[#This Row],[返済予定]]+PaymentSchedule[[#This Row],[繰上げ返済額]]<=PaymentSchedule[[#This Row],[期首残高]],PaymentSchedule[[#This Row],[返済予定]]+PaymentSchedule[[#This Row],[繰上げ返済額]],PaymentSchedule[[#This Row],[期首残高]]),"") ->  | H72: =IF(PaymentSchedule[[#This Row],[支払番号]]<>"",PaymentSchedule[[#This Row],[返済総額]]-PaymentSchedule[[#This Row],[利息]],"") ->  | I72: =IF(PaymentSchedule[[#This Row],[支払番号]]<>"",PaymentSchedule[[#This Row],[期首残高]]*(InterestRate/PaymentsPerYear),"") ->  | J72: =IF(PaymentSchedule[[#This Row],[支払番号]]<>"",IF(PaymentSchedule[[#This Row],[返済予定]]+PaymentSchedule[[#This Row],[繰上げ返済額]]<=PaymentSchedule[[#This Row],[期首残高]],PaymentSchedule[[#This Row],[期首残高]]-PaymentSchedule[[#This Row],[元金]],0),"") ->  | K72: =IF(PaymentSchedule[[#This Row],[支払番号]]<>"",SUM(INDEX(PaymentSchedule[利息],1,1):PaymentSchedule[[#This Row],[利息]]),"") -> 
B73: =IF(LoanIsGood,IF(ROW()-ROW(PaymentSchedule[[#Headers],[支払番号]])>支払予定回数,"",ROW()-ROW(PaymentSchedule[[#Headers],[支払番号]])),"") ->  | C73: =IF(PaymentSchedule[[#This Row],[支払番号]]<>"",EOMONTH(LoanStartDate,ROW(PaymentSchedule[[#This Row],[支払番号]])-ROW(PaymentSchedule[[#Headers],[支払番号]])-2)+DAY(LoanStartDate),"") ->  | D73: =IF(PaymentSchedule[[#This Row],[支払番号]]<>"",IF(ROW()-ROW(PaymentSchedule[[#Headers],[期首残高]])=1,借入金額,INDEX(PaymentSchedule[期末残高],ROW()-ROW(PaymentSchedule[[#Headers],[期首残高]])-1)),"") ->  | E73: =IF(PaymentSchedule[[#This Row],[支払番号]]<>"",ScheduledPayment,"") ->  | F73: =IF(PaymentSchedule[[#This Row],[支払番号]]<>"",IF(PaymentSchedule[[#This Row],[返済予定]]+ExtraPayments<PaymentSchedule[[#This Row],[期首残高]],ExtraPayments,IF(PaymentSchedule[[#This Row],[期首残高]]-PaymentSchedule[[#This Row],[返済予定]]>0,PaymentSchedule[[#This Row],[期首残高]]-PaymentSchedule[[#This Row],[返済予定]],0)),"") ->  | G73: =IF(PaymentSchedule[[#This Row],[支払番号]]<>"",IF(PaymentSchedule[[#This Row],[返済予定]]+PaymentSchedule[[#This Row],[繰上げ返済額]]<=PaymentSchedule[[#This Row],[期首残高]],PaymentSchedule[[#This Row],[返済予定]]+PaymentSchedule[[#This Row],[繰上げ返済額]],PaymentSchedule[[#This Row],[期首残高]]),"") ->  | H73: =IF(PaymentSchedule[[#This Row],[支払番号]]<>"",PaymentSchedule[[#This Row],[返済総額]]-PaymentSchedule[[#This Row],[利息]],"") ->  | I73: =IF(PaymentSchedule[[#This Row],[支払番号]]<>"",PaymentSchedule[[#This Row],[期首残高]]*(InterestRate/PaymentsPerYear),"") ->  | J73: =IF(PaymentSchedule[[#This Row],[支払番号]]<>"",IF(PaymentSchedule[[#This Row],[返済予定]]+PaymentSchedule[[#This Row],[繰上げ返済額]]<=PaymentSchedule[[#This Row],[期首残高]],PaymentSchedule[[#This Row],[期首残高]]-PaymentSchedule[[#This Row],[元金]],0),"") ->  | K73: =IF(PaymentSchedule[[#This Row],[支払番号]]<>"",SUM(INDEX(PaymentSchedule[利息],1,1):PaymentSchedule[[#This Row],[利息]]),"") -> 
B74: =IF(LoanIsGood,IF(ROW()-ROW(PaymentSchedule[[#Headers],[支払番号]])>支払予定回数,"",ROW()-ROW(PaymentSchedule[[#Headers],[支払番号]])),"") ->  | C74: =IF(PaymentSchedule[[#This Row],[支払番号]]<>"",EOMONTH(LoanStartDate,ROW(PaymentSchedule[[#This Row],[支払番号]])-ROW(PaymentSchedule[[#Headers],[支払番号]])-2)+DAY(LoanStartDate),"") ->  | D74: =IF(PaymentSchedule[[#This Row],[支払番号]]<>"",IF(ROW()-ROW(PaymentSchedule[[#Headers],[期首残高]])=1,借入金額,INDEX(PaymentSchedule[期末残高],ROW()-ROW(PaymentSchedule[[#Headers],[期首残高]])-1)),"") ->  | E74: =IF(PaymentSchedule[[#This Row],[支払番号]]<>"",ScheduledPayment,"") ->  | F74: =IF(PaymentSchedule[[#This Row],[支払番号]]<>"",IF(PaymentSchedule[[#This Row],[返済予定]]+ExtraPayments<PaymentSchedule[[#This Row],[期首残高]],ExtraPayments,IF(PaymentSchedule[[#This Row],[期首残高]]-PaymentSchedule[[#This Row],[返済予定]]>0,PaymentSchedule[[#This Row],[期首残高]]-PaymentSchedule[[#This Row],[返済予定]],0)),"") ->  | G74: =IF(PaymentSchedule[[#This Row],[支払番号]]<>"",IF(PaymentSchedule[[#This Row],[返済予定]]+PaymentSchedule[[#This Row],[繰上げ返済額]]<=PaymentSchedule[[#This Row],[期首残高]],PaymentSchedule[[#This Row],[返済予定]]+PaymentSchedule[[#This Row],[繰上げ返済額]],PaymentSchedule[[#This Row],[期首残高]]),"") ->  | H74: =IF(PaymentSchedule[[#This Row],[支払番号]]<>"",PaymentSchedule[[#This Row],[返済総額]]-PaymentSchedule[[#This Row],[利息]],"") ->  | I74: =IF(PaymentSchedule[[#This Row],[支払番号]]<>"",PaymentSchedule[[#This Row],[期首残高]]*(InterestRate/PaymentsPerYear),"") ->  | J74: =IF(PaymentSchedule[[#This Row],[支払番号]]<>"",IF(PaymentSchedule[[#This Row],[返済予定]]+PaymentSchedule[[#This Row],[繰上げ返済額]]<=PaymentSchedule[[#This Row],[期首残高]],PaymentSchedule[[#This Row],[期首残高]]-PaymentSchedule[[#This Row],[元金]],0),"") ->  | K74: =IF(PaymentSchedule[[#This Row],[支払番号]]<>"",SUM(INDEX(PaymentSchedule[利息],1,1):PaymentSchedule[[#This Row],[利息]]),"") -> 
B75: =IF(LoanIsGood,IF(ROW()-ROW(PaymentSchedule[[#Headers],[支払番号]])>支払予定回数,"",ROW()-ROW(PaymentSchedule[[#Headers],[支払番号]])),"") ->  | C75: =IF(PaymentSchedule[[#This Row],[支払番号]]<>"",EOMONTH(LoanStartDate,ROW(PaymentSchedule[[#This Row],[支払番号]])-ROW(PaymentSchedule[[#Headers],[支払番号]])-2)+DAY(LoanStartDate),"") ->  | D75: =IF(PaymentSchedule[[#This Row],[支払番号]]<>"",IF(ROW()-ROW(PaymentSchedule[[#Headers],[期首残高]])=1,借入金額,INDEX(PaymentSchedule[期末残高],ROW()-ROW(PaymentSchedule[[#Headers],[期首残高]])-1)),"") ->  | E75: =IF(PaymentSchedule[[#This Row],[支払番号]]<>"",ScheduledPayment,"") ->  | F75: =IF(PaymentSchedule[[#This Row],[支払番号]]<>"",IF(PaymentSchedule[[#This Row],[返済予定]]+ExtraPayments<PaymentSchedule[[#This Row],[期首残高]],ExtraPayments,IF(PaymentSchedule[[#This Row],[期首残高]]-PaymentSchedule[[#This Row],[返済予定]]>0,PaymentSchedule[[#This Row],[期首残高]]-PaymentSchedule[[#This Row],[返済予定]],0)),"") ->  | G75: =IF(PaymentSchedule[[#This Row],[支払番号]]<>"",IF(PaymentSchedule[[#This Row],[返済予定]]+PaymentSchedule[[#This Row],[繰上げ返済額]]<=PaymentSchedule[[#This Row],[期首残高]],PaymentSchedule[[#This Row],[返済予定]]+PaymentSchedule[[#This Row],[繰上げ返済額]],PaymentSchedule[[#This Row],[期首残高]]),"") ->  | H75: =IF(PaymentSchedule[[#This Row],[支払番号]]<>"",PaymentSchedule[[#This Row],[返済総額]]-PaymentSchedule[[#This Row],[利息]],"") ->  | I75: =IF(PaymentSchedule[[#This Row],[支払番号]]<>"",PaymentSchedule[[#This Row],[期首残高]]*(InterestRate/PaymentsPerYear),"") ->  | J75: =IF(PaymentSchedule[[#This Row],[支払番号]]<>"",IF(PaymentSchedule[[#This Row],[返済予定]]+PaymentSchedule[[#This Row],[繰上げ返済額]]<=PaymentSchedule[[#This Row],[期首残高]],PaymentSchedule[[#This Row],[期首残高]]-PaymentSchedule[[#This Row],[元金]],0),"") ->  | K75: =IF(PaymentSchedule[[#This Row],[支払番号]]<>"",SUM(INDEX(PaymentSchedule[利息],1,1):PaymentSchedule[[#This Row],[利息]]),"") -> 
B76: =IF(LoanIsGood,IF(ROW()-ROW(PaymentSchedule[[#Headers],[支払番号]])>支払予定回数,"",ROW()-ROW(PaymentSchedule[[#Headers],[支払番号]])),"") ->  | C76: =IF(PaymentSchedule[[#This Row],[支払番号]]<>"",EOMONTH(LoanStartDate,ROW(PaymentSchedule[[#This Row],[支払番号]])-ROW(PaymentSchedule[[#Headers],[支払番号]])-2)+DAY(LoanStartDate),"") ->  | D76: =IF(PaymentSchedule[[#This Row],[支払番号]]<>"",IF(ROW()-ROW(PaymentSchedule[[#Headers],[期首残高]])=1,借入金額,INDEX(PaymentSchedule[期末残高],ROW()-ROW(PaymentSchedule[[#Headers],[期首残高]])-1)),"") ->  | E76: =IF(PaymentSchedule[[#This Row],[支払番号]]<>"",ScheduledPayment,"") ->  | F76: =IF(PaymentSchedule[[#This Row],[支払番号]]<>"",IF(PaymentSchedule[[#This Row],[返済予定]]+ExtraPayments<PaymentSchedule[[#This Row],[期首残高]],ExtraPayments,IF(PaymentSchedule[[#This Row],[期首残高]]-PaymentSchedule[[#This Row],[返済予定]]>0,PaymentSchedule[[#This Row],[期首残高]]-PaymentSchedule[[#This Row],[返済予定]],0)),"") ->  | G76: =IF(PaymentSchedule[[#This Row],[支払番号]]<>"",IF(PaymentSchedule[[#This Row],[返済予定]]+PaymentSchedule[[#This Row],[繰上げ返済額]]<=PaymentSchedule[[#This Row],[期首残高]],PaymentSchedule[[#This Row],[返済予定]]+PaymentSchedule[[#This Row],[繰上げ返済額]],PaymentSchedule[[#This Row],[期首残高]]),"") ->  | H76: =IF(PaymentSchedule[[#This Row],[支払番号]]<>"",PaymentSchedule[[#This Row],[返済総額]]-PaymentSchedule[[#This Row],[利息]],"") ->  | I76: =IF(PaymentSchedule[[#This Row],[支払番号]]<>"",PaymentSchedule[[#This Row],[期首残高]]*(InterestRate/PaymentsPerYear),"") ->  | J76: =IF(PaymentSchedule[[#This Row],[支払番号]]<>"",IF(PaymentSchedule[[#This Row],[返済予定]]+PaymentSchedule[[#This Row],[繰上げ返済額]]<=PaymentSchedule[[#This Row],[期首残高]],PaymentSchedule[[#This Row],[期首残高]]-PaymentSchedule[[#This Row],[元金]],0),"") ->  | K76: =IF(PaymentSchedule[[#This Row],[支払番号]]<>"",SUM(INDEX(PaymentSchedule[利息],1,1):PaymentSchedule[[#This Row],[利息]]),"") -> 
B77: =IF(LoanIsGood,IF(ROW()-ROW(PaymentSchedule[[#Headers],[支払番号]])>支払予定回数,"",ROW()-ROW(PaymentSchedule[[#Headers],[支払番号]])),"") ->  | C77: =IF(PaymentSchedule[[#This Row],[支払番号]]<>"",EOMONTH(LoanStartDate,ROW(PaymentSchedule[[#This Row],[支払番号]])-ROW(PaymentSchedule[[#Headers],[支払番号]])-2)+DAY(LoanStartDate),"") ->  | D77: =IF(PaymentSchedule[[#This Row],[支払番号]]<>"",IF(ROW()-ROW(PaymentSchedule[[#Headers],[期首残高]])=1,借入金額,INDEX(PaymentSchedule[期末残高],ROW()-ROW(PaymentSchedule[[#Headers],[期首残高]])-1)),"") ->  | E77: =IF(PaymentSchedule[[#This Row],[支払番号]]<>"",ScheduledPayment,"") ->  | F77: =IF(PaymentSchedule[[#This Row],[支払番号]]<>"",IF(PaymentSchedule[[#This Row],[返済予定]]+ExtraPayments<PaymentSchedule[[#This Row],[期首残高]],ExtraPayments,IF(PaymentSchedule[[#This Row],[期首残高]]-PaymentSchedule[[#This Row],[返済予定]]>0,PaymentSchedule[[#This Row],[期首残高]]-PaymentSchedule[[#This Row],[返済予定]],0)),"") ->  | G77: =IF(PaymentSchedule[[#This Row],[支払番号]]<>"",IF(PaymentSchedule[[#This Row],[返済予定]]+PaymentSchedule[[#This Row],[繰上げ返済額]]<=PaymentSchedule[[#This Row],[期首残高]],PaymentSchedule[[#This Row],[返済予定]]+PaymentSchedule[[#This Row],[繰上げ返済額]],PaymentSchedule[[#This Row],[期首残高]]),"") ->  | H77: =IF(PaymentSchedule[[#This Row],[支払番号]]<>"",PaymentSchedule[[#This Row],[返済総額]]-PaymentSchedule[[#This Row],[利息]],"") ->  | I77: =IF(PaymentSchedule[[#This Row],[支払番号]]<>"",PaymentSchedule[[#This Row],[期首残高]]*(InterestRate/PaymentsPerYear),"") ->  | J77: =IF(PaymentSchedule[[#This Row],[支払番号]]<>"",IF(PaymentSchedule[[#This Row],[返済予定]]+PaymentSchedule[[#This Row],[繰上げ返済額]]<=PaymentSchedule[[#This Row],[期首残高]],PaymentSchedule[[#This Row],[期首残高]]-PaymentSchedule[[#This Row],[元金]],0),"") ->  | K77: =IF(PaymentSchedule[[#This Row],[支払番号]]<>"",SUM(INDEX(PaymentSchedule[利息],1,1):PaymentSchedule[[#This Row],[利息]]),"") -> 
B78: =IF(LoanIsGood,IF(ROW()-ROW(PaymentSchedule[[#Headers],[支払番号]])>支払予定回数,"",ROW()-ROW(PaymentSchedule[[#Headers],[支払番号]])),"") ->  | C78: =IF(PaymentSchedule[[#This Row],[支払番号]]<>"",EOMONTH(LoanStartDate,ROW(PaymentSchedule[[#This Row],[支払番号]])-ROW(PaymentSchedule[[#Headers],[支払番号]])-2)+DAY(LoanStartDate),"") ->  | D78: =IF(PaymentSchedule[[#This Row],[支払番号]]<>"",IF(ROW()-ROW(PaymentSchedule[[#Headers],[期首残高]])=1,借入金額,INDEX(PaymentSchedule[期末残高],ROW()-ROW(PaymentSchedule[[#Headers],[期首残高]])-1)),"") ->  | E78: =IF(PaymentSchedule[[#This Row],[支払番号]]<>"",ScheduledPayment,"") ->  | F78: =IF(PaymentSchedule[[#This Row],[支払番号]]<>"",IF(PaymentSchedule[[#This Row],[返済予定]]+ExtraPayments<PaymentSchedule[[#This Row],[期首残高]],ExtraPayments,IF(PaymentSchedule[[#This Row],[期首残高]]-PaymentSchedule[[#This Row],[返済予定]]>0,PaymentSchedule[[#This Row],[期首残高]]-PaymentSchedule[[#This Row],[返済予定]],0)),"") ->  | G78: =IF(PaymentSchedule[[#This Row],[支払番号]]<>"",IF(PaymentSchedule[[#This Row],[返済予定]]+PaymentSchedule[[#This Row],[繰上げ返済額]]<=PaymentSchedule[[#This Row],[期首残高]],PaymentSchedule[[#This Row],[返済予定]]+PaymentSchedule[[#This Row],[繰上げ返済額]],PaymentSchedule[[#This Row],[期首残高]]),"") ->  | H78: =IF(PaymentSchedule[[#This Row],[支払番号]]<>"",PaymentSchedule[[#This Row],[返済総額]]-PaymentSchedule[[#This Row],[利息]],"") ->  | I78: =IF(PaymentSchedule[[#This Row],[支払番号]]<>"",PaymentSchedule[[#This Row],[期首残高]]*(InterestRate/PaymentsPerYear),"") ->  | J78: =IF(PaymentSchedule[[#This Row],[支払番号]]<>"",IF(PaymentSchedule[[#This Row],[返済予定]]+PaymentSchedule[[#This Row],[繰上げ返済額]]<=PaymentSchedule[[#This Row],[期首残高]],PaymentSchedule[[#This Row],[期首残高]]-PaymentSchedule[[#This Row],[元金]],0),"") ->  | K78: =IF(PaymentSchedule[[#This Row],[支払番号]]<>"",SUM(INDEX(PaymentSchedule[利息],1,1):PaymentSchedule[[#This Row],[利息]]),"") -> 
B79: =IF(LoanIsGood,IF(ROW()-ROW(PaymentSchedule[[#Headers],[支払番号]])>支払予定回数,"",ROW()-ROW(PaymentSchedule[[#Headers],[支払番号]])),"") ->  | C79: =IF(PaymentSchedule[[#This Row],[支払番号]]<>"",EOMONTH(LoanStartDate,ROW(PaymentSchedule[[#This Row],[支払番号]])-ROW(PaymentSchedule[[#Headers],[支払番号]])-2)+DAY(LoanStartDate),"") ->  | D79: =IF(PaymentSchedule[[#This Row],[支払番号]]<>"",IF(ROW()-ROW(PaymentSchedule[[#Headers],[期首残高]])=1,借入金額,INDEX(PaymentSchedule[期末残高],ROW()-ROW(PaymentSchedule[[#Headers],[期首残高]])-1)),"") ->  | E79: =IF(PaymentSchedule[[#This Row],[支払番号]]<>"",ScheduledPayment,"") ->  | F79: =IF(PaymentSchedule[[#This Row],[支払番号]]<>"",IF(PaymentSchedule[[#This Row],[返済予定]]+ExtraPayments<PaymentSchedule[[#This Row],[期首残高]],ExtraPayments,IF(PaymentSchedule[[#This Row],[期首残高]]-PaymentSchedule[[#This Row],[返済予定]]>0,PaymentSchedule[[#This Row],[期首残高]]-PaymentSchedule[[#This Row],[返済予定]],0)),"") ->  | G79: =IF(PaymentSchedule[[#This Row],[支払番号]]<>"",IF(PaymentSchedule[[#This Row],[返済予定]]+PaymentSchedule[[#This Row],[繰上げ返済額]]<=PaymentSchedule[[#This Row],[期首残高]],PaymentSchedule[[#This Row],[返済予定]]+PaymentSchedule[[#This Row],[繰上げ返済額]],PaymentSchedule[[#This Row],[期首残高]]),"") ->  | H79: =IF(PaymentSchedule[[#This Row],[支払番号]]<>"",PaymentSchedule[[#This Row],[返済総額]]-PaymentSchedule[[#This Row],[利息]],"") ->  | I79: =IF(PaymentSchedule[[#This Row],[支払番号]]<>"",PaymentSchedule[[#This Row],[期首残高]]*(InterestRate/PaymentsPerYear),"") ->  | J79: =IF(PaymentSchedule[[#This Row],[支払番号]]<>"",IF(PaymentSchedule[[#This Row],[返済予定]]+PaymentSchedule[[#This Row],[繰上げ返済額]]<=PaymentSchedule[[#This Row],[期首残高]],PaymentSchedule[[#This Row],[期首残高]]-PaymentSchedule[[#This Row],[元金]],0),"") ->  | K79: =IF(PaymentSchedule[[#This Row],[支払番号]]<>"",SUM(INDEX(PaymentSchedule[利息],1,1):PaymentSchedule[[#This Row],[利息]]),"") -> 
B80: =IF(LoanIsGood,IF(ROW()-ROW(PaymentSchedule[[#Headers],[支払番号]])>支払予定回数,"",ROW()-ROW(PaymentSchedule[[#Headers],[支払番号]])),"") ->  | C80: =IF(PaymentSchedule[[#This Row],[支払番号]]<>"",EOMONTH(LoanStartDate,ROW(PaymentSchedule[[#This Row],[支払番号]])-ROW(PaymentSchedule[[#Headers],[支払番号]])-2)+DAY(LoanStartDate),"") ->  | D80: =IF(PaymentSchedule[[#This Row],[支払番号]]<>"",IF(ROW()-ROW(PaymentSchedule[[#Headers],[期首残高]])=1,借入金額,INDEX(PaymentSchedule[期末残高],ROW()-ROW(PaymentSchedule[[#Headers],[期首残高]])-1)),"") ->  | E80: =IF(PaymentSchedule[[#This Row],[支払番号]]<>"",ScheduledPayment,"") ->  | F80: =IF(PaymentSchedule[[#This Row],[支払番号]]<>"",IF(PaymentSchedule[[#This Row],[返済予定]]+ExtraPayments<PaymentSchedule[[#This Row],[期首残高]],ExtraPayments,IF(PaymentSchedule[[#This Row],[期首残高]]-PaymentSchedule[[#This Row],[返済予定]]>0,PaymentSchedule[[#This Row],[期首残高]]-PaymentSchedule[[#This Row],[返済予定]],0)),"") ->  | G80: =IF(PaymentSchedule[[#This Row],[支払番号]]<>"",IF(PaymentSchedule[[#This Row],[返済予定]]+PaymentSchedule[[#This Row],[繰上げ返済額]]<=PaymentSchedule[[#This Row],[期首残高]],PaymentSchedule[[#This Row],[返済予定]]+PaymentSchedule[[#This Row],[繰上げ返済額]],PaymentSchedule[[#This Row],[期首残高]]),"") ->  | H80: =IF(PaymentSchedule[[#This Row],[支払番号]]<>"",PaymentSchedule[[#This Row],[返済総額]]-PaymentSchedule[[#This Row],[利息]],"") ->  | I80: =IF(PaymentSchedule[[#This Row],[支払番号]]<>"",PaymentSchedule[[#This Row],[期首残高]]*(InterestRate/PaymentsPerYear),"") ->  | J80: =IF(PaymentSchedule[[#This Row],[支払番号]]<>"",IF(PaymentSchedule[[#This Row],[返済予定]]+PaymentSchedule[[#This Row],[繰上げ返済額]]<=PaymentSchedule[[#This Row],[期首残高]],PaymentSchedule[[#This Row],[期首残高]]-PaymentSchedule[[#This Row],[元金]],0),"") ->  | K80: =IF(PaymentSchedule[[#This Row],[支払番号]]<>"",SUM(INDEX(PaymentSchedule[利息],1,1):PaymentSchedule[[#This Row],[利息]]),"") -> 
B81: =IF(LoanIsGood,IF(ROW()-ROW(PaymentSchedule[[#Headers],[支払番号]])>支払予定回数,"",ROW()-ROW(PaymentSchedule[[#Headers],[支払番号]])),"") ->  | C81: =IF(PaymentSchedule[[#This Row],[支払番号]]<>"",EOMONTH(LoanStartDate,ROW(PaymentSchedule[[#This Row],[支払番号]])-ROW(PaymentSchedule[[#Headers],[支払番号]])-2)+DAY(LoanStartDate),"") ->  | D81: =IF(PaymentSchedule[[#This Row],[支払番号]]<>"",IF(ROW()-ROW(PaymentSchedule[[#Headers],[期首残高]])=1,借入金額,INDEX(PaymentSchedule[期末残高],ROW()-ROW(PaymentSchedule[[#Headers],[期首残高]])-1)),"") ->  | E81: =IF(PaymentSchedule[[#This Row],[支払番号]]<>"",ScheduledPayment,"") ->  | F81: =IF(PaymentSchedule[[#This Row],[支払番号]]<>"",IF(PaymentSchedule[[#This Row],[返済予定]]+ExtraPayments<PaymentSchedule[[#This Row],[期首残高]],ExtraPayments,IF(PaymentSchedule[[#This Row],[期首残高]]-PaymentSchedule[[#This Row],[返済予定]]>0,PaymentSchedule[[#This Row],[期首残高]]-PaymentSchedule[[#This Row],[返済予定]],0)),"") ->  | G81: =IF(PaymentSchedule[[#This Row],[支払番号]]<>"",IF(PaymentSchedule[[#This Row],[返済予定]]+PaymentSchedule[[#This Row],[繰上げ返済額]]<=PaymentSchedule[[#This Row],[期首残高]],PaymentSchedule[[#This Row],[返済予定]]+PaymentSchedule[[#This Row],[繰上げ返済額]],PaymentSchedule[[#This Row],[期首残高]]),"") ->  | H81: =IF(PaymentSchedule[[#This Row],[支払番号]]<>"",PaymentSchedule[[#This Row],[返済総額]]-PaymentSchedule[[#This Row],[利息]],"") ->  | I81: =IF(PaymentSchedule[[#This Row],[支払番号]]<>"",PaymentSchedule[[#This Row],[期首残高]]*(InterestRate/PaymentsPerYear),"") ->  | J81: =IF(PaymentSchedule[[#This Row],[支払番号]]<>"",IF(PaymentSchedule[[#This Row],[返済予定]]+PaymentSchedule[[#This Row],[繰上げ返済額]]<=PaymentSchedule[[#This Row],[期首残高]],PaymentSchedule[[#This Row],[期首残高]]-PaymentSchedule[[#This Row],[元金]],0),"") ->  | K81: =IF(PaymentSchedule[[#This Row],[支払番号]]<>"",SUM(INDEX(PaymentSchedule[利息],1,1):PaymentSchedule[[#This Row],[利息]]),"") -> 
B82: =IF(LoanIsGood,IF(ROW()-ROW(PaymentSchedule[[#Headers],[支払番号]])>支払予定回数,"",ROW()-ROW(PaymentSchedule[[#Headers],[支払番号]])),"") ->  | C82: =IF(PaymentSchedule[[#This Row],[支払番号]]<>"",EOMONTH(LoanStartDate,ROW(PaymentSchedule[[#This Row],[支払番号]])-ROW(PaymentSchedule[[#Headers],[支払番号]])-2)+DAY(LoanStartDate),"") ->  | D82: =IF(PaymentSchedule[[#This Row],[支払番号]]<>"",IF(ROW()-ROW(PaymentSchedule[[#Headers],[期首残高]])=1,借入金額,INDEX(PaymentSchedule[期末残高],ROW()-ROW(PaymentSchedule[[#Headers],[期首残高]])-1)),"") ->  | E82: =IF(PaymentSchedule[[#This Row],[支払番号]]<>"",ScheduledPayment,"") ->  | F82: =IF(PaymentSchedule[[#This Row],[支払番号]]<>"",IF(PaymentSchedule[[#This Row],[返済予定]]+ExtraPayments<PaymentSchedule[[#This Row],[期首残高]],ExtraPayments,IF(PaymentSchedule[[#This Row],[期首残高]]-PaymentSchedule[[#This Row],[返済予定]]>0,PaymentSchedule[[#This Row],[期首残高]]-PaymentSchedule[[#This Row],[返済予定]],0)),"") ->  | G82: =IF(PaymentSchedule[[#This Row],[支払番号]]<>"",IF(PaymentSchedule[[#This Row],[返済予定]]+PaymentSchedule[[#This Row],[繰上げ返済額]]<=PaymentSchedule[[#This Row],[期首残高]],PaymentSchedule[[#This Row],[返済予定]]+PaymentSchedule[[#This Row],[繰上げ返済額]],PaymentSchedule[[#This Row],[期首残高]]),"") ->  | H82: =IF(PaymentSchedule[[#This Row],[支払番号]]<>"",PaymentSchedule[[#This Row],[返済総額]]-PaymentSchedule[[#This Row],[利息]],"") ->  | I82: =IF(PaymentSchedule[[#This Row],[支払番号]]<>"",PaymentSchedule[[#This Row],[期首残高]]*(InterestRate/PaymentsPerYear),"") ->  | J82: =IF(PaymentSchedule[[#This Row],[支払番号]]<>"",IF(PaymentSchedule[[#This Row],[返済予定]]+PaymentSchedule[[#This Row],[繰上げ返済額]]<=PaymentSchedule[[#This Row],[期首残高]],PaymentSchedule[[#This Row],[期首残高]]-PaymentSchedule[[#This Row],[元金]],0),"") ->  | K82: =IF(PaymentSchedule[[#This Row],[支払番号]]<>"",SUM(INDEX(PaymentSchedule[利息],1,1):PaymentSchedule[[#This Row],[利息]]),"") -> 
B83: =IF(LoanIsGood,IF(ROW()-ROW(PaymentSchedule[[#Headers],[支払番号]])>支払予定回数,"",ROW()-ROW(PaymentSchedule[[#Headers],[支払番号]])),"") ->  | C83: =IF(PaymentSchedule[[#This Row],[支払番号]]<>"",EOMONTH(LoanStartDate,ROW(PaymentSchedule[[#This Row],[支払番号]])-ROW(PaymentSchedule[[#Headers],[支払番号]])-2)+DAY(LoanStartDate),"") ->  | D83: =IF(PaymentSchedule[[#This Row],[支払番号]]<>"",IF(ROW()-ROW(PaymentSchedule[[#Headers],[期首残高]])=1,借入金額,INDEX(PaymentSchedule[期末残高],ROW()-ROW(PaymentSchedule[[#Headers],[期首残高]])-1)),"") ->  | E83: =IF(PaymentSchedule[[#This Row],[支払番号]]<>"",ScheduledPayment,"") ->  | F83: =IF(PaymentSchedule[[#This Row],[支払番号]]<>"",IF(PaymentSchedule[[#This Row],[返済予定]]+ExtraPayments<PaymentSchedule[[#This Row],[期首残高]],ExtraPayments,IF(PaymentSchedule[[#This Row],[期首残高]]-PaymentSchedule[[#This Row],[返済予定]]>0,PaymentSchedule[[#This Row],[期首残高]]-PaymentSchedule[[#This Row],[返済予定]],0)),"") ->  | G83: =IF(PaymentSchedule[[#This Row],[支払番号]]<>"",IF(PaymentSchedule[[#This Row],[返済予定]]+PaymentSchedule[[#This Row],[繰上げ返済額]]<=PaymentSchedule[[#This Row],[期首残高]],PaymentSchedule[[#This Row],[返済予定]]+PaymentSchedule[[#This Row],[繰上げ返済額]],PaymentSchedule[[#This Row],[期首残高]]),"") ->  | H83: =IF(PaymentSchedule[[#This Row],[支払番号]]<>"",PaymentSchedule[[#This Row],[返済総額]]-PaymentSchedule[[#This Row],[利息]],"") ->  | I83: =IF(PaymentSchedule[[#This Row],[支払番号]]<>"",PaymentSchedule[[#This Row],[期首残高]]*(InterestRate/PaymentsPerYear),"") ->  | J83: =IF(PaymentSchedule[[#This Row],[支払番号]]<>"",IF(PaymentSchedule[[#This Row],[返済予定]]+PaymentSchedule[[#This Row],[繰上げ返済額]]<=PaymentSchedule[[#This Row],[期首残高]],PaymentSchedule[[#This Row],[期首残高]]-PaymentSchedule[[#This Row],[元金]],0),"") ->  | K83: =IF(PaymentSchedule[[#This Row],[支払番号]]<>"",SUM(INDEX(PaymentSchedule[利息],1,1):PaymentSchedule[[#This Row],[利息]]),"") -> 
B84: =IF(LoanIsGood,IF(ROW()-ROW(PaymentSchedule[[#Headers],[支払番号]])>支払予定回数,"",ROW()-ROW(PaymentSchedule[[#Headers],[支払番号]])),"") ->  | C84: =IF(PaymentSchedule[[#This Row],[支払番号]]<>"",EOMONTH(LoanStartDate,ROW(PaymentSchedule[[#This Row],[支払番号]])-ROW(PaymentSchedule[[#Headers],[支払番号]])-2)+DAY(LoanStartDate),"") ->  | D84: =IF(PaymentSchedule[[#This Row],[支払番号]]<>"",IF(ROW()-ROW(PaymentSchedule[[#Headers],[期首残高]])=1,借入金額,INDEX(PaymentSchedule[期末残高],ROW()-ROW(PaymentSchedule[[#Headers],[期首残高]])-1)),"") ->  | E84: =IF(PaymentSchedule[[#This Row],[支払番号]]<>"",ScheduledPayment,"") ->  | F84: =IF(PaymentSchedule[[#This Row],[支払番号]]<>"",IF(PaymentSchedule[[#This Row],[返済予定]]+ExtraPayments<PaymentSchedule[[#This Row],[期首残高]],ExtraPayments,IF(PaymentSchedule[[#This Row],[期首残高]]-PaymentSchedule[[#This Row],[返済予定]]>0,PaymentSchedule[[#This Row],[期首残高]]-PaymentSchedule[[#This Row],[返済予定]],0)),"") ->  | G84: =IF(PaymentSchedule[[#This Row],[支払番号]]<>"",IF(PaymentSchedule[[#This Row],[返済予定]]+PaymentSchedule[[#This Row],[繰上げ返済額]]<=PaymentSchedule[[#This Row],[期首残高]],PaymentSchedule[[#This Row],[返済予定]]+PaymentSchedule[[#This Row],[繰上げ返済額]],PaymentSchedule[[#This Row],[期首残高]]),"") ->  | H84: =IF(PaymentSchedule[[#This Row],[支払番号]]<>"",PaymentSchedule[[#This Row],[返済総額]]-PaymentSchedule[[#This Row],[利息]],"") ->  | I84: =IF(PaymentSchedule[[#This Row],[支払番号]]<>"",PaymentSchedule[[#This Row],[期首残高]]*(InterestRate/PaymentsPerYear),"") ->  | J84: =IF(PaymentSchedule[[#This Row],[支払番号]]<>"",IF(PaymentSchedule[[#This Row],[返済予定]]+PaymentSchedule[[#This Row],[繰上げ返済額]]<=PaymentSchedule[[#This Row],[期首残高]],PaymentSchedule[[#This Row],[期首残高]]-PaymentSchedule[[#This Row],[元金]],0),"") ->  | K84: =IF(PaymentSchedule[[#This Row],[支払番号]]<>"",SUM(INDEX(PaymentSchedule[利息],1,1):PaymentSchedule[[#This Row],[利息]]),"") -> 
B85: =IF(LoanIsGood,IF(ROW()-ROW(PaymentSchedule[[#Headers],[支払番号]])>支払予定回数,"",ROW()-ROW(PaymentSchedule[[#Headers],[支払番号]])),"") ->  | C85: =IF(PaymentSchedule[[#This Row],[支払番号]]<>"",EOMONTH(LoanStartDate,ROW(PaymentSchedule[[#This Row],[支払番号]])-ROW(PaymentSchedule[[#Headers],[支払番号]])-2)+DAY(LoanStartDate),"") ->  | D85: =IF(PaymentSchedule[[#This Row],[支払番号]]<>"",IF(ROW()-ROW(PaymentSchedule[[#Headers],[期首残高]])=1,借入金額,INDEX(PaymentSchedule[期末残高],ROW()-ROW(PaymentSchedule[[#Headers],[期首残高]])-1)),"") ->  | E85: =IF(PaymentSchedule[[#This Row],[支払番号]]<>"",ScheduledPayment,"") ->  | F85: =IF(PaymentSchedule[[#This Row],[支払番号]]<>"",IF(PaymentSchedule[[#This Row],[返済予定]]+ExtraPayments<PaymentSchedule[[#This Row],[期首残高]],ExtraPayments,IF(PaymentSchedule[[#This Row],[期首残高]]-PaymentSchedule[[#This Row],[返済予定]]>0,PaymentSchedule[[#This Row],[期首残高]]-PaymentSchedule[[#This Row],[返済予定]],0)),"") ->  | G85: =IF(PaymentSchedule[[#This Row],[支払番号]]<>"",IF(PaymentSchedule[[#This Row],[返済予定]]+PaymentSchedule[[#This Row],[繰上げ返済額]]<=PaymentSchedule[[#This Row],[期首残高]],PaymentSchedule[[#This Row],[返済予定]]+PaymentSchedule[[#This Row],[繰上げ返済額]],PaymentSchedule[[#This Row],[期首残高]]),"") ->  | H85: =IF(PaymentSchedule[[#This Row],[支払番号]]<>"",PaymentSchedule[[#This Row],[返済総額]]-PaymentSchedule[[#This Row],[利息]],"") ->  | I85: =IF(PaymentSchedule[[#This Row],[支払番号]]<>"",PaymentSchedule[[#This Row],[期首残高]]*(InterestRate/PaymentsPerYear),"") ->  | J85: =IF(PaymentSchedule[[#This Row],[支払番号]]<>"",IF(PaymentSchedule[[#This Row],[返済予定]]+PaymentSchedule[[#This Row],[繰上げ返済額]]<=PaymentSchedule[[#This Row],[期首残高]],PaymentSchedule[[#This Row],[期首残高]]-PaymentSchedule[[#This Row],[元金]],0),"") ->  | K85: =IF(PaymentSchedule[[#This Row],[支払番号]]<>"",SUM(INDEX(PaymentSchedule[利息],1,1):PaymentSchedule[[#This Row],[利息]]),"") -> 
B86: =IF(LoanIsGood,IF(ROW()-ROW(PaymentSchedule[[#Headers],[支払番号]])>支払予定回数,"",ROW()-ROW(PaymentSchedule[[#Headers],[支払番号]])),"") ->  | C86: =IF(PaymentSchedule[[#This Row],[支払番号]]<>"",EOMONTH(LoanStartDate,ROW(PaymentSchedule[[#This Row],[支払番号]])-ROW(PaymentSchedule[[#Headers],[支払番号]])-2)+DAY(LoanStartDate),"") ->  | D86: =IF(PaymentSchedule[[#This Row],[支払番号]]<>"",IF(ROW()-ROW(PaymentSchedule[[#Headers],[期首残高]])=1,借入金額,INDEX(PaymentSchedule[期末残高],ROW()-ROW(PaymentSchedule[[#Headers],[期首残高]])-1)),"") ->  | E86: =IF(PaymentSchedule[[#This Row],[支払番号]]<>"",ScheduledPayment,"") ->  | F86: =IF(PaymentSchedule[[#This Row],[支払番号]]<>"",IF(PaymentSchedule[[#This Row],[返済予定]]+ExtraPayments<PaymentSchedule[[#This Row],[期首残高]],ExtraPayments,IF(PaymentSchedule[[#This Row],[期首残高]]-PaymentSchedule[[#This Row],[返済予定]]>0,PaymentSchedule[[#This Row],[期首残高]]-PaymentSchedule[[#This Row],[返済予定]],0)),"") ->  | G86: =IF(PaymentSchedule[[#This Row],[支払番号]]<>"",IF(PaymentSchedule[[#This Row],[返済予定]]+PaymentSchedule[[#This Row],[繰上げ返済額]]<=PaymentSchedule[[#This Row],[期首残高]],PaymentSchedule[[#This Row],[返済予定]]+PaymentSchedule[[#This Row],[繰上げ返済額]],PaymentSchedule[[#This Row],[期首残高]]),"") ->  | H86: =IF(PaymentSchedule[[#This Row],[支払番号]]<>"",PaymentSchedule[[#This Row],[返済総額]]-PaymentSchedule[[#This Row],[利息]],"") ->  | I86: =IF(PaymentSchedule[[#This Row],[支払番号]]<>"",PaymentSchedule[[#This Row],[期首残高]]*(InterestRate/PaymentsPerYear),"") ->  | J86: =IF(PaymentSchedule[[#This Row],[支払番号]]<>"",IF(PaymentSchedule[[#This Row],[返済予定]]+PaymentSchedule[[#This Row],[繰上げ返済額]]<=PaymentSchedule[[#This Row],[期首残高]],PaymentSchedule[[#This Row],[期首残高]]-PaymentSchedule[[#This Row],[元金]],0),"") ->  | K86: =IF(PaymentSchedule[[#This Row],[支払番号]]<>"",SUM(INDEX(PaymentSchedule[利息],1,1):PaymentSchedule[[#This Row],[利息]]),"") -> 
B87: =IF(LoanIsGood,IF(ROW()-ROW(PaymentSchedule[[#Headers],[支払番号]])>支払予定回数,"",ROW()-ROW(PaymentSchedule[[#Headers],[支払番号]])),"") ->  | C87: =IF(PaymentSchedule[[#This Row],[支払番号]]<>"",EOMONTH(LoanStartDate,ROW(PaymentSchedule[[#This Row],[支払番号]])-ROW(PaymentSchedule[[#Headers],[支払番号]])-2)+DAY(LoanStartDate),"") ->  | D87: =IF(PaymentSchedule[[#This Row],[支払番号]]<>"",IF(ROW()-ROW(PaymentSchedule[[#Headers],[期首残高]])=1,借入金額,INDEX(PaymentSchedule[期末残高],ROW()-ROW(PaymentSchedule[[#Headers],[期首残高]])-1)),"") ->  | E87: =IF(PaymentSchedule[[#This Row],[支払番号]]<>"",ScheduledPayment,"") ->  | F87: =IF(PaymentSchedule[[#This Row],[支払番号]]<>"",IF(PaymentSchedule[[#This Row],[返済予定]]+ExtraPayments<PaymentSchedule[[#This Row],[期首残高]],ExtraPayments,IF(PaymentSchedule[[#This Row],[期首残高]]-PaymentSchedule[[#This Row],[返済予定]]>0,PaymentSchedule[[#This Row],[期首残高]]-PaymentSchedule[[#This Row],[返済予定]],0)),"") ->  | G87: =IF(PaymentSchedule[[#This Row],[支払番号]]<>"",IF(PaymentSchedule[[#This Row],[返済予定]]+PaymentSchedule[[#This Row],[繰上げ返済額]]<=PaymentSchedule[[#This Row],[期首残高]],PaymentSchedule[[#This Row],[返済予定]]+PaymentSchedule[[#This Row],[繰上げ返済額]],PaymentSchedule[[#This Row],[期首残高]]),"") ->  | H87: =IF(PaymentSchedule[[#This Row],[支払番号]]<>"",PaymentSchedule[[#This Row],[返済総額]]-PaymentSchedule[[#This Row],[利息]],"") ->  | I87: =IF(PaymentSchedule[[#This Row],[支払番号]]<>"",PaymentSchedule[[#This Row],[期首残高]]*(InterestRate/PaymentsPerYear),"") ->  | J87: =IF(PaymentSchedule[[#This Row],[支払番号]]<>"",IF(PaymentSchedule[[#This Row],[返済予定]]+PaymentSchedule[[#This Row],[繰上げ返済額]]<=PaymentSchedule[[#This Row],[期首残高]],PaymentSchedule[[#This Row],[期首残高]]-PaymentSchedule[[#This Row],[元金]],0),"") ->  | K87: =IF(PaymentSchedule[[#This Row],[支払番号]]<>"",SUM(INDEX(PaymentSchedule[利息],1,1):PaymentSchedule[[#This Row],[利息]]),"") -> 
B88: =IF(LoanIsGood,IF(ROW()-ROW(PaymentSchedule[[#Headers],[支払番号]])>支払予定回数,"",ROW()-ROW(PaymentSchedule[[#Headers],[支払番号]])),"") ->  | C88: =IF(PaymentSchedule[[#This Row],[支払番号]]<>"",EOMONTH(LoanStartDate,ROW(PaymentSchedule[[#This Row],[支払番号]])-ROW(PaymentSchedule[[#Headers],[支払番号]])-2)+DAY(LoanStartDate),"") ->  | D88: =IF(PaymentSchedule[[#This Row],[支払番号]]<>"",IF(ROW()-ROW(PaymentSchedule[[#Headers],[期首残高]])=1,借入金額,INDEX(PaymentSchedule[期末残高],ROW()-ROW(PaymentSchedule[[#Headers],[期首残高]])-1)),"") ->  | E88: =IF(PaymentSchedule[[#This Row],[支払番号]]<>"",ScheduledPayment,"") ->  | F88: =IF(PaymentSchedule[[#This Row],[支払番号]]<>"",IF(PaymentSchedule[[#This Row],[返済予定]]+ExtraPayments<PaymentSchedule[[#This Row],[期首残高]],ExtraPayments,IF(PaymentSchedule[[#This Row],[期首残高]]-PaymentSchedule[[#This Row],[返済予定]]>0,PaymentSchedule[[#This Row],[期首残高]]-PaymentSchedule[[#This Row],[返済予定]],0)),"") ->  | G88: =IF(PaymentSchedule[[#This Row],[支払番号]]<>"",IF(PaymentSchedule[[#This Row],[返済予定]]+PaymentSchedule[[#This Row],[繰上げ返済額]]<=PaymentSchedule[[#This Row],[期首残高]],PaymentSchedule[[#This Row],[返済予定]]+PaymentSchedule[[#This Row],[繰上げ返済額]],PaymentSchedule[[#This Row],[期首残高]]),"") ->  | H88: =IF(PaymentSchedule[[#This Row],[支払番号]]<>"",PaymentSchedule[[#This Row],[返済総額]]-PaymentSchedule[[#This Row],[利息]],"") ->  | I88: =IF(PaymentSchedule[[#This Row],[支払番号]]<>"",PaymentSchedule[[#This Row],[期首残高]]*(InterestRate/PaymentsPerYear),"") ->  | J88: =IF(PaymentSchedule[[#This Row],[支払番号]]<>"",IF(PaymentSchedule[[#This Row],[返済予定]]+PaymentSchedule[[#This Row],[繰上げ返済額]]<=PaymentSchedule[[#This Row],[期首残高]],PaymentSchedule[[#This Row],[期首残高]]-PaymentSchedule[[#This Row],[元金]],0),"") ->  | K88: =IF(PaymentSchedule[[#This Row],[支払番号]]<>"",SUM(INDEX(PaymentSchedule[利息],1,1):PaymentSchedule[[#This Row],[利息]]),"") -> 
B89: =IF(LoanIsGood,IF(ROW()-ROW(PaymentSchedule[[#Headers],[支払番号]])>支払予定回数,"",ROW()-ROW(PaymentSchedule[[#Headers],[支払番号]])),"") ->  | C89: =IF(PaymentSchedule[[#This Row],[支払番号]]<>"",EOMONTH(LoanStartDate,ROW(PaymentSchedule[[#This Row],[支払番号]])-ROW(PaymentSchedule[[#Headers],[支払番号]])-2)+DAY(LoanStartDate),"") ->  | D89: =IF(PaymentSchedule[[#This Row],[支払番号]]<>"",IF(ROW()-ROW(PaymentSchedule[[#Headers],[期首残高]])=1,借入金額,INDEX(PaymentSchedule[期末残高],ROW()-ROW(PaymentSchedule[[#Headers],[期首残高]])-1)),"") ->  | E89: =IF(PaymentSchedule[[#This Row],[支払番号]]<>"",ScheduledPayment,"") ->  | F89: =IF(PaymentSchedule[[#This Row],[支払番号]]<>"",IF(PaymentSchedule[[#This Row],[返済予定]]+ExtraPayments<PaymentSchedule[[#This Row],[期首残高]],ExtraPayments,IF(PaymentSchedule[[#This Row],[期首残高]]-PaymentSchedule[[#This Row],[返済予定]]>0,PaymentSchedule[[#This Row],[期首残高]]-PaymentSchedule[[#This Row],[返済予定]],0)),"") ->  | G89: =IF(PaymentSchedule[[#This Row],[支払番号]]<>"",IF(PaymentSchedule[[#This Row],[返済予定]]+PaymentSchedule[[#This Row],[繰上げ返済額]]<=PaymentSchedule[[#This Row],[期首残高]],PaymentSchedule[[#This Row],[返済予定]]+PaymentSchedule[[#This Row],[繰上げ返済額]],PaymentSchedule[[#This Row],[期首残高]]),"") ->  | H89: =IF(PaymentSchedule[[#This Row],[支払番号]]<>"",PaymentSchedule[[#This Row],[返済総額]]-PaymentSchedule[[#This Row],[利息]],"") ->  | I89: =IF(PaymentSchedule[[#This Row],[支払番号]]<>"",PaymentSchedule[[#This Row],[期首残高]]*(InterestRate/PaymentsPerYear),"") ->  | J89: =IF(PaymentSchedule[[#This Row],[支払番号]]<>"",IF(PaymentSchedule[[#This Row],[返済予定]]+PaymentSchedule[[#This Row],[繰上げ返済額]]<=PaymentSchedule[[#This Row],[期首残高]],PaymentSchedule[[#This Row],[期首残高]]-PaymentSchedule[[#This Row],[元金]],0),"") ->  | K89: =IF(PaymentSchedule[[#This Row],[支払番号]]<>"",SUM(INDEX(PaymentSchedule[利息],1,1):PaymentSchedule[[#This Row],[利息]]),"") -> 
B90: =IF(LoanIsGood,IF(ROW()-ROW(PaymentSchedule[[#Headers],[支払番号]])>支払予定回数,"",ROW()-ROW(PaymentSchedule[[#Headers],[支払番号]])),"") ->  | C90: =IF(PaymentSchedule[[#This Row],[支払番号]]<>"",EOMONTH(LoanStartDate,ROW(PaymentSchedule[[#This Row],[支払番号]])-ROW(PaymentSchedule[[#Headers],[支払番号]])-2)+DAY(LoanStartDate),"") ->  | D90: =IF(PaymentSchedule[[#This Row],[支払番号]]<>"",IF(ROW()-ROW(PaymentSchedule[[#Headers],[期首残高]])=1,借入金額,INDEX(PaymentSchedule[期末残高],ROW()-ROW(PaymentSchedule[[#Headers],[期首残高]])-1)),"") ->  | E90: =IF(PaymentSchedule[[#This Row],[支払番号]]<>"",ScheduledPayment,"") ->  | F90: =IF(PaymentSchedule[[#This Row],[支払番号]]<>"",IF(PaymentSchedule[[#This Row],[返済予定]]+ExtraPayments<PaymentSchedule[[#This Row],[期首残高]],ExtraPayments,IF(PaymentSchedule[[#This Row],[期首残高]]-PaymentSchedule[[#This Row],[返済予定]]>0,PaymentSchedule[[#This Row],[期首残高]]-PaymentSchedule[[#This Row],[返済予定]],0)),"") ->  | G90: =IF(PaymentSchedule[[#This Row],[支払番号]]<>"",IF(PaymentSchedule[[#This Row],[返済予定]]+PaymentSchedule[[#This Row],[繰上げ返済額]]<=PaymentSchedule[[#This Row],[期首残高]],PaymentSchedule[[#This Row],[返済予定]]+PaymentSchedule[[#This Row],[繰上げ返済額]],PaymentSchedule[[#This Row],[期首残高]]),"") ->  | H90: =IF(PaymentSchedule[[#This Row],[支払番号]]<>"",PaymentSchedule[[#This Row],[返済総額]]-PaymentSchedule[[#This Row],[利息]],"") ->  | I90: =IF(PaymentSchedule[[#This Row],[支払番号]]<>"",PaymentSchedule[[#This Row],[期首残高]]*(InterestRate/PaymentsPerYear),"") ->  | J90: =IF(PaymentSchedule[[#This Row],[支払番号]]<>"",IF(PaymentSchedule[[#This Row],[返済予定]]+PaymentSchedule[[#This Row],[繰上げ返済額]]<=PaymentSchedule[[#This Row],[期首残高]],PaymentSchedule[[#This Row],[期首残高]]-PaymentSchedule[[#This Row],[元金]],0),"") ->  | K90: =IF(PaymentSchedule[[#This Row],[支払番号]]<>"",SUM(INDEX(PaymentSchedule[利息],1,1):PaymentSchedule[[#This Row],[利息]]),"") -> 
B91: =IF(LoanIsGood,IF(ROW()-ROW(PaymentSchedule[[#Headers],[支払番号]])>支払予定回数,"",ROW()-ROW(PaymentSchedule[[#Headers],[支払番号]])),"") ->  | C91: =IF(PaymentSchedule[[#This Row],[支払番号]]<>"",EOMONTH(LoanStartDate,ROW(PaymentSchedule[[#This Row],[支払番号]])-ROW(PaymentSchedule[[#Headers],[支払番号]])-2)+DAY(LoanStartDate),"") ->  | D91: =IF(PaymentSchedule[[#This Row],[支払番号]]<>"",IF(ROW()-ROW(PaymentSchedule[[#Headers],[期首残高]])=1,借入金額,INDEX(PaymentSchedule[期末残高],ROW()-ROW(PaymentSchedule[[#Headers],[期首残高]])-1)),"") ->  | E91: =IF(PaymentSchedule[[#This Row],[支払番号]]<>"",ScheduledPayment,"") ->  | F91: =IF(PaymentSchedule[[#This Row],[支払番号]]<>"",IF(PaymentSchedule[[#This Row],[返済予定]]+ExtraPayments<PaymentSchedule[[#This Row],[期首残高]],ExtraPayments,IF(PaymentSchedule[[#This Row],[期首残高]]-PaymentSchedule[[#This Row],[返済予定]]>0,PaymentSchedule[[#This Row],[期首残高]]-PaymentSchedule[[#This Row],[返済予定]],0)),"") ->  | G91: =IF(PaymentSchedule[[#This Row],[支払番号]]<>"",IF(PaymentSchedule[[#This Row],[返済予定]]+PaymentSchedule[[#This Row],[繰上げ返済額]]<=PaymentSchedule[[#This Row],[期首残高]],PaymentSchedule[[#This Row],[返済予定]]+PaymentSchedule[[#This Row],[繰上げ返済額]],PaymentSchedule[[#This Row],[期首残高]]),"") ->  | H91: =IF(PaymentSchedule[[#This Row],[支払番号]]<>"",PaymentSchedule[[#This Row],[返済総額]]-PaymentSchedule[[#This Row],[利息]],"") ->  | I91: =IF(PaymentSchedule[[#This Row],[支払番号]]<>"",PaymentSchedule[[#This Row],[期首残高]]*(InterestRate/PaymentsPerYear),"") ->  | J91: =IF(PaymentSchedule[[#This Row],[支払番号]]<>"",IF(PaymentSchedule[[#This Row],[返済予定]]+PaymentSchedule[[#This Row],[繰上げ返済額]]<=PaymentSchedule[[#This Row],[期首残高]],PaymentSchedule[[#This Row],[期首残高]]-PaymentSchedule[[#This Row],[元金]],0),"") ->  | K91: =IF(PaymentSchedule[[#This Row],[支払番号]]<>"",SUM(INDEX(PaymentSchedule[利息],1,1):PaymentSchedule[[#This Row],[利息]]),"") -> 
B92: =IF(LoanIsGood,IF(ROW()-ROW(PaymentSchedule[[#Headers],[支払番号]])>支払予定回数,"",ROW()-ROW(PaymentSchedule[[#Headers],[支払番号]])),"") ->  | C92: =IF(PaymentSchedule[[#This Row],[支払番号]]<>"",EOMONTH(LoanStartDate,ROW(PaymentSchedule[[#This Row],[支払番号]])-ROW(PaymentSchedule[[#Headers],[支払番号]])-2)+DAY(LoanStartDate),"") ->  | D92: =IF(PaymentSchedule[[#This Row],[支払番号]]<>"",IF(ROW()-ROW(PaymentSchedule[[#Headers],[期首残高]])=1,借入金額,INDEX(PaymentSchedule[期末残高],ROW()-ROW(PaymentSchedule[[#Headers],[期首残高]])-1)),"") ->  | E92: =IF(PaymentSchedule[[#This Row],[支払番号]]<>"",ScheduledPayment,"") ->  | F92: =IF(PaymentSchedule[[#This Row],[支払番号]]<>"",IF(PaymentSchedule[[#This Row],[返済予定]]+ExtraPayments<PaymentSchedule[[#This Row],[期首残高]],ExtraPayments,IF(PaymentSchedule[[#This Row],[期首残高]]-PaymentSchedule[[#This Row],[返済予定]]>0,PaymentSchedule[[#This Row],[期首残高]]-PaymentSchedule[[#This Row],[返済予定]],0)),"") ->  | G92: =IF(PaymentSchedule[[#This Row],[支払番号]]<>"",IF(PaymentSchedule[[#This Row],[返済予定]]+PaymentSchedule[[#This Row],[繰上げ返済額]]<=PaymentSchedule[[#This Row],[期首残高]],PaymentSchedule[[#This Row],[返済予定]]+PaymentSchedule[[#This Row],[繰上げ返済額]],PaymentSchedule[[#This Row],[期首残高]]),"") ->  | H92: =IF(PaymentSchedule[[#This Row],[支払番号]]<>"",PaymentSchedule[[#This Row],[返済総額]]-PaymentSchedule[[#This Row],[利息]],"") ->  | I92: =IF(PaymentSchedule[[#This Row],[支払番号]]<>"",PaymentSchedule[[#This Row],[期首残高]]*(InterestRate/PaymentsPerYear),"") ->  | J92: =IF(PaymentSchedule[[#This Row],[支払番号]]<>"",IF(PaymentSchedule[[#This Row],[返済予定]]+PaymentSchedule[[#This Row],[繰上げ返済額]]<=PaymentSchedule[[#This Row],[期首残高]],PaymentSchedule[[#This Row],[期首残高]]-PaymentSchedule[[#This Row],[元金]],0),"") ->  | K92: =IF(PaymentSchedule[[#This Row],[支払番号]]<>"",SUM(INDEX(PaymentSchedule[利息],1,1):PaymentSchedule[[#This Row],[利息]]),"") -> 
B93: =IF(LoanIsGood,IF(ROW()-ROW(PaymentSchedule[[#Headers],[支払番号]])>支払予定回数,"",ROW()-ROW(PaymentSchedule[[#Headers],[支払番号]])),"") ->  | C93: =IF(PaymentSchedule[[#This Row],[支払番号]]<>"",EOMONTH(LoanStartDate,ROW(PaymentSchedule[[#This Row],[支払番号]])-ROW(PaymentSchedule[[#Headers],[支払番号]])-2)+DAY(LoanStartDate),"") ->  | D93: =IF(PaymentSchedule[[#This Row],[支払番号]]<>"",IF(ROW()-ROW(PaymentSchedule[[#Headers],[期首残高]])=1,借入金額,INDEX(PaymentSchedule[期末残高],ROW()-ROW(PaymentSchedule[[#Headers],[期首残高]])-1)),"") ->  | E93: =IF(PaymentSchedule[[#This Row],[支払番号]]<>"",ScheduledPayment,"") ->  | F93: =IF(PaymentSchedule[[#This Row],[支払番号]]<>"",IF(PaymentSchedule[[#This Row],[返済予定]]+ExtraPayments<PaymentSchedule[[#This Row],[期首残高]],ExtraPayments,IF(PaymentSchedule[[#This Row],[期首残高]]-PaymentSchedule[[#This Row],[返済予定]]>0,PaymentSchedule[[#This Row],[期首残高]]-PaymentSchedule[[#This Row],[返済予定]],0)),"") ->  | G93: =IF(PaymentSchedule[[#This Row],[支払番号]]<>"",IF(PaymentSchedule[[#This Row],[返済予定]]+PaymentSchedule[[#This Row],[繰上げ返済額]]<=PaymentSchedule[[#This Row],[期首残高]],PaymentSchedule[[#This Row],[返済予定]]+PaymentSchedule[[#This Row],[繰上げ返済額]],PaymentSchedule[[#This Row],[期首残高]]),"") ->  | H93: =IF(PaymentSchedule[[#This Row],[支払番号]]<>"",PaymentSchedule[[#This Row],[返済総額]]-PaymentSchedule[[#This Row],[利息]],"") ->  | I93: =IF(PaymentSchedule[[#This Row],[支払番号]]<>"",PaymentSchedule[[#This Row],[期首残高]]*(InterestRate/PaymentsPerYear),"") ->  | J93: =IF(PaymentSchedule[[#This Row],[支払番号]]<>"",IF(PaymentSchedule[[#This Row],[返済予定]]+PaymentSchedule[[#This Row],[繰上げ返済額]]<=PaymentSchedule[[#This Row],[期首残高]],PaymentSchedule[[#This Row],[期首残高]]-PaymentSchedule[[#This Row],[元金]],0),"") ->  | K93: =IF(PaymentSchedule[[#This Row],[支払番号]]<>"",SUM(INDEX(PaymentSchedule[利息],1,1):PaymentSchedule[[#This Row],[利息]]),"") -> 
B94: =IF(LoanIsGood,IF(ROW()-ROW(PaymentSchedule[[#Headers],[支払番号]])>支払予定回数,"",ROW()-ROW(PaymentSchedule[[#Headers],[支払番号]])),"") ->  | C94: =IF(PaymentSchedule[[#This Row],[支払番号]]<>"",EOMONTH(LoanStartDate,ROW(PaymentSchedule[[#This Row],[支払番号]])-ROW(PaymentSchedule[[#Headers],[支払番号]])-2)+DAY(LoanStartDate),"") ->  | D94: =IF(PaymentSchedule[[#This Row],[支払番号]]<>"",IF(ROW()-ROW(PaymentSchedule[[#Headers],[期首残高]])=1,借入金額,INDEX(PaymentSchedule[期末残高],ROW()-ROW(PaymentSchedule[[#Headers],[期首残高]])-1)),"") ->  | E94: =IF(PaymentSchedule[[#This Row],[支払番号]]<>"",ScheduledPayment,"") ->  | F94: =IF(PaymentSchedule[[#This Row],[支払番号]]<>"",IF(PaymentSchedule[[#This Row],[返済予定]]+ExtraPayments<PaymentSchedule[[#This Row],[期首残高]],ExtraPayments,IF(PaymentSchedule[[#This Row],[期首残高]]-PaymentSchedule[[#This Row],[返済予定]]>0,PaymentSchedule[[#This Row],[期首残高]]-PaymentSchedule[[#This Row],[返済予定]],0)),"") ->  | G94: =IF(PaymentSchedule[[#This Row],[支払番号]]<>"",IF(PaymentSchedule[[#This Row],[返済予定]]+PaymentSchedule[[#This Row],[繰上げ返済額]]<=PaymentSchedule[[#This Row],[期首残高]],PaymentSchedule[[#This Row],[返済予定]]+PaymentSchedule[[#This Row],[繰上げ返済額]],PaymentSchedule[[#This Row],[期首残高]]),"") ->  | H94: =IF(PaymentSchedule[[#This Row],[支払番号]]<>"",PaymentSchedule[[#This Row],[返済総額]]-PaymentSchedule[[#This Row],[利息]],"") ->  | I94: =IF(PaymentSchedule[[#This Row],[支払番号]]<>"",PaymentSchedule[[#This Row],[期首残高]]*(InterestRate/PaymentsPerYear),"") ->  | J94: =IF(PaymentSchedule[[#This Row],[支払番号]]<>"",IF(PaymentSchedule[[#This Row],[返済予定]]+PaymentSchedule[[#This Row],[繰上げ返済額]]<=PaymentSchedule[[#This Row],[期首残高]],PaymentSchedule[[#This Row],[期首残高]]-PaymentSchedule[[#This Row],[元金]],0),"") ->  | K94: =IF(PaymentSchedule[[#This Row],[支払番号]]<>"",SUM(INDEX(PaymentSchedule[利息],1,1):PaymentSchedule[[#This Row],[利息]]),"") -> 
B95: =IF(LoanIsGood,IF(ROW()-ROW(PaymentSchedule[[#Headers],[支払番号]])>支払予定回数,"",ROW()-ROW(PaymentSchedule[[#Headers],[支払番号]])),"") ->  | C95: =IF(PaymentSchedule[[#This Row],[支払番号]]<>"",EOMONTH(LoanStartDate,ROW(PaymentSchedule[[#This Row],[支払番号]])-ROW(PaymentSchedule[[#Headers],[支払番号]])-2)+DAY(LoanStartDate),"") ->  | D95: =IF(PaymentSchedule[[#This Row],[支払番号]]<>"",IF(ROW()-ROW(PaymentSchedule[[#Headers],[期首残高]])=1,借入金額,INDEX(PaymentSchedule[期末残高],ROW()-ROW(PaymentSchedule[[#Headers],[期首残高]])-1)),"") ->  | E95: =IF(PaymentSchedule[[#This Row],[支払番号]]<>"",ScheduledPayment,"") ->  | F95: =IF(PaymentSchedule[[#This Row],[支払番号]]<>"",IF(PaymentSchedule[[#This Row],[返済予定]]+ExtraPayments<PaymentSchedule[[#This Row],[期首残高]],ExtraPayments,IF(PaymentSchedule[[#This Row],[期首残高]]-PaymentSchedule[[#This Row],[返済予定]]>0,PaymentSchedule[[#This Row],[期首残高]]-PaymentSchedule[[#This Row],[返済予定]],0)),"") ->  | G95: =IF(PaymentSchedule[[#This Row],[支払番号]]<>"",IF(PaymentSchedule[[#This Row],[返済予定]]+PaymentSchedule[[#This Row],[繰上げ返済額]]<=PaymentSchedule[[#This Row],[期首残高]],PaymentSchedule[[#This Row],[返済予定]]+PaymentSchedule[[#This Row],[繰上げ返済額]],PaymentSchedule[[#This Row],[期首残高]]),"") ->  | H95: =IF(PaymentSchedule[[#This Row],[支払番号]]<>"",PaymentSchedule[[#This Row],[返済総額]]-PaymentSchedule[[#This Row],[利息]],"") ->  | I95: =IF(PaymentSchedule[[#This Row],[支払番号]]<>"",PaymentSchedule[[#This Row],[期首残高]]*(InterestRate/PaymentsPerYear),"") ->  | J95: =IF(PaymentSchedule[[#This Row],[支払番号]]<>"",IF(PaymentSchedule[[#This Row],[返済予定]]+PaymentSchedule[[#This Row],[繰上げ返済額]]<=PaymentSchedule[[#This Row],[期首残高]],PaymentSchedule[[#This Row],[期首残高]]-PaymentSchedule[[#This Row],[元金]],0),"") ->  | K95: =IF(PaymentSchedule[[#This Row],[支払番号]]<>"",SUM(INDEX(PaymentSchedule[利息],1,1):PaymentSchedule[[#This Row],[利息]]),"") -> 
B96: =IF(LoanIsGood,IF(ROW()-ROW(PaymentSchedule[[#Headers],[支払番号]])>支払予定回数,"",ROW()-ROW(PaymentSchedule[[#Headers],[支払番号]])),"") ->  | C96: =IF(PaymentSchedule[[#This Row],[支払番号]]<>"",EOMONTH(LoanStartDate,ROW(PaymentSchedule[[#This Row],[支払番号]])-ROW(PaymentSchedule[[#Headers],[支払番号]])-2)+DAY(LoanStartDate),"") ->  | D96: =IF(PaymentSchedule[[#This Row],[支払番号]]<>"",IF(ROW()-ROW(PaymentSchedule[[#Headers],[期首残高]])=1,借入金額,INDEX(PaymentSchedule[期末残高],ROW()-ROW(PaymentSchedule[[#Headers],[期首残高]])-1)),"") ->  | E96: =IF(PaymentSchedule[[#This Row],[支払番号]]<>"",ScheduledPayment,"") ->  | F96: =IF(PaymentSchedule[[#This Row],[支払番号]]<>"",IF(PaymentSchedule[[#This Row],[返済予定]]+ExtraPayments<PaymentSchedule[[#This Row],[期首残高]],ExtraPayments,IF(PaymentSchedule[[#This Row],[期首残高]]-PaymentSchedule[[#This Row],[返済予定]]>0,PaymentSchedule[[#This Row],[期首残高]]-PaymentSchedule[[#This Row],[返済予定]],0)),"") ->  | G96: =IF(PaymentSchedule[[#This Row],[支払番号]]<>"",IF(PaymentSchedule[[#This Row],[返済予定]]+PaymentSchedule[[#This Row],[繰上げ返済額]]<=PaymentSchedule[[#This Row],[期首残高]],PaymentSchedule[[#This Row],[返済予定]]+PaymentSchedule[[#This Row],[繰上げ返済額]],PaymentSchedule[[#This Row],[期首残高]]),"") ->  | H96: =IF(PaymentSchedule[[#This Row],[支払番号]]<>"",PaymentSchedule[[#This Row],[返済総額]]-PaymentSchedule[[#This Row],[利息]],"") ->  | I96: =IF(PaymentSchedule[[#This Row],[支払番号]]<>"",PaymentSchedule[[#This Row],[期首残高]]*(InterestRate/PaymentsPerYear),"") ->  | J96: =IF(PaymentSchedule[[#This Row],[支払番号]]<>"",IF(PaymentSchedule[[#This Row],[返済予定]]+PaymentSchedule[[#This Row],[繰上げ返済額]]<=PaymentSchedule[[#This Row],[期首残高]],PaymentSchedule[[#This Row],[期首残高]]-PaymentSchedule[[#This Row],[元金]],0),"") ->  | K96: =IF(PaymentSchedule[[#This Row],[支払番号]]<>"",SUM(INDEX(PaymentSchedule[利息],1,1):PaymentSchedule[[#This Row],[利息]]),"") -> 
B97: =IF(LoanIsGood,IF(ROW()-ROW(PaymentSchedule[[#Headers],[支払番号]])>支払予定回数,"",ROW()-ROW(PaymentSchedule[[#Headers],[支払番号]])),"") ->  | C97: =IF(PaymentSchedule[[#This Row],[支払番号]]<>"",EOMONTH(LoanStartDate,ROW(PaymentSchedule[[#This Row],[支払番号]])-ROW(PaymentSchedule[[#Headers],[支払番号]])-2)+DAY(LoanStartDate),"") ->  | D97: =IF(PaymentSchedule[[#This Row],[支払番号]]<>"",IF(ROW()-ROW(PaymentSchedule[[#Headers],[期首残高]])=1,借入金額,INDEX(PaymentSchedule[期末残高],ROW()-ROW(PaymentSchedule[[#Headers],[期首残高]])-1)),"") ->  | E97: =IF(PaymentSchedule[[#This Row],[支払番号]]<>"",ScheduledPayment,"") ->  | F97: =IF(PaymentSchedule[[#This Row],[支払番号]]<>"",IF(PaymentSchedule[[#This Row],[返済予定]]+ExtraPayments<PaymentSchedule[[#This Row],[期首残高]],ExtraPayments,IF(PaymentSchedule[[#This Row],[期首残高]]-PaymentSchedule[[#This Row],[返済予定]]>0,PaymentSchedule[[#This Row],[期首残高]]-PaymentSchedule[[#This Row],[返済予定]],0)),"") ->  | G97: =IF(PaymentSchedule[[#This Row],[支払番号]]<>"",IF(PaymentSchedule[[#This Row],[返済予定]]+PaymentSchedule[[#This Row],[繰上げ返済額]]<=PaymentSchedule[[#This Row],[期首残高]],PaymentSchedule[[#This Row],[返済予定]]+PaymentSchedule[[#This Row],[繰上げ返済額]],PaymentSchedule[[#This Row],[期首残高]]),"") ->  | H97: =IF(PaymentSchedule[[#This Row],[支払番号]]<>"",PaymentSchedule[[#This Row],[返済総額]]-PaymentSchedule[[#This Row],[利息]],"") ->  | I97: =IF(PaymentSchedule[[#This Row],[支払番号]]<>"",PaymentSchedule[[#This Row],[期首残高]]*(InterestRate/PaymentsPerYear),"") ->  | J97: =IF(PaymentSchedule[[#This Row],[支払番号]]<>"",IF(PaymentSchedule[[#This Row],[返済予定]]+PaymentSchedule[[#This Row],[繰上げ返済額]]<=PaymentSchedule[[#This Row],[期首残高]],PaymentSchedule[[#This Row],[期首残高]]-PaymentSchedule[[#This Row],[元金]],0),"") ->  | K97: =IF(PaymentSchedule[[#This Row],[支払番号]]<>"",SUM(INDEX(PaymentSchedule[利息],1,1):PaymentSchedule[[#This Row],[利息]]),"") -> 
B98: =IF(LoanIsGood,IF(ROW()-ROW(PaymentSchedule[[#Headers],[支払番号]])>支払予定回数,"",ROW()-ROW(PaymentSchedule[[#Headers],[支払番号]])),"") ->  | C98: =IF(PaymentSchedule[[#This Row],[支払番号]]<>"",EOMONTH(LoanStartDate,ROW(PaymentSchedule[[#This Row],[支払番号]])-ROW(PaymentSchedule[[#Headers],[支払番号]])-2)+DAY(LoanStartDate),"") ->  | D98: =IF(PaymentSchedule[[#This Row],[支払番号]]<>"",IF(ROW()-ROW(PaymentSchedule[[#Headers],[期首残高]])=1,借入金額,INDEX(PaymentSchedule[期末残高],ROW()-ROW(PaymentSchedule[[#Headers],[期首残高]])-1)),"") ->  | E98: =IF(PaymentSchedule[[#This Row],[支払番号]]<>"",ScheduledPayment,"") ->  | F98: =IF(PaymentSchedule[[#This Row],[支払番号]]<>"",IF(PaymentSchedule[[#This Row],[返済予定]]+ExtraPayments<PaymentSchedule[[#This Row],[期首残高]],ExtraPayments,IF(PaymentSchedule[[#This Row],[期首残高]]-PaymentSchedule[[#This Row],[返済予定]]>0,PaymentSchedule[[#This Row],[期首残高]]-PaymentSchedule[[#This Row],[返済予定]],0)),"") ->  | G98: =IF(PaymentSchedule[[#This Row],[支払番号]]<>"",IF(PaymentSchedule[[#This Row],[返済予定]]+PaymentSchedule[[#This Row],[繰上げ返済額]]<=PaymentSchedule[[#This Row],[期首残高]],PaymentSchedule[[#This Row],[返済予定]]+PaymentSchedule[[#This Row],[繰上げ返済額]],PaymentSchedule[[#This Row],[期首残高]]),"") ->  | H98: =IF(PaymentSchedule[[#This Row],[支払番号]]<>"",PaymentSchedule[[#This Row],[返済総額]]-PaymentSchedule[[#This Row],[利息]],"") ->  | I98: =IF(PaymentSchedule[[#This Row],[支払番号]]<>"",PaymentSchedule[[#This Row],[期首残高]]*(InterestRate/PaymentsPerYear),"") ->  | J98: =IF(PaymentSchedule[[#This Row],[支払番号]]<>"",IF(PaymentSchedule[[#This Row],[返済予定]]+PaymentSchedule[[#This Row],[繰上げ返済額]]<=PaymentSchedule[[#This Row],[期首残高]],PaymentSchedule[[#This Row],[期首残高]]-PaymentSchedule[[#This Row],[元金]],0),"") ->  | K98: =IF(PaymentSchedule[[#This Row],[支払番号]]<>"",SUM(INDEX(PaymentSchedule[利息],1,1):PaymentSchedule[[#This Row],[利息]]),"") -> 
B99: =IF(LoanIsGood,IF(ROW()-ROW(PaymentSchedule[[#Headers],[支払番号]])>支払予定回数,"",ROW()-ROW(PaymentSchedule[[#Headers],[支払番号]])),"") ->  | C99: =IF(PaymentSchedule[[#This Row],[支払番号]]<>"",EOMONTH(LoanStartDate,ROW(PaymentSchedule[[#This Row],[支払番号]])-ROW(PaymentSchedule[[#Headers],[支払番号]])-2)+DAY(LoanStartDate),"") ->  | D99: =IF(PaymentSchedule[[#This Row],[支払番号]]<>"",IF(ROW()-ROW(PaymentSchedule[[#Headers],[期首残高]])=1,借入金額,INDEX(PaymentSchedule[期末残高],ROW()-ROW(PaymentSchedule[[#Headers],[期首残高]])-1)),"") ->  | E99: =IF(PaymentSchedule[[#This Row],[支払番号]]<>"",ScheduledPayment,"") ->  | F99: =IF(PaymentSchedule[[#This Row],[支払番号]]<>"",IF(PaymentSchedule[[#This Row],[返済予定]]+ExtraPayments<PaymentSchedule[[#This Row],[期首残高]],ExtraPayments,IF(PaymentSchedule[[#This Row],[期首残高]]-PaymentSchedule[[#This Row],[返済予定]]>0,PaymentSchedule[[#This Row],[期首残高]]-PaymentSchedule[[#This Row],[返済予定]],0)),"") ->  | G99: =IF(PaymentSchedule[[#This Row],[支払番号]]<>"",IF(PaymentSchedule[[#This Row],[返済予定]]+PaymentSchedule[[#This Row],[繰上げ返済額]]<=PaymentSchedule[[#This Row],[期首残高]],PaymentSchedule[[#This Row],[返済予定]]+PaymentSchedule[[#This Row],[繰上げ返済額]],PaymentSchedule[[#This Row],[期首残高]]),"") ->  | H99: =IF(PaymentSchedule[[#This Row],[支払番号]]<>"",PaymentSchedule[[#This Row],[返済総額]]-PaymentSchedule[[#This Row],[利息]],"") ->  | I99: =IF(PaymentSchedule[[#This Row],[支払番号]]<>"",PaymentSchedule[[#This Row],[期首残高]]*(InterestRate/PaymentsPerYear),"") ->  | J99: =IF(PaymentSchedule[[#This Row],[支払番号]]<>"",IF(PaymentSchedule[[#This Row],[返済予定]]+PaymentSchedule[[#This Row],[繰上げ返済額]]<=PaymentSchedule[[#This Row],[期首残高]],PaymentSchedule[[#This Row],[期首残高]]-PaymentSchedule[[#This Row],[元金]],0),"") ->  | K99: =IF(PaymentSchedule[[#This Row],[支払番号]]<>"",SUM(INDEX(PaymentSchedule[利息],1,1):PaymentSchedule[[#This Row],[利息]]),"") -> 
B100: =IF(LoanIsGood,IF(ROW()-ROW(PaymentSchedule[[#Headers],[支払番号]])>支払予定回数,"",ROW()-ROW(PaymentSchedule[[#Headers],[支払番号]])),"") ->  | C100: =IF(PaymentSchedule[[#This Row],[支払番号]]<>"",EOMONTH(LoanStartDate,ROW(PaymentSchedule[[#This Row],[支払番号]])-ROW(PaymentSchedule[[#Headers],[支払番号]])-2)+DAY(LoanStartDate),"") ->  | D100: =IF(PaymentSchedule[[#This Row],[支払番号]]<>"",IF(ROW()-ROW(PaymentSchedule[[#Headers],[期首残高]])=1,借入金額,INDEX(PaymentSchedule[期末残高],ROW()-ROW(PaymentSchedule[[#Headers],[期首残高]])-1)),"") ->  | E100: =IF(PaymentSchedule[[#This Row],[支払番号]]<>"",ScheduledPayment,"") ->  | F100: =IF(PaymentSchedule[[#This Row],[支払番号]]<>"",IF(PaymentSchedule[[#This Row],[返済予定]]+ExtraPayments<PaymentSchedule[[#This Row],[期首残高]],ExtraPayments,IF(PaymentSchedule[[#This Row],[期首残高]]-PaymentSchedule[[#This Row],[返済予定]]>0,PaymentSchedule[[#This Row],[期首残高]]-PaymentSchedule[[#This Row],[返済予定]],0)),"") ->  | G100: =IF(PaymentSchedule[[#This Row],[支払番号]]<>"",IF(PaymentSchedule[[#This Row],[返済予定]]+PaymentSchedule[[#This Row],[繰上げ返済額]]<=PaymentSchedule[[#This Row],[期首残高]],PaymentSchedule[[#This Row],[返済予定]]+PaymentSchedule[[#This Row],[繰上げ返済額]],PaymentSchedule[[#This Row],[期首残高]]),"") ->  | H100: =IF(PaymentSchedule[[#This Row],[支払番号]]<>"",PaymentSchedule[[#This Row],[返済総額]]-PaymentSchedule[[#This Row],[利息]],"") ->  | I100: =IF(PaymentSchedule[[#This Row],[支払番号]]<>"",PaymentSchedule[[#This Row],[期首残高]]*(InterestRate/PaymentsPerYear),"") ->  | J100: =IF(PaymentSchedule[[#This Row],[支払番号]]<>"",IF(PaymentSchedule[[#This Row],[返済予定]]+PaymentSchedule[[#This Row],[繰上げ返済額]]<=PaymentSchedule[[#This Row],[期首残高]],PaymentSchedule[[#This Row],[期首残高]]-PaymentSchedule[[#This Row],[元金]],0),"") ->  | K100: =IF(PaymentSchedule[[#This Row],[支払番号]]<>"",SUM(INDEX(PaymentSchedule[利息],1,1):PaymentSchedule[[#This Row],[利息]]),"") -> 
B101: =IF(LoanIsGood,IF(ROW()-ROW(PaymentSchedule[[#Headers],[支払番号]])>支払予定回数,"",ROW()-ROW(PaymentSchedule[[#Headers],[支払番号]])),"") ->  | C101: =IF(PaymentSchedule[[#This Row],[支払番号]]<>"",EOMONTH(LoanStartDate,ROW(PaymentSchedule[[#This Row],[支払番号]])-ROW(PaymentSchedule[[#Headers],[支払番号]])-2)+DAY(LoanStartDate),"") ->  | D101: =IF(PaymentSchedule[[#This Row],[支払番号]]<>"",IF(ROW()-ROW(PaymentSchedule[[#Headers],[期首残高]])=1,借入金額,INDEX(PaymentSchedule[期末残高],ROW()-ROW(PaymentSchedule[[#Headers],[期首残高]])-1)),"") ->  | E101: =IF(PaymentSchedule[[#This Row],[支払番号]]<>"",ScheduledPayment,"") ->  | F101: =IF(PaymentSchedule[[#This Row],[支払番号]]<>"",IF(PaymentSchedule[[#This Row],[返済予定]]+ExtraPayments<PaymentSchedule[[#This Row],[期首残高]],ExtraPayments,IF(PaymentSchedule[[#This Row],[期首残高]]-PaymentSchedule[[#This Row],[返済予定]]>0,PaymentSchedule[[#This Row],[期首残高]]-PaymentSchedule[[#This Row],[返済予定]],0)),"") ->  | G101: =IF(PaymentSchedule[[#This Row],[支払番号]]<>"",IF(PaymentSchedule[[#This Row],[返済予定]]+PaymentSchedule[[#This Row],[繰上げ返済額]]<=PaymentSchedule[[#This Row],[期首残高]],PaymentSchedule[[#This Row],[返済予定]]+PaymentSchedule[[#This Row],[繰上げ返済額]],PaymentSchedule[[#This Row],[期首残高]]),"") ->  | H101: =IF(PaymentSchedule[[#This Row],[支払番号]]<>"",PaymentSchedule[[#This Row],[返済総額]]-PaymentSchedule[[#This Row],[利息]],"") ->  | I101: =IF(PaymentSchedule[[#This Row],[支払番号]]<>"",PaymentSchedule[[#This Row],[期首残高]]*(InterestRate/PaymentsPerYear),"") ->  | J101: =IF(PaymentSchedule[[#This Row],[支払番号]]<>"",IF(PaymentSchedule[[#This Row],[返済予定]]+PaymentSchedule[[#This Row],[繰上げ返済額]]<=PaymentSchedule[[#This Row],[期首残高]],PaymentSchedule[[#This Row],[期首残高]]-PaymentSchedule[[#This Row],[元金]],0),"") ->  | K101: =IF(PaymentSchedule[[#This Row],[支払番号]]<>"",SUM(INDEX(PaymentSchedule[利息],1,1):PaymentSchedule[[#This Row],[利息]]),"") -> 
B102: =IF(LoanIsGood,IF(ROW()-ROW(PaymentSchedule[[#Headers],[支払番号]])>支払予定回数,"",ROW()-ROW(PaymentSchedule[[#Headers],[支払番号]])),"") ->  | C102: =IF(PaymentSchedule[[#This Row],[支払番号]]<>"",EOMONTH(LoanStartDate,ROW(PaymentSchedule[[#This Row],[支払番号]])-ROW(PaymentSchedule[[#Headers],[支払番号]])-2)+DAY(LoanStartDate),"") ->  | D102: =IF(PaymentSchedule[[#This Row],[支払番号]]<>"",IF(ROW()-ROW(PaymentSchedule[[#Headers],[期首残高]])=1,借入金額,INDEX(PaymentSchedule[期末残高],ROW()-ROW(PaymentSchedule[[#Headers],[期首残高]])-1)),"") ->  | E102: =IF(PaymentSchedule[[#This Row],[支払番号]]<>"",ScheduledPayment,"") ->  | F102: =IF(PaymentSchedule[[#This Row],[支払番号]]<>"",IF(PaymentSchedule[[#This Row],[返済予定]]+ExtraPayments<PaymentSchedule[[#This Row],[期首残高]],ExtraPayments,IF(PaymentSchedule[[#This Row],[期首残高]]-PaymentSchedule[[#This Row],[返済予定]]>0,PaymentSchedule[[#This Row],[期首残高]]-PaymentSchedule[[#This Row],[返済予定]],0)),"") ->  | G102: =IF(PaymentSchedule[[#This Row],[支払番号]]<>"",IF(PaymentSchedule[[#This Row],[返済予定]]+PaymentSchedule[[#This Row],[繰上げ返済額]]<=PaymentSchedule[[#This Row],[期首残高]],PaymentSchedule[[#This Row],[返済予定]]+PaymentSchedule[[#This Row],[繰上げ返済額]],PaymentSchedule[[#This Row],[期首残高]]),"") ->  | H102: =IF(PaymentSchedule[[#This Row],[支払番号]]<>"",PaymentSchedule[[#This Row],[返済総額]]-PaymentSchedule[[#This Row],[利息]],"") ->  | I102: =IF(PaymentSchedule[[#This Row],[支払番号]]<>"",PaymentSchedule[[#This Row],[期首残高]]*(InterestRate/PaymentsPerYear),"") ->  | J102: =IF(PaymentSchedule[[#This Row],[支払番号]]<>"",IF(PaymentSchedule[[#This Row],[返済予定]]+PaymentSchedule[[#This Row],[繰上げ返済額]]<=PaymentSchedule[[#This Row],[期首残高]],PaymentSchedule[[#This Row],[期首残高]]-PaymentSchedule[[#This Row],[元金]],0),"") ->  | K102: =IF(PaymentSchedule[[#This Row],[支払番号]]<>"",SUM(INDEX(PaymentSchedule[利息],1,1):PaymentSchedule[[#This Row],[利息]]),"") -> 
B103: =IF(LoanIsGood,IF(ROW()-ROW(PaymentSchedule[[#Headers],[支払番号]])>支払予定回数,"",ROW()-ROW(PaymentSchedule[[#Headers],[支払番号]])),"") ->  | C103: =IF(PaymentSchedule[[#This Row],[支払番号]]<>"",EOMONTH(LoanStartDate,ROW(PaymentSchedule[[#This Row],[支払番号]])-ROW(PaymentSchedule[[#Headers],[支払番号]])-2)+DAY(LoanStartDate),"") ->  | D103: =IF(PaymentSchedule[[#This Row],[支払番号]]<>"",IF(ROW()-ROW(PaymentSchedule[[#Headers],[期首残高]])=1,借入金額,INDEX(PaymentSchedule[期末残高],ROW()-ROW(PaymentSchedule[[#Headers],[期首残高]])-1)),"") ->  | E103: =IF(PaymentSchedule[[#This Row],[支払番号]]<>"",ScheduledPayment,"") ->  | F103: =IF(PaymentSchedule[[#This Row],[支払番号]]<>"",IF(PaymentSchedule[[#This Row],[返済予定]]+ExtraPayments<PaymentSchedule[[#This Row],[期首残高]],ExtraPayments,IF(PaymentSchedule[[#This Row],[期首残高]]-PaymentSchedule[[#This Row],[返済予定]]>0,PaymentSchedule[[#This Row],[期首残高]]-PaymentSchedule[[#This Row],[返済予定]],0)),"") ->  | G103: =IF(PaymentSchedule[[#This Row],[支払番号]]<>"",IF(PaymentSchedule[[#This Row],[返済予定]]+PaymentSchedule[[#This Row],[繰上げ返済額]]<=PaymentSchedule[[#This Row],[期首残高]],PaymentSchedule[[#This Row],[返済予定]]+PaymentSchedule[[#This Row],[繰上げ返済額]],PaymentSchedule[[#This Row],[期首残高]]),"") ->  | H103: =IF(PaymentSchedule[[#This Row],[支払番号]]<>"",PaymentSchedule[[#This Row],[返済総額]]-PaymentSchedule[[#This Row],[利息]],"") ->  | I103: =IF(PaymentSchedule[[#This Row],[支払番号]]<>"",PaymentSchedule[[#This Row],[期首残高]]*(InterestRate/PaymentsPerYear),"") ->  | J103: =IF(PaymentSchedule[[#This Row],[支払番号]]<>"",IF(PaymentSchedule[[#This Row],[返済予定]]+PaymentSchedule[[#This Row],[繰上げ返済額]]<=PaymentSchedule[[#This Row],[期首残高]],PaymentSchedule[[#This Row],[期首残高]]-PaymentSchedule[[#This Row],[元金]],0),"") ->  | K103: =IF(PaymentSchedule[[#This Row],[支払番号]]<>"",SUM(INDEX(PaymentSchedule[利息],1,1):PaymentSchedule[[#This Row],[利息]]),"") -> 
B104: =IF(LoanIsGood,IF(ROW()-ROW(PaymentSchedule[[#Headers],[支払番号]])>支払予定回数,"",ROW()-ROW(PaymentSchedule[[#Headers],[支払番号]])),"") ->  | C104: =IF(PaymentSchedule[[#This Row],[支払番号]]<>"",EOMONTH(LoanStartDate,ROW(PaymentSchedule[[#This Row],[支払番号]])-ROW(PaymentSchedule[[#Headers],[支払番号]])-2)+DAY(LoanStartDate),"") ->  | D104: =IF(PaymentSchedule[[#This Row],[支払番号]]<>"",IF(ROW()-ROW(PaymentSchedule[[#Headers],[期首残高]])=1,借入金額,INDEX(PaymentSchedule[期末残高],ROW()-ROW(PaymentSchedule[[#Headers],[期首残高]])-1)),"") ->  | E104: =IF(PaymentSchedule[[#This Row],[支払番号]]<>"",ScheduledPayment,"") ->  | F104: =IF(PaymentSchedule[[#This Row],[支払番号]]<>"",IF(PaymentSchedule[[#This Row],[返済予定]]+ExtraPayments<PaymentSchedule[[#This Row],[期首残高]],ExtraPayments,IF(PaymentSchedule[[#This Row],[期首残高]]-PaymentSchedule[[#This Row],[返済予定]]>0,PaymentSchedule[[#This Row],[期首残高]]-PaymentSchedule[[#This Row],[返済予定]],0)),"") ->  | G104: =IF(PaymentSchedule[[#This Row],[支払番号]]<>"",IF(PaymentSchedule[[#This Row],[返済予定]]+PaymentSchedule[[#This Row],[繰上げ返済額]]<=PaymentSchedule[[#This Row],[期首残高]],PaymentSchedule[[#This Row],[返済予定]]+PaymentSchedule[[#This Row],[繰上げ返済額]],PaymentSchedule[[#This Row],[期首残高]]),"") ->  | H104: =IF(PaymentSchedule[[#This Row],[支払番号]]<>"",PaymentSchedule[[#This Row],[返済総額]]-PaymentSchedule[[#This Row],[利息]],"") ->  | I104: =IF(PaymentSchedule[[#This Row],[支払番号]]<>"",PaymentSchedule[[#This Row],[期首残高]]*(InterestRate/PaymentsPerYear),"") ->  | J104: =IF(PaymentSchedule[[#This Row],[支払番号]]<>"",IF(PaymentSchedule[[#This Row],[返済予定]]+PaymentSchedule[[#This Row],[繰上げ返済額]]<=PaymentSchedule[[#This Row],[期首残高]],PaymentSchedule[[#This Row],[期首残高]]-PaymentSchedule[[#This Row],[元金]],0),"") ->  | K104: =IF(PaymentSchedule[[#This Row],[支払番号]]<>"",SUM(INDEX(PaymentSchedule[利息],1,1):PaymentSchedule[[#This Row],[利息]]),"") -> 
B105: =IF(LoanIsGood,IF(ROW()-ROW(PaymentSchedule[[#Headers],[支払番号]])>支払予定回数,"",ROW()-ROW(PaymentSchedule[[#Headers],[支払番号]])),"") ->  | C105: =IF(PaymentSchedule[[#This Row],[支払番号]]<>"",EOMONTH(LoanStartDate,ROW(PaymentSchedule[[#This Row],[支払番号]])-ROW(PaymentSchedule[[#Headers],[支払番号]])-2)+DAY(LoanStartDate),"") ->  | D105: =IF(PaymentSchedule[[#This Row],[支払番号]]<>"",IF(ROW()-ROW(PaymentSchedule[[#Headers],[期首残高]])=1,借入金額,INDEX(PaymentSchedule[期末残高],ROW()-ROW(PaymentSchedule[[#Headers],[期首残高]])-1)),"") ->  | E105: =IF(PaymentSchedule[[#This Row],[支払番号]]<>"",ScheduledPayment,"") ->  | F105: =IF(PaymentSchedule[[#This Row],[支払番号]]<>"",IF(PaymentSchedule[[#This Row],[返済予定]]+ExtraPayments<PaymentSchedule[[#This Row],[期首残高]],ExtraPayments,IF(PaymentSchedule[[#This Row],[期首残高]]-PaymentSchedule[[#This Row],[返済予定]]>0,PaymentSchedule[[#This Row],[期首残高]]-PaymentSchedule[[#This Row],[返済予定]],0)),"") ->  | G105: =IF(PaymentSchedule[[#This Row],[支払番号]]<>"",IF(PaymentSchedule[[#This Row],[返済予定]]+PaymentSchedule[[#This Row],[繰上げ返済額]]<=PaymentSchedule[[#This Row],[期首残高]],PaymentSchedule[[#This Row],[返済予定]]+PaymentSchedule[[#This Row],[繰上げ返済額]],PaymentSchedule[[#This Row],[期首残高]]),"") ->  | H105: =IF(PaymentSchedule[[#This Row],[支払番号]]<>"",PaymentSchedule[[#This Row],[返済総額]]-PaymentSchedule[[#This Row],[利息]],"") ->  | I105: =IF(PaymentSchedule[[#This Row],[支払番号]]<>"",PaymentSchedule[[#This Row],[期首残高]]*(InterestRate/PaymentsPerYear),"") ->  | J105: =IF(PaymentSchedule[[#This Row],[支払番号]]<>"",IF(PaymentSchedule[[#This Row],[返済予定]]+PaymentSchedule[[#This Row],[繰上げ返済額]]<=PaymentSchedule[[#This Row],[期首残高]],PaymentSchedule[[#This Row],[期首残高]]-PaymentSchedule[[#This Row],[元金]],0),"") ->  | K105: =IF(PaymentSchedule[[#This Row],[支払番号]]<>"",SUM(INDEX(PaymentSchedule[利息],1,1):PaymentSchedule[[#This Row],[利息]]),"") -> 
B106: =IF(LoanIsGood,IF(ROW()-ROW(PaymentSchedule[[#Headers],[支払番号]])>支払予定回数,"",ROW()-ROW(PaymentSchedule[[#Headers],[支払番号]])),"") ->  | C106: =IF(PaymentSchedule[[#This Row],[支払番号]]<>"",EOMONTH(LoanStartDate,ROW(PaymentSchedule[[#This Row],[支払番号]])-ROW(PaymentSchedule[[#Headers],[支払番号]])-2)+DAY(LoanStartDate),"") ->  | D106: =IF(PaymentSchedule[[#This Row],[支払番号]]<>"",IF(ROW()-ROW(PaymentSchedule[[#Headers],[期首残高]])=1,借入金額,INDEX(PaymentSchedule[期末残高],ROW()-ROW(PaymentSchedule[[#Headers],[期首残高]])-1)),"") ->  | E106: =IF(PaymentSchedule[[#This Row],[支払番号]]<>"",ScheduledPayment,"") ->  | F106: =IF(PaymentSchedule[[#This Row],[支払番号]]<>"",IF(PaymentSchedule[[#This Row],[返済予定]]+ExtraPayments<PaymentSchedule[[#This Row],[期首残高]],ExtraPayments,IF(PaymentSchedule[[#This Row],[期首残高]]-PaymentSchedule[[#This Row],[返済予定]]>0,PaymentSchedule[[#This Row],[期首残高]]-PaymentSchedule[[#This Row],[返済予定]],0)),"") ->  | G106: =IF(PaymentSchedule[[#This Row],[支払番号]]<>"",IF(PaymentSchedule[[#This Row],[返済予定]]+PaymentSchedule[[#This Row],[繰上げ返済額]]<=PaymentSchedule[[#This Row],[期首残高]],PaymentSchedule[[#This Row],[返済予定]]+PaymentSchedule[[#This Row],[繰上げ返済額]],PaymentSchedule[[#This Row],[期首残高]]),"") ->  | H106: =IF(PaymentSchedule[[#This Row],[支払番号]]<>"",PaymentSchedule[[#This Row],[返済総額]]-PaymentSchedule[[#This Row],[利息]],"") ->  | I106: =IF(PaymentSchedule[[#This Row],[支払番号]]<>"",PaymentSchedule[[#This Row],[期首残高]]*(InterestRate/PaymentsPerYear),"") ->  | J106: =IF(PaymentSchedule[[#This Row],[支払番号]]<>"",IF(PaymentSchedule[[#This Row],[返済予定]]+PaymentSchedule[[#This Row],[繰上げ返済額]]<=PaymentSchedule[[#This Row],[期首残高]],PaymentSchedule[[#This Row],[期首残高]]-PaymentSchedule[[#This Row],[元金]],0),"") ->  | K106: =IF(PaymentSchedule[[#This Row],[支払番号]]<>"",SUM(INDEX(PaymentSchedule[利息],1,1):PaymentSchedule[[#This Row],[利息]]),"") -> 
B107: =IF(LoanIsGood,IF(ROW()-ROW(PaymentSchedule[[#Headers],[支払番号]])>支払予定回数,"",ROW()-ROW(PaymentSchedule[[#Headers],[支払番号]])),"") ->  | C107: =IF(PaymentSchedule[[#This Row],[支払番号]]<>"",EOMONTH(LoanStartDate,ROW(PaymentSchedule[[#This Row],[支払番号]])-ROW(PaymentSchedule[[#Headers],[支払番号]])-2)+DAY(LoanStartDate),"") ->  | D107: =IF(PaymentSchedule[[#This Row],[支払番号]]<>"",IF(ROW()-ROW(PaymentSchedule[[#Headers],[期首残高]])=1,借入金額,INDEX(PaymentSchedule[期末残高],ROW()-ROW(PaymentSchedule[[#Headers],[期首残高]])-1)),"") ->  | E107: =IF(PaymentSchedule[[#This Row],[支払番号]]<>"",ScheduledPayment,"") ->  | F107: =IF(PaymentSchedule[[#This Row],[支払番号]]<>"",IF(PaymentSchedule[[#This Row],[返済予定]]+ExtraPayments<PaymentSchedule[[#This Row],[期首残高]],ExtraPayments,IF(PaymentSchedule[[#This Row],[期首残高]]-PaymentSchedule[[#This Row],[返済予定]]>0,PaymentSchedule[[#This Row],[期首残高]]-PaymentSchedule[[#This Row],[返済予定]],0)),"") ->  | G107: =IF(PaymentSchedule[[#This Row],[支払番号]]<>"",IF(PaymentSchedule[[#This Row],[返済予定]]+PaymentSchedule[[#This Row],[繰上げ返済額]]<=PaymentSchedule[[#This Row],[期首残高]],PaymentSchedule[[#This Row],[返済予定]]+PaymentSchedule[[#This Row],[繰上げ返済額]],PaymentSchedule[[#This Row],[期首残高]]),"") ->  | H107: =IF(PaymentSchedule[[#This Row],[支払番号]]<>"",PaymentSchedule[[#This Row],[返済総額]]-PaymentSchedule[[#This Row],[利息]],"") ->  | I107: =IF(PaymentSchedule[[#This Row],[支払番号]]<>"",PaymentSchedule[[#This Row],[期首残高]]*(InterestRate/PaymentsPerYear),"") ->  | J107: =IF(PaymentSchedule[[#This Row],[支払番号]]<>"",IF(PaymentSchedule[[#This Row],[返済予定]]+PaymentSchedule[[#This Row],[繰上げ返済額]]<=PaymentSchedule[[#This Row],[期首残高]],PaymentSchedule[[#This Row],[期首残高]]-PaymentSchedule[[#This Row],[元金]],0),"") ->  | K107: =IF(PaymentSchedule[[#This Row],[支払番号]]<>"",SUM(INDEX(PaymentSchedule[利息],1,1):PaymentSchedule[[#This Row],[利息]]),"") -> 
B108: =IF(LoanIsGood,IF(ROW()-ROW(PaymentSchedule[[#Headers],[支払番号]])>支払予定回数,"",ROW()-ROW(PaymentSchedule[[#Headers],[支払番号]])),"") ->  | C108: =IF(PaymentSchedule[[#This Row],[支払番号]]<>"",EOMONTH(LoanStartDate,ROW(PaymentSchedule[[#This Row],[支払番号]])-ROW(PaymentSchedule[[#Headers],[支払番号]])-2)+DAY(LoanStartDate),"") ->  | D108: =IF(PaymentSchedule[[#This Row],[支払番号]]<>"",IF(ROW()-ROW(PaymentSchedule[[#Headers],[期首残高]])=1,借入金額,INDEX(PaymentSchedule[期末残高],ROW()-ROW(PaymentSchedule[[#Headers],[期首残高]])-1)),"") ->  | E108: =IF(PaymentSchedule[[#This Row],[支払番号]]<>"",ScheduledPayment,"") ->  | F108: =IF(PaymentSchedule[[#This Row],[支払番号]]<>"",IF(PaymentSchedule[[#This Row],[返済予定]]+ExtraPayments<PaymentSchedule[[#This Row],[期首残高]],ExtraPayments,IF(PaymentSchedule[[#This Row],[期首残高]]-PaymentSchedule[[#This Row],[返済予定]]>0,PaymentSchedule[[#This Row],[期首残高]]-PaymentSchedule[[#This Row],[返済予定]],0)),"") ->  | G108: =IF(PaymentSchedule[[#This Row],[支払番号]]<>"",IF(PaymentSchedule[[#This Row],[返済予定]]+PaymentSchedule[[#This Row],[繰上げ返済額]]<=PaymentSchedule[[#This Row],[期首残高]],PaymentSchedule[[#This Row],[返済予定]]+PaymentSchedule[[#This Row],[繰上げ返済額]],PaymentSchedule[[#This Row],[期首残高]]),"") ->  | H108: =IF(PaymentSchedule[[#This Row],[支払番号]]<>"",PaymentSchedule[[#This Row],[返済総額]]-PaymentSchedule[[#This Row],[利息]],"") ->  | I108: =IF(PaymentSchedule[[#This Row],[支払番号]]<>"",PaymentSchedule[[#This Row],[期首残高]]*(InterestRate/PaymentsPerYear),"") ->  | J108: =IF(PaymentSchedule[[#This Row],[支払番号]]<>"",IF(PaymentSchedule[[#This Row],[返済予定]]+PaymentSchedule[[#This Row],[繰上げ返済額]]<=PaymentSchedule[[#This Row],[期首残高]],PaymentSchedule[[#This Row],[期首残高]]-PaymentSchedule[[#This Row],[元金]],0),"") ->  | K108: =IF(PaymentSchedule[[#This Row],[支払番号]]<>"",SUM(INDEX(PaymentSchedule[利息],1,1):PaymentSchedule[[#This Row],[利息]]),"") -> 
B109: =IF(LoanIsGood,IF(ROW()-ROW(PaymentSchedule[[#Headers],[支払番号]])>支払予定回数,"",ROW()-ROW(PaymentSchedule[[#Headers],[支払番号]])),"") ->  | C109: =IF(PaymentSchedule[[#This Row],[支払番号]]<>"",EOMONTH(LoanStartDate,ROW(PaymentSchedule[[#This Row],[支払番号]])-ROW(PaymentSchedule[[#Headers],[支払番号]])-2)+DAY(LoanStartDate),"") ->  | D109: =IF(PaymentSchedule[[#This Row],[支払番号]]<>"",IF(ROW()-ROW(PaymentSchedule[[#Headers],[期首残高]])=1,借入金額,INDEX(PaymentSchedule[期末残高],ROW()-ROW(PaymentSchedule[[#Headers],[期首残高]])-1)),"") ->  | E109: =IF(PaymentSchedule[[#This Row],[支払番号]]<>"",ScheduledPayment,"") ->  | F109: =IF(PaymentSchedule[[#This Row],[支払番号]]<>"",IF(PaymentSchedule[[#This Row],[返済予定]]+ExtraPayments<PaymentSchedule[[#This Row],[期首残高]],ExtraPayments,IF(PaymentSchedule[[#This Row],[期首残高]]-PaymentSchedule[[#This Row],[返済予定]]>0,PaymentSchedule[[#This Row],[期首残高]]-PaymentSchedule[[#This Row],[返済予定]],0)),"") ->  | G109: =IF(PaymentSchedule[[#This Row],[支払番号]]<>"",IF(PaymentSchedule[[#This Row],[返済予定]]+PaymentSchedule[[#This Row],[繰上げ返済額]]<=PaymentSchedule[[#This Row],[期首残高]],PaymentSchedule[[#This Row],[返済予定]]+PaymentSchedule[[#This Row],[繰上げ返済額]],PaymentSchedule[[#This Row],[期首残高]]),"") ->  | H109: =IF(PaymentSchedule[[#This Row],[支払番号]]<>"",PaymentSchedule[[#This Row],[返済総額]]-PaymentSchedule[[#This Row],[利息]],"") ->  | I109: =IF(PaymentSchedule[[#This Row],[支払番号]]<>"",PaymentSchedule[[#This Row],[期首残高]]*(InterestRate/PaymentsPerYear),"") ->  | J109: =IF(PaymentSchedule[[#This Row],[支払番号]]<>"",IF(PaymentSchedule[[#This Row],[返済予定]]+PaymentSchedule[[#This Row],[繰上げ返済額]]<=PaymentSchedule[[#This Row],[期首残高]],PaymentSchedule[[#This Row],[期首残高]]-PaymentSchedule[[#This Row],[元金]],0),"") ->  | K109: =IF(PaymentSchedule[[#This Row],[支払番号]]<>"",SUM(INDEX(PaymentSchedule[利息],1,1):PaymentSchedule[[#This Row],[利息]]),"") -> 
B110: =IF(LoanIsGood,IF(ROW()-ROW(PaymentSchedule[[#Headers],[支払番号]])>支払予定回数,"",ROW()-ROW(PaymentSchedule[[#Headers],[支払番号]])),"") ->  | C110: =IF(PaymentSchedule[[#This Row],[支払番号]]<>"",EOMONTH(LoanStartDate,ROW(PaymentSchedule[[#This Row],[支払番号]])-ROW(PaymentSchedule[[#Headers],[支払番号]])-2)+DAY(LoanStartDate),"") ->  | D110: =IF(PaymentSchedule[[#This Row],[支払番号]]<>"",IF(ROW()-ROW(PaymentSchedule[[#Headers],[期首残高]])=1,借入金額,INDEX(PaymentSchedule[期末残高],ROW()-ROW(PaymentSchedule[[#Headers],[期首残高]])-1)),"") ->  | E110: =IF(PaymentSchedule[[#This Row],[支払番号]]<>"",ScheduledPayment,"") ->  | F110: =IF(PaymentSchedule[[#This Row],[支払番号]]<>"",IF(PaymentSchedule[[#This Row],[返済予定]]+ExtraPayments<PaymentSchedule[[#This Row],[期首残高]],ExtraPayments,IF(PaymentSchedule[[#This Row],[期首残高]]-PaymentSchedule[[#This Row],[返済予定]]>0,PaymentSchedule[[#This Row],[期首残高]]-PaymentSchedule[[#This Row],[返済予定]],0)),"") ->  | G110: =IF(PaymentSchedule[[#This Row],[支払番号]]<>"",IF(PaymentSchedule[[#This Row],[返済予定]]+PaymentSchedule[[#This Row],[繰上げ返済額]]<=PaymentSchedule[[#This Row],[期首残高]],PaymentSchedule[[#This Row],[返済予定]]+PaymentSchedule[[#This Row],[繰上げ返済額]],PaymentSchedule[[#This Row],[期首残高]]),"") ->  | H110: =IF(PaymentSchedule[[#This Row],[支払番号]]<>"",PaymentSchedule[[#This Row],[返済総額]]-PaymentSchedule[[#This Row],[利息]],"") ->  | I110: =IF(PaymentSchedule[[#This Row],[支払番号]]<>"",PaymentSchedule[[#This Row],[期首残高]]*(InterestRate/PaymentsPerYear),"") ->  | J110: =IF(PaymentSchedule[[#This Row],[支払番号]]<>"",IF(PaymentSchedule[[#This Row],[返済予定]]+PaymentSchedule[[#This Row],[繰上げ返済額]]<=PaymentSchedule[[#This Row],[期首残高]],PaymentSchedule[[#This Row],[期首残高]]-PaymentSchedule[[#This Row],[元金]],0),"") ->  | K110: =IF(PaymentSchedule[[#This Row],[支払番号]]<>"",SUM(INDEX(PaymentSchedule[利息],1,1):PaymentSchedule[[#This Row],[利息]]),"") -> 
B111: =IF(LoanIsGood,IF(ROW()-ROW(PaymentSchedule[[#Headers],[支払番号]])>支払予定回数,"",ROW()-ROW(PaymentSchedule[[#Headers],[支払番号]])),"") ->  | C111: =IF(PaymentSchedule[[#This Row],[支払番号]]<>"",EOMONTH(LoanStartDate,ROW(PaymentSchedule[[#This Row],[支払番号]])-ROW(PaymentSchedule[[#Headers],[支払番号]])-2)+DAY(LoanStartDate),"") ->  | D111: =IF(PaymentSchedule[[#This Row],[支払番号]]<>"",IF(ROW()-ROW(PaymentSchedule[[#Headers],[期首残高]])=1,借入金額,INDEX(PaymentSchedule[期末残高],ROW()-ROW(PaymentSchedule[[#Headers],[期首残高]])-1)),"") ->  | E111: =IF(PaymentSchedule[[#This Row],[支払番号]]<>"",ScheduledPayment,"") ->  | F111: =IF(PaymentSchedule[[#This Row],[支払番号]]<>"",IF(PaymentSchedule[[#This Row],[返済予定]]+ExtraPayments<PaymentSchedule[[#This Row],[期首残高]],ExtraPayments,IF(PaymentSchedule[[#This Row],[期首残高]]-PaymentSchedule[[#This Row],[返済予定]]>0,PaymentSchedule[[#This Row],[期首残高]]-PaymentSchedule[[#This Row],[返済予定]],0)),"") ->  | G111: =IF(PaymentSchedule[[#This Row],[支払番号]]<>"",IF(PaymentSchedule[[#This Row],[返済予定]]+PaymentSchedule[[#This Row],[繰上げ返済額]]<=PaymentSchedule[[#This Row],[期首残高]],PaymentSchedule[[#This Row],[返済予定]]+PaymentSchedule[[#This Row],[繰上げ返済額]],PaymentSchedule[[#This Row],[期首残高]]),"") ->  | H111: =IF(PaymentSchedule[[#This Row],[支払番号]]<>"",PaymentSchedule[[#This Row],[返済総額]]-PaymentSchedule[[#This Row],[利息]],"") ->  | I111: =IF(PaymentSchedule[[#This Row],[支払番号]]<>"",PaymentSchedule[[#This Row],[期首残高]]*(InterestRate/PaymentsPerYear),"") ->  | J111: =IF(PaymentSchedule[[#This Row],[支払番号]]<>"",IF(PaymentSchedule[[#This Row],[返済予定]]+PaymentSchedule[[#This Row],[繰上げ返済額]]<=PaymentSchedule[[#This Row],[期首残高]],PaymentSchedule[[#This Row],[期首残高]]-PaymentSchedule[[#This Row],[元金]],0),"") ->  | K111: =IF(PaymentSchedule[[#This Row],[支払番号]]<>"",SUM(INDEX(PaymentSchedule[利息],1,1):PaymentSchedule[[#This Row],[利息]]),"") -> 
B112: =IF(LoanIsGood,IF(ROW()-ROW(PaymentSchedule[[#Headers],[支払番号]])>支払予定回数,"",ROW()-ROW(PaymentSchedule[[#Headers],[支払番号]])),"") ->  | C112: =IF(PaymentSchedule[[#This Row],[支払番号]]<>"",EOMONTH(LoanStartDate,ROW(PaymentSchedule[[#This Row],[支払番号]])-ROW(PaymentSchedule[[#Headers],[支払番号]])-2)+DAY(LoanStartDate),"") ->  | D112: =IF(PaymentSchedule[[#This Row],[支払番号]]<>"",IF(ROW()-ROW(PaymentSchedule[[#Headers],[期首残高]])=1,借入金額,INDEX(PaymentSchedule[期末残高],ROW()-ROW(PaymentSchedule[[#Headers],[期首残高]])-1)),"") ->  | E112: =IF(PaymentSchedule[[#This Row],[支払番号]]<>"",ScheduledPayment,"") ->  | F112: =IF(PaymentSchedule[[#This Row],[支払番号]]<>"",IF(PaymentSchedule[[#This Row],[返済予定]]+ExtraPayments<PaymentSchedule[[#This Row],[期首残高]],ExtraPayments,IF(PaymentSchedule[[#This Row],[期首残高]]-PaymentSchedule[[#This Row],[返済予定]]>0,PaymentSchedule[[#This Row],[期首残高]]-PaymentSchedule[[#This Row],[返済予定]],0)),"") ->  | G112: =IF(PaymentSchedule[[#This Row],[支払番号]]<>"",IF(PaymentSchedule[[#This Row],[返済予定]]+PaymentSchedule[[#This Row],[繰上げ返済額]]<=PaymentSchedule[[#This Row],[期首残高]],PaymentSchedule[[#This Row],[返済予定]]+PaymentSchedule[[#This Row],[繰上げ返済額]],PaymentSchedule[[#This Row],[期首残高]]),"") ->  | H112: =IF(PaymentSchedule[[#This Row],[支払番号]]<>"",PaymentSchedule[[#This Row],[返済総額]]-PaymentSchedule[[#This Row],[利息]],"") ->  | I112: =IF(PaymentSchedule[[#This Row],[支払番号]]<>"",PaymentSchedule[[#This Row],[期首残高]]*(InterestRate/PaymentsPerYear),"") ->  | J112: =IF(PaymentSchedule[[#This Row],[支払番号]]<>"",IF(PaymentSchedule[[#This Row],[返済予定]]+PaymentSchedule[[#This Row],[繰上げ返済額]]<=PaymentSchedule[[#This Row],[期首残高]],PaymentSchedule[[#This Row],[期首残高]]-PaymentSchedule[[#This Row],[元金]],0),"") ->  | K112: =IF(PaymentSchedule[[#This Row],[支払番号]]<>"",SUM(INDEX(PaymentSchedule[利息],1,1):PaymentSchedule[[#This Row],[利息]]),"") -> 
B113: =IF(LoanIsGood,IF(ROW()-ROW(PaymentSchedule[[#Headers],[支払番号]])>支払予定回数,"",ROW()-ROW(PaymentSchedule[[#Headers],[支払番号]])),"") ->  | C113: =IF(PaymentSchedule[[#This Row],[支払番号]]<>"",EOMONTH(LoanStartDate,ROW(PaymentSchedule[[#This Row],[支払番号]])-ROW(PaymentSchedule[[#Headers],[支払番号]])-2)+DAY(LoanStartDate),"") ->  | D113: =IF(PaymentSchedule[[#This Row],[支払番号]]<>"",IF(ROW()-ROW(PaymentSchedule[[#Headers],[期首残高]])=1,借入金額,INDEX(PaymentSchedule[期末残高],ROW()-ROW(PaymentSchedule[[#Headers],[期首残高]])-1)),"") ->  | E113: =IF(PaymentSchedule[[#This Row],[支払番号]]<>"",ScheduledPayment,"") ->  | F113: =IF(PaymentSchedule[[#This Row],[支払番号]]<>"",IF(PaymentSchedule[[#This Row],[返済予定]]+ExtraPayments<PaymentSchedule[[#This Row],[期首残高]],ExtraPayments,IF(PaymentSchedule[[#This Row],[期首残高]]-PaymentSchedule[[#This Row],[返済予定]]>0,PaymentSchedule[[#This Row],[期首残高]]-PaymentSchedule[[#This Row],[返済予定]],0)),"") ->  | G113: =IF(PaymentSchedule[[#This Row],[支払番号]]<>"",IF(PaymentSchedule[[#This Row],[返済予定]]+PaymentSchedule[[#This Row],[繰上げ返済額]]<=PaymentSchedule[[#This Row],[期首残高]],PaymentSchedule[[#This Row],[返済予定]]+PaymentSchedule[[#This Row],[繰上げ返済額]],PaymentSchedule[[#This Row],[期首残高]]),"") ->  | H113: =IF(PaymentSchedule[[#This Row],[支払番号]]<>"",PaymentSchedule[[#This Row],[返済総額]]-PaymentSchedule[[#This Row],[利息]],"") ->  | I113: =IF(PaymentSchedule[[#This Row],[支払番号]]<>"",PaymentSchedule[[#This Row],[期首残高]]*(InterestRate/PaymentsPerYear),"") ->  | J113: =IF(PaymentSchedule[[#This Row],[支払番号]]<>"",IF(PaymentSchedule[[#This Row],[返済予定]]+PaymentSchedule[[#This Row],[繰上げ返済額]]<=PaymentSchedule[[#This Row],[期首残高]],PaymentSchedule[[#This Row],[期首残高]]-PaymentSchedule[[#This Row],[元金]],0),"") ->  | K113: =IF(PaymentSchedule[[#This Row],[支払番号]]<>"",SUM(INDEX(PaymentSchedule[利息],1,1):PaymentSchedule[[#This Row],[利息]]),"") -> 
B114: =IF(LoanIsGood,IF(ROW()-ROW(PaymentSchedule[[#Headers],[支払番号]])>支払予定回数,"",ROW()-ROW(PaymentSchedule[[#Headers],[支払番号]])),"") ->  | C114: =IF(PaymentSchedule[[#This Row],[支払番号]]<>"",EOMONTH(LoanStartDate,ROW(PaymentSchedule[[#This Row],[支払番号]])-ROW(PaymentSchedule[[#Headers],[支払番号]])-2)+DAY(LoanStartDate),"") ->  | D114: =IF(PaymentSchedule[[#This Row],[支払番号]]<>"",IF(ROW()-ROW(PaymentSchedule[[#Headers],[期首残高]])=1,借入金額,INDEX(PaymentSchedule[期末残高],ROW()-ROW(PaymentSchedule[[#Headers],[期首残高]])-1)),"") ->  | E114: =IF(PaymentSchedule[[#This Row],[支払番号]]<>"",ScheduledPayment,"") ->  | F114: =IF(PaymentSchedule[[#This Row],[支払番号]]<>"",IF(PaymentSchedule[[#This Row],[返済予定]]+ExtraPayments<PaymentSchedule[[#This Row],[期首残高]],ExtraPayments,IF(PaymentSchedule[[#This Row],[期首残高]]-PaymentSchedule[[#This Row],[返済予定]]>0,PaymentSchedule[[#This Row],[期首残高]]-PaymentSchedule[[#This Row],[返済予定]],0)),"") ->  | G114: =IF(PaymentSchedule[[#This Row],[支払番号]]<>"",IF(PaymentSchedule[[#This Row],[返済予定]]+PaymentSchedule[[#This Row],[繰上げ返済額]]<=PaymentSchedule[[#This Row],[期首残高]],PaymentSchedule[[#This Row],[返済予定]]+PaymentSchedule[[#This Row],[繰上げ返済額]],PaymentSchedule[[#This Row],[期首残高]]),"") ->  | H114: =IF(PaymentSchedule[[#This Row],[支払番号]]<>"",PaymentSchedule[[#This Row],[返済総額]]-PaymentSchedule[[#This Row],[利息]],"") ->  | I114: =IF(PaymentSchedule[[#This Row],[支払番号]]<>"",PaymentSchedule[[#This Row],[期首残高]]*(InterestRate/PaymentsPerYear),"") ->  | J114: =IF(PaymentSchedule[[#This Row],[支払番号]]<>"",IF(PaymentSchedule[[#This Row],[返済予定]]+PaymentSchedule[[#This Row],[繰上げ返済額]]<=PaymentSchedule[[#This Row],[期首残高]],PaymentSchedule[[#This Row],[期首残高]]-PaymentSchedule[[#This Row],[元金]],0),"") ->  | K114: =IF(PaymentSchedule[[#This Row],[支払番号]]<>"",SUM(INDEX(PaymentSchedule[利息],1,1):PaymentSchedule[[#This Row],[利息]]),"") -> 
B115: =IF(LoanIsGood,IF(ROW()-ROW(PaymentSchedule[[#Headers],[支払番号]])>支払予定回数,"",ROW()-ROW(PaymentSchedule[[#Headers],[支払番号]])),"") ->  | C115: =IF(PaymentSchedule[[#This Row],[支払番号]]<>"",EOMONTH(LoanStartDate,ROW(PaymentSchedule[[#This Row],[支払番号]])-ROW(PaymentSchedule[[#Headers],[支払番号]])-2)+DAY(LoanStartDate),"") ->  | D115: =IF(PaymentSchedule[[#This Row],[支払番号]]<>"",IF(ROW()-ROW(PaymentSchedule[[#Headers],[期首残高]])=1,借入金額,INDEX(PaymentSchedule[期末残高],ROW()-ROW(PaymentSchedule[[#Headers],[期首残高]])-1)),"") ->  | E115: =IF(PaymentSchedule[[#This Row],[支払番号]]<>"",ScheduledPayment,"") ->  | F115: =IF(PaymentSchedule[[#This Row],[支払番号]]<>"",IF(PaymentSchedule[[#This Row],[返済予定]]+ExtraPayments<PaymentSchedule[[#This Row],[期首残高]],ExtraPayments,IF(PaymentSchedule[[#This Row],[期首残高]]-PaymentSchedule[[#This Row],[返済予定]]>0,PaymentSchedule[[#This Row],[期首残高]]-PaymentSchedule[[#This Row],[返済予定]],0)),"") ->  | G115: =IF(PaymentSchedule[[#This Row],[支払番号]]<>"",IF(PaymentSchedule[[#This Row],[返済予定]]+PaymentSchedule[[#This Row],[繰上げ返済額]]<=PaymentSchedule[[#This Row],[期首残高]],PaymentSchedule[[#This Row],[返済予定]]+PaymentSchedule[[#This Row],[繰上げ返済額]],PaymentSchedule[[#This Row],[期首残高]]),"") ->  | H115: =IF(PaymentSchedule[[#This Row],[支払番号]]<>"",PaymentSchedule[[#This Row],[返済総額]]-PaymentSchedule[[#This Row],[利息]],"") ->  | I115: =IF(PaymentSchedule[[#This Row],[支払番号]]<>"",PaymentSchedule[[#This Row],[期首残高]]*(InterestRate/PaymentsPerYear),"") ->  | J115: =IF(PaymentSchedule[[#This Row],[支払番号]]<>"",IF(PaymentSchedule[[#This Row],[返済予定]]+PaymentSchedule[[#This Row],[繰上げ返済額]]<=PaymentSchedule[[#This Row],[期首残高]],PaymentSchedule[[#This Row],[期首残高]]-PaymentSchedule[[#This Row],[元金]],0),"") ->  | K115: =IF(PaymentSchedule[[#This Row],[支払番号]]<>"",SUM(INDEX(PaymentSchedule[利息],1,1):PaymentSchedule[[#This Row],[利息]]),"") -> 
B116: =IF(LoanIsGood,IF(ROW()-ROW(PaymentSchedule[[#Headers],[支払番号]])>支払予定回数,"",ROW()-ROW(PaymentSchedule[[#Headers],[支払番号]])),"") ->  | C116: =IF(PaymentSchedule[[#This Row],[支払番号]]<>"",EOMONTH(LoanStartDate,ROW(PaymentSchedule[[#This Row],[支払番号]])-ROW(PaymentSchedule[[#Headers],[支払番号]])-2)+DAY(LoanStartDate),"") ->  | D116: =IF(PaymentSchedule[[#This Row],[支払番号]]<>"",IF(ROW()-ROW(PaymentSchedule[[#Headers],[期首残高]])=1,借入金額,INDEX(PaymentSchedule[期末残高],ROW()-ROW(PaymentSchedule[[#Headers],[期首残高]])-1)),"") ->  | E116: =IF(PaymentSchedule[[#This Row],[支払番号]]<>"",ScheduledPayment,"") ->  | F116: =IF(PaymentSchedule[[#This Row],[支払番号]]<>"",IF(PaymentSchedule[[#This Row],[返済予定]]+ExtraPayments<PaymentSchedule[[#This Row],[期首残高]],ExtraPayments,IF(PaymentSchedule[[#This Row],[期首残高]]-PaymentSchedule[[#This Row],[返済予定]]>0,PaymentSchedule[[#This Row],[期首残高]]-PaymentSchedule[[#This Row],[返済予定]],0)),"") ->  | G116: =IF(PaymentSchedule[[#This Row],[支払番号]]<>"",IF(PaymentSchedule[[#This Row],[返済予定]]+PaymentSchedule[[#This Row],[繰上げ返済額]]<=PaymentSchedule[[#This Row],[期首残高]],PaymentSchedule[[#This Row],[返済予定]]+PaymentSchedule[[#This Row],[繰上げ返済額]],PaymentSchedule[[#This Row],[期首残高]]),"") ->  | H116: =IF(PaymentSchedule[[#This Row],[支払番号]]<>"",PaymentSchedule[[#This Row],[返済総額]]-PaymentSchedule[[#This Row],[利息]],"") ->  | I116: =IF(PaymentSchedule[[#This Row],[支払番号]]<>"",PaymentSchedule[[#This Row],[期首残高]]*(InterestRate/PaymentsPerYear),"") ->  | J116: =IF(PaymentSchedule[[#This Row],[支払番号]]<>"",IF(PaymentSchedule[[#This Row],[返済予定]]+PaymentSchedule[[#This Row],[繰上げ返済額]]<=PaymentSchedule[[#This Row],[期首残高]],PaymentSchedule[[#This Row],[期首残高]]-PaymentSchedule[[#This Row],[元金]],0),"") ->  | K116: =IF(PaymentSchedule[[#This Row],[支払番号]]<>"",SUM(INDEX(PaymentSchedule[利息],1,1):PaymentSchedule[[#This Row],[利息]]),"") -> 
B117: =IF(LoanIsGood,IF(ROW()-ROW(PaymentSchedule[[#Headers],[支払番号]])>支払予定回数,"",ROW()-ROW(PaymentSchedule[[#Headers],[支払番号]])),"") ->  | C117: =IF(PaymentSchedule[[#This Row],[支払番号]]<>"",EOMONTH(LoanStartDate,ROW(PaymentSchedule[[#This Row],[支払番号]])-ROW(PaymentSchedule[[#Headers],[支払番号]])-2)+DAY(LoanStartDate),"") ->  | D117: =IF(PaymentSchedule[[#This Row],[支払番号]]<>"",IF(ROW()-ROW(PaymentSchedule[[#Headers],[期首残高]])=1,借入金額,INDEX(PaymentSchedule[期末残高],ROW()-ROW(PaymentSchedule[[#Headers],[期首残高]])-1)),"") ->  | E117: =IF(PaymentSchedule[[#This Row],[支払番号]]<>"",ScheduledPayment,"") ->  | F117: =IF(PaymentSchedule[[#This Row],[支払番号]]<>"",IF(PaymentSchedule[[#This Row],[返済予定]]+ExtraPayments<PaymentSchedule[[#This Row],[期首残高]],ExtraPayments,IF(PaymentSchedule[[#This Row],[期首残高]]-PaymentSchedule[[#This Row],[返済予定]]>0,PaymentSchedule[[#This Row],[期首残高]]-PaymentSchedule[[#This Row],[返済予定]],0)),"") ->  | G117: =IF(PaymentSchedule[[#This Row],[支払番号]]<>"",IF(PaymentSchedule[[#This Row],[返済予定]]+PaymentSchedule[[#This Row],[繰上げ返済額]]<=PaymentSchedule[[#This Row],[期首残高]],PaymentSchedule[[#This Row],[返済予定]]+PaymentSchedule[[#This Row],[繰上げ返済額]],PaymentSchedule[[#This Row],[期首残高]]),"") ->  | H117: =IF(PaymentSchedule[[#This Row],[支払番号]]<>"",PaymentSchedule[[#This Row],[返済総額]]-PaymentSchedule[[#This Row],[利息]],"") ->  | I117: =IF(PaymentSchedule[[#This Row],[支払番号]]<>"",PaymentSchedule[[#This Row],[期首残高]]*(InterestRate/PaymentsPerYear),"") ->  | J117: =IF(PaymentSchedule[[#This Row],[支払番号]]<>"",IF(PaymentSchedule[[#This Row],[返済予定]]+PaymentSchedule[[#This Row],[繰上げ返済額]]<=PaymentSchedule[[#This Row],[期首残高]],PaymentSchedule[[#This Row],[期首残高]]-PaymentSchedule[[#This Row],[元金]],0),"") ->  | K117: =IF(PaymentSchedule[[#This Row],[支払番号]]<>"",SUM(INDEX(PaymentSchedule[利息],1,1):PaymentSchedule[[#This Row],[利息]]),"") -> 
B118: =IF(LoanIsGood,IF(ROW()-ROW(PaymentSchedule[[#Headers],[支払番号]])>支払予定回数,"",ROW()-ROW(PaymentSchedule[[#Headers],[支払番号]])),"") ->  | C118: =IF(PaymentSchedule[[#This Row],[支払番号]]<>"",EOMONTH(LoanStartDate,ROW(PaymentSchedule[[#This Row],[支払番号]])-ROW(PaymentSchedule[[#Headers],[支払番号]])-2)+DAY(LoanStartDate),"") ->  | D118: =IF(PaymentSchedule[[#This Row],[支払番号]]<>"",IF(ROW()-ROW(PaymentSchedule[[#Headers],[期首残高]])=1,借入金額,INDEX(PaymentSchedule[期末残高],ROW()-ROW(PaymentSchedule[[#Headers],[期首残高]])-1)),"") ->  | E118: =IF(PaymentSchedule[[#This Row],[支払番号]]<>"",ScheduledPayment,"") ->  | F118: =IF(PaymentSchedule[[#This Row],[支払番号]]<>"",IF(PaymentSchedule[[#This Row],[返済予定]]+ExtraPayments<PaymentSchedule[[#This Row],[期首残高]],ExtraPayments,IF(PaymentSchedule[[#This Row],[期首残高]]-PaymentSchedule[[#This Row],[返済予定]]>0,PaymentSchedule[[#This Row],[期首残高]]-PaymentSchedule[[#This Row],[返済予定]],0)),"") ->  | G118: =IF(PaymentSchedule[[#This Row],[支払番号]]<>"",IF(PaymentSchedule[[#This Row],[返済予定]]+PaymentSchedule[[#This Row],[繰上げ返済額]]<=PaymentSchedule[[#This Row],[期首残高]],PaymentSchedule[[#This Row],[返済予定]]+PaymentSchedule[[#This Row],[繰上げ返済額]],PaymentSchedule[[#This Row],[期首残高]]),"") ->  | H118: =IF(PaymentSchedule[[#This Row],[支払番号]]<>"",PaymentSchedule[[#This Row],[返済総額]]-PaymentSchedule[[#This Row],[利息]],"") ->  | I118: =IF(PaymentSchedule[[#This Row],[支払番号]]<>"",PaymentSchedule[[#This Row],[期首残高]]*(InterestRate/PaymentsPerYear),"") ->  | J118: =IF(PaymentSchedule[[#This Row],[支払番号]]<>"",IF(PaymentSchedule[[#This Row],[返済予定]]+PaymentSchedule[[#This Row],[繰上げ返済額]]<=PaymentSchedule[[#This Row],[期首残高]],PaymentSchedule[[#This Row],[期首残高]]-PaymentSchedule[[#This Row],[元金]],0),"") ->  | K118: =IF(PaymentSchedule[[#This Row],[支払番号]]<>"",SUM(INDEX(PaymentSchedule[利息],1,1):PaymentSchedule[[#This Row],[利息]]),"") -> 
B119: =IF(LoanIsGood,IF(ROW()-ROW(PaymentSchedule[[#Headers],[支払番号]])>支払予定回数,"",ROW()-ROW(PaymentSchedule[[#Headers],[支払番号]])),"") ->  | C119: =IF(PaymentSchedule[[#This Row],[支払番号]]<>"",EOMONTH(LoanStartDate,ROW(PaymentSchedule[[#This Row],[支払番号]])-ROW(PaymentSchedule[[#Headers],[支払番号]])-2)+DAY(LoanStartDate),"") ->  | D119: =IF(PaymentSchedule[[#This Row],[支払番号]]<>"",IF(ROW()-ROW(PaymentSchedule[[#Headers],[期首残高]])=1,借入金額,INDEX(PaymentSchedule[期末残高],ROW()-ROW(PaymentSchedule[[#Headers],[期首残高]])-1)),"") ->  | E119: =IF(PaymentSchedule[[#This Row],[支払番号]]<>"",ScheduledPayment,"") ->  | F119: =IF(PaymentSchedule[[#This Row],[支払番号]]<>"",IF(PaymentSchedule[[#This Row],[返済予定]]+ExtraPayments<PaymentSchedule[[#This Row],[期首残高]],ExtraPayments,IF(PaymentSchedule[[#This Row],[期首残高]]-PaymentSchedule[[#This Row],[返済予定]]>0,PaymentSchedule[[#This Row],[期首残高]]-PaymentSchedule[[#This Row],[返済予定]],0)),"") ->  | G119: =IF(PaymentSchedule[[#This Row],[支払番号]]<>"",IF(PaymentSchedule[[#This Row],[返済予定]]+PaymentSchedule[[#This Row],[繰上げ返済額]]<=PaymentSchedule[[#This Row],[期首残高]],PaymentSchedule[[#This Row],[返済予定]]+PaymentSchedule[[#This Row],[繰上げ返済額]],PaymentSchedule[[#This Row],[期首残高]]),"") ->  | H119: =IF(PaymentSchedule[[#This Row],[支払番号]]<>"",PaymentSchedule[[#This Row],[返済総額]]-PaymentSchedule[[#This Row],[利息]],"") ->  | I119: =IF(PaymentSchedule[[#This Row],[支払番号]]<>"",PaymentSchedule[[#This Row],[期首残高]]*(InterestRate/PaymentsPerYear),"") ->  | J119: =IF(PaymentSchedule[[#This Row],[支払番号]]<>"",IF(PaymentSchedule[[#This Row],[返済予定]]+PaymentSchedule[[#This Row],[繰上げ返済額]]<=PaymentSchedule[[#This Row],[期首残高]],PaymentSchedule[[#This Row],[期首残高]]-PaymentSchedule[[#This Row],[元金]],0),"") ->  | K119: =IF(PaymentSchedule[[#This Row],[支払番号]]<>"",SUM(INDEX(PaymentSchedule[利息],1,1):PaymentSchedule[[#This Row],[利息]]),"") -> 
B120: =IF(LoanIsGood,IF(ROW()-ROW(PaymentSchedule[[#Headers],[支払番号]])>支払予定回数,"",ROW()-ROW(PaymentSchedule[[#Headers],[支払番号]])),"") ->  | C120: =IF(PaymentSchedule[[#This Row],[支払番号]]<>"",EOMONTH(LoanStartDate,ROW(PaymentSchedule[[#This Row],[支払番号]])-ROW(PaymentSchedule[[#Headers],[支払番号]])-2)+DAY(LoanStartDate),"") ->  | D120: =IF(PaymentSchedule[[#This Row],[支払番号]]<>"",IF(ROW()-ROW(PaymentSchedule[[#Headers],[期首残高]])=1,借入金額,INDEX(PaymentSchedule[期末残高],ROW()-ROW(PaymentSchedule[[#Headers],[期首残高]])-1)),"") ->  | E120: =IF(PaymentSchedule[[#This Row],[支払番号]]<>"",ScheduledPayment,"") ->  | F120: =IF(PaymentSchedule[[#This Row],[支払番号]]<>"",IF(PaymentSchedule[[#This Row],[返済予定]]+ExtraPayments<PaymentSchedule[[#This Row],[期首残高]],ExtraPayments,IF(PaymentSchedule[[#This Row],[期首残高]]-PaymentSchedule[[#This Row],[返済予定]]>0,PaymentSchedule[[#This Row],[期首残高]]-PaymentSchedule[[#This Row],[返済予定]],0)),"") ->  | G120: =IF(PaymentSchedule[[#This Row],[支払番号]]<>"",IF(PaymentSchedule[[#This Row],[返済予定]]+PaymentSchedule[[#This Row],[繰上げ返済額]]<=PaymentSchedule[[#This Row],[期首残高]],PaymentSchedule[[#This Row],[返済予定]]+PaymentSchedule[[#This Row],[繰上げ返済額]],PaymentSchedule[[#This Row],[期首残高]]),"") ->  | H120: =IF(PaymentSchedule[[#This Row],[支払番号]]<>"",PaymentSchedule[[#This Row],[返済総額]]-PaymentSchedule[[#This Row],[利息]],"") ->  | I120: =IF(PaymentSchedule[[#This Row],[支払番号]]<>"",PaymentSchedule[[#This Row],[期首残高]]*(InterestRate/PaymentsPerYear),"") ->  | J120: =IF(PaymentSchedule[[#This Row],[支払番号]]<>"",IF(PaymentSchedule[[#This Row],[返済予定]]+PaymentSchedule[[#This Row],[繰上げ返済額]]<=PaymentSchedule[[#This Row],[期首残高]],PaymentSchedule[[#This Row],[期首残高]]-PaymentSchedule[[#This Row],[元金]],0),"") ->  | K120: =IF(PaymentSchedule[[#This Row],[支払番号]]<>"",SUM(INDEX(PaymentSchedule[利息],1,1):PaymentSchedule[[#This Row],[利息]]),"") -> 
B121: =IF(LoanIsGood,IF(ROW()-ROW(PaymentSchedule[[#Headers],[支払番号]])>支払予定回数,"",ROW()-ROW(PaymentSchedule[[#Headers],[支払番号]])),"") ->  | C121: =IF(PaymentSchedule[[#This Row],[支払番号]]<>"",EOMONTH(LoanStartDate,ROW(PaymentSchedule[[#This Row],[支払番号]])-ROW(PaymentSchedule[[#Headers],[支払番号]])-2)+DAY(LoanStartDate),"") ->  | D121: =IF(PaymentSchedule[[#This Row],[支払番号]]<>"",IF(ROW()-ROW(PaymentSchedule[[#Headers],[期首残高]])=1,借入金額,INDEX(PaymentSchedule[期末残高],ROW()-ROW(PaymentSchedule[[#Headers],[期首残高]])-1)),"") ->  | E121: =IF(PaymentSchedule[[#This Row],[支払番号]]<>"",ScheduledPayment,"") ->  | F121: =IF(PaymentSchedule[[#This Row],[支払番号]]<>"",IF(PaymentSchedule[[#This Row],[返済予定]]+ExtraPayments<PaymentSchedule[[#This Row],[期首残高]],ExtraPayments,IF(PaymentSchedule[[#This Row],[期首残高]]-PaymentSchedule[[#This Row],[返済予定]]>0,PaymentSchedule[[#This Row],[期首残高]]-PaymentSchedule[[#This Row],[返済予定]],0)),"") ->  | G121: =IF(PaymentSchedule[[#This Row],[支払番号]]<>"",IF(PaymentSchedule[[#This Row],[返済予定]]+PaymentSchedule[[#This Row],[繰上げ返済額]]<=PaymentSchedule[[#This Row],[期首残高]],PaymentSchedule[[#This Row],[返済予定]]+PaymentSchedule[[#This Row],[繰上げ返済額]],PaymentSchedule[[#This Row],[期首残高]]),"") ->  | H121: =IF(PaymentSchedule[[#This Row],[支払番号]]<>"",PaymentSchedule[[#This Row],[返済総額]]-PaymentSchedule[[#This Row],[利息]],"") ->  | I121: =IF(PaymentSchedule[[#This Row],[支払番号]]<>"",PaymentSchedule[[#This Row],[期首残高]]*(InterestRate/PaymentsPerYear),"") ->  | J121: =IF(PaymentSchedule[[#This Row],[支払番号]]<>"",IF(PaymentSchedule[[#This Row],[返済予定]]+PaymentSchedule[[#This Row],[繰上げ返済額]]<=PaymentSchedule[[#This Row],[期首残高]],PaymentSchedule[[#This Row],[期首残高]]-PaymentSchedule[[#This Row],[元金]],0),"") ->  | K121: =IF(PaymentSchedule[[#This Row],[支払番号]]<>"",SUM(INDEX(PaymentSchedule[利息],1,1):PaymentSchedule[[#This Row],[利息]]),"") -> 
B122: =IF(LoanIsGood,IF(ROW()-ROW(PaymentSchedule[[#Headers],[支払番号]])>支払予定回数,"",ROW()-ROW(PaymentSchedule[[#Headers],[支払番号]])),"") ->  | C122: =IF(PaymentSchedule[[#This Row],[支払番号]]<>"",EOMONTH(LoanStartDate,ROW(PaymentSchedule[[#This Row],[支払番号]])-ROW(PaymentSchedule[[#Headers],[支払番号]])-2)+DAY(LoanStartDate),"") ->  | D122: =IF(PaymentSchedule[[#This Row],[支払番号]]<>"",IF(ROW()-ROW(PaymentSchedule[[#Headers],[期首残高]])=1,借入金額,INDEX(PaymentSchedule[期末残高],ROW()-ROW(PaymentSchedule[[#Headers],[期首残高]])-1)),"") ->  | E122: =IF(PaymentSchedule[[#This Row],[支払番号]]<>"",ScheduledPayment,"") ->  | F122: =IF(PaymentSchedule[[#This Row],[支払番号]]<>"",IF(PaymentSchedule[[#This Row],[返済予定]]+ExtraPayments<PaymentSchedule[[#This Row],[期首残高]],ExtraPayments,IF(PaymentSchedule[[#This Row],[期首残高]]-PaymentSchedule[[#This Row],[返済予定]]>0,PaymentSchedule[[#This Row],[期首残高]]-PaymentSchedule[[#This Row],[返済予定]],0)),"") ->  | G122: =IF(PaymentSchedule[[#This Row],[支払番号]]<>"",IF(PaymentSchedule[[#This Row],[返済予定]]+PaymentSchedule[[#This Row],[繰上げ返済額]]<=PaymentSchedule[[#This Row],[期首残高]],PaymentSchedule[[#This Row],[返済予定]]+PaymentSchedule[[#This Row],[繰上げ返済額]],PaymentSchedule[[#This Row],[期首残高]]),"") ->  | H122: =IF(PaymentSchedule[[#This Row],[支払番号]]<>"",PaymentSchedule[[#This Row],[返済総額]]-PaymentSchedule[[#This Row],[利息]],"") ->  | I122: =IF(PaymentSchedule[[#This Row],[支払番号]]<>"",PaymentSchedule[[#This Row],[期首残高]]*(InterestRate/PaymentsPerYear),"") ->  | J122: =IF(PaymentSchedule[[#This Row],[支払番号]]<>"",IF(PaymentSchedule[[#This Row],[返済予定]]+PaymentSchedule[[#This Row],[繰上げ返済額]]<=PaymentSchedule[[#This Row],[期首残高]],PaymentSchedule[[#This Row],[期首残高]]-PaymentSchedule[[#This Row],[元金]],0),"") ->  | K122: =IF(PaymentSchedule[[#This Row],[支払番号]]<>"",SUM(INDEX(PaymentSchedule[利息],1,1):PaymentSchedule[[#This Row],[利息]]),"") -> 
B123: =IF(LoanIsGood,IF(ROW()-ROW(PaymentSchedule[[#Headers],[支払番号]])>支払予定回数,"",ROW()-ROW(PaymentSchedule[[#Headers],[支払番号]])),"") ->  | C123: =IF(PaymentSchedule[[#This Row],[支払番号]]<>"",EOMONTH(LoanStartDate,ROW(PaymentSchedule[[#This Row],[支払番号]])-ROW(PaymentSchedule[[#Headers],[支払番号]])-2)+DAY(LoanStartDate),"") ->  | D123: =IF(PaymentSchedule[[#This Row],[支払番号]]<>"",IF(ROW()-ROW(PaymentSchedule[[#Headers],[期首残高]])=1,借入金額,INDEX(PaymentSchedule[期末残高],ROW()-ROW(PaymentSchedule[[#Headers],[期首残高]])-1)),"") ->  | E123: =IF(PaymentSchedule[[#This Row],[支払番号]]<>"",ScheduledPayment,"") ->  | F123: =IF(PaymentSchedule[[#This Row],[支払番号]]<>"",IF(PaymentSchedule[[#This Row],[返済予定]]+ExtraPayments<PaymentSchedule[[#This Row],[期首残高]],ExtraPayments,IF(PaymentSchedule[[#This Row],[期首残高]]-PaymentSchedule[[#This Row],[返済予定]]>0,PaymentSchedule[[#This Row],[期首残高]]-PaymentSchedule[[#This Row],[返済予定]],0)),"") ->  | G123: =IF(PaymentSchedule[[#This Row],[支払番号]]<>"",IF(PaymentSchedule[[#This Row],[返済予定]]+PaymentSchedule[[#This Row],[繰上げ返済額]]<=PaymentSchedule[[#This Row],[期首残高]],PaymentSchedule[[#This Row],[返済予定]]+PaymentSchedule[[#This Row],[繰上げ返済額]],PaymentSchedule[[#This Row],[期首残高]]),"") ->  | H123: =IF(PaymentSchedule[[#This Row],[支払番号]]<>"",PaymentSchedule[[#This Row],[返済総額]]-PaymentSchedule[[#This Row],[利息]],"") ->  | I123: =IF(PaymentSchedule[[#This Row],[支払番号]]<>"",PaymentSchedule[[#This Row],[期首残高]]*(InterestRate/PaymentsPerYear),"") ->  | J123: =IF(PaymentSchedule[[#This Row],[支払番号]]<>"",IF(PaymentSchedule[[#This Row],[返済予定]]+PaymentSchedule[[#This Row],[繰上げ返済額]]<=PaymentSchedule[[#This Row],[期首残高]],PaymentSchedule[[#This Row],[期首残高]]-PaymentSchedule[[#This Row],[元金]],0),"") ->  | K123: =IF(PaymentSchedule[[#This Row],[支払番号]]<>"",SUM(INDEX(PaymentSchedule[利息],1,1):PaymentSchedule[[#This Row],[利息]]),"") -> 
B124: =IF(LoanIsGood,IF(ROW()-ROW(PaymentSchedule[[#Headers],[支払番号]])>支払予定回数,"",ROW()-ROW(PaymentSchedule[[#Headers],[支払番号]])),"") ->  | C124: =IF(PaymentSchedule[[#This Row],[支払番号]]<>"",EOMONTH(LoanStartDate,ROW(PaymentSchedule[[#This Row],[支払番号]])-ROW(PaymentSchedule[[#Headers],[支払番号]])-2)+DAY(LoanStartDate),"") ->  | D124: =IF(PaymentSchedule[[#This Row],[支払番号]]<>"",IF(ROW()-ROW(PaymentSchedule[[#Headers],[期首残高]])=1,借入金額,INDEX(PaymentSchedule[期末残高],ROW()-ROW(PaymentSchedule[[#Headers],[期首残高]])-1)),"") ->  | E124: =IF(PaymentSchedule[[#This Row],[支払番号]]<>"",ScheduledPayment,"") ->  | F124: =IF(PaymentSchedule[[#This Row],[支払番号]]<>"",IF(PaymentSchedule[[#This Row],[返済予定]]+ExtraPayments<PaymentSchedule[[#This Row],[期首残高]],ExtraPayments,IF(PaymentSchedule[[#This Row],[期首残高]]-PaymentSchedule[[#This Row],[返済予定]]>0,PaymentSchedule[[#This Row],[期首残高]]-PaymentSchedule[[#This Row],[返済予定]],0)),"") ->  | G124: =IF(PaymentSchedule[[#This Row],[支払番号]]<>"",IF(PaymentSchedule[[#This Row],[返済予定]]+PaymentSchedule[[#This Row],[繰上げ返済額]]<=PaymentSchedule[[#This Row],[期首残高]],PaymentSchedule[[#This Row],[返済予定]]+PaymentSchedule[[#This Row],[繰上げ返済額]],PaymentSchedule[[#This Row],[期首残高]]),"") ->  | H124: =IF(PaymentSchedule[[#This Row],[支払番号]]<>"",PaymentSchedule[[#This Row],[返済総額]]-PaymentSchedule[[#This Row],[利息]],"") ->  | I124: =IF(PaymentSchedule[[#This Row],[支払番号]]<>"",PaymentSchedule[[#This Row],[期首残高]]*(InterestRate/PaymentsPerYear),"") ->  | J124: =IF(PaymentSchedule[[#This Row],[支払番号]]<>"",IF(PaymentSchedule[[#This Row],[返済予定]]+PaymentSchedule[[#This Row],[繰上げ返済額]]<=PaymentSchedule[[#This Row],[期首残高]],PaymentSchedule[[#This Row],[期首残高]]-PaymentSchedule[[#This Row],[元金]],0),"") ->  | K124: =IF(PaymentSchedule[[#This Row],[支払番号]]<>"",SUM(INDEX(PaymentSchedule[利息],1,1):PaymentSchedule[[#This Row],[利息]]),"") -> 
B125: =IF(LoanIsGood,IF(ROW()-ROW(PaymentSchedule[[#Headers],[支払番号]])>支払予定回数,"",ROW()-ROW(PaymentSchedule[[#Headers],[支払番号]])),"") ->  | C125: =IF(PaymentSchedule[[#This Row],[支払番号]]<>"",EOMONTH(LoanStartDate,ROW(PaymentSchedule[[#This Row],[支払番号]])-ROW(PaymentSchedule[[#Headers],[支払番号]])-2)+DAY(LoanStartDate),"") ->  | D125: =IF(PaymentSchedule[[#This Row],[支払番号]]<>"",IF(ROW()-ROW(PaymentSchedule[[#Headers],[期首残高]])=1,借入金額,INDEX(PaymentSchedule[期末残高],ROW()-ROW(PaymentSchedule[[#Headers],[期首残高]])-1)),"") ->  | E125: =IF(PaymentSchedule[[#This Row],[支払番号]]<>"",ScheduledPayment,"") ->  | F125: =IF(PaymentSchedule[[#This Row],[支払番号]]<>"",IF(PaymentSchedule[[#This Row],[返済予定]]+ExtraPayments<PaymentSchedule[[#This Row],[期首残高]],ExtraPayments,IF(PaymentSchedule[[#This Row],[期首残高]]-PaymentSchedule[[#This Row],[返済予定]]>0,PaymentSchedule[[#This Row],[期首残高]]-PaymentSchedule[[#This Row],[返済予定]],0)),"") ->  | G125: =IF(PaymentSchedule[[#This Row],[支払番号]]<>"",IF(PaymentSchedule[[#This Row],[返済予定]]+PaymentSchedule[[#This Row],[繰上げ返済額]]<=PaymentSchedule[[#This Row],[期首残高]],PaymentSchedule[[#This Row],[返済予定]]+PaymentSchedule[[#This Row],[繰上げ返済額]],PaymentSchedule[[#This Row],[期首残高]]),"") ->  | H125: =IF(PaymentSchedule[[#This Row],[支払番号]]<>"",PaymentSchedule[[#This Row],[返済総額]]-PaymentSchedule[[#This Row],[利息]],"") ->  | I125: =IF(PaymentSchedule[[#This Row],[支払番号]]<>"",PaymentSchedule[[#This Row],[期首残高]]*(InterestRate/PaymentsPerYear),"") ->  | J125: =IF(PaymentSchedule[[#This Row],[支払番号]]<>"",IF(PaymentSchedule[[#This Row],[返済予定]]+PaymentSchedule[[#This Row],[繰上げ返済額]]<=PaymentSchedule[[#This Row],[期首残高]],PaymentSchedule[[#This Row],[期首残高]]-PaymentSchedule[[#This Row],[元金]],0),"") ->  | K125: =IF(PaymentSchedule[[#This Row],[支払番号]]<>"",SUM(INDEX(PaymentSchedule[利息],1,1):PaymentSchedule[[#This Row],[利息]]),"") -> 
B126: =IF(LoanIsGood,IF(ROW()-ROW(PaymentSchedule[[#Headers],[支払番号]])>支払予定回数,"",ROW()-ROW(PaymentSchedule[[#Headers],[支払番号]])),"") ->  | C126: =IF(PaymentSchedule[[#This Row],[支払番号]]<>"",EOMONTH(LoanStartDate,ROW(PaymentSchedule[[#This Row],[支払番号]])-ROW(PaymentSchedule[[#Headers],[支払番号]])-2)+DAY(LoanStartDate),"") ->  | D126: =IF(PaymentSchedule[[#This Row],[支払番号]]<>"",IF(ROW()-ROW(PaymentSchedule[[#Headers],[期首残高]])=1,借入金額,INDEX(PaymentSchedule[期末残高],ROW()-ROW(PaymentSchedule[[#Headers],[期首残高]])-1)),"") ->  | E126: =IF(PaymentSchedule[[#This Row],[支払番号]]<>"",ScheduledPayment,"") ->  | F126: =IF(PaymentSchedule[[#This Row],[支払番号]]<>"",IF(PaymentSchedule[[#This Row],[返済予定]]+ExtraPayments<PaymentSchedule[[#This Row],[期首残高]],ExtraPayments,IF(PaymentSchedule[[#This Row],[期首残高]]-PaymentSchedule[[#This Row],[返済予定]]>0,PaymentSchedule[[#This Row],[期首残高]]-PaymentSchedule[[#This Row],[返済予定]],0)),"") ->  | G126: =IF(PaymentSchedule[[#This Row],[支払番号]]<>"",IF(PaymentSchedule[[#This Row],[返済予定]]+PaymentSchedule[[#This Row],[繰上げ返済額]]<=PaymentSchedule[[#This Row],[期首残高]],PaymentSchedule[[#This Row],[返済予定]]+PaymentSchedule[[#This Row],[繰上げ返済額]],PaymentSchedule[[#This Row],[期首残高]]),"") ->  | H126: =IF(PaymentSchedule[[#This Row],[支払番号]]<>"",PaymentSchedule[[#This Row],[返済総額]]-PaymentSchedule[[#This Row],[利息]],"") ->  | I126: =IF(PaymentSchedule[[#This Row],[支払番号]]<>"",PaymentSchedule[[#This Row],[期首残高]]*(InterestRate/PaymentsPerYear),"") ->  | J126: =IF(PaymentSchedule[[#This Row],[支払番号]]<>"",IF(PaymentSchedule[[#This Row],[返済予定]]+PaymentSchedule[[#This Row],[繰上げ返済額]]<=PaymentSchedule[[#This Row],[期首残高]],PaymentSchedule[[#This Row],[期首残高]]-PaymentSchedule[[#This Row],[元金]],0),"") ->  | K126: =IF(PaymentSchedule[[#This Row],[支払番号]]<>"",SUM(INDEX(PaymentSchedule[利息],1,1):PaymentSchedule[[#This Row],[利息]]),"") -> 
B127: =IF(LoanIsGood,IF(ROW()-ROW(PaymentSchedule[[#Headers],[支払番号]])>支払予定回数,"",ROW()-ROW(PaymentSchedule[[#Headers],[支払番号]])),"") ->  | C127: =IF(PaymentSchedule[[#This Row],[支払番号]]<>"",EOMONTH(LoanStartDate,ROW(PaymentSchedule[[#This Row],[支払番号]])-ROW(PaymentSchedule[[#Headers],[支払番号]])-2)+DAY(LoanStartDate),"") ->  | D127: =IF(PaymentSchedule[[#This Row],[支払番号]]<>"",IF(ROW()-ROW(PaymentSchedule[[#Headers],[期首残高]])=1,借入金額,INDEX(PaymentSchedule[期末残高],ROW()-ROW(PaymentSchedule[[#Headers],[期首残高]])-1)),"") ->  | E127: =IF(PaymentSchedule[[#This Row],[支払番号]]<>"",ScheduledPayment,"") ->  | F127: =IF(PaymentSchedule[[#This Row],[支払番号]]<>"",IF(PaymentSchedule[[#This Row],[返済予定]]+ExtraPayments<PaymentSchedule[[#This Row],[期首残高]],ExtraPayments,IF(PaymentSchedule[[#This Row],[期首残高]]-PaymentSchedule[[#This Row],[返済予定]]>0,PaymentSchedule[[#This Row],[期首残高]]-PaymentSchedule[[#This Row],[返済予定]],0)),"") ->  | G127: =IF(PaymentSchedule[[#This Row],[支払番号]]<>"",IF(PaymentSchedule[[#This Row],[返済予定]]+PaymentSchedule[[#This Row],[繰上げ返済額]]<=PaymentSchedule[[#This Row],[期首残高]],PaymentSchedule[[#This Row],[返済予定]]+PaymentSchedule[[#This Row],[繰上げ返済額]],PaymentSchedule[[#This Row],[期首残高]]),"") ->  | H127: =IF(PaymentSchedule[[#This Row],[支払番号]]<>"",PaymentSchedule[[#This Row],[返済総額]]-PaymentSchedule[[#This Row],[利息]],"") ->  | I127: =IF(PaymentSchedule[[#This Row],[支払番号]]<>"",PaymentSchedule[[#This Row],[期首残高]]*(InterestRate/PaymentsPerYear),"") ->  | J127: =IF(PaymentSchedule[[#This Row],[支払番号]]<>"",IF(PaymentSchedule[[#This Row],[返済予定]]+PaymentSchedule[[#This Row],[繰上げ返済額]]<=PaymentSchedule[[#This Row],[期首残高]],PaymentSchedule[[#This Row],[期首残高]]-PaymentSchedule[[#This Row],[元金]],0),"") ->  | K127: =IF(PaymentSchedule[[#This Row],[支払番号]]<>"",SUM(INDEX(PaymentSchedule[利息],1,1):PaymentSchedule[[#This Row],[利息]]),"") -> 
B128: =IF(LoanIsGood,IF(ROW()-ROW(PaymentSchedule[[#Headers],[支払番号]])>支払予定回数,"",ROW()-ROW(PaymentSchedule[[#Headers],[支払番号]])),"") ->  | C128: =IF(PaymentSchedule[[#This Row],[支払番号]]<>"",EOMONTH(LoanStartDate,ROW(PaymentSchedule[[#This Row],[支払番号]])-ROW(PaymentSchedule[[#Headers],[支払番号]])-2)+DAY(LoanStartDate),"") ->  | D128: =IF(PaymentSchedule[[#This Row],[支払番号]]<>"",IF(ROW()-ROW(PaymentSchedule[[#Headers],[期首残高]])=1,借入金額,INDEX(PaymentSchedule[期末残高],ROW()-ROW(PaymentSchedule[[#Headers],[期首残高]])-1)),"") ->  | E128: =IF(PaymentSchedule[[#This Row],[支払番号]]<>"",ScheduledPayment,"") ->  | F128: =IF(PaymentSchedule[[#This Row],[支払番号]]<>"",IF(PaymentSchedule[[#This Row],[返済予定]]+ExtraPayments<PaymentSchedule[[#This Row],[期首残高]],ExtraPayments,IF(PaymentSchedule[[#This Row],[期首残高]]-PaymentSchedule[[#This Row],[返済予定]]>0,PaymentSchedule[[#This Row],[期首残高]]-PaymentSchedule[[#This Row],[返済予定]],0)),"") ->  | G128: =IF(PaymentSchedule[[#This Row],[支払番号]]<>"",IF(PaymentSchedule[[#This Row],[返済予定]]+PaymentSchedule[[#This Row],[繰上げ返済額]]<=PaymentSchedule[[#This Row],[期首残高]],PaymentSchedule[[#This Row],[返済予定]]+PaymentSchedule[[#This Row],[繰上げ返済額]],PaymentSchedule[[#This Row],[期首残高]]),"") ->  | H128: =IF(PaymentSchedule[[#This Row],[支払番号]]<>"",PaymentSchedule[[#This Row],[返済総額]]-PaymentSchedule[[#This Row],[利息]],"") ->  | I128: =IF(PaymentSchedule[[#This Row],[支払番号]]<>"",PaymentSchedule[[#This Row],[期首残高]]*(InterestRate/PaymentsPerYear),"") ->  | J128: =IF(PaymentSchedule[[#This Row],[支払番号]]<>"",IF(PaymentSchedule[[#This Row],[返済予定]]+PaymentSchedule[[#This Row],[繰上げ返済額]]<=PaymentSchedule[[#This Row],[期首残高]],PaymentSchedule[[#This Row],[期首残高]]-PaymentSchedule[[#This Row],[元金]],0),"") ->  | K128: =IF(PaymentSchedule[[#This Row],[支払番号]]<>"",SUM(INDEX(PaymentSchedule[利息],1,1):PaymentSchedule[[#This Row],[利息]]),"") -> 
B129: =IF(LoanIsGood,IF(ROW()-ROW(PaymentSchedule[[#Headers],[支払番号]])>支払予定回数,"",ROW()-ROW(PaymentSchedule[[#Headers],[支払番号]])),"") ->  | C129: =IF(PaymentSchedule[[#This Row],[支払番号]]<>"",EOMONTH(LoanStartDate,ROW(PaymentSchedule[[#This Row],[支払番号]])-ROW(PaymentSchedule[[#Headers],[支払番号]])-2)+DAY(LoanStartDate),"") ->  | D129: =IF(PaymentSchedule[[#This Row],[支払番号]]<>"",IF(ROW()-ROW(PaymentSchedule[[#Headers],[期首残高]])=1,借入金額,INDEX(PaymentSchedule[期末残高],ROW()-ROW(PaymentSchedule[[#Headers],[期首残高]])-1)),"") ->  | E129: =IF(PaymentSchedule[[#This Row],[支払番号]]<>"",ScheduledPayment,"") ->  | F129: =IF(PaymentSchedule[[#This Row],[支払番号]]<>"",IF(PaymentSchedule[[#This Row],[返済予定]]+ExtraPayments<PaymentSchedule[[#This Row],[期首残高]],ExtraPayments,IF(PaymentSchedule[[#This Row],[期首残高]]-PaymentSchedule[[#This Row],[返済予定]]>0,PaymentSchedule[[#This Row],[期首残高]]-PaymentSchedule[[#This Row],[返済予定]],0)),"") ->  | G129: =IF(PaymentSchedule[[#This Row],[支払番号]]<>"",IF(PaymentSchedule[[#This Row],[返済予定]]+PaymentSchedule[[#This Row],[繰上げ返済額]]<=PaymentSchedule[[#This Row],[期首残高]],PaymentSchedule[[#This Row],[返済予定]]+PaymentSchedule[[#This Row],[繰上げ返済額]],PaymentSchedule[[#This Row],[期首残高]]),"") ->  | H129: =IF(PaymentSchedule[[#This Row],[支払番号]]<>"",PaymentSchedule[[#This Row],[返済総額]]-PaymentSchedule[[#This Row],[利息]],"") ->  | I129: =IF(PaymentSchedule[[#This Row],[支払番号]]<>"",PaymentSchedule[[#This Row],[期首残高]]*(InterestRate/PaymentsPerYear),"") ->  | J129: =IF(PaymentSchedule[[#This Row],[支払番号]]<>"",IF(PaymentSchedule[[#This Row],[返済予定]]+PaymentSchedule[[#This Row],[繰上げ返済額]]<=PaymentSchedule[[#This Row],[期首残高]],PaymentSchedule[[#This Row],[期首残高]]-PaymentSchedule[[#This Row],[元金]],0),"") ->  | K129: =IF(PaymentSchedule[[#This Row],[支払番号]]<>"",SUM(INDEX(PaymentSchedule[利息],1,1):PaymentSchedule[[#This Row],[利息]]),"") -> 
B130: =IF(LoanIsGood,IF(ROW()-ROW(PaymentSchedule[[#Headers],[支払番号]])>支払予定回数,"",ROW()-ROW(PaymentSchedule[[#Headers],[支払番号]])),"") ->  | C130: =IF(PaymentSchedule[[#This Row],[支払番号]]<>"",EOMONTH(LoanStartDate,ROW(PaymentSchedule[[#This Row],[支払番号]])-ROW(PaymentSchedule[[#Headers],[支払番号]])-2)+DAY(LoanStartDate),"") ->  | D130: =IF(PaymentSchedule[[#This Row],[支払番号]]<>"",IF(ROW()-ROW(PaymentSchedule[[#Headers],[期首残高]])=1,借入金額,INDEX(PaymentSchedule[期末残高],ROW()-ROW(PaymentSchedule[[#Headers],[期首残高]])-1)),"") ->  | E130: =IF(PaymentSchedule[[#This Row],[支払番号]]<>"",ScheduledPayment,"") ->  | F130: =IF(PaymentSchedule[[#This Row],[支払番号]]<>"",IF(PaymentSchedule[[#This Row],[返済予定]]+ExtraPayments<PaymentSchedule[[#This Row],[期首残高]],ExtraPayments,IF(PaymentSchedule[[#This Row],[期首残高]]-PaymentSchedule[[#This Row],[返済予定]]>0,PaymentSchedule[[#This Row],[期首残高]]-PaymentSchedule[[#This Row],[返済予定]],0)),"") ->  | G130: =IF(PaymentSchedule[[#This Row],[支払番号]]<>"",IF(PaymentSchedule[[#This Row],[返済予定]]+PaymentSchedule[[#This Row],[繰上げ返済額]]<=PaymentSchedule[[#This Row],[期首残高]],PaymentSchedule[[#This Row],[返済予定]]+PaymentSchedule[[#This Row],[繰上げ返済額]],PaymentSchedule[[#This Row],[期首残高]]),"") ->  | H130: =IF(PaymentSchedule[[#This Row],[支払番号]]<>"",PaymentSchedule[[#This Row],[返済総額]]-PaymentSchedule[[#This Row],[利息]],"") ->  | I130: =IF(PaymentSchedule[[#This Row],[支払番号]]<>"",PaymentSchedule[[#This Row],[期首残高]]*(InterestRate/PaymentsPerYear),"") ->  | J130: =IF(PaymentSchedule[[#This Row],[支払番号]]<>"",IF(PaymentSchedule[[#This Row],[返済予定]]+PaymentSchedule[[#This Row],[繰上げ返済額]]<=PaymentSchedule[[#This Row],[期首残高]],PaymentSchedule[[#This Row],[期首残高]]-PaymentSchedule[[#This Row],[元金]],0),"") ->  | K130: =IF(PaymentSchedule[[#This Row],[支払番号]]<>"",SUM(INDEX(PaymentSchedule[利息],1,1):PaymentSchedule[[#This Row],[利息]]),"") -> 
B131: =IF(LoanIsGood,IF(ROW()-ROW(PaymentSchedule[[#Headers],[支払番号]])>支払予定回数,"",ROW()-ROW(PaymentSchedule[[#Headers],[支払番号]])),"") ->  | C131: =IF(PaymentSchedule[[#This Row],[支払番号]]<>"",EOMONTH(LoanStartDate,ROW(PaymentSchedule[[#This Row],[支払番号]])-ROW(PaymentSchedule[[#Headers],[支払番号]])-2)+DAY(LoanStartDate),"") ->  | D131: =IF(PaymentSchedule[[#This Row],[支払番号]]<>"",IF(ROW()-ROW(PaymentSchedule[[#Headers],[期首残高]])=1,借入金額,INDEX(PaymentSchedule[期末残高],ROW()-ROW(PaymentSchedule[[#Headers],[期首残高]])-1)),"") ->  | E131: =IF(PaymentSchedule[[#This Row],[支払番号]]<>"",ScheduledPayment,"") ->  | F131: =IF(PaymentSchedule[[#This Row],[支払番号]]<>"",IF(PaymentSchedule[[#This Row],[返済予定]]+ExtraPayments<PaymentSchedule[[#This Row],[期首残高]],ExtraPayments,IF(PaymentSchedule[[#This Row],[期首残高]]-PaymentSchedule[[#This Row],[返済予定]]>0,PaymentSchedule[[#This Row],[期首残高]]-PaymentSchedule[[#This Row],[返済予定]],0)),"") ->  | G131: =IF(PaymentSchedule[[#This Row],[支払番号]]<>"",IF(PaymentSchedule[[#This Row],[返済予定]]+PaymentSchedule[[#This Row],[繰上げ返済額]]<=PaymentSchedule[[#This Row],[期首残高]],PaymentSchedule[[#This Row],[返済予定]]+PaymentSchedule[[#This Row],[繰上げ返済額]],PaymentSchedule[[#This Row],[期首残高]]),"") ->  | H131: =IF(PaymentSchedule[[#This Row],[支払番号]]<>"",PaymentSchedule[[#This Row],[返済総額]]-PaymentSchedule[[#This Row],[利息]],"") ->  | I131: =IF(PaymentSchedule[[#This Row],[支払番号]]<>"",PaymentSchedule[[#This Row],[期首残高]]*(InterestRate/PaymentsPerYear),"") ->  | J131: =IF(PaymentSchedule[[#This Row],[支払番号]]<>"",IF(PaymentSchedule[[#This Row],[返済予定]]+PaymentSchedule[[#This Row],[繰上げ返済額]]<=PaymentSchedule[[#This Row],[期首残高]],PaymentSchedule[[#This Row],[期首残高]]-PaymentSchedule[[#This Row],[元金]],0),"") ->  | K131: =IF(PaymentSchedule[[#This Row],[支払番号]]<>"",SUM(INDEX(PaymentSchedule[利息],1,1):PaymentSchedule[[#This Row],[利息]]),"") -> 
B132: =IF(LoanIsGood,IF(ROW()-ROW(PaymentSchedule[[#Headers],[支払番号]])>支払予定回数,"",ROW()-ROW(PaymentSchedule[[#Headers],[支払番号]])),"") ->  | C132: =IF(PaymentSchedule[[#This Row],[支払番号]]<>"",EOMONTH(LoanStartDate,ROW(PaymentSchedule[[#This Row],[支払番号]])-ROW(PaymentSchedule[[#Headers],[支払番号]])-2)+DAY(LoanStartDate),"") ->  | D132: =IF(PaymentSchedule[[#This Row],[支払番号]]<>"",IF(ROW()-ROW(PaymentSchedule[[#Headers],[期首残高]])=1,借入金額,INDEX(PaymentSchedule[期末残高],ROW()-ROW(PaymentSchedule[[#Headers],[期首残高]])-1)),"") ->  | E132: =IF(PaymentSchedule[[#This Row],[支払番号]]<>"",ScheduledPayment,"") ->  | F132: =IF(PaymentSchedule[[#This Row],[支払番号]]<>"",IF(PaymentSchedule[[#This Row],[返済予定]]+ExtraPayments<PaymentSchedule[[#This Row],[期首残高]],ExtraPayments,IF(PaymentSchedule[[#This Row],[期首残高]]-PaymentSchedule[[#This Row],[返済予定]]>0,PaymentSchedule[[#This Row],[期首残高]]-PaymentSchedule[[#This Row],[返済予定]],0)),"") ->  | G132: =IF(PaymentSchedule[[#This Row],[支払番号]]<>"",IF(PaymentSchedule[[#This Row],[返済予定]]+PaymentSchedule[[#This Row],[繰上げ返済額]]<=PaymentSchedule[[#This Row],[期首残高]],PaymentSchedule[[#This Row],[返済予定]]+PaymentSchedule[[#This Row],[繰上げ返済額]],PaymentSchedule[[#This Row],[期首残高]]),"") ->  | H132: =IF(PaymentSchedule[[#This Row],[支払番号]]<>"",PaymentSchedule[[#This Row],[返済総額]]-PaymentSchedule[[#This Row],[利息]],"") ->  | I132: =IF(PaymentSchedule[[#This Row],[支払番号]]<>"",PaymentSchedule[[#This Row],[期首残高]]*(InterestRate/PaymentsPerYear),"") ->  | J132: =IF(PaymentSchedule[[#This Row],[支払番号]]<>"",IF(PaymentSchedule[[#This Row],[返済予定]]+PaymentSchedule[[#This Row],[繰上げ返済額]]<=PaymentSchedule[[#This Row],[期首残高]],PaymentSchedule[[#This Row],[期首残高]]-PaymentSchedule[[#This Row],[元金]],0),"") ->  | K132: =IF(PaymentSchedule[[#This Row],[支払番号]]<>"",SUM(INDEX(PaymentSchedule[利息],1,1):PaymentSchedule[[#This Row],[利息]]),"") -> 
B133: =IF(LoanIsGood,IF(ROW()-ROW(PaymentSchedule[[#Headers],[支払番号]])>支払予定回数,"",ROW()-ROW(PaymentSchedule[[#Headers],[支払番号]])),"") ->  | C133: =IF(PaymentSchedule[[#This Row],[支払番号]]<>"",EOMONTH(LoanStartDate,ROW(PaymentSchedule[[#This Row],[支払番号]])-ROW(PaymentSchedule[[#Headers],[支払番号]])-2)+DAY(LoanStartDate),"") ->  | D133: =IF(PaymentSchedule[[#This Row],[支払番号]]<>"",IF(ROW()-ROW(PaymentSchedule[[#Headers],[期首残高]])=1,借入金額,INDEX(PaymentSchedule[期末残高],ROW()-ROW(PaymentSchedule[[#Headers],[期首残高]])-1)),"") ->  | E133: =IF(PaymentSchedule[[#This Row],[支払番号]]<>"",ScheduledPayment,"") ->  | F133: =IF(PaymentSchedule[[#This Row],[支払番号]]<>"",IF(PaymentSchedule[[#This Row],[返済予定]]+ExtraPayments<PaymentSchedule[[#This Row],[期首残高]],ExtraPayments,IF(PaymentSchedule[[#This Row],[期首残高]]-PaymentSchedule[[#This Row],[返済予定]]>0,PaymentSchedule[[#This Row],[期首残高]]-PaymentSchedule[[#This Row],[返済予定]],0)),"") ->  | G133: =IF(PaymentSchedule[[#This Row],[支払番号]]<>"",IF(PaymentSchedule[[#This Row],[返済予定]]+PaymentSchedule[[#This Row],[繰上げ返済額]]<=PaymentSchedule[[#This Row],[期首残高]],PaymentSchedule[[#This Row],[返済予定]]+PaymentSchedule[[#This Row],[繰上げ返済額]],PaymentSchedule[[#This Row],[期首残高]]),"") ->  | H133: =IF(PaymentSchedule[[#This Row],[支払番号]]<>"",PaymentSchedule[[#This Row],[返済総額]]-PaymentSchedule[[#This Row],[利息]],"") ->  | I133: =IF(PaymentSchedule[[#This Row],[支払番号]]<>"",PaymentSchedule[[#This Row],[期首残高]]*(InterestRate/PaymentsPerYear),"") ->  | J133: =IF(PaymentSchedule[[#This Row],[支払番号]]<>"",IF(PaymentSchedule[[#This Row],[返済予定]]+PaymentSchedule[[#This Row],[繰上げ返済額]]<=PaymentSchedule[[#This Row],[期首残高]],PaymentSchedule[[#This Row],[期首残高]]-PaymentSchedule[[#This Row],[元金]],0),"") ->  | K133: =IF(PaymentSchedule[[#This Row],[支払番号]]<>"",SUM(INDEX(PaymentSchedule[利息],1,1):PaymentSchedule[[#This Row],[利息]]),"") -> 
B134: =IF(LoanIsGood,IF(ROW()-ROW(PaymentSchedule[[#Headers],[支払番号]])>支払予定回数,"",ROW()-ROW(PaymentSchedule[[#Headers],[支払番号]])),"") ->  | C134: =IF(PaymentSchedule[[#This Row],[支払番号]]<>"",EOMONTH(LoanStartDate,ROW(PaymentSchedule[[#This Row],[支払番号]])-ROW(PaymentSchedule[[#Headers],[支払番号]])-2)+DAY(LoanStartDate),"") ->  | D134: =IF(PaymentSchedule[[#This Row],[支払番号]]<>"",IF(ROW()-ROW(PaymentSchedule[[#Headers],[期首残高]])=1,借入金額,INDEX(PaymentSchedule[期末残高],ROW()-ROW(PaymentSchedule[[#Headers],[期首残高]])-1)),"") ->  | E134: =IF(PaymentSchedule[[#This Row],[支払番号]]<>"",ScheduledPayment,"") ->  | F134: =IF(PaymentSchedule[[#This Row],[支払番号]]<>"",IF(PaymentSchedule[[#This Row],[返済予定]]+ExtraPayments<PaymentSchedule[[#This Row],[期首残高]],ExtraPayments,IF(PaymentSchedule[[#This Row],[期首残高]]-PaymentSchedule[[#This Row],[返済予定]]>0,PaymentSchedule[[#This Row],[期首残高]]-PaymentSchedule[[#This Row],[返済予定]],0)),"") ->  | G134: =IF(PaymentSchedule[[#This Row],[支払番号]]<>"",IF(PaymentSchedule[[#This Row],[返済予定]]+PaymentSchedule[[#This Row],[繰上げ返済額]]<=PaymentSchedule[[#This Row],[期首残高]],PaymentSchedule[[#This Row],[返済予定]]+PaymentSchedule[[#This Row],[繰上げ返済額]],PaymentSchedule[[#This Row],[期首残高]]),"") ->  | H134: =IF(PaymentSchedule[[#This Row],[支払番号]]<>"",PaymentSchedule[[#This Row],[返済総額]]-PaymentSchedule[[#This Row],[利息]],"") ->  | I134: =IF(PaymentSchedule[[#This Row],[支払番号]]<>"",PaymentSchedule[[#This Row],[期首残高]]*(InterestRate/PaymentsPerYear),"") ->  | J134: =IF(PaymentSchedule[[#This Row],[支払番号]]<>"",IF(PaymentSchedule[[#This Row],[返済予定]]+PaymentSchedule[[#This Row],[繰上げ返済額]]<=PaymentSchedule[[#This Row],[期首残高]],PaymentSchedule[[#This Row],[期首残高]]-PaymentSchedule[[#This Row],[元金]],0),"") ->  | K134: =IF(PaymentSchedule[[#This Row],[支払番号]]<>"",SUM(INDEX(PaymentSchedule[利息],1,1):PaymentSchedule[[#This Row],[利息]]),"") -> 
B135: =IF(LoanIsGood,IF(ROW()-ROW(PaymentSchedule[[#Headers],[支払番号]])>支払予定回数,"",ROW()-ROW(PaymentSchedule[[#Headers],[支払番号]])),"") ->  | C135: =IF(PaymentSchedule[[#This Row],[支払番号]]<>"",EOMONTH(LoanStartDate,ROW(PaymentSchedule[[#This Row],[支払番号]])-ROW(PaymentSchedule[[#Headers],[支払番号]])-2)+DAY(LoanStartDate),"") ->  | D135: =IF(PaymentSchedule[[#This Row],[支払番号]]<>"",IF(ROW()-ROW(PaymentSchedule[[#Headers],[期首残高]])=1,借入金額,INDEX(PaymentSchedule[期末残高],ROW()-ROW(PaymentSchedule[[#Headers],[期首残高]])-1)),"") ->  | E135: =IF(PaymentSchedule[[#This Row],[支払番号]]<>"",ScheduledPayment,"") ->  | F135: =IF(PaymentSchedule[[#This Row],[支払番号]]<>"",IF(PaymentSchedule[[#This Row],[返済予定]]+ExtraPayments<PaymentSchedule[[#This Row],[期首残高]],ExtraPayments,IF(PaymentSchedule[[#This Row],[期首残高]]-PaymentSchedule[[#This Row],[返済予定]]>0,PaymentSchedule[[#This Row],[期首残高]]-PaymentSchedule[[#This Row],[返済予定]],0)),"") ->  | G135: =IF(PaymentSchedule[[#This Row],[支払番号]]<>"",IF(PaymentSchedule[[#This Row],[返済予定]]+PaymentSchedule[[#This Row],[繰上げ返済額]]<=PaymentSchedule[[#This Row],[期首残高]],PaymentSchedule[[#This Row],[返済予定]]+PaymentSchedule[[#This Row],[繰上げ返済額]],PaymentSchedule[[#This Row],[期首残高]]),"") ->  | H135: =IF(PaymentSchedule[[#This Row],[支払番号]]<>"",PaymentSchedule[[#This Row],[返済総額]]-PaymentSchedule[[#This Row],[利息]],"") ->  | I135: =IF(PaymentSchedule[[#This Row],[支払番号]]<>"",PaymentSchedule[[#This Row],[期首残高]]*(InterestRate/PaymentsPerYear),"") ->  | J135: =IF(PaymentSchedule[[#This Row],[支払番号]]<>"",IF(PaymentSchedule[[#This Row],[返済予定]]+PaymentSchedule[[#This Row],[繰上げ返済額]]<=PaymentSchedule[[#This Row],[期首残高]],PaymentSchedule[[#This Row],[期首残高]]-PaymentSchedule[[#This Row],[元金]],0),"") ->  | K135: =IF(PaymentSchedule[[#This Row],[支払番号]]<>"",SUM(INDEX(PaymentSchedule[利息],1,1):PaymentSchedule[[#This Row],[利息]]),"") -> 
B136: =IF(LoanIsGood,IF(ROW()-ROW(PaymentSchedule[[#Headers],[支払番号]])>支払予定回数,"",ROW()-ROW(PaymentSchedule[[#Headers],[支払番号]])),"") ->  | C136: =IF(PaymentSchedule[[#This Row],[支払番号]]<>"",EOMONTH(LoanStartDate,ROW(PaymentSchedule[[#This Row],[支払番号]])-ROW(PaymentSchedule[[#Headers],[支払番号]])-2)+DAY(LoanStartDate),"") ->  | D136: =IF(PaymentSchedule[[#This Row],[支払番号]]<>"",IF(ROW()-ROW(PaymentSchedule[[#Headers],[期首残高]])=1,借入金額,INDEX(PaymentSchedule[期末残高],ROW()-ROW(PaymentSchedule[[#Headers],[期首残高]])-1)),"") ->  | E136: =IF(PaymentSchedule[[#This Row],[支払番号]]<>"",ScheduledPayment,"") ->  | F136: =IF(PaymentSchedule[[#This Row],[支払番号]]<>"",IF(PaymentSchedule[[#This Row],[返済予定]]+ExtraPayments<PaymentSchedule[[#This Row],[期首残高]],ExtraPayments,IF(PaymentSchedule[[#This Row],[期首残高]]-PaymentSchedule[[#This Row],[返済予定]]>0,PaymentSchedule[[#This Row],[期首残高]]-PaymentSchedule[[#This Row],[返済予定]],0)),"") ->  | G136: =IF(PaymentSchedule[[#This Row],[支払番号]]<>"",IF(PaymentSchedule[[#This Row],[返済予定]]+PaymentSchedule[[#This Row],[繰上げ返済額]]<=PaymentSchedule[[#This Row],[期首残高]],PaymentSchedule[[#This Row],[返済予定]]+PaymentSchedule[[#This Row],[繰上げ返済額]],PaymentSchedule[[#This Row],[期首残高]]),"") ->  | H136: =IF(PaymentSchedule[[#This Row],[支払番号]]<>"",PaymentSchedule[[#This Row],[返済総額]]-PaymentSchedule[[#This Row],[利息]],"") ->  | I136: =IF(PaymentSchedule[[#This Row],[支払番号]]<>"",PaymentSchedule[[#This Row],[期首残高]]*(InterestRate/PaymentsPerYear),"") ->  | J136: =IF(PaymentSchedule[[#This Row],[支払番号]]<>"",IF(PaymentSchedule[[#This Row],[返済予定]]+PaymentSchedule[[#This Row],[繰上げ返済額]]<=PaymentSchedule[[#This Row],[期首残高]],PaymentSchedule[[#This Row],[期首残高]]-PaymentSchedule[[#This Row],[元金]],0),"") ->  | K136: =IF(PaymentSchedule[[#This Row],[支払番号]]<>"",SUM(INDEX(PaymentSchedule[利息],1,1):PaymentSchedule[[#This Row],[利息]]),"") -> 
B137: =IF(LoanIsGood,IF(ROW()-ROW(PaymentSchedule[[#Headers],[支払番号]])>支払予定回数,"",ROW()-ROW(PaymentSchedule[[#Headers],[支払番号]])),"") ->  | C137: =IF(PaymentSchedule[[#This Row],[支払番号]]<>"",EOMONTH(LoanStartDate,ROW(PaymentSchedule[[#This Row],[支払番号]])-ROW(PaymentSchedule[[#Headers],[支払番号]])-2)+DAY(LoanStartDate),"") ->  | D137: =IF(PaymentSchedule[[#This Row],[支払番号]]<>"",IF(ROW()-ROW(PaymentSchedule[[#Headers],[期首残高]])=1,借入金額,INDEX(PaymentSchedule[期末残高],ROW()-ROW(PaymentSchedule[[#Headers],[期首残高]])-1)),"") ->  | E137: =IF(PaymentSchedule[[#This Row],[支払番号]]<>"",ScheduledPayment,"") ->  | F137: =IF(PaymentSchedule[[#This Row],[支払番号]]<>"",IF(PaymentSchedule[[#This Row],[返済予定]]+ExtraPayments<PaymentSchedule[[#This Row],[期首残高]],ExtraPayments,IF(PaymentSchedule[[#This Row],[期首残高]]-PaymentSchedule[[#This Row],[返済予定]]>0,PaymentSchedule[[#This Row],[期首残高]]-PaymentSchedule[[#This Row],[返済予定]],0)),"") ->  | G137: =IF(PaymentSchedule[[#This Row],[支払番号]]<>"",IF(PaymentSchedule[[#This Row],[返済予定]]+PaymentSchedule[[#This Row],[繰上げ返済額]]<=PaymentSchedule[[#This Row],[期首残高]],PaymentSchedule[[#This Row],[返済予定]]+PaymentSchedule[[#This Row],[繰上げ返済額]],PaymentSchedule[[#This Row],[期首残高]]),"") ->  | H137: =IF(PaymentSchedule[[#This Row],[支払番号]]<>"",PaymentSchedule[[#This Row],[返済総額]]-PaymentSchedule[[#This Row],[利息]],"") ->  | I137: =IF(PaymentSchedule[[#This Row],[支払番号]]<>"",PaymentSchedule[[#This Row],[期首残高]]*(InterestRate/PaymentsPerYear),"") ->  | J137: =IF(PaymentSchedule[[#This Row],[支払番号]]<>"",IF(PaymentSchedule[[#This Row],[返済予定]]+PaymentSchedule[[#This Row],[繰上げ返済額]]<=PaymentSchedule[[#This Row],[期首残高]],PaymentSchedule[[#This Row],[期首残高]]-PaymentSchedule[[#This Row],[元金]],0),"") ->  | K137: =IF(PaymentSchedule[[#This Row],[支払番号]]<>"",SUM(INDEX(PaymentSchedule[利息],1,1):PaymentSchedule[[#This Row],[利息]]),"") -> 
B138: =IF(LoanIsGood,IF(ROW()-ROW(PaymentSchedule[[#Headers],[支払番号]])>支払予定回数,"",ROW()-ROW(PaymentSchedule[[#Headers],[支払番号]])),"") ->  | C138: =IF(PaymentSchedule[[#This Row],[支払番号]]<>"",EOMONTH(LoanStartDate,ROW(PaymentSchedule[[#This Row],[支払番号]])-ROW(PaymentSchedule[[#Headers],[支払番号]])-2)+DAY(LoanStartDate),"") ->  | D138: =IF(PaymentSchedule[[#This Row],[支払番号]]<>"",IF(ROW()-ROW(PaymentSchedule[[#Headers],[期首残高]])=1,借入金額,INDEX(PaymentSchedule[期末残高],ROW()-ROW(PaymentSchedule[[#Headers],[期首残高]])-1)),"") ->  | E138: =IF(PaymentSchedule[[#This Row],[支払番号]]<>"",ScheduledPayment,"") ->  | F138: =IF(PaymentSchedule[[#This Row],[支払番号]]<>"",IF(PaymentSchedule[[#This Row],[返済予定]]+ExtraPayments<PaymentSchedule[[#This Row],[期首残高]],ExtraPayments,IF(PaymentSchedule[[#This Row],[期首残高]]-PaymentSchedule[[#This Row],[返済予定]]>0,PaymentSchedule[[#This Row],[期首残高]]-PaymentSchedule[[#This Row],[返済予定]],0)),"") ->  | G138: =IF(PaymentSchedule[[#This Row],[支払番号]]<>"",IF(PaymentSchedule[[#This Row],[返済予定]]+PaymentSchedule[[#This Row],[繰上げ返済額]]<=PaymentSchedule[[#This Row],[期首残高]],PaymentSchedule[[#This Row],[返済予定]]+PaymentSchedule[[#This Row],[繰上げ返済額]],PaymentSchedule[[#This Row],[期首残高]]),"") ->  | H138: =IF(PaymentSchedule[[#This Row],[支払番号]]<>"",PaymentSchedule[[#This Row],[返済総額]]-PaymentSchedule[[#This Row],[利息]],"") ->  | I138: =IF(PaymentSchedule[[#This Row],[支払番号]]<>"",PaymentSchedule[[#This Row],[期首残高]]*(InterestRate/PaymentsPerYear),"") ->  | J138: =IF(PaymentSchedule[[#This Row],[支払番号]]<>"",IF(PaymentSchedule[[#This Row],[返済予定]]+PaymentSchedule[[#This Row],[繰上げ返済額]]<=PaymentSchedule[[#This Row],[期首残高]],PaymentSchedule[[#This Row],[期首残高]]-PaymentSchedule[[#This Row],[元金]],0),"") ->  | K138: =IF(PaymentSchedule[[#This Row],[支払番号]]<>"",SUM(INDEX(PaymentSchedule[利息],1,1):PaymentSchedule[[#This Row],[利息]]),"") -> 
B139: =IF(LoanIsGood,IF(ROW()-ROW(PaymentSchedule[[#Headers],[支払番号]])>支払予定回数,"",ROW()-ROW(PaymentSchedule[[#Headers],[支払番号]])),"") ->  | C139: =IF(PaymentSchedule[[#This Row],[支払番号]]<>"",EOMONTH(LoanStartDate,ROW(PaymentSchedule[[#This Row],[支払番号]])-ROW(PaymentSchedule[[#Headers],[支払番号]])-2)+DAY(LoanStartDate),"") ->  | D139: =IF(PaymentSchedule[[#This Row],[支払番号]]<>"",IF(ROW()-ROW(PaymentSchedule[[#Headers],[期首残高]])=1,借入金額,INDEX(PaymentSchedule[期末残高],ROW()-ROW(PaymentSchedule[[#Headers],[期首残高]])-1)),"") ->  | E139: =IF(PaymentSchedule[[#This Row],[支払番号]]<>"",ScheduledPayment,"") ->  | F139: =IF(PaymentSchedule[[#This Row],[支払番号]]<>"",IF(PaymentSchedule[[#This Row],[返済予定]]+ExtraPayments<PaymentSchedule[[#This Row],[期首残高]],ExtraPayments,IF(PaymentSchedule[[#This Row],[期首残高]]-PaymentSchedule[[#This Row],[返済予定]]>0,PaymentSchedule[[#This Row],[期首残高]]-PaymentSchedule[[#This Row],[返済予定]],0)),"") ->  | G139: =IF(PaymentSchedule[[#This Row],[支払番号]]<>"",IF(PaymentSchedule[[#This Row],[返済予定]]+PaymentSchedule[[#This Row],[繰上げ返済額]]<=PaymentSchedule[[#This Row],[期首残高]],PaymentSchedule[[#This Row],[返済予定]]+PaymentSchedule[[#This Row],[繰上げ返済額]],PaymentSchedule[[#This Row],[期首残高]]),"") ->  | H139: =IF(PaymentSchedule[[#This Row],[支払番号]]<>"",PaymentSchedule[[#This Row],[返済総額]]-PaymentSchedule[[#This Row],[利息]],"") ->  | I139: =IF(PaymentSchedule[[#This Row],[支払番号]]<>"",PaymentSchedule[[#This Row],[期首残高]]*(InterestRate/PaymentsPerYear),"") ->  | J139: =IF(PaymentSchedule[[#This Row],[支払番号]]<>"",IF(PaymentSchedule[[#This Row],[返済予定]]+PaymentSchedule[[#This Row],[繰上げ返済額]]<=PaymentSchedule[[#This Row],[期首残高]],PaymentSchedule[[#This Row],[期首残高]]-PaymentSchedule[[#This Row],[元金]],0),"") ->  | K139: =IF(PaymentSchedule[[#This Row],[支払番号]]<>"",SUM(INDEX(PaymentSchedule[利息],1,1):PaymentSchedule[[#This Row],[利息]]),"") -> 
B140: =IF(LoanIsGood,IF(ROW()-ROW(PaymentSchedule[[#Headers],[支払番号]])>支払予定回数,"",ROW()-ROW(PaymentSchedule[[#Headers],[支払番号]])),"") ->  | C140: =IF(PaymentSchedule[[#This Row],[支払番号]]<>"",EOMONTH(LoanStartDate,ROW(PaymentSchedule[[#This Row],[支払番号]])-ROW(PaymentSchedule[[#Headers],[支払番号]])-2)+DAY(LoanStartDate),"") ->  | D140: =IF(PaymentSchedule[[#This Row],[支払番号]]<>"",IF(ROW()-ROW(PaymentSchedule[[#Headers],[期首残高]])=1,借入金額,INDEX(PaymentSchedule[期末残高],ROW()-ROW(PaymentSchedule[[#Headers],[期首残高]])-1)),"") ->  | E140: =IF(PaymentSchedule[[#This Row],[支払番号]]<>"",ScheduledPayment,"") ->  | F140: =IF(PaymentSchedule[[#This Row],[支払番号]]<>"",IF(PaymentSchedule[[#This Row],[返済予定]]+ExtraPayments<PaymentSchedule[[#This Row],[期首残高]],ExtraPayments,IF(PaymentSchedule[[#This Row],[期首残高]]-PaymentSchedule[[#This Row],[返済予定]]>0,PaymentSchedule[[#This Row],[期首残高]]-PaymentSchedule[[#This Row],[返済予定]],0)),"") ->  | G140: =IF(PaymentSchedule[[#This Row],[支払番号]]<>"",IF(PaymentSchedule[[#This Row],[返済予定]]+PaymentSchedule[[#This Row],[繰上げ返済額]]<=PaymentSchedule[[#This Row],[期首残高]],PaymentSchedule[[#This Row],[返済予定]]+PaymentSchedule[[#This Row],[繰上げ返済額]],PaymentSchedule[[#This Row],[期首残高]]),"") ->  | H140: =IF(PaymentSchedule[[#This Row],[支払番号]]<>"",PaymentSchedule[[#This Row],[返済総額]]-PaymentSchedule[[#This Row],[利息]],"") ->  | I140: =IF(PaymentSchedule[[#This Row],[支払番号]]<>"",PaymentSchedule[[#This Row],[期首残高]]*(InterestRate/PaymentsPerYear),"") ->  | J140: =IF(PaymentSchedule[[#This Row],[支払番号]]<>"",IF(PaymentSchedule[[#This Row],[返済予定]]+PaymentSchedule[[#This Row],[繰上げ返済額]]<=PaymentSchedule[[#This Row],[期首残高]],PaymentSchedule[[#This Row],[期首残高]]-PaymentSchedule[[#This Row],[元金]],0),"") ->  | K140: =IF(PaymentSchedule[[#This Row],[支払番号]]<>"",SUM(INDEX(PaymentSchedule[利息],1,1):PaymentSchedule[[#This Row],[利息]]),"") -> 
B141: =IF(LoanIsGood,IF(ROW()-ROW(PaymentSchedule[[#Headers],[支払番号]])>支払予定回数,"",ROW()-ROW(PaymentSchedule[[#Headers],[支払番号]])),"") ->  | C141: =IF(PaymentSchedule[[#This Row],[支払番号]]<>"",EOMONTH(LoanStartDate,ROW(PaymentSchedule[[#This Row],[支払番号]])-ROW(PaymentSchedule[[#Headers],[支払番号]])-2)+DAY(LoanStartDate),"") ->  | D141: =IF(PaymentSchedule[[#This Row],[支払番号]]<>"",IF(ROW()-ROW(PaymentSchedule[[#Headers],[期首残高]])=1,借入金額,INDEX(PaymentSchedule[期末残高],ROW()-ROW(PaymentSchedule[[#Headers],[期首残高]])-1)),"") ->  | E141: =IF(PaymentSchedule[[#This Row],[支払番号]]<>"",ScheduledPayment,"") ->  | F141: =IF(PaymentSchedule[[#This Row],[支払番号]]<>"",IF(PaymentSchedule[[#This Row],[返済予定]]+ExtraPayments<PaymentSchedule[[#This Row],[期首残高]],ExtraPayments,IF(PaymentSchedule[[#This Row],[期首残高]]-PaymentSchedule[[#This Row],[返済予定]]>0,PaymentSchedule[[#This Row],[期首残高]]-PaymentSchedule[[#This Row],[返済予定]],0)),"") ->  | G141: =IF(PaymentSchedule[[#This Row],[支払番号]]<>"",IF(PaymentSchedule[[#This Row],[返済予定]]+PaymentSchedule[[#This Row],[繰上げ返済額]]<=PaymentSchedule[[#This Row],[期首残高]],PaymentSchedule[[#This Row],[返済予定]]+PaymentSchedule[[#This Row],[繰上げ返済額]],PaymentSchedule[[#This Row],[期首残高]]),"") ->  | H141: =IF(PaymentSchedule[[#This Row],[支払番号]]<>"",PaymentSchedule[[#This Row],[返済総額]]-PaymentSchedule[[#This Row],[利息]],"") ->  | I141: =IF(PaymentSchedule[[#This Row],[支払番号]]<>"",PaymentSchedule[[#This Row],[期首残高]]*(InterestRate/PaymentsPerYear),"") ->  | J141: =IF(PaymentSchedule[[#This Row],[支払番号]]<>"",IF(PaymentSchedule[[#This Row],[返済予定]]+PaymentSchedule[[#This Row],[繰上げ返済額]]<=PaymentSchedule[[#This Row],[期首残高]],PaymentSchedule[[#This Row],[期首残高]]-PaymentSchedule[[#This Row],[元金]],0),"") ->  | K141: =IF(PaymentSchedule[[#This Row],[支払番号]]<>"",SUM(INDEX(PaymentSchedule[利息],1,1):PaymentSchedule[[#This Row],[利息]]),"") -> 
B142: =IF(LoanIsGood,IF(ROW()-ROW(PaymentSchedule[[#Headers],[支払番号]])>支払予定回数,"",ROW()-ROW(PaymentSchedule[[#Headers],[支払番号]])),"") ->  | C142: =IF(PaymentSchedule[[#This Row],[支払番号]]<>"",EOMONTH(LoanStartDate,ROW(PaymentSchedule[[#This Row],[支払番号]])-ROW(PaymentSchedule[[#Headers],[支払番号]])-2)+DAY(LoanStartDate),"") ->  | D142: =IF(PaymentSchedule[[#This Row],[支払番号]]<>"",IF(ROW()-ROW(PaymentSchedule[[#Headers],[期首残高]])=1,借入金額,INDEX(PaymentSchedule[期末残高],ROW()-ROW(PaymentSchedule[[#Headers],[期首残高]])-1)),"") ->  | E142: =IF(PaymentSchedule[[#This Row],[支払番号]]<>"",ScheduledPayment,"") ->  | F142: =IF(PaymentSchedule[[#This Row],[支払番号]]<>"",IF(PaymentSchedule[[#This Row],[返済予定]]+ExtraPayments<PaymentSchedule[[#This Row],[期首残高]],ExtraPayments,IF(PaymentSchedule[[#This Row],[期首残高]]-PaymentSchedule[[#This Row],[返済予定]]>0,PaymentSchedule[[#This Row],[期首残高]]-PaymentSchedule[[#This Row],[返済予定]],0)),"") ->  | G142: =IF(PaymentSchedule[[#This Row],[支払番号]]<>"",IF(PaymentSchedule[[#This Row],[返済予定]]+PaymentSchedule[[#This Row],[繰上げ返済額]]<=PaymentSchedule[[#This Row],[期首残高]],PaymentSchedule[[#This Row],[返済予定]]+PaymentSchedule[[#This Row],[繰上げ返済額]],PaymentSchedule[[#This Row],[期首残高]]),"") ->  | H142: =IF(PaymentSchedule[[#This Row],[支払番号]]<>"",PaymentSchedule[[#This Row],[返済総額]]-PaymentSchedule[[#This Row],[利息]],"") ->  | I142: =IF(PaymentSchedule[[#This Row],[支払番号]]<>"",PaymentSchedule[[#This Row],[期首残高]]*(InterestRate/PaymentsPerYear),"") ->  | J142: =IF(PaymentSchedule[[#This Row],[支払番号]]<>"",IF(PaymentSchedule[[#This Row],[返済予定]]+PaymentSchedule[[#This Row],[繰上げ返済額]]<=PaymentSchedule[[#This Row],[期首残高]],PaymentSchedule[[#This Row],[期首残高]]-PaymentSchedule[[#This Row],[元金]],0),"") ->  | K142: =IF(PaymentSchedule[[#This Row],[支払番号]]<>"",SUM(INDEX(PaymentSchedule[利息],1,1):PaymentSchedule[[#This Row],[利息]]),"") -> 
B143: =IF(LoanIsGood,IF(ROW()-ROW(PaymentSchedule[[#Headers],[支払番号]])>支払予定回数,"",ROW()-ROW(PaymentSchedule[[#Headers],[支払番号]])),"") ->  | C143: =IF(PaymentSchedule[[#This Row],[支払番号]]<>"",EOMONTH(LoanStartDate,ROW(PaymentSchedule[[#This Row],[支払番号]])-ROW(PaymentSchedule[[#Headers],[支払番号]])-2)+DAY(LoanStartDate),"") ->  | D143: =IF(PaymentSchedule[[#This Row],[支払番号]]<>"",IF(ROW()-ROW(PaymentSchedule[[#Headers],[期首残高]])=1,借入金額,INDEX(PaymentSchedule[期末残高],ROW()-ROW(PaymentSchedule[[#Headers],[期首残高]])-1)),"") ->  | E143: =IF(PaymentSchedule[[#This Row],[支払番号]]<>"",ScheduledPayment,"") ->  | F143: =IF(PaymentSchedule[[#This Row],[支払番号]]<>"",IF(PaymentSchedule[[#This Row],[返済予定]]+ExtraPayments<PaymentSchedule[[#This Row],[期首残高]],ExtraPayments,IF(PaymentSchedule[[#This Row],[期首残高]]-PaymentSchedule[[#This Row],[返済予定]]>0,PaymentSchedule[[#This Row],[期首残高]]-PaymentSchedule[[#This Row],[返済予定]],0)),"") ->  | G143: =IF(PaymentSchedule[[#This Row],[支払番号]]<>"",IF(PaymentSchedule[[#This Row],[返済予定]]+PaymentSchedule[[#This Row],[繰上げ返済額]]<=PaymentSchedule[[#This Row],[期首残高]],PaymentSchedule[[#This Row],[返済予定]]+PaymentSchedule[[#This Row],[繰上げ返済額]],PaymentSchedule[[#This Row],[期首残高]]),"") ->  | H143: =IF(PaymentSchedule[[#This Row],[支払番号]]<>"",PaymentSchedule[[#This Row],[返済総額]]-PaymentSchedule[[#This Row],[利息]],"") ->  | I143: =IF(PaymentSchedule[[#This Row],[支払番号]]<>"",PaymentSchedule[[#This Row],[期首残高]]*(InterestRate/PaymentsPerYear),"") ->  | J143: =IF(PaymentSchedule[[#This Row],[支払番号]]<>"",IF(PaymentSchedule[[#This Row],[返済予定]]+PaymentSchedule[[#This Row],[繰上げ返済額]]<=PaymentSchedule[[#This Row],[期首残高]],PaymentSchedule[[#This Row],[期首残高]]-PaymentSchedule[[#This Row],[元金]],0),"") ->  | K143: =IF(PaymentSchedule[[#This Row],[支払番号]]<>"",SUM(INDEX(PaymentSchedule[利息],1,1):PaymentSchedule[[#This Row],[利息]]),"") -> 
B144: =IF(LoanIsGood,IF(ROW()-ROW(PaymentSchedule[[#Headers],[支払番号]])>支払予定回数,"",ROW()-ROW(PaymentSchedule[[#Headers],[支払番号]])),"") ->  | C144: =IF(PaymentSchedule[[#This Row],[支払番号]]<>"",EOMONTH(LoanStartDate,ROW(PaymentSchedule[[#This Row],[支払番号]])-ROW(PaymentSchedule[[#Headers],[支払番号]])-2)+DAY(LoanStartDate),"") ->  | D144: =IF(PaymentSchedule[[#This Row],[支払番号]]<>"",IF(ROW()-ROW(PaymentSchedule[[#Headers],[期首残高]])=1,借入金額,INDEX(PaymentSchedule[期末残高],ROW()-ROW(PaymentSchedule[[#Headers],[期首残高]])-1)),"") ->  | E144: =IF(PaymentSchedule[[#This Row],[支払番号]]<>"",ScheduledPayment,"") ->  | F144: =IF(PaymentSchedule[[#This Row],[支払番号]]<>"",IF(PaymentSchedule[[#This Row],[返済予定]]+ExtraPayments<PaymentSchedule[[#This Row],[期首残高]],ExtraPayments,IF(PaymentSchedule[[#This Row],[期首残高]]-PaymentSchedule[[#This Row],[返済予定]]>0,PaymentSchedule[[#This Row],[期首残高]]-PaymentSchedule[[#This Row],[返済予定]],0)),"") ->  | G144: =IF(PaymentSchedule[[#This Row],[支払番号]]<>"",IF(PaymentSchedule[[#This Row],[返済予定]]+PaymentSchedule[[#This Row],[繰上げ返済額]]<=PaymentSchedule[[#This Row],[期首残高]],PaymentSchedule[[#This Row],[返済予定]]+PaymentSchedule[[#This Row],[繰上げ返済額]],PaymentSchedule[[#This Row],[期首残高]]),"") ->  | H144: =IF(PaymentSchedule[[#This Row],[支払番号]]<>"",PaymentSchedule[[#This Row],[返済総額]]-PaymentSchedule[[#This Row],[利息]],"") ->  | I144: =IF(PaymentSchedule[[#This Row],[支払番号]]<>"",PaymentSchedule[[#This Row],[期首残高]]*(InterestRate/PaymentsPerYear),"") ->  | J144: =IF(PaymentSchedule[[#This Row],[支払番号]]<>"",IF(PaymentSchedule[[#This Row],[返済予定]]+PaymentSchedule[[#This Row],[繰上げ返済額]]<=PaymentSchedule[[#This Row],[期首残高]],PaymentSchedule[[#This Row],[期首残高]]-PaymentSchedule[[#This Row],[元金]],0),"") ->  | K144: =IF(PaymentSchedule[[#This Row],[支払番号]]<>"",SUM(INDEX(PaymentSchedule[利息],1,1):PaymentSchedule[[#This Row],[利息]]),"") -> 
B145: =IF(LoanIsGood,IF(ROW()-ROW(PaymentSchedule[[#Headers],[支払番号]])>支払予定回数,"",ROW()-ROW(PaymentSchedule[[#Headers],[支払番号]])),"") ->  | C145: =IF(PaymentSchedule[[#This Row],[支払番号]]<>"",EOMONTH(LoanStartDate,ROW(PaymentSchedule[[#This Row],[支払番号]])-ROW(PaymentSchedule[[#Headers],[支払番号]])-2)+DAY(LoanStartDate),"") ->  | D145: =IF(PaymentSchedule[[#This Row],[支払番号]]<>"",IF(ROW()-ROW(PaymentSchedule[[#Headers],[期首残高]])=1,借入金額,INDEX(PaymentSchedule[期末残高],ROW()-ROW(PaymentSchedule[[#Headers],[期首残高]])-1)),"") ->  | E145: =IF(PaymentSchedule[[#This Row],[支払番号]]<>"",ScheduledPayment,"") ->  | F145: =IF(PaymentSchedule[[#This Row],[支払番号]]<>"",IF(PaymentSchedule[[#This Row],[返済予定]]+ExtraPayments<PaymentSchedule[[#This Row],[期首残高]],ExtraPayments,IF(PaymentSchedule[[#This Row],[期首残高]]-PaymentSchedule[[#This Row],[返済予定]]>0,PaymentSchedule[[#This Row],[期首残高]]-PaymentSchedule[[#This Row],[返済予定]],0)),"") ->  | G145: =IF(PaymentSchedule[[#This Row],[支払番号]]<>"",IF(PaymentSchedule[[#This Row],[返済予定]]+PaymentSchedule[[#This Row],[繰上げ返済額]]<=PaymentSchedule[[#This Row],[期首残高]],PaymentSchedule[[#This Row],[返済予定]]+PaymentSchedule[[#This Row],[繰上げ返済額]],PaymentSchedule[[#This Row],[期首残高]]),"") ->  | H145: =IF(PaymentSchedule[[#This Row],[支払番号]]<>"",PaymentSchedule[[#This Row],[返済総額]]-PaymentSchedule[[#This Row],[利息]],"") ->  | I145: =IF(PaymentSchedule[[#This Row],[支払番号]]<>"",PaymentSchedule[[#This Row],[期首残高]]*(InterestRate/PaymentsPerYear),"") ->  | J145: =IF(PaymentSchedule[[#This Row],[支払番号]]<>"",IF(PaymentSchedule[[#This Row],[返済予定]]+PaymentSchedule[[#This Row],[繰上げ返済額]]<=PaymentSchedule[[#This Row],[期首残高]],PaymentSchedule[[#This Row],[期首残高]]-PaymentSchedule[[#This Row],[元金]],0),"") ->  | K145: =IF(PaymentSchedule[[#This Row],[支払番号]]<>"",SUM(INDEX(PaymentSchedule[利息],1,1):PaymentSchedule[[#This Row],[利息]]),"") -> 
B146: =IF(LoanIsGood,IF(ROW()-ROW(PaymentSchedule[[#Headers],[支払番号]])>支払予定回数,"",ROW()-ROW(PaymentSchedule[[#Headers],[支払番号]])),"") ->  | C146: =IF(PaymentSchedule[[#This Row],[支払番号]]<>"",EOMONTH(LoanStartDate,ROW(PaymentSchedule[[#This Row],[支払番号]])-ROW(PaymentSchedule[[#Headers],[支払番号]])-2)+DAY(LoanStartDate),"") ->  | D146: =IF(PaymentSchedule[[#This Row],[支払番号]]<>"",IF(ROW()-ROW(PaymentSchedule[[#Headers],[期首残高]])=1,借入金額,INDEX(PaymentSchedule[期末残高],ROW()-ROW(PaymentSchedule[[#Headers],[期首残高]])-1)),"") ->  | E146: =IF(PaymentSchedule[[#This Row],[支払番号]]<>"",ScheduledPayment,"") ->  | F146: =IF(PaymentSchedule[[#This Row],[支払番号]]<>"",IF(PaymentSchedule[[#This Row],[返済予定]]+ExtraPayments<PaymentSchedule[[#This Row],[期首残高]],ExtraPayments,IF(PaymentSchedule[[#This Row],[期首残高]]-PaymentSchedule[[#This Row],[返済予定]]>0,PaymentSchedule[[#This Row],[期首残高]]-PaymentSchedule[[#This Row],[返済予定]],0)),"") ->  | G146: =IF(PaymentSchedule[[#This Row],[支払番号]]<>"",IF(PaymentSchedule[[#This Row],[返済予定]]+PaymentSchedule[[#This Row],[繰上げ返済額]]<=PaymentSchedule[[#This Row],[期首残高]],PaymentSchedule[[#This Row],[返済予定]]+PaymentSchedule[[#This Row],[繰上げ返済額]],PaymentSchedule[[#This Row],[期首残高]]),"") ->  | H146: =IF(PaymentSchedule[[#This Row],[支払番号]]<>"",PaymentSchedule[[#This Row],[返済総額]]-PaymentSchedule[[#This Row],[利息]],"") ->  | I146: =IF(PaymentSchedule[[#This Row],[支払番号]]<>"",PaymentSchedule[[#This Row],[期首残高]]*(InterestRate/PaymentsPerYear),"") ->  | J146: =IF(PaymentSchedule[[#This Row],[支払番号]]<>"",IF(PaymentSchedule[[#This Row],[返済予定]]+PaymentSchedule[[#This Row],[繰上げ返済額]]<=PaymentSchedule[[#This Row],[期首残高]],PaymentSchedule[[#This Row],[期首残高]]-PaymentSchedule[[#This Row],[元金]],0),"") ->  | K146: =IF(PaymentSchedule[[#This Row],[支払番号]]<>"",SUM(INDEX(PaymentSchedule[利息],1,1):PaymentSchedule[[#This Row],[利息]]),"") -> 
B147: =IF(LoanIsGood,IF(ROW()-ROW(PaymentSchedule[[#Headers],[支払番号]])>支払予定回数,"",ROW()-ROW(PaymentSchedule[[#Headers],[支払番号]])),"") ->  | C147: =IF(PaymentSchedule[[#This Row],[支払番号]]<>"",EOMONTH(LoanStartDate,ROW(PaymentSchedule[[#This Row],[支払番号]])-ROW(PaymentSchedule[[#Headers],[支払番号]])-2)+DAY(LoanStartDate),"") ->  | D147: =IF(PaymentSchedule[[#This Row],[支払番号]]<>"",IF(ROW()-ROW(PaymentSchedule[[#Headers],[期首残高]])=1,借入金額,INDEX(PaymentSchedule[期末残高],ROW()-ROW(PaymentSchedule[[#Headers],[期首残高]])-1)),"") ->  | E147: =IF(PaymentSchedule[[#This Row],[支払番号]]<>"",ScheduledPayment,"") ->  | F147: =IF(PaymentSchedule[[#This Row],[支払番号]]<>"",IF(PaymentSchedule[[#This Row],[返済予定]]+ExtraPayments<PaymentSchedule[[#This Row],[期首残高]],ExtraPayments,IF(PaymentSchedule[[#This Row],[期首残高]]-PaymentSchedule[[#This Row],[返済予定]]>0,PaymentSchedule[[#This Row],[期首残高]]-PaymentSchedule[[#This Row],[返済予定]],0)),"") ->  | G147: =IF(PaymentSchedule[[#This Row],[支払番号]]<>"",IF(PaymentSchedule[[#This Row],[返済予定]]+PaymentSchedule[[#This Row],[繰上げ返済額]]<=PaymentSchedule[[#This Row],[期首残高]],PaymentSchedule[[#This Row],[返済予定]]+PaymentSchedule[[#This Row],[繰上げ返済額]],PaymentSchedule[[#This Row],[期首残高]]),"") ->  | H147: =IF(PaymentSchedule[[#This Row],[支払番号]]<>"",PaymentSchedule[[#This Row],[返済総額]]-PaymentSchedule[[#This Row],[利息]],"") ->  | I147: =IF(PaymentSchedule[[#This Row],[支払番号]]<>"",PaymentSchedule[[#This Row],[期首残高]]*(InterestRate/PaymentsPerYear),"") ->  | J147: =IF(PaymentSchedule[[#This Row],[支払番号]]<>"",IF(PaymentSchedule[[#This Row],[返済予定]]+PaymentSchedule[[#This Row],[繰上げ返済額]]<=PaymentSchedule[[#This Row],[期首残高]],PaymentSchedule[[#This Row],[期首残高]]-PaymentSchedule[[#This Row],[元金]],0),"") ->  | K147: =IF(PaymentSchedule[[#This Row],[支払番号]]<>"",SUM(INDEX(PaymentSchedule[利息],1,1):PaymentSchedule[[#This Row],[利息]]),"") -> 
B148: =IF(LoanIsGood,IF(ROW()-ROW(PaymentSchedule[[#Headers],[支払番号]])>支払予定回数,"",ROW()-ROW(PaymentSchedule[[#Headers],[支払番号]])),"") ->  | C148: =IF(PaymentSchedule[[#This Row],[支払番号]]<>"",EOMONTH(LoanStartDate,ROW(PaymentSchedule[[#This Row],[支払番号]])-ROW(PaymentSchedule[[#Headers],[支払番号]])-2)+DAY(LoanStartDate),"") ->  | D148: =IF(PaymentSchedule[[#This Row],[支払番号]]<>"",IF(ROW()-ROW(PaymentSchedule[[#Headers],[期首残高]])=1,借入金額,INDEX(PaymentSchedule[期末残高],ROW()-ROW(PaymentSchedule[[#Headers],[期首残高]])-1)),"") ->  | E148: =IF(PaymentSchedule[[#This Row],[支払番号]]<>"",ScheduledPayment,"") ->  | F148: =IF(PaymentSchedule[[#This Row],[支払番号]]<>"",IF(PaymentSchedule[[#This Row],[返済予定]]+ExtraPayments<PaymentSchedule[[#This Row],[期首残高]],ExtraPayments,IF(PaymentSchedule[[#This Row],[期首残高]]-PaymentSchedule[[#This Row],[返済予定]]>0,PaymentSchedule[[#This Row],[期首残高]]-PaymentSchedule[[#This Row],[返済予定]],0)),"") ->  | G148: =IF(PaymentSchedule[[#This Row],[支払番号]]<>"",IF(PaymentSchedule[[#This Row],[返済予定]]+PaymentSchedule[[#This Row],[繰上げ返済額]]<=PaymentSchedule[[#This Row],[期首残高]],PaymentSchedule[[#This Row],[返済予定]]+PaymentSchedule[[#This Row],[繰上げ返済額]],PaymentSchedule[[#This Row],[期首残高]]),"") ->  | H148: =IF(PaymentSchedule[[#This Row],[支払番号]]<>"",PaymentSchedule[[#This Row],[返済総額]]-PaymentSchedule[[#This Row],[利息]],"") ->  | I148: =IF(PaymentSchedule[[#This Row],[支払番号]]<>"",PaymentSchedule[[#This Row],[期首残高]]*(InterestRate/PaymentsPerYear),"") ->  | J148: =IF(PaymentSchedule[[#This Row],[支払番号]]<>"",IF(PaymentSchedule[[#This Row],[返済予定]]+PaymentSchedule[[#This Row],[繰上げ返済額]]<=PaymentSchedule[[#This Row],[期首残高]],PaymentSchedule[[#This Row],[期首残高]]-PaymentSchedule[[#This Row],[元金]],0),"") ->  | K148: =IF(PaymentSchedule[[#This Row],[支払番号]]<>"",SUM(INDEX(PaymentSchedule[利息],1,1):PaymentSchedule[[#This Row],[利息]]),"") -> 
B149: =IF(LoanIsGood,IF(ROW()-ROW(PaymentSchedule[[#Headers],[支払番号]])>支払予定回数,"",ROW()-ROW(PaymentSchedule[[#Headers],[支払番号]])),"") ->  | C149: =IF(PaymentSchedule[[#This Row],[支払番号]]<>"",EOMONTH(LoanStartDate,ROW(PaymentSchedule[[#This Row],[支払番号]])-ROW(PaymentSchedule[[#Headers],[支払番号]])-2)+DAY(LoanStartDate),"") ->  | D149: =IF(PaymentSchedule[[#This Row],[支払番号]]<>"",IF(ROW()-ROW(PaymentSchedule[[#Headers],[期首残高]])=1,借入金額,INDEX(PaymentSchedule[期末残高],ROW()-ROW(PaymentSchedule[[#Headers],[期首残高]])-1)),"") ->  | E149: =IF(PaymentSchedule[[#This Row],[支払番号]]<>"",ScheduledPayment,"") ->  | F149: =IF(PaymentSchedule[[#This Row],[支払番号]]<>"",IF(PaymentSchedule[[#This Row],[返済予定]]+ExtraPayments<PaymentSchedule[[#This Row],[期首残高]],ExtraPayments,IF(PaymentSchedule[[#This Row],[期首残高]]-PaymentSchedule[[#This Row],[返済予定]]>0,PaymentSchedule[[#This Row],[期首残高]]-PaymentSchedule[[#This Row],[返済予定]],0)),"") ->  | G149: =IF(PaymentSchedule[[#This Row],[支払番号]]<>"",IF(PaymentSchedule[[#This Row],[返済予定]]+PaymentSchedule[[#This Row],[繰上げ返済額]]<=PaymentSchedule[[#This Row],[期首残高]],PaymentSchedule[[#This Row],[返済予定]]+PaymentSchedule[[#This Row],[繰上げ返済額]],PaymentSchedule[[#This Row],[期首残高]]),"") ->  | H149: =IF(PaymentSchedule[[#This Row],[支払番号]]<>"",PaymentSchedule[[#This Row],[返済総額]]-PaymentSchedule[[#This Row],[利息]],"") ->  | I149: =IF(PaymentSchedule[[#This Row],[支払番号]]<>"",PaymentSchedule[[#This Row],[期首残高]]*(InterestRate/PaymentsPerYear),"") ->  | J149: =IF(PaymentSchedule[[#This Row],[支払番号]]<>"",IF(PaymentSchedule[[#This Row],[返済予定]]+PaymentSchedule[[#This Row],[繰上げ返済額]]<=PaymentSchedule[[#This Row],[期首残高]],PaymentSchedule[[#This Row],[期首残高]]-PaymentSchedule[[#This Row],[元金]],0),"") ->  | K149: =IF(PaymentSchedule[[#This Row],[支払番号]]<>"",SUM(INDEX(PaymentSchedule[利息],1,1):PaymentSchedule[[#This Row],[利息]]),"") -> 
B150: =IF(LoanIsGood,IF(ROW()-ROW(PaymentSchedule[[#Headers],[支払番号]])>支払予定回数,"",ROW()-ROW(PaymentSchedule[[#Headers],[支払番号]])),"") ->  | C150: =IF(PaymentSchedule[[#This Row],[支払番号]]<>"",EOMONTH(LoanStartDate,ROW(PaymentSchedule[[#This Row],[支払番号]])-ROW(PaymentSchedule[[#Headers],[支払番号]])-2)+DAY(LoanStartDate),"") ->  | D150: =IF(PaymentSchedule[[#This Row],[支払番号]]<>"",IF(ROW()-ROW(PaymentSchedule[[#Headers],[期首残高]])=1,借入金額,INDEX(PaymentSchedule[期末残高],ROW()-ROW(PaymentSchedule[[#Headers],[期首残高]])-1)),"") ->  | E150: =IF(PaymentSchedule[[#This Row],[支払番号]]<>"",ScheduledPayment,"") ->  | F150: =IF(PaymentSchedule[[#This Row],[支払番号]]<>"",IF(PaymentSchedule[[#This Row],[返済予定]]+ExtraPayments<PaymentSchedule[[#This Row],[期首残高]],ExtraPayments,IF(PaymentSchedule[[#This Row],[期首残高]]-PaymentSchedule[[#This Row],[返済予定]]>0,PaymentSchedule[[#This Row],[期首残高]]-PaymentSchedule[[#This Row],[返済予定]],0)),"") ->  | G150: =IF(PaymentSchedule[[#This Row],[支払番号]]<>"",IF(PaymentSchedule[[#This Row],[返済予定]]+PaymentSchedule[[#This Row],[繰上げ返済額]]<=PaymentSchedule[[#This Row],[期首残高]],PaymentSchedule[[#This Row],[返済予定]]+PaymentSchedule[[#This Row],[繰上げ返済額]],PaymentSchedule[[#This Row],[期首残高]]),"") ->  | H150: =IF(PaymentSchedule[[#This Row],[支払番号]]<>"",PaymentSchedule[[#This Row],[返済総額]]-PaymentSchedule[[#This Row],[利息]],"") ->  | I150: =IF(PaymentSchedule[[#This Row],[支払番号]]<>"",PaymentSchedule[[#This Row],[期首残高]]*(InterestRate/PaymentsPerYear),"") ->  | J150: =IF(PaymentSchedule[[#This Row],[支払番号]]<>"",IF(PaymentSchedule[[#This Row],[返済予定]]+PaymentSchedule[[#This Row],[繰上げ返済額]]<=PaymentSchedule[[#This Row],[期首残高]],PaymentSchedule[[#This Row],[期首残高]]-PaymentSchedule[[#This Row],[元金]],0),"") ->  | K150: =IF(PaymentSchedule[[#This Row],[支払番号]]<>"",SUM(INDEX(PaymentSchedule[利息],1,1):PaymentSchedule[[#This Row],[利息]]),"") -> 
B151: =IF(LoanIsGood,IF(ROW()-ROW(PaymentSchedule[[#Headers],[支払番号]])>支払予定回数,"",ROW()-ROW(PaymentSchedule[[#Headers],[支払番号]])),"") ->  | C151: =IF(PaymentSchedule[[#This Row],[支払番号]]<>"",EOMONTH(LoanStartDate,ROW(PaymentSchedule[[#This Row],[支払番号]])-ROW(PaymentSchedule[[#Headers],[支払番号]])-2)+DAY(LoanStartDate),"") ->  | D151: =IF(PaymentSchedule[[#This Row],[支払番号]]<>"",IF(ROW()-ROW(PaymentSchedule[[#Headers],[期首残高]])=1,借入金額,INDEX(PaymentSchedule[期末残高],ROW()-ROW(PaymentSchedule[[#Headers],[期首残高]])-1)),"") ->  | E151: =IF(PaymentSchedule[[#This Row],[支払番号]]<>"",ScheduledPayment,"") ->  | F151: =IF(PaymentSchedule[[#This Row],[支払番号]]<>"",IF(PaymentSchedule[[#This Row],[返済予定]]+ExtraPayments<PaymentSchedule[[#This Row],[期首残高]],ExtraPayments,IF(PaymentSchedule[[#This Row],[期首残高]]-PaymentSchedule[[#This Row],[返済予定]]>0,PaymentSchedule[[#This Row],[期首残高]]-PaymentSchedule[[#This Row],[返済予定]],0)),"") ->  | G151: =IF(PaymentSchedule[[#This Row],[支払番号]]<>"",IF(PaymentSchedule[[#This Row],[返済予定]]+PaymentSchedule[[#This Row],[繰上げ返済額]]<=PaymentSchedule[[#This Row],[期首残高]],PaymentSchedule[[#This Row],[返済予定]]+PaymentSchedule[[#This Row],[繰上げ返済額]],PaymentSchedule[[#This Row],[期首残高]]),"") ->  | H151: =IF(PaymentSchedule[[#This Row],[支払番号]]<>"",PaymentSchedule[[#This Row],[返済総額]]-PaymentSchedule[[#This Row],[利息]],"") ->  | I151: =IF(PaymentSchedule[[#This Row],[支払番号]]<>"",PaymentSchedule[[#This Row],[期首残高]]*(InterestRate/PaymentsPerYear),"") ->  | J151: =IF(PaymentSchedule[[#This Row],[支払番号]]<>"",IF(PaymentSchedule[[#This Row],[返済予定]]+PaymentSchedule[[#This Row],[繰上げ返済額]]<=PaymentSchedule[[#This Row],[期首残高]],PaymentSchedule[[#This Row],[期首残高]]-PaymentSchedule[[#This Row],[元金]],0),"") ->  | K151: =IF(PaymentSchedule[[#This Row],[支払番号]]<>"",SUM(INDEX(PaymentSchedule[利息],1,1):PaymentSchedule[[#This Row],[利息]]),"") -> 
B152: =IF(LoanIsGood,IF(ROW()-ROW(PaymentSchedule[[#Headers],[支払番号]])>支払予定回数,"",ROW()-ROW(PaymentSchedule[[#Headers],[支払番号]])),"") ->  | C152: =IF(PaymentSchedule[[#This Row],[支払番号]]<>"",EOMONTH(LoanStartDate,ROW(PaymentSchedule[[#This Row],[支払番号]])-ROW(PaymentSchedule[[#Headers],[支払番号]])-2)+DAY(LoanStartDate),"") ->  | D152: =IF(PaymentSchedule[[#This Row],[支払番号]]<>"",IF(ROW()-ROW(PaymentSchedule[[#Headers],[期首残高]])=1,借入金額,INDEX(PaymentSchedule[期末残高],ROW()-ROW(PaymentSchedule[[#Headers],[期首残高]])-1)),"") ->  | E152: =IF(PaymentSchedule[[#This Row],[支払番号]]<>"",ScheduledPayment,"") ->  | F152: =IF(PaymentSchedule[[#This Row],[支払番号]]<>"",IF(PaymentSchedule[[#This Row],[返済予定]]+ExtraPayments<PaymentSchedule[[#This Row],[期首残高]],ExtraPayments,IF(PaymentSchedule[[#This Row],[期首残高]]-PaymentSchedule[[#This Row],[返済予定]]>0,PaymentSchedule[[#This Row],[期首残高]]-PaymentSchedule[[#This Row],[返済予定]],0)),"") ->  | G152: =IF(PaymentSchedule[[#This Row],[支払番号]]<>"",IF(PaymentSchedule[[#This Row],[返済予定]]+PaymentSchedule[[#This Row],[繰上げ返済額]]<=PaymentSchedule[[#This Row],[期首残高]],PaymentSchedule[[#This Row],[返済予定]]+PaymentSchedule[[#This Row],[繰上げ返済額]],PaymentSchedule[[#This Row],[期首残高]]),"") ->  | H152: =IF(PaymentSchedule[[#This Row],[支払番号]]<>"",PaymentSchedule[[#This Row],[返済総額]]-PaymentSchedule[[#This Row],[利息]],"") ->  | I152: =IF(PaymentSchedule[[#This Row],[支払番号]]<>"",PaymentSchedule[[#This Row],[期首残高]]*(InterestRate/PaymentsPerYear),"") ->  | J152: =IF(PaymentSchedule[[#This Row],[支払番号]]<>"",IF(PaymentSchedule[[#This Row],[返済予定]]+PaymentSchedule[[#This Row],[繰上げ返済額]]<=PaymentSchedule[[#This Row],[期首残高]],PaymentSchedule[[#This Row],[期首残高]]-PaymentSchedule[[#This Row],[元金]],0),"") ->  | K152: =IF(PaymentSchedule[[#This Row],[支払番号]]<>"",SUM(INDEX(PaymentSchedule[利息],1,1):PaymentSchedule[[#This Row],[利息]]),"") -> 
B153: =IF(LoanIsGood,IF(ROW()-ROW(PaymentSchedule[[#Headers],[支払番号]])>支払予定回数,"",ROW()-ROW(PaymentSchedule[[#Headers],[支払番号]])),"") ->  | C153: =IF(PaymentSchedule[[#This Row],[支払番号]]<>"",EOMONTH(LoanStartDate,ROW(PaymentSchedule[[#This Row],[支払番号]])-ROW(PaymentSchedule[[#Headers],[支払番号]])-2)+DAY(LoanStartDate),"") ->  | D153: =IF(PaymentSchedule[[#This Row],[支払番号]]<>"",IF(ROW()-ROW(PaymentSchedule[[#Headers],[期首残高]])=1,借入金額,INDEX(PaymentSchedule[期末残高],ROW()-ROW(PaymentSchedule[[#Headers],[期首残高]])-1)),"") ->  | E153: =IF(PaymentSchedule[[#This Row],[支払番号]]<>"",ScheduledPayment,"") ->  | F153: =IF(PaymentSchedule[[#This Row],[支払番号]]<>"",IF(PaymentSchedule[[#This Row],[返済予定]]+ExtraPayments<PaymentSchedule[[#This Row],[期首残高]],ExtraPayments,IF(PaymentSchedule[[#This Row],[期首残高]]-PaymentSchedule[[#This Row],[返済予定]]>0,PaymentSchedule[[#This Row],[期首残高]]-PaymentSchedule[[#This Row],[返済予定]],0)),"") ->  | G153: =IF(PaymentSchedule[[#This Row],[支払番号]]<>"",IF(PaymentSchedule[[#This Row],[返済予定]]+PaymentSchedule[[#This Row],[繰上げ返済額]]<=PaymentSchedule[[#This Row],[期首残高]],PaymentSchedule[[#This Row],[返済予定]]+PaymentSchedule[[#This Row],[繰上げ返済額]],PaymentSchedule[[#This Row],[期首残高]]),"") ->  | H153: =IF(PaymentSchedule[[#This Row],[支払番号]]<>"",PaymentSchedule[[#This Row],[返済総額]]-PaymentSchedule[[#This Row],[利息]],"") ->  | I153: =IF(PaymentSchedule[[#This Row],[支払番号]]<>"",PaymentSchedule[[#This Row],[期首残高]]*(InterestRate/PaymentsPerYear),"") ->  | J153: =IF(PaymentSchedule[[#This Row],[支払番号]]<>"",IF(PaymentSchedule[[#This Row],[返済予定]]+PaymentSchedule[[#This Row],[繰上げ返済額]]<=PaymentSchedule[[#This Row],[期首残高]],PaymentSchedule[[#This Row],[期首残高]]-PaymentSchedule[[#This Row],[元金]],0),"") ->  | K153: =IF(PaymentSchedule[[#This Row],[支払番号]]<>"",SUM(INDEX(PaymentSchedule[利息],1,1):PaymentSchedule[[#This Row],[利息]]),"") -> 
B154: =IF(LoanIsGood,IF(ROW()-ROW(PaymentSchedule[[#Headers],[支払番号]])>支払予定回数,"",ROW()-ROW(PaymentSchedule[[#Headers],[支払番号]])),"") ->  | C154: =IF(PaymentSchedule[[#This Row],[支払番号]]<>"",EOMONTH(LoanStartDate,ROW(PaymentSchedule[[#This Row],[支払番号]])-ROW(PaymentSchedule[[#Headers],[支払番号]])-2)+DAY(LoanStartDate),"") ->  | D154: =IF(PaymentSchedule[[#This Row],[支払番号]]<>"",IF(ROW()-ROW(PaymentSchedule[[#Headers],[期首残高]])=1,借入金額,INDEX(PaymentSchedule[期末残高],ROW()-ROW(PaymentSchedule[[#Headers],[期首残高]])-1)),"") ->  | E154: =IF(PaymentSchedule[[#This Row],[支払番号]]<>"",ScheduledPayment,"") ->  | F154: =IF(PaymentSchedule[[#This Row],[支払番号]]<>"",IF(PaymentSchedule[[#This Row],[返済予定]]+ExtraPayments<PaymentSchedule[[#This Row],[期首残高]],ExtraPayments,IF(PaymentSchedule[[#This Row],[期首残高]]-PaymentSchedule[[#This Row],[返済予定]]>0,PaymentSchedule[[#This Row],[期首残高]]-PaymentSchedule[[#This Row],[返済予定]],0)),"") ->  | G154: =IF(PaymentSchedule[[#This Row],[支払番号]]<>"",IF(PaymentSchedule[[#This Row],[返済予定]]+PaymentSchedule[[#This Row],[繰上げ返済額]]<=PaymentSchedule[[#This Row],[期首残高]],PaymentSchedule[[#This Row],[返済予定]]+PaymentSchedule[[#This Row],[繰上げ返済額]],PaymentSchedule[[#This Row],[期首残高]]),"") ->  | H154: =IF(PaymentSchedule[[#This Row],[支払番号]]<>"",PaymentSchedule[[#This Row],[返済総額]]-PaymentSchedule[[#This Row],[利息]],"") ->  | I154: =IF(PaymentSchedule[[#This Row],[支払番号]]<>"",PaymentSchedule[[#This Row],[期首残高]]*(InterestRate/PaymentsPerYear),"") ->  | J154: =IF(PaymentSchedule[[#This Row],[支払番号]]<>"",IF(PaymentSchedule[[#This Row],[返済予定]]+PaymentSchedule[[#This Row],[繰上げ返済額]]<=PaymentSchedule[[#This Row],[期首残高]],PaymentSchedule[[#This Row],[期首残高]]-PaymentSchedule[[#This Row],[元金]],0),"") ->  | K154: =IF(PaymentSchedule[[#This Row],[支払番号]]<>"",SUM(INDEX(PaymentSchedule[利息],1,1):PaymentSchedule[[#This Row],[利息]]),"") -> 
B155: =IF(LoanIsGood,IF(ROW()-ROW(PaymentSchedule[[#Headers],[支払番号]])>支払予定回数,"",ROW()-ROW(PaymentSchedule[[#Headers],[支払番号]])),"") ->  | C155: =IF(PaymentSchedule[[#This Row],[支払番号]]<>"",EOMONTH(LoanStartDate,ROW(PaymentSchedule[[#This Row],[支払番号]])-ROW(PaymentSchedule[[#Headers],[支払番号]])-2)+DAY(LoanStartDate),"") ->  | D155: =IF(PaymentSchedule[[#This Row],[支払番号]]<>"",IF(ROW()-ROW(PaymentSchedule[[#Headers],[期首残高]])=1,借入金額,INDEX(PaymentSchedule[期末残高],ROW()-ROW(PaymentSchedule[[#Headers],[期首残高]])-1)),"") ->  | E155: =IF(PaymentSchedule[[#This Row],[支払番号]]<>"",ScheduledPayment,"") ->  | F155: =IF(PaymentSchedule[[#This Row],[支払番号]]<>"",IF(PaymentSchedule[[#This Row],[返済予定]]+ExtraPayments<PaymentSchedule[[#This Row],[期首残高]],ExtraPayments,IF(PaymentSchedule[[#This Row],[期首残高]]-PaymentSchedule[[#This Row],[返済予定]]>0,PaymentSchedule[[#This Row],[期首残高]]-PaymentSchedule[[#This Row],[返済予定]],0)),"") ->  | G155: =IF(PaymentSchedule[[#This Row],[支払番号]]<>"",IF(PaymentSchedule[[#This Row],[返済予定]]+PaymentSchedule[[#This Row],[繰上げ返済額]]<=PaymentSchedule[[#This Row],[期首残高]],PaymentSchedule[[#This Row],[返済予定]]+PaymentSchedule[[#This Row],[繰上げ返済額]],PaymentSchedule[[#This Row],[期首残高]]),"") ->  | H155: =IF(PaymentSchedule[[#This Row],[支払番号]]<>"",PaymentSchedule[[#This Row],[返済総額]]-PaymentSchedule[[#This Row],[利息]],"") ->  | I155: =IF(PaymentSchedule[[#This Row],[支払番号]]<>"",PaymentSchedule[[#This Row],[期首残高]]*(InterestRate/PaymentsPerYear),"") ->  | J155: =IF(PaymentSchedule[[#This Row],[支払番号]]<>"",IF(PaymentSchedule[[#This Row],[返済予定]]+PaymentSchedule[[#This Row],[繰上げ返済額]]<=PaymentSchedule[[#This Row],[期首残高]],PaymentSchedule[[#This Row],[期首残高]]-PaymentSchedule[[#This Row],[元金]],0),"") ->  | K155: =IF(PaymentSchedule[[#This Row],[支払番号]]<>"",SUM(INDEX(PaymentSchedule[利息],1,1):PaymentSchedule[[#This Row],[利息]]),"") -> 
B156: =IF(LoanIsGood,IF(ROW()-ROW(PaymentSchedule[[#Headers],[支払番号]])>支払予定回数,"",ROW()-ROW(PaymentSchedule[[#Headers],[支払番号]])),"") ->  | C156: =IF(PaymentSchedule[[#This Row],[支払番号]]<>"",EOMONTH(LoanStartDate,ROW(PaymentSchedule[[#This Row],[支払番号]])-ROW(PaymentSchedule[[#Headers],[支払番号]])-2)+DAY(LoanStartDate),"") ->  | D156: =IF(PaymentSchedule[[#This Row],[支払番号]]<>"",IF(ROW()-ROW(PaymentSchedule[[#Headers],[期首残高]])=1,借入金額,INDEX(PaymentSchedule[期末残高],ROW()-ROW(PaymentSchedule[[#Headers],[期首残高]])-1)),"") ->  | E156: =IF(PaymentSchedule[[#This Row],[支払番号]]<>"",ScheduledPayment,"") ->  | F156: =IF(PaymentSchedule[[#This Row],[支払番号]]<>"",IF(PaymentSchedule[[#This Row],[返済予定]]+ExtraPayments<PaymentSchedule[[#This Row],[期首残高]],ExtraPayments,IF(PaymentSchedule[[#This Row],[期首残高]]-PaymentSchedule[[#This Row],[返済予定]]>0,PaymentSchedule[[#This Row],[期首残高]]-PaymentSchedule[[#This Row],[返済予定]],0)),"") ->  | G156: =IF(PaymentSchedule[[#This Row],[支払番号]]<>"",IF(PaymentSchedule[[#This Row],[返済予定]]+PaymentSchedule[[#This Row],[繰上げ返済額]]<=PaymentSchedule[[#This Row],[期首残高]],PaymentSchedule[[#This Row],[返済予定]]+PaymentSchedule[[#This Row],[繰上げ返済額]],PaymentSchedule[[#This Row],[期首残高]]),"") ->  | H156: =IF(PaymentSchedule[[#This Row],[支払番号]]<>"",PaymentSchedule[[#This Row],[返済総額]]-PaymentSchedule[[#This Row],[利息]],"") ->  | I156: =IF(PaymentSchedule[[#This Row],[支払番号]]<>"",PaymentSchedule[[#This Row],[期首残高]]*(InterestRate/PaymentsPerYear),"") ->  | J156: =IF(PaymentSchedule[[#This Row],[支払番号]]<>"",IF(PaymentSchedule[[#This Row],[返済予定]]+PaymentSchedule[[#This Row],[繰上げ返済額]]<=PaymentSchedule[[#This Row],[期首残高]],PaymentSchedule[[#This Row],[期首残高]]-PaymentSchedule[[#This Row],[元金]],0),"") ->  | K156: =IF(PaymentSchedule[[#This Row],[支払番号]]<>"",SUM(INDEX(PaymentSchedule[利息],1,1):PaymentSchedule[[#This Row],[利息]]),"") -> 
B157: =IF(LoanIsGood,IF(ROW()-ROW(PaymentSchedule[[#Headers],[支払番号]])>支払予定回数,"",ROW()-ROW(PaymentSchedule[[#Headers],[支払番号]])),"") ->  | C157: =IF(PaymentSchedule[[#This Row],[支払番号]]<>"",EOMONTH(LoanStartDate,ROW(PaymentSchedule[[#This Row],[支払番号]])-ROW(PaymentSchedule[[#Headers],[支払番号]])-2)+DAY(LoanStartDate),"") ->  | D157: =IF(PaymentSchedule[[#This Row],[支払番号]]<>"",IF(ROW()-ROW(PaymentSchedule[[#Headers],[期首残高]])=1,借入金額,INDEX(PaymentSchedule[期末残高],ROW()-ROW(PaymentSchedule[[#Headers],[期首残高]])-1)),"") ->  | E157: =IF(PaymentSchedule[[#This Row],[支払番号]]<>"",ScheduledPayment,"") ->  | F157: =IF(PaymentSchedule[[#This Row],[支払番号]]<>"",IF(PaymentSchedule[[#This Row],[返済予定]]+ExtraPayments<PaymentSchedule[[#This Row],[期首残高]],ExtraPayments,IF(PaymentSchedule[[#This Row],[期首残高]]-PaymentSchedule[[#This Row],[返済予定]]>0,PaymentSchedule[[#This Row],[期首残高]]-PaymentSchedule[[#This Row],[返済予定]],0)),"") ->  | G157: =IF(PaymentSchedule[[#This Row],[支払番号]]<>"",IF(PaymentSchedule[[#This Row],[返済予定]]+PaymentSchedule[[#This Row],[繰上げ返済額]]<=PaymentSchedule[[#This Row],[期首残高]],PaymentSchedule[[#This Row],[返済予定]]+PaymentSchedule[[#This Row],[繰上げ返済額]],PaymentSchedule[[#This Row],[期首残高]]),"") ->  | H157: =IF(PaymentSchedule[[#This Row],[支払番号]]<>"",PaymentSchedule[[#This Row],[返済総額]]-PaymentSchedule[[#This Row],[利息]],"") ->  | I157: =IF(PaymentSchedule[[#This Row],[支払番号]]<>"",PaymentSchedule[[#This Row],[期首残高]]*(InterestRate/PaymentsPerYear),"") ->  | J157: =IF(PaymentSchedule[[#This Row],[支払番号]]<>"",IF(PaymentSchedule[[#This Row],[返済予定]]+PaymentSchedule[[#This Row],[繰上げ返済額]]<=PaymentSchedule[[#This Row],[期首残高]],PaymentSchedule[[#This Row],[期首残高]]-PaymentSchedule[[#This Row],[元金]],0),"") ->  | K157: =IF(PaymentSchedule[[#This Row],[支払番号]]<>"",SUM(INDEX(PaymentSchedule[利息],1,1):PaymentSchedule[[#This Row],[利息]]),"") -> 
B158: =IF(LoanIsGood,IF(ROW()-ROW(PaymentSchedule[[#Headers],[支払番号]])>支払予定回数,"",ROW()-ROW(PaymentSchedule[[#Headers],[支払番号]])),"") ->  | C158: =IF(PaymentSchedule[[#This Row],[支払番号]]<>"",EOMONTH(LoanStartDate,ROW(PaymentSchedule[[#This Row],[支払番号]])-ROW(PaymentSchedule[[#Headers],[支払番号]])-2)+DAY(LoanStartDate),"") ->  | D158: =IF(PaymentSchedule[[#This Row],[支払番号]]<>"",IF(ROW()-ROW(PaymentSchedule[[#Headers],[期首残高]])=1,借入金額,INDEX(PaymentSchedule[期末残高],ROW()-ROW(PaymentSchedule[[#Headers],[期首残高]])-1)),"") ->  | E158: =IF(PaymentSchedule[[#This Row],[支払番号]]<>"",ScheduledPayment,"") ->  | F158: =IF(PaymentSchedule[[#This Row],[支払番号]]<>"",IF(PaymentSchedule[[#This Row],[返済予定]]+ExtraPayments<PaymentSchedule[[#This Row],[期首残高]],ExtraPayments,IF(PaymentSchedule[[#This Row],[期首残高]]-PaymentSchedule[[#This Row],[返済予定]]>0,PaymentSchedule[[#This Row],[期首残高]]-PaymentSchedule[[#This Row],[返済予定]],0)),"") ->  | G158: =IF(PaymentSchedule[[#This Row],[支払番号]]<>"",IF(PaymentSchedule[[#This Row],[返済予定]]+PaymentSchedule[[#This Row],[繰上げ返済額]]<=PaymentSchedule[[#This Row],[期首残高]],PaymentSchedule[[#This Row],[返済予定]]+PaymentSchedule[[#This Row],[繰上げ返済額]],PaymentSchedule[[#This Row],[期首残高]]),"") ->  | H158: =IF(PaymentSchedule[[#This Row],[支払番号]]<>"",PaymentSchedule[[#This Row],[返済総額]]-PaymentSchedule[[#This Row],[利息]],"") ->  | I158: =IF(PaymentSchedule[[#This Row],[支払番号]]<>"",PaymentSchedule[[#This Row],[期首残高]]*(InterestRate/PaymentsPerYear),"") ->  | J158: =IF(PaymentSchedule[[#This Row],[支払番号]]<>"",IF(PaymentSchedule[[#This Row],[返済予定]]+PaymentSchedule[[#This Row],[繰上げ返済額]]<=PaymentSchedule[[#This Row],[期首残高]],PaymentSchedule[[#This Row],[期首残高]]-PaymentSchedule[[#This Row],[元金]],0),"") ->  | K158: =IF(PaymentSchedule[[#This Row],[支払番号]]<>"",SUM(INDEX(PaymentSchedule[利息],1,1):PaymentSchedule[[#This Row],[利息]]),"") -> 
B159: =IF(LoanIsGood,IF(ROW()-ROW(PaymentSchedule[[#Headers],[支払番号]])>支払予定回数,"",ROW()-ROW(PaymentSchedule[[#Headers],[支払番号]])),"") ->  | C159: =IF(PaymentSchedule[[#This Row],[支払番号]]<>"",EOMONTH(LoanStartDate,ROW(PaymentSchedule[[#This Row],[支払番号]])-ROW(PaymentSchedule[[#Headers],[支払番号]])-2)+DAY(LoanStartDate),"") ->  | D159: =IF(PaymentSchedule[[#This Row],[支払番号]]<>"",IF(ROW()-ROW(PaymentSchedule[[#Headers],[期首残高]])=1,借入金額,INDEX(PaymentSchedule[期末残高],ROW()-ROW(PaymentSchedule[[#Headers],[期首残高]])-1)),"") ->  | E159: =IF(PaymentSchedule[[#This Row],[支払番号]]<>"",ScheduledPayment,"") ->  | F159: =IF(PaymentSchedule[[#This Row],[支払番号]]<>"",IF(PaymentSchedule[[#This Row],[返済予定]]+ExtraPayments<PaymentSchedule[[#This Row],[期首残高]],ExtraPayments,IF(PaymentSchedule[[#This Row],[期首残高]]-PaymentSchedule[[#This Row],[返済予定]]>0,PaymentSchedule[[#This Row],[期首残高]]-PaymentSchedule[[#This Row],[返済予定]],0)),"") ->  | G159: =IF(PaymentSchedule[[#This Row],[支払番号]]<>"",IF(PaymentSchedule[[#This Row],[返済予定]]+PaymentSchedule[[#This Row],[繰上げ返済額]]<=PaymentSchedule[[#This Row],[期首残高]],PaymentSchedule[[#This Row],[返済予定]]+PaymentSchedule[[#This Row],[繰上げ返済額]],PaymentSchedule[[#This Row],[期首残高]]),"") ->  | H159: =IF(PaymentSchedule[[#This Row],[支払番号]]<>"",PaymentSchedule[[#This Row],[返済総額]]-PaymentSchedule[[#This Row],[利息]],"") ->  | I159: =IF(PaymentSchedule[[#This Row],[支払番号]]<>"",PaymentSchedule[[#This Row],[期首残高]]*(InterestRate/PaymentsPerYear),"") ->  | J159: =IF(PaymentSchedule[[#This Row],[支払番号]]<>"",IF(PaymentSchedule[[#This Row],[返済予定]]+PaymentSchedule[[#This Row],[繰上げ返済額]]<=PaymentSchedule[[#This Row],[期首残高]],PaymentSchedule[[#This Row],[期首残高]]-PaymentSchedule[[#This Row],[元金]],0),"") ->  | K159: =IF(PaymentSchedule[[#This Row],[支払番号]]<>"",SUM(INDEX(PaymentSchedule[利息],1,1):PaymentSchedule[[#This Row],[利息]]),"") -> 
B160: =IF(LoanIsGood,IF(ROW()-ROW(PaymentSchedule[[#Headers],[支払番号]])>支払予定回数,"",ROW()-ROW(PaymentSchedule[[#Headers],[支払番号]])),"") ->  | C160: =IF(PaymentSchedule[[#This Row],[支払番号]]<>"",EOMONTH(LoanStartDate,ROW(PaymentSchedule[[#This Row],[支払番号]])-ROW(PaymentSchedule[[#Headers],[支払番号]])-2)+DAY(LoanStartDate),"") ->  | D160: =IF(PaymentSchedule[[#This Row],[支払番号]]<>"",IF(ROW()-ROW(PaymentSchedule[[#Headers],[期首残高]])=1,借入金額,INDEX(PaymentSchedule[期末残高],ROW()-ROW(PaymentSchedule[[#Headers],[期首残高]])-1)),"") ->  | E160: =IF(PaymentSchedule[[#This Row],[支払番号]]<>"",ScheduledPayment,"") ->  | F160: =IF(PaymentSchedule[[#This Row],[支払番号]]<>"",IF(PaymentSchedule[[#This Row],[返済予定]]+ExtraPayments<PaymentSchedule[[#This Row],[期首残高]],ExtraPayments,IF(PaymentSchedule[[#This Row],[期首残高]]-PaymentSchedule[[#This Row],[返済予定]]>0,PaymentSchedule[[#This Row],[期首残高]]-PaymentSchedule[[#This Row],[返済予定]],0)),"") ->  | G160: =IF(PaymentSchedule[[#This Row],[支払番号]]<>"",IF(PaymentSchedule[[#This Row],[返済予定]]+PaymentSchedule[[#This Row],[繰上げ返済額]]<=PaymentSchedule[[#This Row],[期首残高]],PaymentSchedule[[#This Row],[返済予定]]+PaymentSchedule[[#This Row],[繰上げ返済額]],PaymentSchedule[[#This Row],[期首残高]]),"") ->  | H160: =IF(PaymentSchedule[[#This Row],[支払番号]]<>"",PaymentSchedule[[#This Row],[返済総額]]-PaymentSchedule[[#This Row],[利息]],"") ->  | I160: =IF(PaymentSchedule[[#This Row],[支払番号]]<>"",PaymentSchedule[[#This Row],[期首残高]]*(InterestRate/PaymentsPerYear),"") ->  | J160: =IF(PaymentSchedule[[#This Row],[支払番号]]<>"",IF(PaymentSchedule[[#This Row],[返済予定]]+PaymentSchedule[[#This Row],[繰上げ返済額]]<=PaymentSchedule[[#This Row],[期首残高]],PaymentSchedule[[#This Row],[期首残高]]-PaymentSchedule[[#This Row],[元金]],0),"") ->  | K160: =IF(PaymentSchedule[[#This Row],[支払番号]]<>"",SUM(INDEX(PaymentSchedule[利息],1,1):PaymentSchedule[[#This Row],[利息]]),"") -> 
B161: =IF(LoanIsGood,IF(ROW()-ROW(PaymentSchedule[[#Headers],[支払番号]])>支払予定回数,"",ROW()-ROW(PaymentSchedule[[#Headers],[支払番号]])),"") ->  | C161: =IF(PaymentSchedule[[#This Row],[支払番号]]<>"",EOMONTH(LoanStartDate,ROW(PaymentSchedule[[#This Row],[支払番号]])-ROW(PaymentSchedule[[#Headers],[支払番号]])-2)+DAY(LoanStartDate),"") ->  | D161: =IF(PaymentSchedule[[#This Row],[支払番号]]<>"",IF(ROW()-ROW(PaymentSchedule[[#Headers],[期首残高]])=1,借入金額,INDEX(PaymentSchedule[期末残高],ROW()-ROW(PaymentSchedule[[#Headers],[期首残高]])-1)),"") ->  | E161: =IF(PaymentSchedule[[#This Row],[支払番号]]<>"",ScheduledPayment,"") ->  | F161: =IF(PaymentSchedule[[#This Row],[支払番号]]<>"",IF(PaymentSchedule[[#This Row],[返済予定]]+ExtraPayments<PaymentSchedule[[#This Row],[期首残高]],ExtraPayments,IF(PaymentSchedule[[#This Row],[期首残高]]-PaymentSchedule[[#This Row],[返済予定]]>0,PaymentSchedule[[#This Row],[期首残高]]-PaymentSchedule[[#This Row],[返済予定]],0)),"") ->  | G161: =IF(PaymentSchedule[[#This Row],[支払番号]]<>"",IF(PaymentSchedule[[#This Row],[返済予定]]+PaymentSchedule[[#This Row],[繰上げ返済額]]<=PaymentSchedule[[#This Row],[期首残高]],PaymentSchedule[[#This Row],[返済予定]]+PaymentSchedule[[#This Row],[繰上げ返済額]],PaymentSchedule[[#This Row],[期首残高]]),"") ->  | H161: =IF(PaymentSchedule[[#This Row],[支払番号]]<>"",PaymentSchedule[[#This Row],[返済総額]]-PaymentSchedule[[#This Row],[利息]],"") ->  | I161: =IF(PaymentSchedule[[#This Row],[支払番号]]<>"",PaymentSchedule[[#This Row],[期首残高]]*(InterestRate/PaymentsPerYear),"") ->  | J161: =IF(PaymentSchedule[[#This Row],[支払番号]]<>"",IF(PaymentSchedule[[#This Row],[返済予定]]+PaymentSchedule[[#This Row],[繰上げ返済額]]<=PaymentSchedule[[#This Row],[期首残高]],PaymentSchedule[[#This Row],[期首残高]]-PaymentSchedule[[#This Row],[元金]],0),"") ->  | K161: =IF(PaymentSchedule[[#This Row],[支払番号]]<>"",SUM(INDEX(PaymentSchedule[利息],1,1):PaymentSchedule[[#This Row],[利息]]),"") -> 
B162: =IF(LoanIsGood,IF(ROW()-ROW(PaymentSchedule[[#Headers],[支払番号]])>支払予定回数,"",ROW()-ROW(PaymentSchedule[[#Headers],[支払番号]])),"") ->  | C162: =IF(PaymentSchedule[[#This Row],[支払番号]]<>"",EOMONTH(LoanStartDate,ROW(PaymentSchedule[[#This Row],[支払番号]])-ROW(PaymentSchedule[[#Headers],[支払番号]])-2)+DAY(LoanStartDate),"") ->  | D162: =IF(PaymentSchedule[[#This Row],[支払番号]]<>"",IF(ROW()-ROW(PaymentSchedule[[#Headers],[期首残高]])=1,借入金額,INDEX(PaymentSchedule[期末残高],ROW()-ROW(PaymentSchedule[[#Headers],[期首残高]])-1)),"") ->  | E162: =IF(PaymentSchedule[[#This Row],[支払番号]]<>"",ScheduledPayment,"") ->  | F162: =IF(PaymentSchedule[[#This Row],[支払番号]]<>"",IF(PaymentSchedule[[#This Row],[返済予定]]+ExtraPayments<PaymentSchedule[[#This Row],[期首残高]],ExtraPayments,IF(PaymentSchedule[[#This Row],[期首残高]]-PaymentSchedule[[#This Row],[返済予定]]>0,PaymentSchedule[[#This Row],[期首残高]]-PaymentSchedule[[#This Row],[返済予定]],0)),"") ->  | G162: =IF(PaymentSchedule[[#This Row],[支払番号]]<>"",IF(PaymentSchedule[[#This Row],[返済予定]]+PaymentSchedule[[#This Row],[繰上げ返済額]]<=PaymentSchedule[[#This Row],[期首残高]],PaymentSchedule[[#This Row],[返済予定]]+PaymentSchedule[[#This Row],[繰上げ返済額]],PaymentSchedule[[#This Row],[期首残高]]),"") ->  | H162: =IF(PaymentSchedule[[#This Row],[支払番号]]<>"",PaymentSchedule[[#This Row],[返済総額]]-PaymentSchedule[[#This Row],[利息]],"") ->  | I162: =IF(PaymentSchedule[[#This Row],[支払番号]]<>"",PaymentSchedule[[#This Row],[期首残高]]*(InterestRate/PaymentsPerYear),"") ->  | J162: =IF(PaymentSchedule[[#This Row],[支払番号]]<>"",IF(PaymentSchedule[[#This Row],[返済予定]]+PaymentSchedule[[#This Row],[繰上げ返済額]]<=PaymentSchedule[[#This Row],[期首残高]],PaymentSchedule[[#This Row],[期首残高]]-PaymentSchedule[[#This Row],[元金]],0),"") ->  | K162: =IF(PaymentSchedule[[#This Row],[支払番号]]<>"",SUM(INDEX(PaymentSchedule[利息],1,1):PaymentSchedule[[#This Row],[利息]]),"") -> 
B163: =IF(LoanIsGood,IF(ROW()-ROW(PaymentSchedule[[#Headers],[支払番号]])>支払予定回数,"",ROW()-ROW(PaymentSchedule[[#Headers],[支払番号]])),"") ->  | C163: =IF(PaymentSchedule[[#This Row],[支払番号]]<>"",EOMONTH(LoanStartDate,ROW(PaymentSchedule[[#This Row],[支払番号]])-ROW(PaymentSchedule[[#Headers],[支払番号]])-2)+DAY(LoanStartDate),"") ->  | D163: =IF(PaymentSchedule[[#This Row],[支払番号]]<>"",IF(ROW()-ROW(PaymentSchedule[[#Headers],[期首残高]])=1,借入金額,INDEX(PaymentSchedule[期末残高],ROW()-ROW(PaymentSchedule[[#Headers],[期首残高]])-1)),"") ->  | E163: =IF(PaymentSchedule[[#This Row],[支払番号]]<>"",ScheduledPayment,"") ->  | F163: =IF(PaymentSchedule[[#This Row],[支払番号]]<>"",IF(PaymentSchedule[[#This Row],[返済予定]]+ExtraPayments<PaymentSchedule[[#This Row],[期首残高]],ExtraPayments,IF(PaymentSchedule[[#This Row],[期首残高]]-PaymentSchedule[[#This Row],[返済予定]]>0,PaymentSchedule[[#This Row],[期首残高]]-PaymentSchedule[[#This Row],[返済予定]],0)),"") ->  | G163: =IF(PaymentSchedule[[#This Row],[支払番号]]<>"",IF(PaymentSchedule[[#This Row],[返済予定]]+PaymentSchedule[[#This Row],[繰上げ返済額]]<=PaymentSchedule[[#This Row],[期首残高]],PaymentSchedule[[#This Row],[返済予定]]+PaymentSchedule[[#This Row],[繰上げ返済額]],PaymentSchedule[[#This Row],[期首残高]]),"") ->  | H163: =IF(PaymentSchedule[[#This Row],[支払番号]]<>"",PaymentSchedule[[#This Row],[返済総額]]-PaymentSchedule[[#This Row],[利息]],"") ->  | I163: =IF(PaymentSchedule[[#This Row],[支払番号]]<>"",PaymentSchedule[[#This Row],[期首残高]]*(InterestRate/PaymentsPerYear),"") ->  | J163: =IF(PaymentSchedule[[#This Row],[支払番号]]<>"",IF(PaymentSchedule[[#This Row],[返済予定]]+PaymentSchedule[[#This Row],[繰上げ返済額]]<=PaymentSchedule[[#This Row],[期首残高]],PaymentSchedule[[#This Row],[期首残高]]-PaymentSchedule[[#This Row],[元金]],0),"") ->  | K163: =IF(PaymentSchedule[[#This Row],[支払番号]]<>"",SUM(INDEX(PaymentSchedule[利息],1,1):PaymentSchedule[[#This Row],[利息]]),"") -> 
B164: =IF(LoanIsGood,IF(ROW()-ROW(PaymentSchedule[[#Headers],[支払番号]])>支払予定回数,"",ROW()-ROW(PaymentSchedule[[#Headers],[支払番号]])),"") ->  | C164: =IF(PaymentSchedule[[#This Row],[支払番号]]<>"",EOMONTH(LoanStartDate,ROW(PaymentSchedule[[#This Row],[支払番号]])-ROW(PaymentSchedule[[#Headers],[支払番号]])-2)+DAY(LoanStartDate),"") ->  | D164: =IF(PaymentSchedule[[#This Row],[支払番号]]<>"",IF(ROW()-ROW(PaymentSchedule[[#Headers],[期首残高]])=1,借入金額,INDEX(PaymentSchedule[期末残高],ROW()-ROW(PaymentSchedule[[#Headers],[期首残高]])-1)),"") ->  | E164: =IF(PaymentSchedule[[#This Row],[支払番号]]<>"",ScheduledPayment,"") ->  | F164: =IF(PaymentSchedule[[#This Row],[支払番号]]<>"",IF(PaymentSchedule[[#This Row],[返済予定]]+ExtraPayments<PaymentSchedule[[#This Row],[期首残高]],ExtraPayments,IF(PaymentSchedule[[#This Row],[期首残高]]-PaymentSchedule[[#This Row],[返済予定]]>0,PaymentSchedule[[#This Row],[期首残高]]-PaymentSchedule[[#This Row],[返済予定]],0)),"") ->  | G164: =IF(PaymentSchedule[[#This Row],[支払番号]]<>"",IF(PaymentSchedule[[#This Row],[返済予定]]+PaymentSchedule[[#This Row],[繰上げ返済額]]<=PaymentSchedule[[#This Row],[期首残高]],PaymentSchedule[[#This Row],[返済予定]]+PaymentSchedule[[#This Row],[繰上げ返済額]],PaymentSchedule[[#This Row],[期首残高]]),"") ->  | H164: =IF(PaymentSchedule[[#This Row],[支払番号]]<>"",PaymentSchedule[[#This Row],[返済総額]]-PaymentSchedule[[#This Row],[利息]],"") ->  | I164: =IF(PaymentSchedule[[#This Row],[支払番号]]<>"",PaymentSchedule[[#This Row],[期首残高]]*(InterestRate/PaymentsPerYear),"") ->  | J164: =IF(PaymentSchedule[[#This Row],[支払番号]]<>"",IF(PaymentSchedule[[#This Row],[返済予定]]+PaymentSchedule[[#This Row],[繰上げ返済額]]<=PaymentSchedule[[#This Row],[期首残高]],PaymentSchedule[[#This Row],[期首残高]]-PaymentSchedule[[#This Row],[元金]],0),"") ->  | K164: =IF(PaymentSchedule[[#This Row],[支払番号]]<>"",SUM(INDEX(PaymentSchedule[利息],1,1):PaymentSchedule[[#This Row],[利息]]),"") -> 
B165: =IF(LoanIsGood,IF(ROW()-ROW(PaymentSchedule[[#Headers],[支払番号]])>支払予定回数,"",ROW()-ROW(PaymentSchedule[[#Headers],[支払番号]])),"") ->  | C165: =IF(PaymentSchedule[[#This Row],[支払番号]]<>"",EOMONTH(LoanStartDate,ROW(PaymentSchedule[[#This Row],[支払番号]])-ROW(PaymentSchedule[[#Headers],[支払番号]])-2)+DAY(LoanStartDate),"") ->  | D165: =IF(PaymentSchedule[[#This Row],[支払番号]]<>"",IF(ROW()-ROW(PaymentSchedule[[#Headers],[期首残高]])=1,借入金額,INDEX(PaymentSchedule[期末残高],ROW()-ROW(PaymentSchedule[[#Headers],[期首残高]])-1)),"") ->  | E165: =IF(PaymentSchedule[[#This Row],[支払番号]]<>"",ScheduledPayment,"") ->  | F165: =IF(PaymentSchedule[[#This Row],[支払番号]]<>"",IF(PaymentSchedule[[#This Row],[返済予定]]+ExtraPayments<PaymentSchedule[[#This Row],[期首残高]],ExtraPayments,IF(PaymentSchedule[[#This Row],[期首残高]]-PaymentSchedule[[#This Row],[返済予定]]>0,PaymentSchedule[[#This Row],[期首残高]]-PaymentSchedule[[#This Row],[返済予定]],0)),"") ->  | G165: =IF(PaymentSchedule[[#This Row],[支払番号]]<>"",IF(PaymentSchedule[[#This Row],[返済予定]]+PaymentSchedule[[#This Row],[繰上げ返済額]]<=PaymentSchedule[[#This Row],[期首残高]],PaymentSchedule[[#This Row],[返済予定]]+PaymentSchedule[[#This Row],[繰上げ返済額]],PaymentSchedule[[#This Row],[期首残高]]),"") ->  | H165: =IF(PaymentSchedule[[#This Row],[支払番号]]<>"",PaymentSchedule[[#This Row],[返済総額]]-PaymentSchedule[[#This Row],[利息]],"") ->  | I165: =IF(PaymentSchedule[[#This Row],[支払番号]]<>"",PaymentSchedule[[#This Row],[期首残高]]*(InterestRate/PaymentsPerYear),"") ->  | J165: =IF(PaymentSchedule[[#This Row],[支払番号]]<>"",IF(PaymentSchedule[[#This Row],[返済予定]]+PaymentSchedule[[#This Row],[繰上げ返済額]]<=PaymentSchedule[[#This Row],[期首残高]],PaymentSchedule[[#This Row],[期首残高]]-PaymentSchedule[[#This Row],[元金]],0),"") ->  | K165: =IF(PaymentSchedule[[#This Row],[支払番号]]<>"",SUM(INDEX(PaymentSchedule[利息],1,1):PaymentSchedule[[#This Row],[利息]]),"") -> 
B166: =IF(LoanIsGood,IF(ROW()-ROW(PaymentSchedule[[#Headers],[支払番号]])>支払予定回数,"",ROW()-ROW(PaymentSchedule[[#Headers],[支払番号]])),"") ->  | C166: =IF(PaymentSchedule[[#This Row],[支払番号]]<>"",EOMONTH(LoanStartDate,ROW(PaymentSchedule[[#This Row],[支払番号]])-ROW(PaymentSchedule[[#Headers],[支払番号]])-2)+DAY(LoanStartDate),"") ->  | D166: =IF(PaymentSchedule[[#This Row],[支払番号]]<>"",IF(ROW()-ROW(PaymentSchedule[[#Headers],[期首残高]])=1,借入金額,INDEX(PaymentSchedule[期末残高],ROW()-ROW(PaymentSchedule[[#Headers],[期首残高]])-1)),"") ->  | E166: =IF(PaymentSchedule[[#This Row],[支払番号]]<>"",ScheduledPayment,"") ->  | F166: =IF(PaymentSchedule[[#This Row],[支払番号]]<>"",IF(PaymentSchedule[[#This Row],[返済予定]]+ExtraPayments<PaymentSchedule[[#This Row],[期首残高]],ExtraPayments,IF(PaymentSchedule[[#This Row],[期首残高]]-PaymentSchedule[[#This Row],[返済予定]]>0,PaymentSchedule[[#This Row],[期首残高]]-PaymentSchedule[[#This Row],[返済予定]],0)),"") ->  | G166: =IF(PaymentSchedule[[#This Row],[支払番号]]<>"",IF(PaymentSchedule[[#This Row],[返済予定]]+PaymentSchedule[[#This Row],[繰上げ返済額]]<=PaymentSchedule[[#This Row],[期首残高]],PaymentSchedule[[#This Row],[返済予定]]+PaymentSchedule[[#This Row],[繰上げ返済額]],PaymentSchedule[[#This Row],[期首残高]]),"") ->  | H166: =IF(PaymentSchedule[[#This Row],[支払番号]]<>"",PaymentSchedule[[#This Row],[返済総額]]-PaymentSchedule[[#This Row],[利息]],"") ->  | I166: =IF(PaymentSchedule[[#This Row],[支払番号]]<>"",PaymentSchedule[[#This Row],[期首残高]]*(InterestRate/PaymentsPerYear),"") ->  | J166: =IF(PaymentSchedule[[#This Row],[支払番号]]<>"",IF(PaymentSchedule[[#This Row],[返済予定]]+PaymentSchedule[[#This Row],[繰上げ返済額]]<=PaymentSchedule[[#This Row],[期首残高]],PaymentSchedule[[#This Row],[期首残高]]-PaymentSchedule[[#This Row],[元金]],0),"") ->  | K166: =IF(PaymentSchedule[[#This Row],[支払番号]]<>"",SUM(INDEX(PaymentSchedule[利息],1,1):PaymentSchedule[[#This Row],[利息]]),"") -> 
B167: =IF(LoanIsGood,IF(ROW()-ROW(PaymentSchedule[[#Headers],[支払番号]])>支払予定回数,"",ROW()-ROW(PaymentSchedule[[#Headers],[支払番号]])),"") ->  | C167: =IF(PaymentSchedule[[#This Row],[支払番号]]<>"",EOMONTH(LoanStartDate,ROW(PaymentSchedule[[#This Row],[支払番号]])-ROW(PaymentSchedule[[#Headers],[支払番号]])-2)+DAY(LoanStartDate),"") ->  | D167: =IF(PaymentSchedule[[#This Row],[支払番号]]<>"",IF(ROW()-ROW(PaymentSchedule[[#Headers],[期首残高]])=1,借入金額,INDEX(PaymentSchedule[期末残高],ROW()-ROW(PaymentSchedule[[#Headers],[期首残高]])-1)),"") ->  | E167: =IF(PaymentSchedule[[#This Row],[支払番号]]<>"",ScheduledPayment,"") ->  | F167: =IF(PaymentSchedule[[#This Row],[支払番号]]<>"",IF(PaymentSchedule[[#This Row],[返済予定]]+ExtraPayments<PaymentSchedule[[#This Row],[期首残高]],ExtraPayments,IF(PaymentSchedule[[#This Row],[期首残高]]-PaymentSchedule[[#This Row],[返済予定]]>0,PaymentSchedule[[#This Row],[期首残高]]-PaymentSchedule[[#This Row],[返済予定]],0)),"") ->  | G167: =IF(PaymentSchedule[[#This Row],[支払番号]]<>"",IF(PaymentSchedule[[#This Row],[返済予定]]+PaymentSchedule[[#This Row],[繰上げ返済額]]<=PaymentSchedule[[#This Row],[期首残高]],PaymentSchedule[[#This Row],[返済予定]]+PaymentSchedule[[#This Row],[繰上げ返済額]],PaymentSchedule[[#This Row],[期首残高]]),"") ->  | H167: =IF(PaymentSchedule[[#This Row],[支払番号]]<>"",PaymentSchedule[[#This Row],[返済総額]]-PaymentSchedule[[#This Row],[利息]],"") ->  | I167: =IF(PaymentSchedule[[#This Row],[支払番号]]<>"",PaymentSchedule[[#This Row],[期首残高]]*(InterestRate/PaymentsPerYear),"") ->  | J167: =IF(PaymentSchedule[[#This Row],[支払番号]]<>"",IF(PaymentSchedule[[#This Row],[返済予定]]+PaymentSchedule[[#This Row],[繰上げ返済額]]<=PaymentSchedule[[#This Row],[期首残高]],PaymentSchedule[[#This Row],[期首残高]]-PaymentSchedule[[#This Row],[元金]],0),"") ->  | K167: =IF(PaymentSchedule[[#This Row],[支払番号]]<>"",SUM(INDEX(PaymentSchedule[利息],1,1):PaymentSchedule[[#This Row],[利息]]),"") -> 
B168: =IF(LoanIsGood,IF(ROW()-ROW(PaymentSchedule[[#Headers],[支払番号]])>支払予定回数,"",ROW()-ROW(PaymentSchedule[[#Headers],[支払番号]])),"") ->  | C168: =IF(PaymentSchedule[[#This Row],[支払番号]]<>"",EOMONTH(LoanStartDate,ROW(PaymentSchedule[[#This Row],[支払番号]])-ROW(PaymentSchedule[[#Headers],[支払番号]])-2)+DAY(LoanStartDate),"") ->  | D168: =IF(PaymentSchedule[[#This Row],[支払番号]]<>"",IF(ROW()-ROW(PaymentSchedule[[#Headers],[期首残高]])=1,借入金額,INDEX(PaymentSchedule[期末残高],ROW()-ROW(PaymentSchedule[[#Headers],[期首残高]])-1)),"") ->  | E168: =IF(PaymentSchedule[[#This Row],[支払番号]]<>"",ScheduledPayment,"") ->  | F168: =IF(PaymentSchedule[[#This Row],[支払番号]]<>"",IF(PaymentSchedule[[#This Row],[返済予定]]+ExtraPayments<PaymentSchedule[[#This Row],[期首残高]],ExtraPayments,IF(PaymentSchedule[[#This Row],[期首残高]]-PaymentSchedule[[#This Row],[返済予定]]>0,PaymentSchedule[[#This Row],[期首残高]]-PaymentSchedule[[#This Row],[返済予定]],0)),"") ->  | G168: =IF(PaymentSchedule[[#This Row],[支払番号]]<>"",IF(PaymentSchedule[[#This Row],[返済予定]]+PaymentSchedule[[#This Row],[繰上げ返済額]]<=PaymentSchedule[[#This Row],[期首残高]],PaymentSchedule[[#This Row],[返済予定]]+PaymentSchedule[[#This Row],[繰上げ返済額]],PaymentSchedule[[#This Row],[期首残高]]),"") ->  | H168: =IF(PaymentSchedule[[#This Row],[支払番号]]<>"",PaymentSchedule[[#This Row],[返済総額]]-PaymentSchedule[[#This Row],[利息]],"") ->  | I168: =IF(PaymentSchedule[[#This Row],[支払番号]]<>"",PaymentSchedule[[#This Row],[期首残高]]*(InterestRate/PaymentsPerYear),"") ->  | J168: =IF(PaymentSchedule[[#This Row],[支払番号]]<>"",IF(PaymentSchedule[[#This Row],[返済予定]]+PaymentSchedule[[#This Row],[繰上げ返済額]]<=PaymentSchedule[[#This Row],[期首残高]],PaymentSchedule[[#This Row],[期首残高]]-PaymentSchedule[[#This Row],[元金]],0),"") ->  | K168: =IF(PaymentSchedule[[#This Row],[支払番号]]<>"",SUM(INDEX(PaymentSchedule[利息],1,1):PaymentSchedule[[#This Row],[利息]]),"") -> 
B169: =IF(LoanIsGood,IF(ROW()-ROW(PaymentSchedule[[#Headers],[支払番号]])>支払予定回数,"",ROW()-ROW(PaymentSchedule[[#Headers],[支払番号]])),"") ->  | C169: =IF(PaymentSchedule[[#This Row],[支払番号]]<>"",EOMONTH(LoanStartDate,ROW(PaymentSchedule[[#This Row],[支払番号]])-ROW(PaymentSchedule[[#Headers],[支払番号]])-2)+DAY(LoanStartDate),"") ->  | D169: =IF(PaymentSchedule[[#This Row],[支払番号]]<>"",IF(ROW()-ROW(PaymentSchedule[[#Headers],[期首残高]])=1,借入金額,INDEX(PaymentSchedule[期末残高],ROW()-ROW(PaymentSchedule[[#Headers],[期首残高]])-1)),"") ->  | E169: =IF(PaymentSchedule[[#This Row],[支払番号]]<>"",ScheduledPayment,"") ->  | F169: =IF(PaymentSchedule[[#This Row],[支払番号]]<>"",IF(PaymentSchedule[[#This Row],[返済予定]]+ExtraPayments<PaymentSchedule[[#This Row],[期首残高]],ExtraPayments,IF(PaymentSchedule[[#This Row],[期首残高]]-PaymentSchedule[[#This Row],[返済予定]]>0,PaymentSchedule[[#This Row],[期首残高]]-PaymentSchedule[[#This Row],[返済予定]],0)),"") ->  | G169: =IF(PaymentSchedule[[#This Row],[支払番号]]<>"",IF(PaymentSchedule[[#This Row],[返済予定]]+PaymentSchedule[[#This Row],[繰上げ返済額]]<=PaymentSchedule[[#This Row],[期首残高]],PaymentSchedule[[#This Row],[返済予定]]+PaymentSchedule[[#This Row],[繰上げ返済額]],PaymentSchedule[[#This Row],[期首残高]]),"") ->  | H169: =IF(PaymentSchedule[[#This Row],[支払番号]]<>"",PaymentSchedule[[#This Row],[返済総額]]-PaymentSchedule[[#This Row],[利息]],"") ->  | I169: =IF(PaymentSchedule[[#This Row],[支払番号]]<>"",PaymentSchedule[[#This Row],[期首残高]]*(InterestRate/PaymentsPerYear),"") ->  | J169: =IF(PaymentSchedule[[#This Row],[支払番号]]<>"",IF(PaymentSchedule[[#This Row],[返済予定]]+PaymentSchedule[[#This Row],[繰上げ返済額]]<=PaymentSchedule[[#This Row],[期首残高]],PaymentSchedule[[#This Row],[期首残高]]-PaymentSchedule[[#This Row],[元金]],0),"") ->  | K169: =IF(PaymentSchedule[[#This Row],[支払番号]]<>"",SUM(INDEX(PaymentSchedule[利息],1,1):PaymentSchedule[[#This Row],[利息]]),"") -> 
B170: =IF(LoanIsGood,IF(ROW()-ROW(PaymentSchedule[[#Headers],[支払番号]])>支払予定回数,"",ROW()-ROW(PaymentSchedule[[#Headers],[支払番号]])),"") ->  | C170: =IF(PaymentSchedule[[#This Row],[支払番号]]<>"",EOMONTH(LoanStartDate,ROW(PaymentSchedule[[#This Row],[支払番号]])-ROW(PaymentSchedule[[#Headers],[支払番号]])-2)+DAY(LoanStartDate),"") ->  | D170: =IF(PaymentSchedule[[#This Row],[支払番号]]<>"",IF(ROW()-ROW(PaymentSchedule[[#Headers],[期首残高]])=1,借入金額,INDEX(PaymentSchedule[期末残高],ROW()-ROW(PaymentSchedule[[#Headers],[期首残高]])-1)),"") ->  | E170: =IF(PaymentSchedule[[#This Row],[支払番号]]<>"",ScheduledPayment,"") ->  | F170: =IF(PaymentSchedule[[#This Row],[支払番号]]<>"",IF(PaymentSchedule[[#This Row],[返済予定]]+ExtraPayments<PaymentSchedule[[#This Row],[期首残高]],ExtraPayments,IF(PaymentSchedule[[#This Row],[期首残高]]-PaymentSchedule[[#This Row],[返済予定]]>0,PaymentSchedule[[#This Row],[期首残高]]-PaymentSchedule[[#This Row],[返済予定]],0)),"") ->  | G170: =IF(PaymentSchedule[[#This Row],[支払番号]]<>"",IF(PaymentSchedule[[#This Row],[返済予定]]+PaymentSchedule[[#This Row],[繰上げ返済額]]<=PaymentSchedule[[#This Row],[期首残高]],PaymentSchedule[[#This Row],[返済予定]]+PaymentSchedule[[#This Row],[繰上げ返済額]],PaymentSchedule[[#This Row],[期首残高]]),"") ->  | H170: =IF(PaymentSchedule[[#This Row],[支払番号]]<>"",PaymentSchedule[[#This Row],[返済総額]]-PaymentSchedule[[#This Row],[利息]],"") ->  | I170: =IF(PaymentSchedule[[#This Row],[支払番号]]<>"",PaymentSchedule[[#This Row],[期首残高]]*(InterestRate/PaymentsPerYear),"") ->  | J170: =IF(PaymentSchedule[[#This Row],[支払番号]]<>"",IF(PaymentSchedule[[#This Row],[返済予定]]+PaymentSchedule[[#This Row],[繰上げ返済額]]<=PaymentSchedule[[#This Row],[期首残高]],PaymentSchedule[[#This Row],[期首残高]]-PaymentSchedule[[#This Row],[元金]],0),"") ->  | K170: =IF(PaymentSchedule[[#This Row],[支払番号]]<>"",SUM(INDEX(PaymentSchedule[利息],1,1):PaymentSchedule[[#This Row],[利息]]),"") -> 
B171: =IF(LoanIsGood,IF(ROW()-ROW(PaymentSchedule[[#Headers],[支払番号]])>支払予定回数,"",ROW()-ROW(PaymentSchedule[[#Headers],[支払番号]])),"") ->  | C171: =IF(PaymentSchedule[[#This Row],[支払番号]]<>"",EOMONTH(LoanStartDate,ROW(PaymentSchedule[[#This Row],[支払番号]])-ROW(PaymentSchedule[[#Headers],[支払番号]])-2)+DAY(LoanStartDate),"") ->  | D171: =IF(PaymentSchedule[[#This Row],[支払番号]]<>"",IF(ROW()-ROW(PaymentSchedule[[#Headers],[期首残高]])=1,借入金額,INDEX(PaymentSchedule[期末残高],ROW()-ROW(PaymentSchedule[[#Headers],[期首残高]])-1)),"") ->  | E171: =IF(PaymentSchedule[[#This Row],[支払番号]]<>"",ScheduledPayment,"") ->  | F171: =IF(PaymentSchedule[[#This Row],[支払番号]]<>"",IF(PaymentSchedule[[#This Row],[返済予定]]+ExtraPayments<PaymentSchedule[[#This Row],[期首残高]],ExtraPayments,IF(PaymentSchedule[[#This Row],[期首残高]]-PaymentSchedule[[#This Row],[返済予定]]>0,PaymentSchedule[[#This Row],[期首残高]]-PaymentSchedule[[#This Row],[返済予定]],0)),"") ->  | G171: =IF(PaymentSchedule[[#This Row],[支払番号]]<>"",IF(PaymentSchedule[[#This Row],[返済予定]]+PaymentSchedule[[#This Row],[繰上げ返済額]]<=PaymentSchedule[[#This Row],[期首残高]],PaymentSchedule[[#This Row],[返済予定]]+PaymentSchedule[[#This Row],[繰上げ返済額]],PaymentSchedule[[#This Row],[期首残高]]),"") ->  | H171: =IF(PaymentSchedule[[#This Row],[支払番号]]<>"",PaymentSchedule[[#This Row],[返済総額]]-PaymentSchedule[[#This Row],[利息]],"") ->  | I171: =IF(PaymentSchedule[[#This Row],[支払番号]]<>"",PaymentSchedule[[#This Row],[期首残高]]*(InterestRate/PaymentsPerYear),"") ->  | J171: =IF(PaymentSchedule[[#This Row],[支払番号]]<>"",IF(PaymentSchedule[[#This Row],[返済予定]]+PaymentSchedule[[#This Row],[繰上げ返済額]]<=PaymentSchedule[[#This Row],[期首残高]],PaymentSchedule[[#This Row],[期首残高]]-PaymentSchedule[[#This Row],[元金]],0),"") ->  | K171: =IF(PaymentSchedule[[#This Row],[支払番号]]<>"",SUM(INDEX(PaymentSchedule[利息],1,1):PaymentSchedule[[#This Row],[利息]]),"") -> 
B172: =IF(LoanIsGood,IF(ROW()-ROW(PaymentSchedule[[#Headers],[支払番号]])>支払予定回数,"",ROW()-ROW(PaymentSchedule[[#Headers],[支払番号]])),"") ->  | C172: =IF(PaymentSchedule[[#This Row],[支払番号]]<>"",EOMONTH(LoanStartDate,ROW(PaymentSchedule[[#This Row],[支払番号]])-ROW(PaymentSchedule[[#Headers],[支払番号]])-2)+DAY(LoanStartDate),"") ->  | D172: =IF(PaymentSchedule[[#This Row],[支払番号]]<>"",IF(ROW()-ROW(PaymentSchedule[[#Headers],[期首残高]])=1,借入金額,INDEX(PaymentSchedule[期末残高],ROW()-ROW(PaymentSchedule[[#Headers],[期首残高]])-1)),"") ->  | E172: =IF(PaymentSchedule[[#This Row],[支払番号]]<>"",ScheduledPayment,"") ->  | F172: =IF(PaymentSchedule[[#This Row],[支払番号]]<>"",IF(PaymentSchedule[[#This Row],[返済予定]]+ExtraPayments<PaymentSchedule[[#This Row],[期首残高]],ExtraPayments,IF(PaymentSchedule[[#This Row],[期首残高]]-PaymentSchedule[[#This Row],[返済予定]]>0,PaymentSchedule[[#This Row],[期首残高]]-PaymentSchedule[[#This Row],[返済予定]],0)),"") ->  | G172: =IF(PaymentSchedule[[#This Row],[支払番号]]<>"",IF(PaymentSchedule[[#This Row],[返済予定]]+PaymentSchedule[[#This Row],[繰上げ返済額]]<=PaymentSchedule[[#This Row],[期首残高]],PaymentSchedule[[#This Row],[返済予定]]+PaymentSchedule[[#This Row],[繰上げ返済額]],PaymentSchedule[[#This Row],[期首残高]]),"") ->  | H172: =IF(PaymentSchedule[[#This Row],[支払番号]]<>"",PaymentSchedule[[#This Row],[返済総額]]-PaymentSchedule[[#This Row],[利息]],"") ->  | I172: =IF(PaymentSchedule[[#This Row],[支払番号]]<>"",PaymentSchedule[[#This Row],[期首残高]]*(InterestRate/PaymentsPerYear),"") ->  | J172: =IF(PaymentSchedule[[#This Row],[支払番号]]<>"",IF(PaymentSchedule[[#This Row],[返済予定]]+PaymentSchedule[[#This Row],[繰上げ返済額]]<=PaymentSchedule[[#This Row],[期首残高]],PaymentSchedule[[#This Row],[期首残高]]-PaymentSchedule[[#This Row],[元金]],0),"") ->  | K172: =IF(PaymentSchedule[[#This Row],[支払番号]]<>"",SUM(INDEX(PaymentSchedule[利息],1,1):PaymentSchedule[[#This Row],[利息]]),"") -> 
B173: =IF(LoanIsGood,IF(ROW()-ROW(PaymentSchedule[[#Headers],[支払番号]])>支払予定回数,"",ROW()-ROW(PaymentSchedule[[#Headers],[支払番号]])),"") ->  | C173: =IF(PaymentSchedule[[#This Row],[支払番号]]<>"",EOMONTH(LoanStartDate,ROW(PaymentSchedule[[#This Row],[支払番号]])-ROW(PaymentSchedule[[#Headers],[支払番号]])-2)+DAY(LoanStartDate),"") ->  | D173: =IF(PaymentSchedule[[#This Row],[支払番号]]<>"",IF(ROW()-ROW(PaymentSchedule[[#Headers],[期首残高]])=1,借入金額,INDEX(PaymentSchedule[期末残高],ROW()-ROW(PaymentSchedule[[#Headers],[期首残高]])-1)),"") ->  | E173: =IF(PaymentSchedule[[#This Row],[支払番号]]<>"",ScheduledPayment,"") ->  | F173: =IF(PaymentSchedule[[#This Row],[支払番号]]<>"",IF(PaymentSchedule[[#This Row],[返済予定]]+ExtraPayments<PaymentSchedule[[#This Row],[期首残高]],ExtraPayments,IF(PaymentSchedule[[#This Row],[期首残高]]-PaymentSchedule[[#This Row],[返済予定]]>0,PaymentSchedule[[#This Row],[期首残高]]-PaymentSchedule[[#This Row],[返済予定]],0)),"") ->  | G173: =IF(PaymentSchedule[[#This Row],[支払番号]]<>"",IF(PaymentSchedule[[#This Row],[返済予定]]+PaymentSchedule[[#This Row],[繰上げ返済額]]<=PaymentSchedule[[#This Row],[期首残高]],PaymentSchedule[[#This Row],[返済予定]]+PaymentSchedule[[#This Row],[繰上げ返済額]],PaymentSchedule[[#This Row],[期首残高]]),"") ->  | H173: =IF(PaymentSchedule[[#This Row],[支払番号]]<>"",PaymentSchedule[[#This Row],[返済総額]]-PaymentSchedule[[#This Row],[利息]],"") ->  | I173: =IF(PaymentSchedule[[#This Row],[支払番号]]<>"",PaymentSchedule[[#This Row],[期首残高]]*(InterestRate/PaymentsPerYear),"") ->  | J173: =IF(PaymentSchedule[[#This Row],[支払番号]]<>"",IF(PaymentSchedule[[#This Row],[返済予定]]+PaymentSchedule[[#This Row],[繰上げ返済額]]<=PaymentSchedule[[#This Row],[期首残高]],PaymentSchedule[[#This Row],[期首残高]]-PaymentSchedule[[#This Row],[元金]],0),"") ->  | K173: =IF(PaymentSchedule[[#This Row],[支払番号]]<>"",SUM(INDEX(PaymentSchedule[利息],1,1):PaymentSchedule[[#This Row],[利息]]),"") -> 
B174: =IF(LoanIsGood,IF(ROW()-ROW(PaymentSchedule[[#Headers],[支払番号]])>支払予定回数,"",ROW()-ROW(PaymentSchedule[[#Headers],[支払番号]])),"") ->  | C174: =IF(PaymentSchedule[[#This Row],[支払番号]]<>"",EOMONTH(LoanStartDate,ROW(PaymentSchedule[[#This Row],[支払番号]])-ROW(PaymentSchedule[[#Headers],[支払番号]])-2)+DAY(LoanStartDate),"") ->  | D174: =IF(PaymentSchedule[[#This Row],[支払番号]]<>"",IF(ROW()-ROW(PaymentSchedule[[#Headers],[期首残高]])=1,借入金額,INDEX(PaymentSchedule[期末残高],ROW()-ROW(PaymentSchedule[[#Headers],[期首残高]])-1)),"") ->  | E174: =IF(PaymentSchedule[[#This Row],[支払番号]]<>"",ScheduledPayment,"") ->  | F174: =IF(PaymentSchedule[[#This Row],[支払番号]]<>"",IF(PaymentSchedule[[#This Row],[返済予定]]+ExtraPayments<PaymentSchedule[[#This Row],[期首残高]],ExtraPayments,IF(PaymentSchedule[[#This Row],[期首残高]]-PaymentSchedule[[#This Row],[返済予定]]>0,PaymentSchedule[[#This Row],[期首残高]]-PaymentSchedule[[#This Row],[返済予定]],0)),"") ->  | G174: =IF(PaymentSchedule[[#This Row],[支払番号]]<>"",IF(PaymentSchedule[[#This Row],[返済予定]]+PaymentSchedule[[#This Row],[繰上げ返済額]]<=PaymentSchedule[[#This Row],[期首残高]],PaymentSchedule[[#This Row],[返済予定]]+PaymentSchedule[[#This Row],[繰上げ返済額]],PaymentSchedule[[#This Row],[期首残高]]),"") ->  | H174: =IF(PaymentSchedule[[#This Row],[支払番号]]<>"",PaymentSchedule[[#This Row],[返済総額]]-PaymentSchedule[[#This Row],[利息]],"") ->  | I174: =IF(PaymentSchedule[[#This Row],[支払番号]]<>"",PaymentSchedule[[#This Row],[期首残高]]*(InterestRate/PaymentsPerYear),"") ->  | J174: =IF(PaymentSchedule[[#This Row],[支払番号]]<>"",IF(PaymentSchedule[[#This Row],[返済予定]]+PaymentSchedule[[#This Row],[繰上げ返済額]]<=PaymentSchedule[[#This Row],[期首残高]],PaymentSchedule[[#This Row],[期首残高]]-PaymentSchedule[[#This Row],[元金]],0),"") ->  | K174: =IF(PaymentSchedule[[#This Row],[支払番号]]<>"",SUM(INDEX(PaymentSchedule[利息],1,1):PaymentSchedule[[#This Row],[利息]]),"") -> 
B175: =IF(LoanIsGood,IF(ROW()-ROW(PaymentSchedule[[#Headers],[支払番号]])>支払予定回数,"",ROW()-ROW(PaymentSchedule[[#Headers],[支払番号]])),"") ->  | C175: =IF(PaymentSchedule[[#This Row],[支払番号]]<>"",EOMONTH(LoanStartDate,ROW(PaymentSchedule[[#This Row],[支払番号]])-ROW(PaymentSchedule[[#Headers],[支払番号]])-2)+DAY(LoanStartDate),"") ->  | D175: =IF(PaymentSchedule[[#This Row],[支払番号]]<>"",IF(ROW()-ROW(PaymentSchedule[[#Headers],[期首残高]])=1,借入金額,INDEX(PaymentSchedule[期末残高],ROW()-ROW(PaymentSchedule[[#Headers],[期首残高]])-1)),"") ->  | E175: =IF(PaymentSchedule[[#This Row],[支払番号]]<>"",ScheduledPayment,"") ->  | F175: =IF(PaymentSchedule[[#This Row],[支払番号]]<>"",IF(PaymentSchedule[[#This Row],[返済予定]]+ExtraPayments<PaymentSchedule[[#This Row],[期首残高]],ExtraPayments,IF(PaymentSchedule[[#This Row],[期首残高]]-PaymentSchedule[[#This Row],[返済予定]]>0,PaymentSchedule[[#This Row],[期首残高]]-PaymentSchedule[[#This Row],[返済予定]],0)),"") ->  | G175: =IF(PaymentSchedule[[#This Row],[支払番号]]<>"",IF(PaymentSchedule[[#This Row],[返済予定]]+PaymentSchedule[[#This Row],[繰上げ返済額]]<=PaymentSchedule[[#This Row],[期首残高]],PaymentSchedule[[#This Row],[返済予定]]+PaymentSchedule[[#This Row],[繰上げ返済額]],PaymentSchedule[[#This Row],[期首残高]]),"") ->  | H175: =IF(PaymentSchedule[[#This Row],[支払番号]]<>"",PaymentSchedule[[#This Row],[返済総額]]-PaymentSchedule[[#This Row],[利息]],"") ->  | I175: =IF(PaymentSchedule[[#This Row],[支払番号]]<>"",PaymentSchedule[[#This Row],[期首残高]]*(InterestRate/PaymentsPerYear),"") ->  | J175: =IF(PaymentSchedule[[#This Row],[支払番号]]<>"",IF(PaymentSchedule[[#This Row],[返済予定]]+PaymentSchedule[[#This Row],[繰上げ返済額]]<=PaymentSchedule[[#This Row],[期首残高]],PaymentSchedule[[#This Row],[期首残高]]-PaymentSchedule[[#This Row],[元金]],0),"") ->  | K175: =IF(PaymentSchedule[[#This Row],[支払番号]]<>"",SUM(INDEX(PaymentSchedule[利息],1,1):PaymentSchedule[[#This Row],[利息]]),"") -> 
